Workbook

Sheet START

Sheet Instructions
D2: 2020
X4: Yes
X5: No
W7: Type of Entities Range:
X8: Parent Municipality
X9: Consolidated Information
W17: MTREF Range: | X17: 2008
X18: 2009
X19: 2010
X20: 2011
X21: 2012
X22: 2013
X23: 2014
X24: 2015
X25: 2016
X26: 2017
X27: 2018
X28: 2019
X29: 2020
X30: 2021
X31: 2022
W33: MTREF Linked: | X33: 11
W34: MTREF: | X34: =INDEX(X17:X31,X33,1) -> 2018
W36: Fin Year: | X36: =MTREF&"/"&RIGHT(MTREF,2)+1 -> 2018/19

Sheet Template names (hidden)
A1: Common sheet headings
A2: Head1 | B2: =HLOOKUP(MTREF,Headings,2) -> 2016/17 | C2: Prior year -1
A3: Head1A | B3: =HLOOKUP(MTREF,Headings,3) -> 2015/16 | C3: Prior year -2
A4: Head1B | B4: =HLOOKUP(MTREF,Headings,4) -> 2014/15 | C4: Prior year -3
A5: Head2 | B5: =HLOOKUP(MTREF,Headings,5) -> Current Year 2017/18 | C5: Year in which budget is being prepared
A6: Head2A | B6: =HLOOKUP(MTREF,Headings,6) -> 2017/18 | C6: Year in which budget is being prepared
A7: Head3 | B7: =HLOOKUP(MTREF,Headings,7) -> 2018/19 Medium Term Revenue & Expenditure Framework | C7: MTREF name
A8: Head4 | B8: LTFS | C8: Long term financial strategy
A9: Head5 | B9: Audited Outcome
A10: Head5A | B10: Outcome
A11: Head5B | B11: Pre-audit outcome
A12: Head6 | B12: Original Budget
A13: Head7 | B13: Adjusted Budget
A14: Head8 | B14: Full Year Forecast
A15: Head9 | B15: =HLOOKUP(MTREF,Headings,8) -> Budget Year 2018/19 | C15: 1st year of MTREF | D15: Year1
A16: Head10 | B16: =HLOOKUP(MTREF,Headings,9) -> Budget Year +1 2019/20 | C16: 2nd year of MTREF | D16: Year2
A17: Head11 | B17: =HLOOKUP(MTREF,Headings,10) -> Budget Year +2 2020/21 | C17: 3rd year of MTREF | D17: Year3
A18: Head12 | B18: =HLOOKUP(MTREF,Headings,11) -> Forecast 2021/22 | C18: 1st yr of long term forecast | D18: Year4
A19: Head13 | B19: =HLOOKUP(MTREF,Headings,12) -> Forecast 2022/23 | C19: Next yr of long term forecast | D19: Year5
A20: Head14 | B20: =HLOOKUP(MTREF,Headings,13) -> Forecast 2023/24 | C20: Next yr of long term forecast | D20: Year6
A21: Head15 | B21: =HLOOKUP(MTREF,Headings,14) -> Forecast 2024/25 | C21: Next yr of long term forecast | D21: Year7
A22: Head16 | B22: =HLOOKUP(MTREF,Headings,15) -> Forecast 2025/26 | C22: Next yr of long term forecast | D22: Year8
A23: Head17 | B23: =HLOOKUP(MTREF,Headings,16) -> Forecast 2026/27 | C23: Next yr of long term forecast | D23: Year9
A24: Head18 | B24: =HLOOKUP(MTREF,Headings,17) -> Forecast 2027/28 | C24: Next yr of long term forecast | D24: Year10
A25: Head19 | B25: =HLOOKUP(MTREF,Headings,18) -> Forecast 2028/29 | C25: Next yr of long term forecast | D25: Year11
A26: Head20 | B26: =HLOOKUP(MTREF,Headings,19) -> Forecast 2029/30 | C26: Next yr of long term forecast | D26: Year12
A27: Head21 | B27: =HLOOKUP(MTREF,Headings,20) -> Forecast 2030/31 | C27: Next yr of long term forecast | D27: Year13
A28: Head22 | B28: =HLOOKUP(MTREF,Headings,21) -> Forecast 2031/32 | C28: Next yr of long term forecast | D28: Year14
A29: Head23 | B29: =HLOOKUP(MTREF,Headings,22) -> Forecast 2032/33 | C29: Next yr of long term forecast | D29: Year15
A30: Head24 | B30: Description
A31: Head25
A32: Head26 | B32: Vote Description
A33: Head27 | B33: Ref
A34: Head27a | B34: References
A35: Head28 | B35: Surplus/(Deficit) for the year | D35: Result
A36: Head29 | B36: =HLOOKUP(MTREF,Headings,23) -> Annual target 2018/19
A37: Head30 | B37: =HLOOKUP(MTREF,Headings,24) -> Revised target 2018/19
A38: Head31 | B38: Quarter ended 30 September
A39: Head32 | B39: Quarter ended 31 December
A40: Head33 | B40: Quarter ended 31 March
A41: Head34 | B41: Quarter ended 30 June
A42: Head35 | B42: Variance explanation
A43: Head36 | B43: YTD Actual 31 Dec
A44: Head37 | B44: YTD Budget 31 Dec
A45: Head38 | B45: Monthly actual
A46: Head39 | B46: YTD actual
A47: Head40 | B47: YTD budget
A48: Head41 | B48: YTD variance
A49: Head42 | B49: Surplus/ (Deficit) for the yr/period
A50: Head43 | B50: =Head3&" Summary" -> 2018/19 Medium Term Revenue & Expenditure Framework Summary
A51: Head44 | B51: 2001 Census
A52: Head45 | B52: 2011 Census
A53: Head46 | B53: - Adjustments Budget - January 2007
A54: Head47 | B54: Previous target year to complete
A55: Head48 | B55: Present value
A56: Head49
A57: Head50 | B57: Other Adjusts.
A58: Head51 | B58: Accum. Funds
A59: Head52 | B59: Multi-year capital
A60: Head53 | B60: Unfore. Unavoid.
A61: Head54 | B61: Prior Adjusted
A62: Head55 | B62: Nat. or Prov. Govt
A63: Head56 | B63: Total Adjusts.
A64: SFPerf1 | B64: Budgeted Financial Performance
A65: SFPerf2 | B65: Forecast Financial Performance
A66: SFPos1 | B66: Budgeted Financial Position
A67: SFPos2 | B67: Forecast Financial Position
A68: Cash1 | B68: Budget Cash Flow
A69: Cash2 | B69: Forecast Cash Flow
A70: RandM | B70: Expenditure includes repairs & maintenance of R'000
A71: Depart1 | B71: Department 1 - | D71: DEP1
A72: Depart2 | B72: Department 2 - | D72: DEP2
A73: Depart3 | B73: Department 3 - | D73: DEP3
A74: Depart4 | B74: Department 4 - | D74: DEP4
A75: Depart5 | B75: Department 5 - | D75: DEP5
A76: Depart6 | B76: Department 6 - | D76: DEP6
A77: Depart7 | B77: Department 7 - | D77: DEP7
A78: Depart8 | B78: Department 8 - | D78: DEP8
A79: Depart9 | B79: Department 9 - | D79: DEP9
A80: Depart10 | B80: Department 10 - | D80: DEP10
A81: Depart11 | B81: Department 11 - | D81: DEP11
A82: Depart12 | B82: Department 12 - | D82: DEP12
A83: Depart13 | B83: Department 13 - | D83: DEP13
A84: Depart14 | B84: Department 14 - | D84: DEP14
A87: Base year of forecast column selection names
A88: Choose | B88: ACT
B89: APP
B90: ADJ
A92: Standard nomenclature
A93: Muni | B93: ='Lookup and lists'!B28 -> KZN434 Ubuhlebezwe
A94: Municipal Entities | B94: 2 | C94: Type of report: | D94: 2
A95: =IF((MuniEntities=1)*(MuniType=2),"YES","NO") -> NO | B95: Does this municipality have entities (consolidated budget and entity budgets required)? YES/NO
A96: Entity 1 | B96: (Pty) Ltd Example 1 - Municipal entity - | D96: Ent1
A97: Entity 2 | B97: (Pty) Ltd Example 2 - Municipal entity - | D97: Ent2
A98: Entity 3 | B98: Municipal Entity Example 3 | D98: Ent3
A99: Budget approval tables | C99: Chart x-ref | D99: Sch/Tab/Ch | E99: Alternative for municipalities without entities | F99: Alternative for municipalities without entities
B100: =IF(Consolques="YES",E100,F100) -> Table A1 Budget Summary | D100: Table A1 | E100: =D100&"Consolidated Budget Summary" -> Table A1 Consolidated Budget Summary | F100: =D100&"Budget Summary" -> Table A1 Budget Summary
B101: Table A2 Budgeted Financial Performance (revenue and expenditure by functional classification) | C101: Charts 5, 6 | D101: Table A2 | E101: =D101&"Consolidated Budgeted Financial Performance (revenue and expenditure by functional classification)" -> Table A2 Consolidated Budgeted Financial Performance (revenue and expenditure by functional classification) | F101: =D101&"Budgeted Financial Performance (revenue and expenditure by functional classification)" -> Table A2 Budgeted Financial Performance (revenue and expenditure by functional classification)
B102: Table A3 Budgeted Financial Performance (revenue and expenditure by municipal vote) | D102: Table A3 | E102: =D102&"Consolidated Budgeted Financial Performance (revenue and expenditure by municipal vote)" -> Table A3 Consolidated Budgeted Financial Performance (revenue and expenditure by municipal vote) | F102: =D102&"Budgeted Financial Performance (revenue and expenditure by municipal vote)" -> Table A3 Budgeted Financial Performance (revenue and expenditure by municipal vote)
B103: Table A4 Budgeted Financial Performance (revenue and expenditure) | C103: Charts 1, 2, 3, 4 | D103: Table A4 | E103: =D103&"Consolidated Budgeted Financial Performance (revenue and expenditure)" -> Table A4 Consolidated Budgeted Financial Performance (revenue and expenditure) | F103: =D103&"Budgeted Financial Performance (revenue and expenditure)" -> Table A4 Budgeted Financial Performance (revenue and expenditure)
B104: Table A5 Budgeted Capital Expenditure by vote, functional classification and funding | C104: Charts 7, 8, 9, 10, 20 | D104: Table A5 | E104: =D104&"Consolidated Budgeted Capital Expenditure by vote, functional classification and funding" -> Table A5 Consolidated Budgeted Capital Expenditure by vote, functional classification and funding | F104: =D104&"Budgeted Capital Expenditure by vote, functional classification and funding" -> Table A5 Budgeted Capital Expenditure by vote, functional classification and funding
B105: Table A6 Budgeted Financial Position | D105: Table A6 | E105: =D105&"Consolidated Budgeted Financial Position" -> Table A6 Consolidated Budgeted Financial Position | F105: =D105&"Budgeted Financial Position" -> Table A6 Budgeted Financial Position
B106: Table A7 Budgeted Cash Flows | D106: Table A7 | E106: =D106&"Consolidated Budgeted Cash Flows" -> Table A7 Consolidated Budgeted Cash Flows | F106: =D106&"Budgeted Cash Flows" -> Table A7 Budgeted Cash Flows
B107: Table A8 Cash backed reserves/accumulated surplus reconciliation | D107: Table A8 | E107: =D107&"Consolidated Cash backed reserves/accumulated surplus reconciliation" -> Table A8 Consolidated Cash backed reserves/accumulated surplus reconciliation | F107: =D107&"Cash backed reserves/accumulated surplus reconciliation" -> Table A8 Cash backed reserves/accumulated surplus reconciliation
B108: Table A9 Asset Management | D108: Table A9 | E108: =D108&"Consolidated Asset Management" -> Table A9 Consolidated Asset Management | F108: =D108&"Asset Management" -> Table A9 Asset Management
B109: Table A10 Basic service delivery measurement | D109: Table A10 | E109: =D109&"Consolidated basic service delivery measurement" -> Table A10 Consolidated basic service delivery measurement | F109: =D109&"Basic service delivery measurement" -> Table A10 Basic service delivery measurement
A110: Supportinging Tables to the Budget Approval Tables | C110: =$C$99 -> Chart x-ref | D110: =$D$99 -> Sch/Tab/Ch
A111: Supporting Table SA1 | B111: =A111&" Supportinging detail to 'Budgeted Financial Performance'" -> Supporting Table SA1 Supportinging detail to 'Budgeted Financial Performance'
A112: Supporting Table SA2 | B112: =IF(Consolques="YES",E112,F112) -> Supporting Table SA2 Matrix Financial Performance Budget (revenue source/expenditure type and dept.) | E112: =A112&"Consolidated Matrix Financial Performance Budget (revenue source/expenditure type & dept.)" -> Supporting Table SA2 Consolidated Matrix Financial Performance Budget (revenue source/expenditure type & dept.) | F112: =A112&"Matrix Financial Performance Budget (revenue source/expenditure type and dept.)" -> Supporting Table SA2 Matrix Financial Performance Budget (revenue source/expenditure type and dept.)
A113: Supporting Table SA3 | B113: =A113&"Supportinging detail to 'Budgeted Financial Position'" -> Supporting Table SA3 Supportinging detail to 'Budgeted Financial Position'
A114: Supporting Table SA4 | B114: =A114&"Reconciliation of IDP strategic objectives and budget (revenue)" -> Supporting Table SA4 Reconciliation of IDP strategic objectives and budget (revenue) | C114: Chart 11
A115: Supporting Table SA5 | B115: =A115&"Reconciliation of IDP strategic objectives and budget (operating expenditure)" -> Supporting Table SA5 Reconciliation of IDP strategic objectives and budget (operating expenditure) | C115: Chart 12
A116: Supporting Table SA6 | B116: =A116&"Reconciliation of IDP strategic objectives and budget (capital expenditure)" -> Supporting Table SA6 Reconciliation of IDP strategic objectives and budget (capital expenditure) | C116: Chart 13
A117: Supporting Table SA7 | B117: =A117&" Measureable performance objectives" -> Supporting Table SA7 Measureable performance objectives
A118: Supporting Table SA8 | B118: =A118&" Performance indicators and benchmarks" -> Supporting Table SA8 Performance indicators and benchmarks | C118: Chts 15-19
A119: Supporting Table SA9 | B119: =A119&" Social, economic and demographic statistics and assumptions" -> Supporting Table SA9 Social, economic and demographic statistics and assumptions
A120: Supporting Table SA10 | B120: =A120&" Funding measurement" -> Supporting Table SA10 Funding measurement | C120: Chart 14
A121: Supporting Table SA11 | B121: =A121&" Property rates summary" -> Supporting Table SA11 Property rates summary
A122: Supporting Table SA12a | B122: =A122&" Property rates by category (current year)" -> Supporting Table SA12a Property rates by category (current year)
A123: Supporting Table SA12b | B123: =A123&" Property rates by category (budget year)" -> Supporting Table SA12b Property rates by category (budget year)
A124: Supporting Table SA13a | B124: =A124&" Service Tariffs by category" -> Supporting Table SA13a Service Tariffs by category
A125: Supporting Table SA13b | B125: =A125&" Service Tariffs by category - explanatory" -> Supporting Table SA13b Service Tariffs by category - explanatory
A126: Supporting Table SA14 | B126: =A126&" Household bills" -> Supporting Table SA14 Household bills
A127: Supporting Table SA15 | B127: =A127&" Investment particulars by type" -> Supporting Table SA15 Investment particulars by type
A128: Supporting Table SA16 | B128: =A128&" Investment particulars by maturity" -> Supporting Table SA16 Investment particulars by maturity
A129: Supporting Table SA17 | B129: =A129&" Borrowing" -> Supporting Table SA17 Borrowing
A130: Supporting Table SA18 | B130: =A130&" Transfers and grant receipts" -> Supporting Table SA18 Transfers and grant receipts
A131: Supporting Table SA19 | B131: =A131&" Expenditure on transfers and grant programme" -> Supporting Table SA19 Expenditure on transfers and grant programme
A132: Supporting Table SA20 | B132: =A132&" Reconciliation of transfers, grant receipts and unspent funds" -> Supporting Table SA20 Reconciliation of transfers, grant receipts and unspent funds
A133: Supporting Table SA21 | B133: =A133&" Transfers and grants made by the municipality" -> Supporting Table SA21 Transfers and grants made by the municipality
A134: Supporting Table SA22 | B134: =A134&" Summary councillor and staff benefits" -> Supporting Table SA22 Summary councillor and staff benefits
A135: Supporting Table SA23 | B135: =A135&" Salaries, allowances & benefits (political office bearers/councillors/senior managers)" -> Supporting Table SA23 Salaries, allowances & benefits (political office bearers/councillors/senior managers)
A136: Supporting Table SA24 | B136: =A136&" Summary of personnel numbers" -> Supporting Table SA24 Summary of personnel numbers
A137: Supporting Table SA25 | B137: =IF(Consolques="YES",E137,F137) -> Supporting Table SA25 Budgeted monthly revenue and expenditure | E137: =A137&" Consolidated budgeted monthly revenue and expenditure" -> Supporting Table SA25 Consolidated budgeted monthly revenue and expenditure | F137: =A137&" Budgeted monthly revenue and expenditure" -> Supporting Table SA25 Budgeted monthly revenue and expenditure
A138: Supporting Table SA26 | B138: Supporting Table SA26 Budgeted monthly revenue and expenditure (municipal vote) | E138: =A138&" Consolidated budgeted monthly revenue and expenditure (municipal vote)" -> Supporting Table SA26 Consolidated budgeted monthly revenue and expenditure (municipal vote) | F138: =A138&" Budgeted monthly revenue and expenditure (municipal vote)" -> Supporting Table SA26 Budgeted monthly revenue and expenditure (municipal vote)
A139: Supporting Table SA27 | B139: Supporting Table SA27 Budgeted monthly revenue and expenditure (functional classification) | E139: =A139&" Consolidated budgeted monthly revenue and expenditure (functional classification)" -> Supporting Table SA27 Consolidated budgeted monthly revenue and expenditure (functional classification) | F139: =A139&" Budgeted monthly revenue and expenditure (functional classification)" -> Supporting Table SA27 Budgeted monthly revenue and expenditure (functional classification)
A140: Supporting Table SA28 | B140: Supporting Table SA28 Budgeted monthly capital expenditure (municipal vote) | E140: =A140&" Consolidated budgeted monthly capital expenditure (municipal vote)" -> Supporting Table SA28 Consolidated budgeted monthly capital expenditure (municipal vote) | F140: =A140&" Budgeted monthly capital expenditure (municipal vote)" -> Supporting Table SA28 Budgeted monthly capital expenditure (municipal vote)
A141: Supporting Table SA29 | B141: Supporting Table SA29 Budgeted monthly capital expenditure (functional classification) | E141: =A141&" Consolidated budgeted monthly capital expenditure (functional classification)" -> Supporting Table SA29 Consolidated budgeted monthly capital expenditure (functional classification) | F141: =A141&" Budgeted monthly capital expenditure (functional classification)" -> Supporting Table SA29 Budgeted monthly capital expenditure (functional classification)
A142: Supporting Table SA30 | B142: Supporting Table SA30 Budgeted monthly cash flow | E142: =A142&" Consolidated budgeted monthly cash flow" -> Supporting Table SA30 Consolidated budgeted monthly cash flow | F142: =A142&" Budgeted monthly cash flow" -> Supporting Table SA30 Budgeted monthly cash flow
A143: Supporting Table SA31 | B143: NOT REQUIRED - municipality does not have entities | E143: =A143&" Aggregated entity budget" -> Supporting Table SA31 Aggregated entity budget | F143: NOT REQUIRED - municipality does not have entities
A144: Supporting Table SA32 | B144: =A144&" List of external mechanisms" -> Supporting Table SA32 List of external mechanisms
A145: Supporting Table SA33 | B145: =A145&" Contracts having future budgetary implications" -> Supporting Table SA33 Contracts having future budgetary implications
A146: Supporting Table SA34a | B146: =IF(Consolques="YES",E146,F146) -> Supporting Table SA34a Capital expenditure on new assets by asset class | E146: =A146&" Consolidated capital expenditure on new assets by asset class" -> Supporting Table SA34a Consolidated capital expenditure on new assets by asset class | F146: =A146&" Capital expenditure on new assets by asset class" -> Supporting Table SA34a Capital expenditure on new assets by asset class
A147: Supporting Table SA34b | B147: Supporting Table SA34b Capital expenditure on the renewal of existing assets by asset class | E147: =A147&" Consolidated capital expenditure on the renewal of existing assets by asset class" -> Supporting Table SA34b Consolidated capital expenditure on the renewal of existing assets by asset class | F147: =A147&" Capital expenditure on the renewal of existing assets by asset class" -> Supporting Table SA34b Capital expenditure on the renewal of existing assets by asset class
A148: Supporting Table SA34c | B148: Supporting Table SA34c Repairs and maintenance expenditure by asset class | E148: =A148&" Consolidated repairs and maintenance by asset class" -> Supporting Table SA34c Consolidated repairs and maintenance by asset class | F148: =A148&" Repairs and maintenance expenditure by asset class" -> Supporting Table SA34c Repairs and maintenance expenditure by asset class
A149: Supporting Table SA34d | B149: =IF(Consolques="YES",E149,F149) -> Supporting Table SA34d Depreciation by asset class | E149: =A149&" Consolidated Depreciation by asset class" -> Supporting Table SA34d Consolidated Depreciation by asset class | F149: =A149&" Depreciation by asset class" -> Supporting Table SA34d Depreciation by asset class
A150: Supporting Table SA34e | B150: =IF(Consolques="YES",E150,F150) -> Supporting Table SA34e Capital expenditure on the upgrading of existing assets by asset class | E150: =A150&" Consolidated capital expenditure on the upgrading of existing assets by asset class" -> Supporting Table SA34e Consolidated capital expenditure on the upgrading of existing assets by asset class | F150: =A150&" Capital expenditure on the upgrading of existing assets by asset class" -> Supporting Table SA34e Capital expenditure on the upgrading of existing assets by asset class
A151: Supporting Table SA35 | B151: Supporting Table SA35 Future financial implications of the capital budget | E151: =A151&" Consolidated future financial implications of the capital budget" -> Supporting Table SA35 Consolidated future financial implications of the capital budget | F151: =A151& " Future financial implications of the capital budget" -> Supporting Table SA35 Future financial implications of the capital budget
A152: Supporting Table SA36 | B152: Supporting Table SA36 Detailed capital budget | E152: =A152&" Consolidated detailed capital budget" -> Supporting Table SA36 Consolidated detailed capital budget | F152: =A152& " Detailed capital budget" -> Supporting Table SA36 Detailed capital budget
A153: Supporting Table SA37 | B153: Supporting Table SA37 Projects delayed from previous financial year/s | E153: =A153&" Consolidated projects delayed from previous financial year/s" -> Supporting Table SA37 Consolidated projects delayed from previous financial year/s | F153: =A153& " Projects delayed from previous financial year/s" -> Supporting Table SA37 Projects delayed from previous financial year/s
A154: Supporting Table SA38 | B154: =IF(Consolques="YES",E154,F154) -> Supporting Table SA38 Detailed operational projects | E154: =A154&" Consolidated detailed operational projects" -> Supporting Table SA38 Consolidated detailed operational projects | F154: =A154& " Detailed operational projects" -> Supporting Table SA38 Detailed operational projects
A156: Budget Charts | B156: Charts | C156: Cross reference
A157: Chart A1 | B157: =A157&"Revenue by Municipal Vote" -> Chart A1 Revenue by Municipal Vote
A158: Chart A2 | B158: =A158&"Expenditure by Municipal Vote" -> Chart A2 Expenditure by Municipal Vote
A159: Chart A3 | B159: =A159&"Revenue by Standard Classification" -> Chart A3 Revenue by Standard Classification | C159: A2
A160: Chart A4 | B160: =A160&"Expenditure by Standard Classification" -> Chart A4 Expenditure by Standard Classification | C160: A2
A161: Chart A5 | B161: =A161&"Revenue by Major Source (refer 'Minor' source for 'Other Revenue' allocation" -> Chart A5 Revenue by Major Source (refer 'Minor' source for 'Other Revenue' allocation | C161: A3
A162: Chart A6 | B162: =A162&"Revenue by Minor Source (Other)" -> Chart A6 Revenue by Minor Source (Other) | C162: A3
A163: Chart A7 | B163: =A163&"Expenditure by Major Type" -> Chart A7 Expenditure by Major Type | C163: A3
A164: Chart A8 | B164: =A164&"Expenditure by Minor Type (Other)" -> Chart A8 Expenditure by Minor Type (Other) | C164: A3
A165: Chart A9 | B165: =A165&"Capital Expenditure by Municipal Vote/Appropriation (Major)" -> Chart A9 Capital Expenditure by Municipal Vote/Appropriation (Major) | C165: A5
A166: Chart A10 | B166: =A166&"Capital Expenditure by Municipal Vote/Appropriation (Minor)" -> Chart A10 Capital Expenditure by Municipal Vote/Appropriation (Minor) | C166: A5
A167: Chart A11 | B167: =A166&"Capital Expenditure by Standard Classification" -> Chart A10 Capital Expenditure by Standard Classification | C167: A5
A168: Chart A12 | B168: =A168&"Capital expenditure performance trend" -> Chart A12 Capital expenditure performance trend | C168: A5
A169: Chart A13 | B169: =A169&"Capital funding by Source" -> Chart A13 Capital funding by Source | C169: A5
A170: Chart A14 | B170: =A170&"Cash flow trend" -> Chart A14 Cash flow trend | C170: A7
A171: Chart A15 | B171: =A171&"IDP Strategic Objective - Revenue" -> Chart A15 IDP Strategic Objective - Revenue | C171: Table A4
A172: Chart A16 | B172: =A172&"IDP Strategic Objective - Expenditure" -> Chart A16 IDP Strategic Objective - Expenditure | C172: Table A5
A173: Chart A17 | B173: =A173&"IDP Strategic Objective - Capital Expenditure" -> Chart A17 IDP Strategic Objective - Capital Expenditure | C173: Table A6
A174: Chart A18 | B174: =A174&"Debt (borrowing to Total Revenue)" -> Chart A18 Debt (borrowing to Total Revenue) | C174: Table A8
A175: Chart A19 | B175: =A175&"Debtors' trend analysis" -> Chart A19 Debtors' trend analysis | C175: Table A8
A176: Chart A20 | B176: =A176&"Distribution losses" -> Chart A20 Distribution losses | C176: Table A8
A177: Chart A21 | B177: =A177&"Borrowed funding of capital expenditure" -> Chart A21 Borrowed funding of capital expenditure | C177: Table A8
A178: Chart A22 | B178: =A178&"Expenditure analysis (% of Revenue)" -> Chart A22 Expenditure analysis (% of Revenue) | C178: Table A8
A179: Chart A23 | B179: =A179&"Increases in service charges" -> Chart A23 Increases in service charges | C179: Table A10

Sheet Lookup and lists (hidden)
A1: Description | B1: 2007 | C1: 2008 | D1: 2009 | E1: 2010 | F1: 2011 | G1: 2012 | H1: 2013 | I1: 2014 | J1: 2015 | K1: 2016 | L1: 2017 | M1: 2018 | N1: 2019 | O1: 2020 | Q1: Lists | Y1: Grants: | Z1: National - opex | AA1: Provincial - opex | AB1: National - capex | AC1: Provincial - capex
A2: ='Template names'!C2 -> Prior year -1 | B2: 2005/06 | C2: 2006/07 | D2: 2007/08 | E2: =E1-2&"/"&RIGHT(E1,2)-1 -> 2008/9 | F2: 2009/10 | G2: 2010/11 | H2: 2011/12 | I2: 2012/13 | J2: 2013/14 | K2: 2014/15 | L2: 2015/16 | M2: 2016/17 | N2: 2017/18 | O2: 2018/19 | Q2: Yes | R2: <1 | S2: <4 | T2: Market | U2: Land & impr. | V2: Yes | W2: Uniform | X2: Yrs | Z2: Local Government Equitable Share | AA2: Health subsidy | AB2: Municipal Infrastructure Grant (MIG) | AC2: Agriculture
A3: ='Template names'!C3 -> Prior year -2 | B3: 2004/05 | C3: 2005/06 | D3: 2006/07 | E3: =E1-3&"/"&RIGHT(E1,2)-2 -> 2007/8 | F3: 2008/9 | G3: 2009/10 | H3: 2010/11 | I3: 2011/12 | J3: 2012/13 | K3: 2013/14 | L3: 2014/15 | M3: 2015/16 | N3: 2016/17 | O3: 2017/18 | Q3: No | R3: 1 | S3: 4 | T3: Dep.Replace | U3: Land only | V3: No | W3: Variable | X3: Mths | Z3: RSC Levy Replacement | AA3: Ambulance subsidy | AB3: Public Transport and Systems | AC3: Education
A4: ='Template names'!C4 -> Prior year -3 | B4: 2003/04 | C4: 2004/05 | D4: 2005/06 | E4: =E1-4&"/"&RIGHT(E1,2)-3 -> 2006/7 | F4: 2007/8 | G4: 2008/9 | H4: 2009/10 | I4: 2010/11 | J4: 2011/12 | K4: 2012/13 | L4: 2013/14 | M4: 2014/15 | N4: 2015/16 | O4: 2016/17 | R4: 2 | S4: 5 | T4: Other | U4: Other | Z4: Finance Management | AA4: Housing | AB4: Rural Transport Services and Infrastructure | AC4: Health
A5: ='Template names'!C5 -> Year in which budget is being prepared | B5: Current Year 2006/07 | C5: Current Year 2007/08 | D5: Current Year 2008/09 | E5: ="Current Year "& E1-1&"/"&RIGHT(E1,2) -> Current Year 2009/10 | F5: Current Year 2010/11 | G5: Current Year 2011/12 | H5: Current Year 2012/13 | I5: Current Year 2013/14 | J5: Current Year 2014/15 | K5: Current Year 2015/16 | L5: Current Year 2016/17 | M5: Current Year 2017/18 | N5: Current Year 2018/19 | O5: Current Year 2019/20 | R5: 3 | S5: 6 | Z5: Municipal Systems Improvement | AA5: Sport and Recreation | AB5: Regional Bulk Infrastructure | AC5: Housing and Local Government
A6: ='Template names'!C6 -> Year in which budget is being prepared | B6: 2006/07 | C6: 2007/08 | D6: 2008/09 | E6: =E1-1&"/"&RIGHT(E1,2) -> 2009/10 | F6: 2010/11 | G6: 2011/12 | H6: 2012/13 | I6: 2013/14 | J6: 2014/15 | K6: 2015/16 | L6: 2016/17 | M6: 2017/18 | N6: 2018/19 | O6: 2019/20 | R6: 4 | S6: 6-10 | Z6: Water Services Operating Subsidy | AB6: Rural Households Infrastructure | AC6: Other Departments
A7: ='Template names'!C7 -> MTREF name | B7: 2007/08 Medium Term Revenue & Expenditure Framework | C7: 2008/09 Medium Term Revenue & Expenditure Framework | D7: 2009/10 Medium Term Revenue & Expenditure Framework | E7: =E1&"/"&RIGHT(E1,2)+1&" Medium Term Revenue & Expenditure Framework" -> 2010/11 Medium Term Revenue & Expenditure Framework | F7: 2011/12 Medium Term Revenue & Expenditure Framework | G7: 2012/13 Medium Term Revenue & Expenditure Framework | H7: 2013/14 Medium Term Revenue & Expenditure Framework | I7: 2014/15 Medium Term Revenue & Expenditure Framework | J7: 2015/16 Medium Term Revenue & Expenditure Framework | K7: 2016/17 Medium Term Revenue & Expenditure Framework | L7: 2017/18 Medium Term Revenue & Expenditure Framework | M7: 2018/19 Medium Term Revenue & Expenditure Framework | N7: 2019/20 Medium Term Revenue & Expenditure Framework | O7: 2020/21 Medium Term Revenue & Expenditure Framework | R7: 5 | S7: >10 | Z7: Energy Efficiency and Demand Management | AB7: Neighbourhood Development Partnership | AC7: Public Works, Roads, Transport
A8: ='Template names'!C15 -> 1st year of MTREF | B8: Budget Year 2007/08 | C8: Budget Year 2008/09 | D8: Budget Year 2009/10 | E8: ="Budget Year "&E1&"/"&RIGHT(E1,2)+1 -> Budget Year 2010/11 | F8: Budget Year 2011/12 | G8: Budget Year 2012/13 | H8: Budget Year 2013/14 | I8: Budget Year 2014/15 | J8: Budget Year 2015/16 | K8: Budget Year 2016/17 | L8: Budget Year 2017/18 | M8: Budget Year 2018/19 | N8: Budget Year 2019/20 | O8: Budget Year 2020/21 | R8: >5 | Z8: Integrated National Electrification Programme | AB8: 2010 FIFA World Cup Stadiums Development | AC8: Sport and Recreation
A9: ='Template names'!C16 -> 2nd year of MTREF | B9: Budget Year +1 2008/09 | C9: Budget Year +1 2009/10 | D9: Budget Year +1 2010/11 | E9: ="Budget Year +1 "&E1+1&"/"&RIGHT(E1,2)+2 -> Budget Year +1 2011/12 | F9: Budget Year +1 2012/13 | G9: Budget Year +1 2013/14 | H9: Budget Year +1 2014/15 | I9: Budget Year +1 2015/16 | J9: Budget Year +1 2016/17 | K9: Budget Year +1 2017/18 | L9: Budget Year +1 2018/19 | M9: Budget Year +1 2019/20 | N9: Budget Year +1 2020/21 | O9: Budget Year +1 2021/22 | Z9: Municipal Drought Relief
A10: ='Template names'!C17 -> 3rd year of MTREF | B10: Budget Year +2 2009/10 | C10: Budget Year +2 2010/11 | D10: Budget Year +2 2011/12 | E10: ="Budget Year +2 "&E1+2&"/"&RIGHT(E1,2)+3 -> Budget Year +2 2012/13 | F10: Budget Year +2 2013/14 | G10: Budget Year +2 2014/15 | H10: Budget Year +2 2015/16 | I10: Budget Year +2 2016/17 | J10: Budget Year +2 2017/18 | K10: Budget Year +2 2018/19 | L10: Budget Year +2 2019/20 | M10: Budget Year +2 2020/21 | N10: Budget Year +2 2021/22 | O10: Budget Year +2 2022/23 | Z10: 2010 FIFA World Cup Operating
A11: ='Template names'!C18 -> 1st yr of long term forecast | B11: Forecast 2010/11 | C11: Forecast 2011/12 | D11: Forecast 2012/13 | E11: ="Forecast "&E1+3&"/"&RIGHT(E1,2)+4 -> Forecast 2013/14 | F11: Forecast 2014/15 | G11: Forecast 2015/16 | H11: Forecast 2016/17 | I11: Forecast 2017/18 | J11: Forecast 2018/19 | K11: Forecast 2019/20 | L11: Forecast 2020/21 | M11: Forecast 2021/22 | N11: Forecast 2022/23 | O11: Forecast 2023/24 | Z11: Electricity Demand Side Management
A12: ='Template names'!C19 -> Next yr of long term forecast | B12: Forecast 2011/12 | C12: Forecast 2012/13 | D12: Forecast 2013/14 | E12: ="Forecast "&E1+4&"/"&RIGHT(E1,2)+5 -> Forecast 2014/15 | F12: Forecast 2015/16 | G12: Forecast 2016/17 | H12: Forecast 2017/18 | I12: Forecast 2018/19 | J12: Forecast 2019/20 | K12: Forecast 2020/21 | L12: Forecast 2021/22 | M12: Forecast 2022/23 | N12: Forecast 2023/24 | O12: Forecast 2024/25 | Z12: EPWP Incentive
A13: ='Template names'!C20 -> Next yr of long term forecast | B13: Forecast 2012/13 | C13: Forecast 2013/14 | D13: Forecast 2014/15 | E13: ="Forecast "&E1+5&"/"&RIGHT(E1,2)+6 -> Forecast 2015/16 | F13: Forecast 2016/17 | G13: Forecast 2017/18 | H13: Forecast 2018/19 | I13: Forecast 2019/20 | J13: Forecast 2020/21 | K13: Forecast 2021/22 | L13: Forecast 2022/23 | M13: Forecast 2023/24 | N13: Forecast 2024/25 | O13: Forecast 2025/26
A14: ='Template names'!C21 -> Next yr of long term forecast | B14: Forecast 2013/14 | C14: Forecast 2014/15 | D14: Forecast 2015/16 | E14: ="Forecast "&E1+6&"/"&RIGHT(E1,2)+7 -> Forecast 2016/17 | F14: Forecast 2017/18 | G14: Forecast 2018/19 | H14: Forecast 2019/20 | I14: Forecast 2020/21 | J14: Forecast 2021/22 | K14: Forecast 2022/23 | L14: Forecast 2023/24 | M14: Forecast 2024/25 | N14: Forecast 2025/26 | O14: Forecast 2026/27 | Z14: Asset Class | AA14: Asset sub-class old | AB14: Asset sub-class
A15: ='Template names'!C22 -> Next yr of long term forecast | B15: Forecast 2014/15 | C15: Forecast 2015/16 | D15: Forecast 2016/17 | E15: ="Forecast "&E1+7&"/"&RIGHT(E1,2)+8 -> Forecast 2017/18 | F15: Forecast 2018/19 | G15: Forecast 2019/20 | H15: Forecast 2020/21 | I15: Forecast 2021/22 | J15: Forecast 2022/23 | K15: Forecast 2023/24 | L15: Forecast 2024/25 | M15: Forecast 2025/26 | N15: Forecast 2026/27 | O15: Forecast 2027/28
A16: ='Template names'!C23 -> Next yr of long term forecast | B16: Forecast 2015/16 | C16: Forecast 2016/17 | D16: Forecast 2017/18 | E16: ="Forecast "&E1+8&"/"&RIGHT(E1,2)+9 -> Forecast 2018/19 | F16: Forecast 2019/20 | G16: Forecast 2020/21 | H16: Forecast 2021/22 | I16: Forecast 2022/23 | J16: Forecast 2023/24 | K16: Forecast 2024/25 | L16: Forecast 2025/26 | M16: Forecast 2026/27 | N16: Forecast 2027/28 | O16: Forecast 2028/29 | Z16: Roads Infrastructure | AA16: Roads, Pavements & Bridges | AB16: Roads
A17: ='Template names'!C24 -> Next yr of long term forecast | B17: Forecast 2016/17 | C17: Forecast 2017/18 | D17: Forecast 2018/19 | E17: ="Forecast "&E1+9&"/"&RIGHT(E1,2)+10 -> Forecast 2019/20 | F17: Forecast 2020/21 | G17: Forecast 2021/22 | H17: Forecast 2022/23 | I17: Forecast 2023/24 | J17: Forecast 2024/25 | K17: Forecast 2025/26 | L17: Forecast 2026/27 | M17: Forecast 2027/28 | N17: Forecast 2028/29 | O17: Forecast 2029/30 | Z17: Storm water Infrastructure | AA17: Storm water | AB17: Road Structures
A18: ='Template names'!C25 -> Next yr of long term forecast | B18: Forecast 2017/18 | C18: Forecast 2018/19 | D18: Forecast 2019/20 | E18: ="Forecast "&E1+10&"/"&RIGHT(E1,2)+11 -> Forecast 2020/21 | F18: Forecast 2021/22 | G18: Forecast 2022/23 | H18: Forecast 2023/24 | I18: Forecast 2024/25 | J18: Forecast 2025/26 | K18: Forecast 2026/27 | L18: Forecast 2027/28 | M18: Forecast 2028/29 | N18: Forecast 2029/30 | O18: Forecast 2030/31 | Z18: Electrical Infrastructure | AA18: Generation | AB18: Road Furniture
A19: ='Template names'!C26 -> Next yr of long term forecast | B19: Forecast 2018/19 | C19: Forecast 2019/20 | D19: Forecast 2020/21 | E19: ="Forecast "&E1+11&"/"&RIGHT(E1,2)+12 -> Forecast 2021/22 | F19: Forecast 2022/23 | G19: Forecast 2023/24 | H19: Forecast 2024/25 | I19: Forecast 2025/26 | J19: Forecast 2026/27 | K19: Forecast 2027/28 | L19: Forecast 2028/29 | M19: Forecast 2029/30 | N19: Forecast 2030/31 | O19: Forecast 2031/32 | Z19: Water Supply Infrastructure | AA19: Transmission & Reticulation | AB19: Capital Spares
A20: ='Template names'!C27 -> Next yr of long term forecast | B20: Forecast 2019/20 | C20: Forecast 2020/21 | D20: Forecast 2021/22 | E20: ="Forecast "&E1+12&"/"&RIGHT(E1,2)+13 -> Forecast 2022/23 | F20: Forecast 2023/24 | G20: Forecast 2024/25 | H20: Forecast 2025/26 | I20: Forecast 2026/27 | J20: Forecast 2027/28 | K20: Forecast 2028/29 | L20: Forecast 2029/30 | M20: Forecast 2030/31 | N20: Forecast 2031/32 | O20: Forecast 2032/33 | Z20: Sanitation Infrastructure | AA20: Street Lighting | AB20: Drainage Collection
A21: ='Template names'!C28 -> Next yr of long term forecast | B21: Forecast 2020/21 | C21: Forecast 2021/22 | D21: Forecast 2022/23 | E21: ="Forecast "&E1+13&"/"&RIGHT(E1,2)+14 -> Forecast 2023/24 | F21: Forecast 2024/25 | G21: Forecast 2025/26 | H21: Forecast 2026/27 | I21: Forecast 2027/28 | J21: Forecast 2028/29 | K21: Forecast 2029/30 | L21: Forecast 2030/31 | M21: Forecast 2031/32 | N21: Forecast 2032/33 | O21: Forecast 2033/34 | Z21: Solid Waste Infrastructure | AA21: Dams & Reservoirs | AB21: Storm water Conveyance
A22: ='Template names'!C29 -> Next yr of long term forecast | B22: Forecast 2021/22 | C22: Forecast 2022/23 | D22: Forecast 2023/24 | E22: ="Forecast "&E1+14&"/"&RIGHT(E1,2)+15 -> Forecast 2024/25 | F22: Forecast 2025/26 | G22: Forecast 2026/27 | H22: Forecast 2027/28 | I22: Forecast 2028/29 | J22: Forecast 2029/30 | K22: Forecast 2030/31 | L22: Forecast 2031/32 | M22: Forecast 2032/33 | N22: Forecast 2033/34 | O22: Forecast 2034/35 | Z22: Rail Infrastructure | AA22: Water purification | AB22: Attenuation
A23: Adjustments Budget | B23: Annual target 2007/08 | C23: Annual target 2008/09 | D23: Annual target 2009/10 | E23: ="Annual target " & E1&"/"&RIGHT(E1,2)+1 -> Annual target 2010/11 | F23: Annual target 2011/12 | G23: Annual target 2012/13 | H23: Annual target 2013/14 | I23: Annual target 2014/15 | J23: Annual target 2015/16 | K23: Annual target 2016/17 | L23: Annual target 2017/18 | M23: Annual target 2018/19 | N23: Annual target 2019/20 | O23: Annual target 2020/21 | Z23: Coastal Infrastructure | AA23: Reticulation | AB23: Power Plants
A24: =A23 -> Adjustments Budget | B24: Revised target 2007/08 | C24: Revised target 2008/09 | D24: Revised target 2009/10 | E24: ="Revised target "& E1&"/"&RIGHT(E1,2)+1 -> Revised target 2010/11 | F24: Revised target 2011/12 | G24: Revised target 2012/13 | H24: Revised target 2013/14 | I24: Revised target 2014/15 | J24: Revised target 2015/16 | K24: Revised target 2016/17 | L24: Revised target 2017/18 | M24: Revised target 2018/19 | N24: Revised target 2019/20 | O24: Revised target 2020/21 | Z24: Information and Communication Infrastructure | AA24: Sewerage purification | AB24: HV Substations
A25: NOTE: This sheet should not be directly amended - select headings from sheet 'S' | Z25: Community Facilities | AA25: Waste Management | AB25: HV Switching Station
Z26: Sport and Recreation Facilities | AA26: Transportation | AB26: HV Transmission Conductors
A27: Name link | B27: 125 | Z27: Heritage assets | AA27: Gas | AB27: MV Substations
A28: Name of Muni | B28: =INDEX(B29:B307,B27,1) -> KZN434 Ubuhlebezwe | Z28: Revenue Generating | AA28: Parks & gardens | AB28: MV Switching Stations
B29: Choose name from list | C29: Set name on 'Instructions' sheet | Z29: Non-revenue Generating | AA29: Sportsfields & stadia | AB29: MV Networks
B30: BUF Buffalo City | C30: EC EASTERN CAPE | Z30: Operational Buildings | AA30: Swimming pools | AB30: LV Networks
B31: NMA Nelson Mandela Bay | C31: EC EASTERN CAPE | Z31: Housing | AA31: Community halls | AB31: Capital Spares
B32: EC101 Dr. Beyers Naude | C32: EC EASTERN CAPE | Z32: Biological or Cultivated Assets | AA32: Libraries | AB32: Dams and Weirs
B33: EC102 Blue Crane Route | C33: EC EASTERN CAPE | Z33: Servitudes | AA33: Recreational facilities | AB33: Boreholes
B34: EC104 Makana | C34: EC EASTERN CAPE | Z34: Licences and Rights | AA34: Fire, safety & emergency | AB34: Reservoirs
B35: EC105 Ndlambe | C35: EC EASTERN CAPE | Z35: Computer Equipment | AA35: Security and policing | AB35: Pump Stations
B36: EC106 Sundays River Valley | C36: EC EASTERN CAPE | Z36: Furniture and Office Equipment | AA36: Buses | AB36: Water Treatment Works
B37: EC108 Kouga | C37: EC EASTERN CAPE | Z37: Machinery and Equipment | AA37: Clinics | AB37: Bulk Mains
B38: EC109 Kou-Kamma | C38: EC EASTERN CAPE | Z38: Transport Assets | AA38: Museums & Art Galleries | AB38: Distribution
B39: DC10 Sarah Baartman | C39: EC EASTERN CAPE | Z39: Libraries | AA39: Cemeteries | AB39: Distribution Points
B40: EC121 Mbhashe | C40: EC EASTERN CAPE | Z40: Zoo's, Marine and Non-biological Animals | AA40: Social rental housing | AB40: PRV Stations
B41: EC122 Mnquma | C41: EC EASTERN CAPE | AA41: Buildings | AB41: Capital Spares
B42: EC123 Great Kei | C42: EC EASTERN CAPE | AA42: Housing development | AB42: Pump Station
B43: EC124 Amahlathi | C43: EC EASTERN CAPE | AA43: General vehicles | AB43: Reticulation
B44: EC126 Ngqushwa | C44: EC EASTERN CAPE | AA44: Specialised vehicles - Refuse | AB44: Waste Water Treatment Works
B45: EC129 Raymond Mhlaba | C45: EC EASTERN CAPE | AA45: Specialised vehicles - Fire | AB45: Outfall Sewers
B46: DC12 Amathole | C46: EC EASTERN CAPE | AA46: Specialised vehicles - Conservancy | AB46: Toilet Facilities
B47: EC131 Inxuba Yethemba | C47: EC EASTERN CAPE | AA47: Specialised vehicles - Ambulances | AB47: Capital Spares
B48: EC135 Intsika Yethu | C48: EC EASTERN CAPE | AA48: Plant & equipment | AB48: Landfill Sites
B49: EC136 Emalahleni (Ec) | C49: EC EASTERN CAPE | AA49: Computers - hardware/equipment | AB49: Waste Transfer Stations
B50: EC137 Engcobo | C50: EC EASTERN CAPE | AA50: Furniture and other office equipment | AB50: Waste Processing Facilities
B51: EC138 Sakhisizwe | C51: EC EASTERN CAPE | AA51: Abattoirs | AB51: Waste Drop-off Points
B52: EC139 Enoch Mgijima | C52: EC EASTERN CAPE | AA52: Markets | AB52: Waste Separation Facilities
B53: DC13 Chris Hani | C53: EC EASTERN CAPE | AA53: Civic Land and Buildings | AB53: Electricity Generation Facilities
B54: EC141 Elundini | C54: EC EASTERN CAPE | AA54: Other Buildings | AB54: Capital Spares
B55: EC142 Senqu | C55: EC EASTERN CAPE | AA55: Other Land | AB55: Rail Lines
B56: EC145 Walter Sisulu | C56: EC EASTERN CAPE | AA56: Surplus Assets - (Investment or Inventory) | AB56: Rail Structures
B57: DC14 Joe Gqabi | C57: EC EASTERN CAPE | AA57: Computers - software & programming | AB57: Rail Furniture
B58: EC153 Ngquza Hills | C58: EC EASTERN CAPE | AA58: Other | AB58: Drainage Collection
B59: EC154 Port St Johns | C59: EC EASTERN CAPE | AB59: Storm water Conveyance
B60: EC155 Nyandeni | C60: EC EASTERN CAPE | Z60: SA16 - Investments | AB60: Attenuation
B61: EC156 Mhlontlo | C61: EC EASTERN CAPE | Z61: Security | AA61: Interest rate | AB61: MV Substations
B62: EC157 King Sabata Dalindyebo | C62: EC EASTERN CAPE | Z62: Yes | AA62: Fixed | AB62: LV Networks
B63: DC15 O .R. Tambo | C63: EC EASTERN CAPE | Z63: No | AA63: Variable | AB63: Capital Spares
B64: EC441 Matatiele | C64: EC EASTERN CAPE | AB64: Sand Pumps
B65: EC442 Umzimvubu | C65: EC EASTERN CAPE | AB65: Piers
B66: EC443 Mbizana | C66: EC EASTERN CAPE | Z66: SA36, SA37 - Capital projects | AB66: Revetments
B67: EC444 Ntabankulu | C67: EC EASTERN CAPE | Z67: Yes | AB67: Promenades
B68: DC44 Alfred Nzo | C68: EC EASTERN CAPE | Z68: No | AB68: Capital Spares
B69: MAN Mangaung | C69: FS FREE STATE | AB69: Data Centres
B70: FS161 Letsemeng | C70: FS FREE STATE | AB70: Core Layers
B71: FS162 Kopanong | C71: FS FREE STATE | AB71: Distribution Layers
B72: FS163 Mohokare | C72: FS FREE STATE | AB72: Capital Spares
B73: DC16 Xhariep | C73: FS FREE STATE | AB73: Halls
B74: FS181 Masilonyana | C74: FS FREE STATE | AB74: Centres
B75: FS182 Tokologo | C75: FS FREE STATE | AB75: Crèches
B76: FS183 Tswelopele | C76: FS FREE STATE | AB76: Clinics/Care Centres
B77: FS184 Matjhabeng | C77: FS FREE STATE | AB77: Fire/Ambulance Stations
B78: FS185 Nala | C78: FS FREE STATE | AB78: Testing Stations
B79: DC18 Lejweleputswa | C79: FS FREE STATE | AB79: Museums
B80: FS191 Setsoto | C80: FS FREE STATE | AB80: Galleries
B81: FS192 Dihlabeng | C81: FS FREE STATE | AB81: Theatres
B82: FS193 Nketoana | C82: FS FREE STATE | AB82: Libraries
B83: FS194 Maluti-a-Phofung | C83: FS FREE STATE | AB83: Cemeteries/Crematoria
B84: FS195 Phumelela | C84: FS FREE STATE | AB84: Police
B85: FS196 Mantsopa | C85: FS FREE STATE | AB85: Purls
B86: DC19 Thabo Mofutsanyana | C86: FS FREE STATE | AB86: Public Open Space
B87: FS201 Moqhaka | C87: FS FREE STATE | AB87: Nature Reserves
B88: FS203 Ngwathe | C88: FS FREE STATE | AB88: Public Ablution Facilities
B89: FS204 Metsimaholo | C89: FS FREE STATE | AB89: Markets
B90: FS205 Mafube | C90: FS FREE STATE | AB90: Stalls
B91: DC20 Fezile Dabi | C91: FS FREE STATE | AB91: Abattoirs
B92: EKU Ekurhuleni Metro | C92: GT GAUTENG | AB92: Airports
B93: JHB City Of Johannesburg | C93: GT GAUTENG | AB93: Taxi Ranks/Bus Terminals
B94: TSH City Of Tshwane | C94: GT GAUTENG | AB94: Capital Spares
B95: GT421 Emfuleni | C95: GT GAUTENG | AB95: Indoor Facilities
B96: GT422 Midvaal | C96: GT GAUTENG | AB96: Outdoor Facilities
B97: GT423 Lesedi | C97: GT GAUTENG | AB97: Capital Spares
B98: DC42 Sedibeng | C98: GT GAUTENG | AB98: Monuments
B99: GT481 Mogale City | C99: GT GAUTENG | AB99: Historic Buildings
B100: GT484 Merafong City | C100: GT GAUTENG | AB100: Works of Art
B101: GT485 Rand West City | C101: GT GAUTENG | AB101: Conservation Areas
B102: DC48 West Rand | C102: GT GAUTENG | AB102: Other Heritage
B103: ETH eThekwini | C103: KZN KWAZULU-NATAL | AB103: Improved Property
B104: KZN212 Umdoni | C104: KZN KWAZULU-NATAL | AB104: Unimproved Property
B105: KZN213 Umzumbe | C105: KZN KWAZULU-NATAL | AB105: Municipal Offices
B106: KZN214 uMuziwabantu | C106: KZN KWAZULU-NATAL | AB106: Pay/Enquiry Points
B107: KZN216 Ray Nkonyeni | C107: KZN KWAZULU-NATAL | AB107: Building Plan Offices
B108: DC21 Ugu | C108: KZN KWAZULU-NATAL | AB108: Workshops
B109: KZN221 uMshwathi | C109: KZN KWAZULU-NATAL | AB109: Yards
B110: KZN222 uMngeni | C110: KZN KWAZULU-NATAL | AB110: Stores
B111: KZN223 Mpofana | C111: KZN KWAZULU-NATAL | AB111: Laboratories
B112: KZN224 Impendle | C112: KZN KWAZULU-NATAL | AB112: Training Centres
B113: KZN225 Msunduzi | C113: KZN KWAZULU-NATAL | AB113: Manufacturing Plant
B114: KZN226 Mkhambathini | C114: KZN KWAZULU-NATAL | AB114: Depots
B115: KZN227 Richmond | C115: KZN KWAZULU-NATAL | AB115: Capital Spares
B116: DC22 uMgungundlovu | C116: KZN KWAZULU-NATAL | AB116: Staff Housing
B117: KZN235 Okhahlamba | C117: KZN KWAZULU-NATAL | AB117: Social Housing
B118: KZN237 Inkosi Langalibalele | C118: KZN KWAZULU-NATAL | AB118: Capital Spares
B119: KZN238 Alfred Duma | C119: KZN KWAZULU-NATAL | AB119: Water Rights
B120: DC23 Uthukela | C120: KZN KWAZULU-NATAL | AB120: Effluent Licenses
B121: KZN241 Endumeni | C121: KZN KWAZULU-NATAL | AB121: Solid Waste Licenses
B122: KZN242 Nquthu | C122: KZN KWAZULU-NATAL | AB122: Computer Software and Applications
B123: KZN244 Msinga | C123: KZN KWAZULU-NATAL | AB123: Load Settlement Software Applications
B124: KZN245 Umvoti | C124: KZN KWAZULU-NATAL | AB124: Unspecified
B125: DC24 Umzinyathi | C125: KZN KWAZULU-NATAL
... 135 more rows

Sheet Org structure
A1: Organisational Structure Votes | C1: Organisational Structure Sub-Votes | E1: Display Sub-Votes
A2: =B2&" - "&C2 -> Vote 1 - EXECUTIVE & COUNCIL | B2: Vote 1 | C2: EXECUTIVE & COUNCIL
A3: =B13&" - "& C13 -> Vote 2 - BUDGET & TREASURY | B3: 1.1 | C3: Council | D3: =CONCATENATE(B3, " - ", C3) -> 1.1 - Council | E3: =IF(C3="[Name of sub-vote]"," ",D3) -> 1.1 - Council
A4: =B24&" - "&C24 -> Vote 3 - CORPORATE SERVCES | B4: 1.2 | C4: Municipal Manager | D4: 1.2 - Municipal Manager | E4: =IF(C4="[Name of sub-vote]"," ",D4) -> 1.2 - Municipal Manager
A5: =B35&" - "&C35 -> Vote 4 - COMMUNITY & SOCIAL SERVICES | B5: 1.3 | C5: [Name of sub-vote] | D5: 1.3 - [Name of sub-vote]
A6: =B46&" - "&C46 -> Vote 5 - SPORT & RECREATION/PARKS | B6: 1.4 | C6: [Name of sub-vote] | D6: 1.4 - [Name of sub-vote]
A7: =B57&" - "&C57 -> Vote 6 - PUBLIC SAFETY | B7: 1.5 | C7: [Name of sub-vote] | D7: 1.5 - [Name of sub-vote]
A8: =B68&" - "&C68 -> Vote 7 - HOUSING | B8: 1.6 | C8: [Name of sub-vote] | D8: 1.6 - [Name of sub-vote]
A9: =B79&" - "&C79 -> Vote 8 - INFRASTRUCTURE, PLANNING & DEVELOPMENT | B9: 1.7 | C9: [Name of sub-vote] | D9: 1.7 - [Name of sub-vote]
A10: =B90&" - "&C90 -> Vote 9 - ROADS TRANSPORT | B10: 1.8 | C10: [Name of sub-vote] | D10: 1.8 - [Name of sub-vote]
A11: =B101&" - "&C101 -> Vote 10 - [NAME OF VOTE 10] | B11: 1.9 | C11: [Name of sub-vote] | D11: 1.9 - [Name of sub-vote]
A12: =B112&" - "&C112 -> Vote 11 - [NAME OF VOTE 11] | B12: 1.10 | C12: [Name of sub-vote] | D12: 1.10 - [Name of sub-vote]
A13: =B123&" - "&C123 -> Vote 12 - [NAME OF VOTE 12] | B13: Vote 2 | C13: BUDGET & TREASURY
A14: =B134&" - "&C134 -> Vote 13 - [NAME OF VOTE 13] | B14: 2.1 | C14: Budget & Treasury | D14: =CONCATENATE(B14, " - ", C14) -> 2.1 - Budget & Treasury | E14: =IF(C14="[Name of sub-vote]"," ",D14) -> 2.1 - Budget & Treasury
A15: =B145&" - "&C145 -> Vote 14 - [NAME OF VOTE 14] | B15: 2.2 | C15: [Name of sub-vote] | D15: 2.2 - [Name of sub-vote] | E15: =IF(C15="[Name of sub-vote]"," ",D15) -> 
A16: =B156&" - "&C156 -> Vote 15 - [NAME OF VOTE 15] | B16: 2.3 | C16: [Name of sub-vote] | D16: 2.3 - [Name of sub-vote]
B17: 2.4 | C17: [Name of sub-vote] | D17: 2.4 - [Name of sub-vote]
B18: 2.5 | C18: [Name of sub-vote] | D18: 2.5 - [Name of sub-vote]
B19: 2.6 | C19: [Name of sub-vote] | D19: 2.6 - [Name of sub-vote]
B20: 2.7 | C20: [Name of sub-vote] | D20: 2.7 - [Name of sub-vote]
B21: 2.8 | C21: [Name of sub-vote] | D21: 2.8 - [Name of sub-vote]
B22: 2.9 | C22: [Name of sub-vote] | D22: 2.9 - [Name of sub-vote]
B23: 2.10 | C23: [Name of sub-vote] | D23: 2.10 - [Name of sub-vote]
B24: Vote 3 | C24: CORPORATE SERVCES
B25: 3.1 | C25: Corporate Services/Other Admin | D25: =CONCATENATE(B25, " - ", C25) -> 3.1 - Corporate Services/Other Admin | E25: =IF(C25="[Name of sub-vote]"," ",D25) -> 3.1 - Corporate Services/Other Admin
B26: 3.2 | C26: Muncipal Estates/Property Services | D26: 3.2 - Muncipal Estates/Property Services | E26: =IF(C26="[Name of sub-vote]"," ",D26) -> 3.2 - Muncipal Estates/Property Services
B27: 3.3 | C27: [Name of sub-vote] | D27: 3.3 - [Name of sub-vote]
B28: 3.4 | C28: [Name of sub-vote] | D28: 3.4 - [Name of sub-vote]
B29: 3.5 | C29: [Name of sub-vote] | D29: 3.5 - [Name of sub-vote]
B30: 3.6 | C30: [Name of sub-vote] | D30: 3.6 - [Name of sub-vote]
B31: 3.7 | C31: [Name of sub-vote] | D31: 3.7 - [Name of sub-vote]
B32: 3.8 | C32: [Name of sub-vote] | D32: 3.8 - [Name of sub-vote]
B33: 3.9 | C33: [Name of sub-vote] | D33: 3.9 - [Name of sub-vote]
B34: 3.10 | C34: [Name of sub-vote] | D34: 3.10 - [Name of sub-vote]
B35: Vote 4 | C35: COMMUNITY & SOCIAL SERVICES
B36: 4.1 | C36: Libraries | D36: =CONCATENATE(B36, " - ", C36) -> 4.1 - Libraries | E36: =IF(C36="[Name of sub-vote]"," ",D36) -> 4.1 - Libraries
B37: 4.2 | C37: Community Halls & Facilities | D37: 4.2 - Community Halls & Facilities | E37: =IF(C37="[Name of sub-vote]"," ",D37) -> 4.2 - Community Halls & Facilities
B38: 4.3 | C38: Cemeteries | D38: 4.3 - Cemeteries | E38: 4.3 - Cemeteries
B39: 4.4 | C39: Child Care | D39: 4.4 - Child Care | E39: 4.4 - Child Care
B40: 4.5 | C40: Thusong Centre | D40: 4.5 - Thusong Centre | E40: 4.5 - Thusong Centre
B41: 4.6 | C41: Social Development | D41: 4.6 - Social Development | E41: 4.6 - Social Development
B42: 4.7 | C42: Solid Waste Removal (Refuse) | D42: 4.7 - Solid Waste Removal (Refuse) | E42: 4.7 - Solid Waste Removal (Refuse)
B43: 4.8 | C43: [Name of sub-vote] | D43: 4.8 - [Name of sub-vote]
B44: 4.9 | C44: [Name of sub-vote] | D44: 4.9 - [Name of sub-vote]
B45: 4.10 | C45: [Name of sub-vote] | D45: 4.10 - [Name of sub-vote]
B46: Vote 5 | C46: SPORT & RECREATION/PARKS
B47: 5.1 | C47: Sport & Recreation | D47: =CONCATENATE(B47, " - ", C47) -> 5.1 - Sport & Recreation | E47: =IF(C47="[Name of sub-vote]"," ",D47) -> 5.1 - Sport & Recreation
B48: 5.2 | C48: Parks | D48: 5.2 - Parks | E48: =IF(C48="[Name of sub-vote]"," ",D48) -> 5.2 - Parks
B49: 5.3 | C49: [Name of sub-vote] | D49: 5.3 - [Name of sub-vote]
B50: 5.4 | C50: [Name of sub-vote] | D50: 5.4 - [Name of sub-vote]
B51: 5.5 | C51: [Name of sub-vote] | D51: 5.5 - [Name of sub-vote]
B52: 5.6 | C52: [Name of sub-vote] | D52: 5.6 - [Name of sub-vote]
B53: 5.7 | C53: [Name of sub-vote] | D53: 5.7 - [Name of sub-vote]
B54: 5.8 | C54: [Name of sub-vote] | D54: 5.8 - [Name of sub-vote]
B55: 5.9 | C55: [Name of sub-vote] | D55: 5.9 - [Name of sub-vote]
B56: 5.10 | C56: [Name of sub-vote] | D56: 5.10 - [Name of sub-vote]
B57: Vote 6 | C57: PUBLIC SAFETY
B58: 6.1 | C58: Law Enforcement/Traffic | D58: =CONCATENATE(B58, " - ", C58) -> 6.1 - Law Enforcement/Traffic | E58: =IF(C58="[Name of sub-vote]"," ",D58) -> 6.1 - Law Enforcement/Traffic
B59: 6.2 | C59: Disaster Management - Fire | D59: 6.2 - Disaster Management - Fire | E59: =IF(C59="[Name of sub-vote]"," ",D59) -> 6.2 - Disaster Management - Fire
B60: 6.3 | C60: [Name of sub-vote] | D60: 6.3 - [Name of sub-vote]
B61: 6.4 | C61: [Name of sub-vote] | D61: 6.4 - [Name of sub-vote]
B62: 6.5 | C62: [Name of sub-vote] | D62: 6.5 - [Name of sub-vote]
B63: 6.6 | C63: [Name of sub-vote] | D63: 6.6 - [Name of sub-vote]
B64: 6.7 | C64: [Name of sub-vote] | D64: 6.7 - [Name of sub-vote]
B65: 6.8 | C65: [Name of sub-vote] | D65: 6.8 - [Name of sub-vote]
B66: 6.9 | C66: [Name of sub-vote] | D66: 6.9 - [Name of sub-vote]
B67: 6.10 | C67: [Name of sub-vote] | D67: 6.10 - [Name of sub-vote]
B68: Vote 7 | C68: HOUSING
B69: 7.1 | C69: Housing | D69: =CONCATENATE(B69, " - ", C69) -> 7.1 - Housing | E69: =IF(C69="[Name of sub-vote]"," ",D69) -> 7.1 - Housing
B70: 7.2 | C70: [Name of sub-vote] | D70: 7.2 - [Name of sub-vote] | E70: =IF(C70="[Name of sub-vote]"," ",D70) -> 
B71: 7.3 | C71: [Name of sub-vote] | D71: 7.3 - [Name of sub-vote]
B72: 7.4 | C72: [Name of sub-vote] | D72: 7.4 - [Name of sub-vote]
B73: 7.5 | C73: [Name of sub-vote] | D73: 7.5 - [Name of sub-vote]
B74: 7.6 | C74: [Name of sub-vote] | D74: 7.6 - [Name of sub-vote]
B75: 7.7 | C75: [Name of sub-vote] | D75: 7.7 - [Name of sub-vote]
B76: 7.8 | C76: [Name of sub-vote] | D76: 7.8 - [Name of sub-vote]
B77: 7.9 | C77: [Name of sub-vote] | D77: 7.9 - [Name of sub-vote]
B78: 7.10 | C78: [Name of sub-vote] | D78: 7.10 - [Name of sub-vote]
B79: Vote 8 | C79: INFRASTRUCTURE, PLANNING & DEVELOPMENT
B80: 8.1 | C80: Economic Planning & Development | D80: =CONCATENATE(B80, " - ", C80) -> 8.1 - Economic Planning & Development | E80: =IF(C80="[Name of sub-vote]"," ",D80) -> 8.1 - Economic Planning & Development
B81: 8.2 | C81: Town Planning | D81: 8.2 - Town Planning | E81: =IF(C81="[Name of sub-vote]"," ",D81) -> 8.2 - Town Planning
B82: 8.3 | C82: [Name of sub-vote] | D82: 8.3 - [Name of sub-vote]
B83: 8.4 | C83: [Name of sub-vote] | D83: 8.4 - [Name of sub-vote]
B84: 8.5 | C84: [Name of sub-vote] | D84: 8.5 - [Name of sub-vote]
B85: 8.6 | C85: [Name of sub-vote] | D85: 8.6 - [Name of sub-vote]
B86: 8.7 | C86: [Name of sub-vote] | D86: 8.7 - [Name of sub-vote]
B87: 8.8 | C87: [Name of sub-vote] | D87: 8.8 - [Name of sub-vote]
B88: 8.9 | C88: [Name of sub-vote] | D88: 8.9 - [Name of sub-vote]
B89: 8.10 | C89: [Name of sub-vote] | D89: 8.10 - [Name of sub-vote]
B90: Vote 9 | C90: ROADS TRANSPORT
B91: 9.1 | C91: Roads | D91: =CONCATENATE(B91, " - ", C91) -> 9.1 - Roads | E91: =IF(C91="[Name of sub-vote]"," ",D91) -> 9.1 - Roads
B92: 9.2 | C92: Vehicle Licencing & Testing | D92: 9.2 - Vehicle Licencing & Testing | E92: =IF(C92="[Name of sub-vote]"," ",D92) -> 9.2 - Vehicle Licencing & Testing
B93: 9.3 | C93: Technical Services | D93: 9.3 - Technical Services | E93: 9.3 - Technical Services
B94: 9.4 | C94: [Name of sub-vote] | D94: 9.4 - [Name of sub-vote]
B95: 9.5 | C95: [Name of sub-vote] | D95: 9.5 - [Name of sub-vote]
B96: 9.6 | C96: [Name of sub-vote] | D96: 9.6 - [Name of sub-vote]
B97: 9.7 | C97: [Name of sub-vote] | D97: 9.7 - [Name of sub-vote]
B98: 9.8 | C98: [Name of sub-vote] | D98: 9.8 - [Name of sub-vote]
B99: 9.9 | C99: [Name of sub-vote] | D99: 9.9 - [Name of sub-vote]
B100: 9.10 | C100: [Name of sub-vote] | D100: 9.10 - [Name of sub-vote]
B101: Vote 10 | C101: [NAME OF VOTE 10]
B102: 10.1 | C102: [Name of sub-vote] | D102: =CONCATENATE(B102, " - ", C102) -> 10.1 - [Name of sub-vote] | E102: =IF(C102="[Name of sub-vote]"," ",D102) -> 
B103: 10.2 | C103: [Name of sub-vote] | D103: 10.2 - [Name of sub-vote] | E103: =IF(C103="[Name of sub-vote]"," ",D103) -> 
B104: 10.3 | C104: [Name of sub-vote] | D104: 10.3 - [Name of sub-vote]
B105: 10.4 | C105: [Name of sub-vote] | D105: 10.4 - [Name of sub-vote]
B106: 10.5 | C106: [Name of sub-vote] | D106: 10.5 - [Name of sub-vote]
B107: 10.6 | C107: [Name of sub-vote] | D107: 10.6 - [Name of sub-vote]
B108: 10.7 | C108: [Name of sub-vote] | D108: 10.7 - [Name of sub-vote]
B109: 10.8 | C109: [Name of sub-vote] | D109: 10.8 - [Name of sub-vote]
B110: 10.9 | C110: [Name of sub-vote] | D110: 10.9 - [Name of sub-vote]
B111: 10.10 | C111: [Name of sub-vote] | D111: 10.10 - [Name of sub-vote]
B112: Vote 11 | C112: [NAME OF VOTE 11]
B113: 11.1 | C113: [Name of sub-vote] | D113: =CONCATENATE(B113, " - ", C113) -> 11.1 - [Name of sub-vote] | E113: =IF(C113="[Name of sub-vote]"," ",D113) -> 
B114: 11.2 | C114: [Name of sub-vote] | D114: 11.2 - [Name of sub-vote] | E114: =IF(C114="[Name of sub-vote]"," ",D114) -> 
B115: 11.3 | C115: [Name of sub-vote] | D115: 11.3 - [Name of sub-vote]
B116: 11.4 | C116: [Name of sub-vote] | D116: 11.4 - [Name of sub-vote]
B117: 11.5 | C117: [Name of sub-vote] | D117: 11.5 - [Name of sub-vote]
B118: 11.6 | C118: [Name of sub-vote] | D118: 11.6 - [Name of sub-vote]
B119: 11.7 | C119: [Name of sub-vote] | D119: 11.7 - [Name of sub-vote]
B120: 11.8 | C120: [Name of sub-vote] | D120: 11.8 - [Name of sub-vote]
B121: 11.9 | C121: [Name of sub-vote] | D121: 11.9 - [Name of sub-vote]
B122: 11.10 | C122: [Name of sub-vote] | D122: 11.10 - [Name of sub-vote]
B123: Vote 12 | C123: [NAME OF VOTE 12]
B124: 12.1 | C124: [Name of sub-vote] | D124: =CONCATENATE(B124, " - ", C124) -> 12.1 - [Name of sub-vote] | E124: =IF(C124="[Name of sub-vote]"," ",D124) -> 
B125: 12.2 | C125: [Name of sub-vote] | D125: 12.2 - [Name of sub-vote] | E125: =IF(C125="[Name of sub-vote]"," ",D125) -> 
B126: 12.3 | C126: [Name of sub-vote] | D126: 12.3 - [Name of sub-vote]
B127: 12.4 | C127: [Name of sub-vote] | D127: 12.4 - [Name of sub-vote]
B128: 12.5 | C128: [Name of sub-vote] | D128: 12.5 - [Name of sub-vote]
B129: 12.6 | C129: [Name of sub-vote] | D129: 12.6 - [Name of sub-vote]
B130: 12.7 | C130: [Name of sub-vote] | D130: 12.7 - [Name of sub-vote]
B131: 12.8 | C131: [Name of sub-vote] | D131: 12.8 - [Name of sub-vote]
B132: 12.9 | C132: [Name of sub-vote] | D132: 12.9 - [Name of sub-vote]
B133: 12.10 | C133: [Name of sub-vote] | D133: 12.10 - [Name of sub-vote]
B134: Vote 13 | C134: [NAME OF VOTE 13]
B135: 13.1 | C135: [Name of sub-vote] | D135: =CONCATENATE(B135, " - ", C135) -> 13.1 - [Name of sub-vote] | E135: =IF(C135="[Name of sub-vote]"," ",D135) -> 
B136: 13.2 | C136: [Name of sub-vote] | D136: 13.2 - [Name of sub-vote] | E136: =IF(C136="[Name of sub-vote]"," ",D136) -> 
B137: 13.3 | C137: [Name of sub-vote] | D137: 13.3 - [Name of sub-vote]
B138: 13.4 | C138: [Name of sub-vote] | D138: 13.4 - [Name of sub-vote]
B139: 13.5 | C139: [Name of sub-vote] | D139: 13.5 - [Name of sub-vote]
B140: 13.6 | C140: [Name of sub-vote] | D140: 13.6 - [Name of sub-vote]
B141: 13.7 | C141: [Name of sub-vote] | D141: 13.7 - [Name of sub-vote]
B142: 13.8 | C142: [Name of sub-vote] | D142: 13.8 - [Name of sub-vote]
B143: 13.9 | C143: [Name of sub-vote] | D143: 13.9 - [Name of sub-vote]
B144: 13.10 | C144: [Name of sub-vote] | D144: 13.10 - [Name of sub-vote]
B145: Vote 14 | C145: [NAME OF VOTE 14]
B146: 14.1 | C146: [Name of sub-vote] | D146: =CONCATENATE(B146, " - ", C146) -> 14.1 - [Name of sub-vote] | E146: =IF(C146="[Name of sub-vote]"," ",D146) -> 
B147: 14.2 | C147: [Name of sub-vote] | D147: 14.2 - [Name of sub-vote] | E147: =IF(C147="[Name of sub-vote]"," ",D147) -> 
B148: 14.3 | C148: [Name of sub-vote] | D148: 14.3 - [Name of sub-vote]
B149: 14.4 | C149: [Name of sub-vote] | D149: 14.4 - [Name of sub-vote]
B150: 14.5 | C150: [Name of sub-vote] | D150: 14.5 - [Name of sub-vote]
B151: 14.6 | C151: [Name of sub-vote] | D151: 14.6 - [Name of sub-vote]
B152: 14.7 | C152: [Name of sub-vote] | D152: 14.7 - [Name of sub-vote]
B153: 14.8 | C153: [Name of sub-vote] | D153: 14.8 - [Name of sub-vote]
B154: 14.9 | C154: [Name of sub-vote] | D154: 14.9 - [Name of sub-vote]
B155: 14.10 | C155: [Name of sub-vote] | D155: 14.10 - [Name of sub-vote]
B156: Vote 15 | C156: [NAME OF VOTE 15]
B157: 15.1 | C157: [Name of sub-vote] | D157: =CONCATENATE(B157, " - ", C157) -> 15.1 - [Name of sub-vote] | E157: =IF(C157="[Name of sub-vote]"," ",D157) -> 
B158: 15.2 | C158: [Name of sub-vote] | D158: 15.2 - [Name of sub-vote] | E158: =IF(C158="[Name of sub-vote]"," ",D158) -> 
B159: 15.3 | C159: [Name of sub-vote] | D159: 15.3 - [Name of sub-vote] | E159: =IF(C159="[Name of sub-vote]"," ",D159) -> 
B160: 15.4 | C160: [Name of sub-vote] | D160: 15.4 - [Name of sub-vote]
B161: 15.5 | C161: [Name of sub-vote] | D161: 15.5 - [Name of sub-vote]
B162: 15.6 | C162: [Name of sub-vote] | D162: 15.6 - [Name of sub-vote]
B163: 15.7 | C163: [Name of sub-vote] | D163: 15.7 - [Name of sub-vote]
B164: 15.8 | C164: [Name of sub-vote] | D164: 15.8 - [Name of sub-vote]
B165: 15.9 | C165: [Name of sub-vote] | D165: 15.9 - [Name of sub-vote]
B166: 15.10 | C166: [Name of sub-vote] | D166: 15.10 - [Name of sub-vote]

Sheet Contacts
A1: =muni&" - "&" Contact Information" -> KZN434 Ubuhlebezwe - Contact Information
A3: A. GENERAL INFORMATION
A4: Municipality | B4: =muni -> KZN434 Ubuhlebezwe | C4: =IF(B4="Choose name from List","Set name on 'Instructions' sheet", "") -> 
A6: Grade | C6: 1 Grade in terms of the Remuneration of Public Office Bearers Act.
A8: Province | B8: =IF(B4>" ",VLOOKUP(B4,'Lookup and lists'!B29:C307,2, FALSE)," ") -> KZN KWAZULU-NATAL
A10: Web Address
A12: e-mail Address
A14: B. CONTACT INFORMATION
A15: Postal address:
A16: P.O. Box
A17: City / Town
A18: Postal Code
A20: Street address
A21: Building
A22: Street No. & Name
A23: City / Town
A24: Postal Code
A26: General Contacts
A27: Telephone number
A28: Fax number
A30: C. POLITICAL LEADERSHIP
A31: Speaker: | C31: Secretary/PA to the Speaker:
A32: ID Number | C32: ID Number
A33: Title | C33: Title
A34: Name | C34: Name
A35: Telephone number | C35: Telephone number
A36: Cell number | C36: Cell number
A37: Fax number | C37: Fax number
A38: E-mail address | C38: E-mail address
A40: Mayor/Executive Mayor: | C40: Secretary/PA to the Mayor/Executive Mayor:
A41: ID Number | C41: ID Number
A42: Title | C42: Title
A43: Name | C43: Name
A44: Telephone number | C44: Telephone number
A45: Cell number | C45: Cell number
A46: Fax number | C46: Fax number
A47: E-mail address | C47: E-mail address
A49: Deputy Mayor/Executive Mayor: | C49: Secretary/PA to the Deputy Mayor/Executive Mayor:
A50: ID Number | C50: ID Number
A51: Title | C51: Title
A52: Name | C52: Name
A53: Telephone number | C53: Telephone number
A54: Cell number | C54: Cell number
A55: Fax number | C55: Fax number
A56: E-mail address | C56: E-mail address
A58: D. MANAGEMENT LEADERSHIP
A59: Municipal Manager: | C59: Secretary/PA to the Municipal Manager:
A60: ID Number | C60: ID Number
A61: Title | C61: Title
A62: Name | C62: Name
A63: Telephone number | C63: Telephone number
A64: Cell number | C64: Cell number
A65: Fax number | C65: Fax number
A66: E-mail address | C66: E-mail address
A68: Chief Financial Officer | C68: Secretary/PA to the Chief Financial Officer
A69: ID Number | C69: ID Number
A70: Title | C70: Title
A71: Name | C71: Name
A72: Telephone number | C72: Telephone number
A73: Cell number | C73: Cell number
A74: Fax number | C74: Fax number
A75: E-mail address | C75: E-mail address
A77: Official responsible for submitting financial information | C77: Official responsible for submitting financial information
A78: ID Number | C78: ID Number
A79: Title | C79: Title
A80: Name | C80: Name
A81: Telephone number | C81: Telephone number
A82: Cell number | C82: Cell number
A83: Fax number | C83: Fax number
A84: E-mail address | C84: E-mail address
A85: Official responsible for submitting financial information | C85: Official responsible for submitting financial information
A86: ID Number | C86: ID Number
A87: Title | C87: Title
A88: Name | C88: Name
A89: Telephone number | C89: Telephone number
A90: Cell number | C90: Cell number
A91: Fax number | C91: Fax number
A92: E-mail address | C92: E-mail address
A93: Official responsible for submitting financial information | C93: Official responsible for submitting financial information
A94: ID Number | C94: ID Number
A95: Title | C95: Title
A96: Name | C96: Name
A97: Telephone number | C97: Telephone number
A98: Cell number | C98: Cell number
A99: Fax number | C99: Fax number
A100: E-mail address | C100: E-mail address
A101: Official responsible for submitting financial information | C101: Official responsible for submitting financial information
A102: ID Number | C102: ID Number
A103: Title | C103: Title
A104: Name | C104: Name
A105: Telephone number | C105: Telephone number
A106: Cell number | C106: Cell number
A107: Fax number | C107: Fax number
A108: E-mail address | C108: E-mail address
A109: Official responsible for submitting financial information | C109: Official responsible for submitting financial information
A110: ID Number | C110: ID Number
A111: Title | C111: Title
A112: Name | C112: Name
A113: Telephone number | C113: Telephone number
A114: Cell number | C114: Cell number
A115: Fax number | C115: Fax number
A116: E-mail address | C116: E-mail address
A117: Official responsible for submitting financial information | C117: Official responsible for submitting financial information
A118: ID Number | C118: ID Number
A119: Title | C119: Title
A120: Name | C120: Name
A121: Telephone number | C121: Telephone number
A122: Cell number | C122: Cell number
A123: Fax number | C123: Fax number
A124: E-mail address | C124: E-mail address
A125: Official responsible for submitting financial information | C125: Official responsible for submitting financial information
A126: ID Number | C126: ID Number
A127: Title | C127: Title
A128: Name | C128: Name
A129: Telephone number | C129: Telephone number
A130: Cell number | C130: Cell number
A131: Fax number | C131: Fax number
A132: E-mail address | C132: E-mail address
A133: Official responsible for submitting financial information
A134: ID Number
A135: Title
A136: Name
A137: Telephone number
A138: Cell number
A139: Fax number
A140: E-mail address

Sheet A1-Sum
A1: =muni&" - "&Approve1 -> KZN434 Ubuhlebezwe - Table A1 Budget Summary
A2: =desc -> Description | B2: =head1b -> 2014/15 | C2: =head1A -> 2015/16 | D2: =Head1 -> 2016/17 | E2: =Head2 -> Current Year 2017/18 | I2: =Head3 -> 2018/19 Medium Term Revenue & Expenditure Framework
A3: R thousands | B3: =Head5 -> Audited Outcome | C3: =Head5 -> Audited Outcome | D3: =Head5 -> Audited Outcome | E3: =Head6 -> Original Budget | F3: =Head7 -> Adjusted Budget | G3: =Head8 -> Full Year Forecast | H3: =Head5b -> Pre-audit outcome | I3: =Head9 -> Budget Year 2018/19 | J3: =Head10 -> Budget Year +1 2019/20 | K3: =Head11 -> Budget Year +2 2020/21
A4: Financial Performance
A5: Property rates | B5: ='A4-FinPerf RE'!C5 -> 12348922 | C5: ='A4-FinPerf RE'!D5 -> 13123930 | D5: ='A4-FinPerf RE'!E5 -> 13122243 | E5: ='A4-FinPerf RE'!F5 -> 15747822 | F5: ='A4-FinPerf RE'!G5 -> 14585235 | G5: ='A4-FinPerf RE'!H5 -> 15747822 | H5: ='A4-FinPerf RE'!I5 -> 3928665.49 | I5: ='A4-FinPerf RE'!J5 -> 15536073 | J5: ='A4-FinPerf RE'!K5 -> 0 | K5: ='A4-FinPerf RE'!L5 -> 0
A6: Service charges | B6: =SUM('A4-FinPerf RE'!C6:C10) -> 1463902 | C6: =SUM('A4-FinPerf RE'!D6:D10) -> 1681650 | D6: =SUM('A4-FinPerf RE'!E6:E10) -> 1726005 | E6: =SUM('A4-FinPerf RE'!F6:F10) -> 1990711 | F6: =SUM('A4-FinPerf RE'!G6:G10) -> 1990711 | G6: =SUM('A4-FinPerf RE'!H6:H10) -> 1990711 | H6: =SUM('A4-FinPerf RE'!I6:I10) -> 1368823.35 | I6: =SUM('A4-FinPerf RE'!J6:J10) -> 2094228 | J6: =SUM('A4-FinPerf RE'!K6:K10) -> 2207316 | K6: =SUM('A4-FinPerf RE'!L6:L10) -> 2328718
A7: Investment revenue | B7: ='A4-FinPerf RE'!C12 -> 5445943 | C7: ='A4-FinPerf RE'!D12 -> 6872906 | D7: ='A4-FinPerf RE'!E12 -> 9215250 | E7: ='A4-FinPerf RE'!F12 -> 7000000 | F7: ='A4-FinPerf RE'!G12 -> 10000000 | G7: ='A4-FinPerf RE'!H12 -> 7000000 | H7: ='A4-FinPerf RE'!I12 -> 6917015.06 | I7: ='A4-FinPerf RE'!J12 -> 10000000 | J7: ='A4-FinPerf RE'!K12 -> 10540000 | K7: ='A4-FinPerf RE'!L12 -> 11119700
A8: Transfers recognised - operational | B8: ='A4-FinPerf RE'!C18 -> 74057261 | C8: ='A4-FinPerf RE'!D18 -> 90246295 | D8: ='A4-FinPerf RE'!E18 -> 95039000 | E8: ='A4-FinPerf RE'!F18 -> 99114000 | F8: ='A4-FinPerf RE'!G18 -> 119579000 | G8: ='A4-FinPerf RE'!H18 -> 99114000 | H8: ='A4-FinPerf RE'!I18 -> 74282765.71 | I8: ='A4-FinPerf RE'!J18 -> 120541096 | J8: ='A4-FinPerf RE'!K18 -> 132232825 | K8: ='A4-FinPerf RE'!L18 -> 115345866
A9: Other own revenue | B9: ='A4-FinPerf RE'!C11+'A4-FinPerf RE'!C13+'A4-FinPerf RE'!C14+'A4-FinPerf RE'!C15+'A4-FinPerf RE'!C16+'A4-FinPerf RE'!C17+'A4-FinPerf RE'!C19+'A4-FinPerf RE'!C20 -> 6256829 | C9: ='A4-FinPerf RE'!D11+'A4-FinPerf RE'!D13+'A4-FinPerf RE'!D14+'A4-FinPerf RE'!D15+'A4-FinPerf RE'!D16+'A4-FinPerf RE'!D17+'A4-FinPerf RE'!D19+'A4-FinPerf RE'!D20 -> 6773600 | D9: ='A4-FinPerf RE'!E11+'A4-FinPerf RE'!E13+'A4-FinPerf RE'!E14+'A4-FinPerf RE'!E15+'A4-FinPerf RE'!E16+'A4-FinPerf RE'!E17+'A4-FinPerf RE'!E19+'A4-FinPerf RE'!E20 -> 12033023 | E9: ='A4-FinPerf RE'!F11+'A4-FinPerf RE'!F13+'A4-FinPerf RE'!F14+'A4-FinPerf RE'!F15+'A4-FinPerf RE'!F16+'A4-FinPerf RE'!F17+'A4-FinPerf RE'!F19+'A4-FinPerf RE'!F20 -> 10494500 | F9: ='A4-FinPerf RE'!G11+'A4-FinPerf RE'!G13+'A4-FinPerf RE'!G14+'A4-FinPerf RE'!G15+'A4-FinPerf RE'!G16+'A4-FinPerf RE'!G17+'A4-FinPerf RE'!G19+'A4-FinPerf RE'!G20 -> 7396000 | G9: ='A4-FinPerf RE'!H11+'A4-FinPerf RE'!H13+'A4-FinPerf RE'!H14+'A4-FinPerf RE'!H15+'A4-FinPerf RE'!H16+'A4-FinPerf RE'!H17+'A4-FinPerf RE'!H19+'A4-FinPerf RE'!H20 -> 10494500 | H9: ='A4-FinPerf RE'!I11+'A4-FinPerf RE'!I13+'A4-FinPerf RE'!I14+'A4-FinPerf RE'!I15+'A4-FinPerf RE'!I16+'A4-FinPerf RE'!I17+'A4-FinPerf RE'!I19+'A4-FinPerf RE'!I20 -> 3562504.5 | I9: ='A4-FinPerf RE'!J11+'A4-FinPerf RE'!J13+'A4-FinPerf RE'!J14+'A4-FinPerf RE'!J15+'A4-FinPerf RE'!J16+'A4-FinPerf RE'!J17+'A4-FinPerf RE'!J19+'A4-FinPerf RE'!J20 -> 8500392 | J9: ='A4-FinPerf RE'!K11+'A4-FinPerf RE'!K13+'A4-FinPerf RE'!K14+'A4-FinPerf RE'!K15+'A4-FinPerf RE'!K16+'A4-FinPerf RE'!K17+'A4-FinPerf RE'!K19+'A4-FinPerf RE'!K20 -> 8959411 | K9: ='A4-FinPerf RE'!L11+'A4-FinPerf RE'!L13+'A4-FinPerf RE'!L14+'A4-FinPerf RE'!L15+'A4-FinPerf RE'!L16+'A4-FinPerf RE'!L17+'A4-FinPerf RE'!L19+'A4-FinPerf RE'!L20 -> 9452182
A10: ='A4-FinPerf RE'!A21 -> Total Revenue (excluding capital transfers and contributions) | B10: =SUM(B5:B9) -> 99572857 | C10: 118698381 | D10: 131135521 | E10: 134347033 | F10: 153550946 | G10: 134347033 | H10: 90059774.11 | I10: 156671789 | J10: 153939552 | K10: 138246466
A11: Employee costs | B11: ='A4-FinPerf RE'!C24 -> 41191856 | C11: ='A4-FinPerf RE'!D24 -> 49029454 | D11: ='A4-FinPerf RE'!E24 -> 52842444 | E11: ='A4-FinPerf RE'!F24 -> 67622362 | F11: ='A4-FinPerf RE'!G24 -> 68491645 | G11: ='A4-FinPerf RE'!H24 -> 67622362 | H11: ='A4-FinPerf RE'!I24 -> 33266732.52 | I11: ='A4-FinPerf RE'!J24 -> 73463613 | J11: ='A4-FinPerf RE'!K24 -> 77720270 | K11: ='A4-FinPerf RE'!L24 -> 82322795
A12: Remuneration of councillors | B12: ='A4-FinPerf RE'!C25 -> 7180257 | C12: ='A4-FinPerf RE'!D25 -> 7554047 | D12: ='A4-FinPerf RE'!E25 -> 8378802 | E12: ='A4-FinPerf RE'!F25 -> 9756420 | F12: ='A4-FinPerf RE'!G25 -> 9891930 | G12: ='A4-FinPerf RE'!H25 -> 9756420 | H12: ='A4-FinPerf RE'!I25 -> 4502362.2 | I12: ='A4-FinPerf RE'!J25 -> 9891930 | J12: ='A4-FinPerf RE'!K25 -> 10426091 | K12: ='A4-FinPerf RE'!L25 -> 10999524
A13: Depreciation & asset impairment | B13: ='A4-FinPerf RE'!C27 -> 16606097 | C13: ='A4-FinPerf RE'!D27 -> 18742590 | D13: ='A4-FinPerf RE'!E27 -> 20172670 | E13: ='A4-FinPerf RE'!F27 -> 19000000 | F13: ='A4-FinPerf RE'!G27 -> 19000000 | G13: ='A4-FinPerf RE'!H27 -> 19000000 | H13: ='A4-FinPerf RE'!I27 -> 13759872.21 | I13: ='A4-FinPerf RE'!J27 -> 20000000 | J13: ='A4-FinPerf RE'!K27 -> 21080000 | K13: ='A4-FinPerf RE'!L27 -> 22239400
A14: Finance charges | B14: ='A4-FinPerf RE'!C28 -> 0 | C14: ='A4-FinPerf RE'!D28 -> 0 | D14: ='A4-FinPerf RE'!E28 -> 0 | E14: ='A4-FinPerf RE'!F28 -> 0 | F14: ='A4-FinPerf RE'!G28 -> 0 | G14: ='A4-FinPerf RE'!H28 -> 0 | H14: ='A4-FinPerf RE'!I28 -> 0 | I14: ='A4-FinPerf RE'!J28 -> 0 | J14: ='A4-FinPerf RE'!K28 -> 0 | K14: ='A4-FinPerf RE'!L28 -> 0
A15: Materials and bulk purchases | B15: ='A4-FinPerf RE'!C29+'A4-FinPerf RE'!C30 -> 2339132 | C15: ='A4-FinPerf RE'!D29+'A4-FinPerf RE'!D30 -> 2930058 | D15: ='A4-FinPerf RE'!E29+'A4-FinPerf RE'!E30 -> 2882897 | E15: ='A4-FinPerf RE'!F29+'A4-FinPerf RE'!F30 -> 674800 | F15: ='A4-FinPerf RE'!G29+'A4-FinPerf RE'!G30 -> 689800 | G15: ='A4-FinPerf RE'!H29+'A4-FinPerf RE'!H30 -> 674800 | H15: ='A4-FinPerf RE'!I29+'A4-FinPerf RE'!I30 -> 381057.18 | I15: ='A4-FinPerf RE'!J29+'A4-FinPerf RE'!J30 -> 696454 | J15: ='A4-FinPerf RE'!K29+'A4-FinPerf RE'!K30 -> 734061 | K15: ='A4-FinPerf RE'!L29+'A4-FinPerf RE'!L30 -> 774435
A16: Transfers and grants | B16: ='A4-FinPerf RE'!C32 -> 840971 | C16: ='A4-FinPerf RE'!D32 -> 1343561 | D16: ='A4-FinPerf RE'!E32 -> 1295791 | E16: ='A4-FinPerf RE'!F32 -> 2381000 | F16: ='A4-FinPerf RE'!G32 -> 22075002 | G16: ='A4-FinPerf RE'!H32 -> 2381000 | H16: ='A4-FinPerf RE'!I32 -> 11278888.29 | I16: ='A4-FinPerf RE'!J32 -> 19151646 | J16: ='A4-FinPerf RE'!K32 -> 21036336 | K16: ='A4-FinPerf RE'!L32 -> 21296554
A17: Other expenditure | B17: ='A4-FinPerf RE'!C26+'A4-FinPerf RE'!C31+'A4-FinPerf RE'!C33+'A4-FinPerf RE'!C34 -> 35918744 | C17: ='A4-FinPerf RE'!D26+'A4-FinPerf RE'!D31+'A4-FinPerf RE'!D33+'A4-FinPerf RE'!D34 -> 39493934 | D17: ='A4-FinPerf RE'!E26+'A4-FinPerf RE'!E31+'A4-FinPerf RE'!E33+'A4-FinPerf RE'!E34 -> 40619288 | E17: ='A4-FinPerf RE'!F26+'A4-FinPerf RE'!F31+'A4-FinPerf RE'!F33+'A4-FinPerf RE'!F34 -> 45649086 | F17: ='A4-FinPerf RE'!G26+'A4-FinPerf RE'!G31+'A4-FinPerf RE'!G33+'A4-FinPerf RE'!G34 -> 45662817 | G17: ='A4-FinPerf RE'!H26+'A4-FinPerf RE'!H31+'A4-FinPerf RE'!H33+'A4-FinPerf RE'!H34 -> 45649086 | H17: ='A4-FinPerf RE'!I26+'A4-FinPerf RE'!I31+'A4-FinPerf RE'!I33+'A4-FinPerf RE'!I34 -> 18873773.95 | I17: ='A4-FinPerf RE'!J26+'A4-FinPerf RE'!J31+'A4-FinPerf RE'!J33+'A4-FinPerf RE'!J34 -> 46469743 | J17: ='A4-FinPerf RE'!K26+'A4-FinPerf RE'!K31+'A4-FinPerf RE'!K33+'A4-FinPerf RE'!K34 -> 48863899 | K17: ='A4-FinPerf RE'!L26+'A4-FinPerf RE'!L31+'A4-FinPerf RE'!L33+'A4-FinPerf RE'!L34 -> 51600004
A18: ='A4-FinPerf RE'!A35 -> Total Expenditure | B18: =SUM(B11:B17) -> 104077057 | C18: =SUM(C11:C17) -> 119093644 | D18: 126191892 | E18: 145083668 | F18: 165811194 | G18: 145083668 | H18: 82062686.35 | I18: 169673386 | J18: 179860657 | K18: 189232712
A19: ='A4-FinPerf RE'!A37 -> Surplus/(Deficit) | B19: =B10-B18 -> -4504200 | C19: -395263 | D19: 4943629 | E19: -10736635 | F19: -12260248 | G19: -10736635 | H19: 7997087.76 | I19: -13001597 | J19: -25921105 | K19: -50986246
A20: ='A4-FinPerf RE'!A38 -> Transfers and subsidies - capital (monetary allocations) (National / Provincial and District) | B20: ='A4-FinPerf RE'!C38 -> 65553661 | C20: ='A4-FinPerf RE'!D38 -> 83548759 | D20: ='A4-FinPerf RE'!E38 -> 29718917 | E20: ='A4-FinPerf RE'!F38 -> 47834052 | F20: ='A4-FinPerf RE'!G38 -> 27330000 | G20: ='A4-FinPerf RE'!H38 -> 47834052 | H20: ='A4-FinPerf RE'!I38 -> 36826165.11 | I20: ='A4-FinPerf RE'!J38 -> 26439000 | J20: ='A4-FinPerf RE'!K38 -> 44730706 | K20: ='A4-FinPerf RE'!L38 -> 47190895
A21: Contributions recognised - capital & contributed assets | B21: ='A4-FinPerf RE'!C39+'A4-FinPerf RE'!C40 -> 0 | C21: ='A4-FinPerf RE'!D39+'A4-FinPerf RE'!D40 -> 0 | D21: ='A4-FinPerf RE'!E39+'A4-FinPerf RE'!E40 -> 0 | E21: ='A4-FinPerf RE'!F39+'A4-FinPerf RE'!F40 -> 0 | F21: ='A4-FinPerf RE'!G39+'A4-FinPerf RE'!G40 -> 0 | G21: ='A4-FinPerf RE'!H39+'A4-FinPerf RE'!H40 -> 0 | H21: ='A4-FinPerf RE'!I39+'A4-FinPerf RE'!I40 -> 0 | I21: ='A4-FinPerf RE'!J39+'A4-FinPerf RE'!J40 -> 0 | J21: ='A4-FinPerf RE'!K39+'A4-FinPerf RE'!K40 -> 0 | K21: ='A4-FinPerf RE'!L39+'A4-FinPerf RE'!L40 -> 0
A22: ='A4-FinPerf RE'!A41 -> Surplus/(Deficit) after capital transfers & contributions | B22: =B19+SUM(B20:B21) -> 61049461 | C22: =C19+SUM(C20:C21) -> 83153496 | D22: 34662546 | E22: 37097417 | F22: 15069752 | G22: 37097417 | H22: 44823252.87 | I22: 13437403 | J22: 18809601 | K22: -3795351
A23: ='A4-FinPerf RE'!A46 -> Share of surplus/ (deficit) of associate | B23: ='A4-FinPerf RE'!C46 -> 0 | C23: ='A4-FinPerf RE'!D46 -> 0 | D23: ='A4-FinPerf RE'!E46 -> 0 | E23: ='A4-FinPerf RE'!F46 -> 0 | F23: ='A4-FinPerf RE'!G46 -> 0 | G23: ='A4-FinPerf RE'!H46 -> 0 | H23: ='A4-FinPerf RE'!I46 -> 0 | I23: ='A4-FinPerf RE'!J46 -> 0 | J23: ='A4-FinPerf RE'!K46 -> 0 | K23: ='A4-FinPerf RE'!L46 -> 0
A24: ='A4-FinPerf RE'!A47 -> Surplus/(Deficit) for the year | B24: =B22+B23 -> 61049461 | C24: =C22+C23 -> 83153496 | D24: 34662546 | E24: 37097417 | F24: 15069752 | G24: 37097417 | H24: 44823252.87 | I24: 13437403 | J24: 18809601 | K24: -3795351
A26: Capital expenditure & funds sources
A27: Capital expenditure | B27: ='A5-Capex'!C63 -> 68456586 | C27: ='A5-Capex'!D63 -> 86306245 | D27: ='A5-Capex'!E63 -> 73317502 | E27: ='A5-Capex'!F63 -> 83009664 | F27: ='A5-Capex'!G63 -> 55820091 | G27: ='A5-Capex'!H63 -> 55820078 | H27: ='A5-Capex'!I63 -> 55820078 | I27: ='A5-Capex'!J63 -> 53959744 | J27: ='A5-Capex'!K63 -> 56813265 | K27: ='A5-Capex'!L63 -> 60031634
A28: Transfers recognised - capital | B28: ='A5-Capex'!C70 -> 64837551 | C28: ='A5-Capex'!D70 -> 79688675 | D28: ='A5-Capex'!E70 -> 56089892 | E28: ='A5-Capex'!F70 -> 42725376 | F28: ='A5-Capex'!G70 -> 27330013 | G28: ='A5-Capex'!H70 -> 19980722 | H28: ='A5-Capex'!I70 -> 19980722 | I28: ='A5-Capex'!J70 -> 26439003.01 | J28: ='A5-Capex'!K70 -> 27866706 | K28: ='A5-Capex'!L70 -> 29399374.83
A29: ='A5-Capex'!A71 -> Public contributions & donations | B29: ='A5-Capex'!C71 -> 0 | C29: ='A5-Capex'!D71 -> 0 | D29: ='A5-Capex'!E71 -> 0 | E29: ='A5-Capex'!F71 -> 0 | F29: ='A5-Capex'!G71 -> 0 | G29: ='A5-Capex'!H71 -> 0 | H29: ='A5-Capex'!I71 -> 0 | I29: ='A5-Capex'!J71 -> 0 | J29: ='A5-Capex'!K71 -> 0 | K29: ='A5-Capex'!L71 -> 0
A30: ='A5-Capex'!A72 -> Borrowing | B30: ='A5-Capex'!C72 -> 0 | C30: ='A5-Capex'!D72 -> 0 | D30: ='A5-Capex'!E72 -> 0 | E30: ='A5-Capex'!F72 -> 0 | F30: ='A5-Capex'!G72 -> 0 | G30: ='A5-Capex'!H72 -> 0 | H30: ='A5-Capex'!I72 -> 0 | I30: ='A5-Capex'!J72 -> 0 | J30: ='A5-Capex'!K72 -> 0 | K30: ='A5-Capex'!L72 -> 0
A31: ='A5-Capex'!A73 -> Internally generated funds | B31: ='A5-Capex'!C73 -> 3619035 | C31: ='A5-Capex'!D73 -> 6617570 | D31: ='A5-Capex'!E73 -> 17227610 | E31: ='A5-Capex'!F73 -> 40284288 | F31: ='A5-Capex'!G73 -> 28490078 | G31: ='A5-Capex'!H73 -> 35839356 | H31: ='A5-Capex'!I73 -> 35839356 | I31: ='A5-Capex'!J73 -> 27520740.99 | J31: ='A5-Capex'!K73 -> 28946559 | K31: ='A5-Capex'!L73 -> 30632259.17
A32: Total sources of capital funds | B32: =SUM(B28:B31) -> 68456586 | C32: 86306245 | D32: 73317502 | E32: 83009664 | F32: 55820091 | G32: 55820078 | H32: 55820078 | I32: 53959744 | J32: 56813265 | K32: 60031634
A34: Financial position
A35: ='A6-FinPos'!A12 -> Total current assets | B35: ='A6-FinPos'!C12 -> 99909371 | C35: ='A6-FinPos'!D12 -> 117631166 | D35: ='A6-FinPos'!E12 -> 135186064 | E35: ='A6-FinPos'!F12 -> 121309719 | F35: ='A6-FinPos'!G12 -> 125449731 | G35: ='A6-FinPos'!H12 -> 125449731 | H35: ='A6-FinPos'!I12 -> 125449731 | I35: ='A6-FinPos'!J12 -> 112226186 | J35: ='A6-FinPos'!K12 -> 118286400 | K35: ='A6-FinPos'!L12 -> 124792152
A36: ='A6-FinPos'!A24 -> Total non current assets | B36: ='A6-FinPos'!C24 -> 262774266 | C36: ='A6-FinPos'!D24 -> 249258399 | D36: ='A6-FinPos'!E24 -> 266147453 | E36: ='A6-FinPos'!F24 -> 253452292.9 | F36: ='A6-FinPos'!G24 -> 290272292.8 | G36: ='A6-FinPos'!H24 -> 290272292.8 | H36: ='A6-FinPos'!I24 -> 290272292.8 | I36: ='A6-FinPos'!J24 -> 280352640.9 | J36: ='A6-FinPos'!K24 -> 295491683.5 | K36: ='A6-FinPos'!L24 -> 311743726.1
A37: ='A6-FinPos'!A34 -> Total current liabilities | B37: ='A6-FinPos'!C34 -> 28638772 | C37: ='A6-FinPos'!D34 -> 34650350 | D37: ='A6-FinPos'!E34 -> 30379225 | E37: ='A6-FinPos'!F34 -> 0 | F37: ='A6-FinPos'!G34 -> 26447150 | G37: ='A6-FinPos'!H34 -> 26447150 | H37: ='A6-FinPos'!I34 -> 26447150 | I37: ='A6-FinPos'!J34 -> 20145214 | J37: ='A6-FinPos'!K34 -> 21233055.56 | K37: ='A6-FinPos'!L34 -> 22400873.61
A38: ='A6-FinPos'!A39 -> Total non current liabilities | B38: ='A6-FinPos'!C39 -> 5602932 | C38: ='A6-FinPos'!D39 -> 5749000 | D38: ='A6-FinPos'!E39 -> 6700000 | E38: ='A6-FinPos'!F39 -> 0 | F38: ='A6-FinPos'!G39 -> 500000 | G38: ='A6-FinPos'!H39 -> 500000 | H38: ='A6-FinPos'!I39 -> 500000 | I38: ='A6-FinPos'!J39 -> 6900000 | J38: ='A6-FinPos'!K39 -> 7272600 | K38: ='A6-FinPos'!L39 -> 7672593
A39: Community wealth/Equity | B39: ='A6-FinPos'!C48 -> 0 | C39: ='A6-FinPos'!D48 -> 0 | D39: ='A6-FinPos'!E48 -> 0 | E39: ='A6-FinPos'!F48 -> 0 | F39: ='A6-FinPos'!G48 -> 0 | G39: ='A6-FinPos'!H48 -> 0 | H39: ='A6-FinPos'!I48 -> 0 | I39: ='A6-FinPos'!J48 -> 0 | J39: ='A6-FinPos'!K48 -> 0 | K39: ='A6-FinPos'!L48 -> 0
A41: Cash flows
A42: Net cash from (used) operating | B42: ='A7-CFlow'!C17 -> 84951150 | C42: ='A7-CFlow'!D17 -> 113370621 | D42: ='A7-CFlow'!E17 -> 77857375 | E42: ='A7-CFlow'!F17 -> 72292705 | F42: ='A7-CFlow'!G17 -> 56748411 | G42: ='A7-CFlow'!H17 -> 56748411 | H42: ='A7-CFlow'!I17 -> 56748411 | I42: ='A7-CFlow'!J17 -> 35487367.46 | J42: ='A7-CFlow'!K17 -> 37403685.31 | K42: ='A7-CFlow'!L17 -> 39460888
A43: Net cash from (used) investing | B43: ='A7-CFlow'!C27 -> -68456586 | C43: ='A7-CFlow'!D27 -> -91838599 | D43: ='A7-CFlow'!E27 -> -61835536 | E43: ='A7-CFlow'!F27 -> -83009664 | F43: ='A7-CFlow'!G27 -> -55820078 | G43: ='A7-CFlow'!H27 -> -55820078 | H43: ='A7-CFlow'!I27 -> -55820078 | I43: ='A7-CFlow'!J27 -> -33959740.99 | J43: ='A7-CFlow'!K27 -> -35793567 | K43: ='A7-CFlow'!L27 -> -37762213.19
A44: Net cash from (used) financing | B44: ='A7-CFlow'!C36 -> -558043 | C44: ='A7-CFlow'!D36 -> -271932 | D44: ='A7-CFlow'!E36 -> -951000 | E44: ='A7-CFlow'!F36 -> 0 | F44: ='A7-CFlow'!G36 -> 0 | G44: ='A7-CFlow'!H36 -> 0 | H44: ='A7-CFlow'!I36 -> 0 | I44: ='A7-CFlow'!J36 -> 0 | J44: ='A7-CFlow'!K36 -> 0 | K44: ='A7-CFlow'!L36 -> 0
A45: =LEFT('A7-CFlow'!A40,37) -> Cash/cash equivalents at the year end | B45: ='A7-CFlow'!C40 -> 81969674 | C45: ='A7-CFlow'!D40 -> 103229764 | D45: ='A7-CFlow'!E40 -> 118300603 | E45: ='A7-CFlow'!F40 -> 72418857 | F45: ='A7-CFlow'!G40 -> 119228751 | G45: ='A7-CFlow'!H40 -> 119228751 | H45: ='A7-CFlow'!I40 -> 119228751 | I45: ='A7-CFlow'!J40 -> 120756377.5 | J45: ='A7-CFlow'!K40 -> 122366495.8 | K45: ='A7-CFlow'!L40 -> 124065170.6
A47: Cash backing/surplus reconciliation
A48: ='A8-ResRecon'!A4 -> Cash and investments available | B48: ='A8-ResRecon'!C8 -> 81969672 | C48: ='A8-ResRecon'!D8 -> 103229763 | D48: ='A8-ResRecon'!E8 -> 118300602 | E48: ='A8-ResRecon'!F8 -> 116192381 | F48: ='A8-ResRecon'!G8 -> 120332393 | G48: ='A8-ResRecon'!H8 -> 120332393 | H48: ='A8-ResRecon'!I8 -> 120332393 | I48: ='A8-ResRecon'!J8 -> 94404376 | J48: ='A8-ResRecon'!K8 -> 99502212.3 | K48: ='A8-ResRecon'!L8 -> 104974834
A49: ='A8-ResRecon'!A10 -> Application of cash and investments | B49: ='A8-ResRecon'!C18 -> 16932649 | C49: ='A8-ResRecon'!D18 -> 23345418 | D49: ='A8-ResRecon'!E18 -> 30379225 | E49: ='A8-ResRecon'!F18 -> -2122000 | F49: ='A8-ResRecon'!G18 -> 25045150 | G49: ='A8-ResRecon'!H18 -> 25257150 | H49: ='A8-ResRecon'!I18 -> 22655150 | I49: ='A8-ResRecon'!J18 -> 6881214 | J49: ='A8-ResRecon'!K18 -> -13246944.44 | K49: ='A8-ResRecon'!L18 -> -13976126.39
A50: Balance - surplus (shortfall) | B50: =B48-B49 -> 65037023 | C50: =C48-C49 -> 79884345 | D50: 87921377 | E50: 118314381 | F50: 95287243 | G50: 95075243 | H50: 97677243 | I50: 87523162 | J50: 112749156.7 | K50: 118950960.4
A52: Asset management
A53: Asset register summary (WDV) | B53: ='A9-Asset'!C165 -> 262774266 | C53: ='A9-Asset'!D165 -> 325349535 | D53: ='A9-Asset'!E165 -> 266147917.8 | E53: ='A9-Asset'!F165 -> 240079455 | F53: ='A9-Asset'!G165 -> 240079455 | G53: ='A9-Asset'!H165 -> 240079455 | I53: ='A9-Asset'!I165 -> 280083059.2 | J53: ='A9-Asset'!J165 -> 295207544.4 | K53: ='A9-Asset'!K165 -> 313953184.5
A54: ='A9-Asset'!A168 -> Depreciation | B54: ='A9-Asset'!C168 -> 0 | C54: ='A9-Asset'!D168 -> 0 | D54: ='A9-Asset'!E168 -> 0 | E54: ='A9-Asset'!F168 -> 19000000 | F54: ='A9-Asset'!G168 -> 19000000 | G54: ='A9-Asset'!H168 -> 19000000 | I54: ='A9-Asset'!I168 -> 20000000 | J54: ='A9-Asset'!J168 -> 21080000 | K54: ='A9-Asset'!K168 -> 22218320
A55: Renewal of Existing Assets | B55: ='A9-Asset'!C37 -> 0 | C55: ='A9-Asset'!D37 -> 0 | D55: ='A9-Asset'!E37 -> 0 | E55: ='A9-Asset'!F37 -> 260000 | F55: ='A9-Asset'!G37 -> 555914 | G55: ='A9-Asset'!H37 -> 260000 | I55: ='A9-Asset'!I37 -> 857109 | J55: ='A9-Asset'!J37 -> 903393 | K55: ='A9-Asset'!K37 -> 953080
A56: Repairs and Maintenance | B56: ='A9-Asset'!C169 -> 0 | C56: ='A9-Asset'!D169 -> 0 | D56: ='A9-Asset'!E169 -> 0 | E56: ='A9-Asset'!F169 -> 4186385 | F56: ='A9-Asset'!G169 -> 4801286 | G56: ='A9-Asset'!H169 -> 4186385 | I56: ='A9-Asset'!I169 -> 6657631 | J56: ='A9-Asset'!J169 -> 7017143 | K56: ='A9-Asset'!K169 -> 7403086
A58: Free services
A59: Cost of Free Basic Services provided | B59: ='A10-SerDel'!C60 -> 0 | C59: ='A10-SerDel'!D60 -> 0 | D59: ='A10-SerDel'!E60 -> 0 | E59: ='A10-SerDel'!F60 -> 71695 | F59: ='A10-SerDel'!G60 -> 65183 | G59: ='A10-SerDel'!H60 -> 65183 | H59: ='A10-SerDel'!I60 -> 68702.882 | I59: ='A10-SerDel'!I60 -> 68702.882 | J59: ='A10-SerDel'!J60 -> 68702.882 | K59: ='A10-SerDel'!K60 -> 68702.882
A60: Revenue cost of free services provided | B60: ='A10-SerDel'!C79 -> 0 | C60: ='A10-SerDel'!D79 -> 0 | D60: ='A10-SerDel'!E79 -> 0 | E60: ='A10-SerDel'!F79 -> 2800021 | F60: ='A10-SerDel'!G79 -> 2800163 | G60: ='A10-SerDel'!H79 -> 2800163 | H60: ='A10-SerDel'!I79 -> 2951222.134 | I60: ='A10-SerDel'!I79 -> 2951222.134 | J60: ='A10-SerDel'!J79 -> 2951222.134 | K60: ='A10-SerDel'!K79 -> 2951222.134
A61: Households below minimum service level
A62: ='A10-SerDel'!A5 -> Water: | B62: ='A10-SerDel'!C14 -> 0 | C62: ='A10-SerDel'!D14 -> 0 | D62: ='A10-SerDel'!E14 -> 0 | E62: ='A10-SerDel'!F14 -> 0 | F62: ='A10-SerDel'!G14 -> 0 | G62: ='A10-SerDel'!H14 -> 0 | H62: ='A10-SerDel'!I14 -> 10670 | I62: ='A10-SerDel'!I14 -> 10670 | J62: ='A10-SerDel'!J14 -> 11203.5 | K62: ='A10-SerDel'!K14 -> 11819.6925
A63: ='A10-SerDel'!A16 -> Sanitation/sewerage: | B63: ='A10-SerDel'!C26 -> 0 | C63: ='A10-SerDel'!D26 -> 0 | D63: ='A10-SerDel'!E26 -> 0 | E63: ='A10-SerDel'!F26 -> 0 | F63: ='A10-SerDel'!G26 -> 0 | G63: ='A10-SerDel'!H26 -> 0 | H63: ='A10-SerDel'!I26 -> 13469 | I63: ='A10-SerDel'!I26 -> 13469 | J63: ='A10-SerDel'!J26 -> 14142.45 | K63: ='A10-SerDel'!K26 -> 14920.28475
A64: ='A10-SerDel'!A28 -> Energy: | B64: ='A10-SerDel'!C35 -> 0 | C64: ='A10-SerDel'!D35 -> 0 | D64: ='A10-SerDel'!E35 -> 0 | E64: ='A10-SerDel'!F35 -> 0 | F64: ='A10-SerDel'!G35 -> 0 | G64: ='A10-SerDel'!H35 -> 0 | H64: ='A10-SerDel'!I35 -> 0 | I64: ='A10-SerDel'!I35 -> 0 | J64: ='A10-SerDel'!J35 -> 0 | K64: ='A10-SerDel'!K35 -> 0
A65: ='A10-SerDel'!A37 -> Refuse: | B65: ='A10-SerDel'!C45 -> 0 | C65: ='A10-SerDel'!D45 -> 0 | D65: ='A10-SerDel'!E45 -> 0 | E65: ='A10-SerDel'!F45 -> 1 | F65: ='A10-SerDel'!G45 -> 1 | G65: ='A10-SerDel'!H45 -> 1 | H65: ='A10-SerDel'!I45 -> 1420.684 | I65: ='A10-SerDel'!I45 -> 1420.684 | J65: ='A10-SerDel'!J45 -> 1420.684 | K65: ='A10-SerDel'!K45 -> 1420.684

Sheet A2-FinPerf SC
A1: =muni&" - "&Approve3 -> KZN434 Ubuhlebezwe - Table A2 Budgeted Financial Performance (revenue and expenditure by functional classification)
A2: ="Functional Classification "&desc -> Functional Classification Description | B2: =head27 -> Ref | C2: =head1b -> 2014/15 | D2: =head1A -> 2015/16 | E2: =Head1 -> 2016/17 | F2: =Head2 -> Current Year 2017/18 | I2: =Head3 -> 2018/19 Medium Term Revenue & Expenditure Framework
A3: R thousand | B3: 1 | C3: =Head5 -> Audited Outcome | D3: =Head5 -> Audited Outcome | E3: =Head5 -> Audited Outcome | F3: =Head6 -> Original Budget | G3: =Head7 -> Adjusted Budget | H3: =Head8 -> Full Year Forecast | I3: =Head9 -> Budget Year 2018/19 | J3: =Head10 -> Budget Year +1 2019/20 | K3: =Head11 -> Budget Year +2 2020/21
A4: Revenue - Functional
A5: Governance and administration | C5: =SUM(C6:C8) -> 90203054 | D5: =SUM(D6:D8) -> 109105038 | E5: 157549545 | F5: 125431822 | G5: 124276235 | H5: 125431822 | I5: 129683369 | J5: 120311250 | K5: 126928370
A6: Executive and council | C6: =A2A!C6 -> 0 | D6: =A2A!D6 -> 0 | E6: =A2A!E6 -> 0 | F6: =A2A!F6 -> 0 | G6: =A2A!G6 -> 0 | H6: =A2A!H6 -> 0 | I6: =A2A!I6 -> 0 | J6: =A2A!J6 -> 0 | K6: =A2A!K6 -> 0
A7: Finance and administration | C7: =A2A!C9 -> 90203054 | D7: =A2A!D9 -> 109105038 | E7: =A2A!E9 -> 157549545 | F7: =A2A!F9 -> 125431822 | G7: =A2A!G9 -> 124276235 | H7: =A2A!H9 -> 125431822 | I7: =A2A!I9 -> 129683369 | J7: =A2A!J9 -> 120311250 | K7: =A2A!K9 -> 126928370
A8: Internal audit | C8: =A2A!C24 -> 0 | D8: =A2A!D24 -> 0 | E8: =A2A!E24 -> 0 | F8: =A2A!F24 -> 0 | G8: =A2A!G24 -> 0 | H8: =A2A!H24 -> 0 | I8: =A2A!I24 -> 0 | J8: =A2A!J24 -> 0 | K8: =A2A!K24 -> 0
A9: Community and public safety | C9: =SUM(C10:C14) -> 4482198 | D9: =SUM(D10:D14) -> 10770867 | E9: 3304893 | F9: 4929500 | G9: 4944000 | H9: 4929500 | I9: 6388892 | J9: 6730179 | K9: 6203560
A10: Community and social services | C10: =A2A!C27 -> 722231 | D10: =A2A!D27 -> 6795180 | E10: =A2A!E27 -> 0 | F10: =A2A!F27 -> 1054500 | G10: =A2A!G27 -> 1669000 | H10: =A2A!H27 -> 1054500 | I10: =A2A!I27 -> 1710496 | J10: =A2A!J27 -> 1799150 | K10: =A2A!K27 -> 1001324
A11: Sport and recreation | C11: =A2A!C49 -> 0 | D11: =A2A!D49 -> 0 | E11: =A2A!E49 -> 0 | F11: =A2A!F49 -> 0 | G11: =A2A!G49 -> 0 | H11: =A2A!H49 -> 0 | I11: =A2A!I49 -> 0 | J11: =A2A!J49 -> 0 | K11: =A2A!K49 -> 0
A12: Public safety | C12: =A2A!C55 -> 3759967 | D12: =A2A!D55 -> 3975687 | E12: =A2A!E55 -> 3304893 | F12: =A2A!F55 -> 3875000 | G12: =A2A!G55 -> 3275000 | H12: =A2A!H55 -> 3875000 | I12: =A2A!I55 -> 3826300 | J12: =A2A!J55 -> 4032920 | K12: =A2A!K55 -> 4254731
A13: Housing | C13: =A2A!C62 -> 0 | D13: =A2A!D62 -> 0 | E13: =A2A!E62 -> 0 | F13: =A2A!F62 -> 0 | G13: =A2A!G62 -> 0 | H13: =A2A!H62 -> 0 | I13: =A2A!I62 -> 852096 | J13: =A2A!J62 -> 898109 | K13: =A2A!K62 -> 947505
A14: Health | C14: =A2A!C65 -> 0 | D14: =A2A!D65 -> 0 | E14: =A2A!E65 -> 0 | F14: =A2A!F65 -> 0 | G14: =A2A!G65 -> 0 | H14: =A2A!H65 -> 0 | I14: =A2A!I65 -> 0 | J14: =A2A!J65 -> 0 | K14: =A2A!K65 -> 0
A15: Economic and environmental services | C15: =SUM(C16:C18) -> 68977264 | D15: =SUM(D16:D18) -> 80689585 | E15: 0 | F15: 49829052 | G15: 49670000 | H15: 49829052 | I15: 28944300 | J15: 52557513 | K15: 32185193
A16: Planning and development | C16: =A2A!C74 -> 67768528 | D16: =A2A!D74 -> 17038065 | E16: =A2A!E74 -> 0 | F16: =A2A!F74 -> 47969052 | G16: =A2A!G74 -> 47910000 | H16: =A2A!H74 -> 47969052 | I16: =A2A!I74 -> 26554780 | J16: =A2A!J74 -> 50038960 | K16: =A2A!K74 -> 29528119
A17: Road transport | C17: =A2A!C85 -> 1208736 | D17: =A2A!D85 -> 63651520 | E17: =A2A!E85 -> 0 | F17: =A2A!F85 -> 1860000 | G17: =A2A!G85 -> 1760000 | H17: =A2A!H85 -> 1860000 | I17: =A2A!I85 -> 2389520 | J17: =A2A!J85 -> 2518553 | K17: =A2A!K85 -> 2657074
A18: Environmental protection | C18: =A2A!C92 -> 0 | D18: =A2A!D92 -> 0 | E18: =A2A!E92 -> 0 | F18: =A2A!F92 -> 0 | G18: =A2A!G92 -> 0 | H18: =A2A!H92 -> 0 | I18: =A2A!I92 -> 0 | J18: =A2A!J92 -> 0 | K18: =A2A!K92 -> 0
A19: Trading services | C19: =SUM(C20:C23) -> 1464002 | D19: =SUM(D20:D23) -> 1681650 | E19: 0 | F19: 1990711 | G19: 1990711 | H19: 1990711 | I19: 18094228 | J19: =SUM(J20:J23) -> 19071316 | K19: 20120238
A20: Energy sources | C20: =A2A!C100 -> 0 | D20: =A2A!D100 -> 0 | E20: =A2A!E100 -> 0 | F20: =A2A!F100 -> 0 | G20: =A2A!G100 -> 0 | H20: =A2A!H100 -> 0 | I20: =A2A!I100 -> 16000000 | J20: =A2A!J100 -> 16864000 | K20: =A2A!K100 -> 17791520
A21: Water management | C21: =A2A!C104 -> 0 | D21: =A2A!D104 -> 0 | E21: =A2A!E104 -> 0 | F21: =A2A!F104 -> 0 | G21: =A2A!G104 -> 0 | H21: =A2A!H104 -> 0 | I21: =A2A!I104 -> 0 | J21: =A2A!J104 -> 0 | K21: =A2A!K104 -> 0
A22: Waste water management | C22: =A2A!C108 -> 0 | D22: =A2A!D108 -> 0 | E22: =A2A!E108 -> 0 | F22: =A2A!F108 -> 0 | G22: =A2A!G108 -> 0 | H22: =A2A!H108 -> 0 | I22: =A2A!I108 -> 0 | J22: =A2A!J108 -> 0 | K22: =A2A!K108 -> 0
A23: Waste management | C23: =A2A!C113 -> 1464002 | D23: =A2A!D113 -> 1681650 | E23: =A2A!E113 -> 0 | F23: =A2A!F113 -> 1990711 | G23: =A2A!G113 -> 1990711 | H23: =A2A!H113 -> 1990711 | I23: =A2A!I113 -> 2094228 | J23: =A2A!J113 -> 2207316 | K23: =A2A!K113 -> 2328718
A24: Other | B24: 4 | C24: =A2A!C118 -> 0 | D24: =A2A!D118 -> 0 | E24: =A2A!E118 -> 0 | F24: =A2A!F118 -> 0 | G24: =A2A!G118 -> 0 | H24: =A2A!H118 -> 0 | I24: =A2A!I118 -> 0 | J24: =A2A!J118 -> 0 | K24: =A2A!K118 -> 0
A25: ="Total "&A4 -> Total Revenue - Functional | B25: 2 | C25: =C5+C9+C15+C19+C24 -> 165126518 | D25: =D5+D9+D15+D19+D24 -> 202247140 | E25: =E5+E9+E15+E19+E24 -> 160854438 | F25: 182181085 | G25: 180880946 | H25: 182181085 | I25: =I5+I9+I15+I19+I24 -> 183110789 | J25: 198670258 | K25: 185437361
A27: Expenditure - Functional
A28: Governance and administration | C28: =SUM(C29:C31) -> 60934760 | D28: =SUM(D29:D31) -> 80298543 | E28: 121945552 | F28: 85447100 | G28: 85875640 | H28: 85447100 | I28: 88228658 | J28: 72115416 | K28: 76433940
A29: Executive and council | C29: =A2A!C129 -> 12683609 | D29: =A2A!D129 -> 13222429 | E29: =A2A!E129 -> 0 | F29: =A2A!F129 -> 13032771 | G29: =A2A!G129 -> 22910955 | H29: =A2A!H129 -> 13032771 | I29: =A2A!I129 -> 23501231 | J29: =A2A!J129 -> 24770296 | K29: =A2A!K129 -> 26132658
A30: Finance and administration | C30: =A2A!C132 -> 48251151 | D30: =A2A!D132 -> 67076114 | E30: =A2A!E132 -> 121945552 | F30: =A2A!F132 -> 61517002 | G30: =A2A!G132 -> 62964685 | H30: =A2A!H132 -> 61517002 | I30: =A2A!I132 -> 64727427 | J30: =A2A!J132 -> 47345120 | K30: =A2A!K132 -> 50301282
A31: Internal audit | C31: =A2A!C147 -> 0 | D31: =A2A!D147 -> 0 | E31: =A2A!E147 -> 0 | F31: =A2A!F147 -> 10897327 | G31: =A2A!G147 -> 0 | H31: =A2A!H147 -> 10897327 | I31: =A2A!I147 -> 0 | J31: =A2A!J147 -> 0 | K31: =A2A!K147 -> 0
A32: Community and public safety | C32: =SUM(C33:C37) -> 20352390 | D32: =SUM(D33:D37) -> 16159090 | E32: 1364866 | F32: 25673754 | G32: 26381208 | H32: 25673754 | I32: 27644342 | J32: 29959541 | K32: 30734956
A33: Community and social services | C33: =A2A!C150 -> 10073456 | D33: =A2A!D150 -> 8908111 | E33: =A2A!E150 -> 0 | F33: =A2A!F150 -> 9718053 | G33: =A2A!G150 -> 9079056 | H33: =A2A!H150 -> 9718053 | I33: =A2A!I150 -> 9289881 | J33: =A2A!J150 -> 10614012 | K33: =A2A!K150 -> 10326348
A34: Sport and recreation | C34: =A2A!C172 -> 552318 | D34: =A2A!D172 -> 308434 | E34: =A2A!E172 -> 0 | F34: =A2A!F172 -> 722735 | G34: =A2A!G172 -> 707735 | H34: =A2A!H172 -> 722735 | I34: =A2A!I172 -> 692650 | J34: =A2A!J172 -> 730051 | K34: =A2A!K172 -> 770203
A35: Public safety | C35: =A2A!C178 -> 5522088 | D35: =A2A!D178 -> 6355612 | E35: =A2A!E178 -> 1364866 | F35: =A2A!F178 -> 13968204 | G35: =A2A!G178 -> 14933505 | H35: =A2A!H178 -> 13968204 | I35: =A2A!I178 -> 15524758 | J35: =A2A!J178 -> 16363023 | K35: =A2A!K178 -> 17262067
A36: Housing | C36: =A2A!C185 -> 4204528 | D36: =A2A!D185 -> 586933 | E36: =A2A!E185 -> 0 | F36: =A2A!F185 -> 1264762 | G36: =A2A!G185 -> 1660912 | H36: =A2A!H185 -> 1264762 | I36: =A2A!I185 -> 2137053 | J36: =A2A!J185 -> 2252455 | K36: =A2A!K185 -> 2376338
A37: Health | C37: =A2A!C188 -> 0 | D37: =A2A!D188 -> 0 | E37: =A2A!E188 -> 0 | F37: =A2A!F188 -> 0 | G37: =A2A!G188 -> 0 | H37: =A2A!H188 -> 0 | I37: =A2A!I188 -> 0 | J37: =A2A!J188 -> 0 | K37: =A2A!K188 -> 0
A38: Economic and environmental services | C38: =SUM(C39:C41) -> 16805385 | D38: =SUM(D39:D41) -> 16583974 | E38: 0 | F38: 23835038 | G38: 23411570 | H38: 23835038 | I38: 25959908 | J38: 27361836 | K38: 28866639
A39: Planning and development | C39: =A2A!C197 -> 11404479 | D39: =A2A!D197 -> 6629140 | E39: =A2A!E197 -> 0 | F39: =A2A!F197 -> 8214216 | G39: =A2A!G197 -> 7917297 | H39: =A2A!H197 -> 8214216 | I39: =A2A!I197 -> 8125276 | J39: =A2A!J197 -> 8564133 | K39: =A2A!K197 -> 9035062
A40: Road transport | C40: =A2A!C208 -> 5400906 | D40: =A2A!D208 -> 9954834 | E40: =A2A!E208 -> 0 | F40: =A2A!F208 -> 15620822 | G40: =A2A!G208 -> 15494273 | H40: =A2A!H208 -> 15620822 | I40: =A2A!I208 -> 17834632 | J40: =A2A!J208 -> 18797703 | K40: =A2A!K208 -> 19831577
A41: Environmental protection | C41: =A2A!C215 -> 0 | D41: =A2A!D215 -> 0 | E41: =A2A!E215 -> 0 | F41: =A2A!F215 -> 0 | G41: =A2A!G215 -> 0 | H41: =A2A!H215 -> 0 | I41: =A2A!I215 -> 0 | J41: =A2A!J215 -> 0 | K41: =A2A!K215 -> 0
A42: Trading services | C42: =SUM(C43:C46) -> 5984522 | D42: =SUM(D43:D46) -> 6052037 | E42: 2881474 | F42: =SUM(F43:F46) -> 10127776 | G42: 30142776 | H42: 10127776 | I42: 27840478 | J42: 29343864 | K42: =SUM(K43:K46) -> 30957777
A43: Energy sources | C43: =A2A!C223 -> 0 | D43: =A2A!D223 -> 0 | E43: =A2A!E223 -> 0 | F43: =A2A!F223 -> 0 | G43: =A2A!G223 -> 20000000 | H43: =A2A!H223 -> 0 | I43: =A2A!I223 -> 16000000 | J43: =A2A!J223 -> 16864000 | K43: =A2A!K223 -> 17791519
A44: Water management | C44: =A2A!C227 -> 0 | D44: =A2A!D227 -> 0 | E44: =A2A!E227 -> 0 | F44: =A2A!F227 -> 0 | G44: =A2A!G227 -> 0 | H44: =A2A!H227 -> 0 | I44: =A2A!I227 -> 0 | J44: =A2A!J227 -> 0 | K44: =A2A!K227 -> 0
A45: Waste water management | C45: =A2A!C231 -> 0 | D45: =A2A!D231 -> 0 | E45: =A2A!E231 -> 0 | F45: =A2A!F231 -> 0 | G45: =A2A!G231 -> 0 | H45: =A2A!H231 -> 0 | I45: =A2A!I231 -> 0 | J45: =A2A!J231 -> 0 | K45: =A2A!K231 -> 0
A46: Waste management | C46: =A2A!C236 -> 5984522 | D46: =A2A!D236 -> 6052037 | E46: =A2A!E236 -> 2881474 | F46: =A2A!F236 -> 10127776 | G46: =A2A!G236 -> 10142776 | H46: =A2A!H236 -> 10127776 | I46: =A2A!I236 -> 11840478 | J46: =A2A!J236 -> 12479864 | K46: =A2A!K236 -> 13166258
A47: Other | B47: 4 | C47: =A2A!C241 -> 0 | D47: =A2A!D241 -> 0 | E47: =A2A!E241 -> 0 | F47: =A2A!F241 -> 0 | G47: =A2A!G241 -> 0 | H47: =A2A!H241 -> 0 | I47: =A2A!I241 -> 0 | J47: =A2A!J241 -> 0 | K47: =A2A!K241 -> 0
A48: ="Total "&A27 -> Total Expenditure - Functional | B48: 3 | C48: =C28+C32+C38+C42+C47 -> 104077057 | D48: =D28+D32+D38+D42+D47 -> 119093644 | E48: =E28+E32+E38+E42+E47 -> 126191892 | F48: =F28+F32+F38+F42+F47 -> 145083668 | G48: 165811194 | H48: 145083668 | I48: 169673386 | J48: 158780657 | K48: 166993312
A49: =result -> Surplus/(Deficit) for the year | C49: =C25-C48 -> 61049461 | D49: =D25-D48 -> 83153496 | E49: 34662546 | F49: 37097417 | G49: 15069752 | H49: 37097417 | I49: 13437403 | J49: 39889601 | K49: 18444049
A50: =head27a -> References
A51: 1. Government Finance Statistics Functions and Sub-functions are standardised to assist the compilation of national and international accounts for comparison purposes
A52: 2. Total Revenue by functional classification must reconcile to Total Operating Revenue shown in Budgeted Financial Performance (revenue and expenditure)
A53: 3. Total Expenditure by Functional Classification must reconcile to Total Operating Expenditure shown in Budgeted Financial Performance (revenue and expenditure)
A54: 4. All amounts must be classified under a functional classification . The GFS function 'Other' is only for Abbatoirs, Air Transport, Forestry, Licensing and Regulation, Markets and Tourism - and if used must be supported by footnotes. Nothing else may be placed under 'Other'. Assign associate share to relevant classification.
A57: check oprev balance | C57: =C25-'A4-FinPerf RE'!C59 -> 0 | D57: =D25-'A4-FinPerf RE'!D59 -> 0 | E57: =E25-'A4-FinPerf RE'!E59 -> 0 | F57: =F25-'A4-FinPerf RE'!F59 -> 0 | G57: =G25-'A4-FinPerf RE'!G59 -> 0 | H57: =H25-'A4-FinPerf RE'!H59 -> 0 | I57: =I25-'A4-FinPerf RE'!J59 -> 0 | J57: =J25-'A4-FinPerf RE'!K59 -> 0 | K57: =K25-'A4-FinPerf RE'!L59 -> 0
A58: check opexp balance | C58: =C48-'A4-FinPerf RE'!C35 -> 0 | D58: =D48-'A4-FinPerf RE'!D35 -> 0 | E58: =E48-'A4-FinPerf RE'!E35 -> 0 | F58: =F48-'A4-FinPerf RE'!F35 -> 0 | G58: =G48-'A4-FinPerf RE'!G35 -> 0 | H58: =H48-'A4-FinPerf RE'!H35 -> 0 | I58: =I48-'A4-FinPerf RE'!J35 -> 0 | J58: =J48-'A4-FinPerf RE'!K35 -> -21080000 | K58: =K48-'A4-FinPerf RE'!L35 -> -22239400

Sheet A2A
A1: =muni&" - "&Approve3 -> KZN434 Ubuhlebezwe - Table A2 Budgeted Financial Performance (revenue and expenditure by functional classification)
A2: ="Functional Classification "&desc -> Functional Classification Description | B2: =head27 -> Ref | C2: =head1b -> 2014/15 | D2: =head1A -> 2015/16 | E2: =Head1 -> 2016/17 | F2: =Head2 -> Current Year 2017/18 | I2: =Head3 -> 2018/19 Medium Term Revenue & Expenditure Framework | L2: A2A
A3: R thousand | B3: 1 | C3: =Head5 -> Audited Outcome | D3: =Head5 -> Audited Outcome | E3: =Head5 -> Audited Outcome | F3: =Head6 -> Original Budget | G3: =Head7 -> Adjusted Budget | H3: =Head8 -> Full Year Forecast | I3: =Head9 -> Budget Year 2018/19 | J3: =Head10 -> Budget Year +1 2019/20 | K3: =Head11 -> Budget Year +2 2020/21
A4: Revenue - Functional
A5: Municipal governance and administration | C5: =C6+C9+C24 -> 90203054 | D5: =D6+D9+D24 -> 109105038 | E5: 157549545 | F5: 125431822 | G5: 124276235 | H5: 125431822 | I5: 129683369 | J5: 120311250 | K5: 126928370 | L5: 1000 REV
A6: Executive and council | C6: =SUM(C7:C8) -> 0 | D6: =SUM(D7:D8) -> 0 | E6: 0 | F6: 0 | G6: 0 | H6: 0 | I6: 0 | J6: 0 | K6: 0 | L6: 1100 REV
A7: Mayor and Council | F7: =-SUMIFS('A Schedule Import Data'!U:U,'A Schedule Import Data'!$A:$A,$L$2,'A Schedule Import Data'!$B:$B,$L7) -> 0 | G7: =-SUMIFS('A Schedule Import Data'!V:V,'A Schedule Import Data'!$A:$A,$L$2,'A Schedule Import Data'!$B:$B,$L7) -> 0 | H7: =-SUMIFS('A Schedule Import Data'!Z:Z,'A Schedule Import Data'!$A:$A,$L$2,'A Schedule Import Data'!$B:$B,$L7) -> 0 | I7: =-SUMIFS('A Schedule Import Data'!CA:CA,'A Schedule Import Data'!$A:$A,$L$2,'A Schedule Import Data'!$B:$B,$L7) -> 0 | J7: =-SUMIFS('A Schedule Import Data'!CB:CB,'A Schedule Import Data'!$A:$A,$L$2,'A Schedule Import Data'!$B:$B,$L7) -> 0 | K7: =-SUMIFS('A Schedule Import Data'!CC:CC,'A Schedule Import Data'!$A:$A,$L$2,'A Schedule Import Data'!$B:$B,$L7) -> 0 | L7: 1110 REV
A8: Municipal Manager, Town Secretary and Chief Executive | F8: =-SUMIFS('A Schedule Import Data'!U:U,'A Schedule Import Data'!$A:$A,$L$2,'A Schedule Import Data'!$B:$B,$L8) -> 0 | G8: =-SUMIFS('A Schedule Import Data'!V:V,'A Schedule Import Data'!$A:$A,$L$2,'A Schedule Import Data'!$B:$B,$L8) -> 0 | H8: =-SUMIFS('A Schedule Import Data'!Z:Z,'A Schedule Import Data'!$A:$A,$L$2,'A Schedule Import Data'!$B:$B,$L8) -> 0 | I8: =-SUMIFS('A Schedule Import Data'!CA:CA,'A Schedule Import Data'!$A:$A,$L$2,'A Schedule Import Data'!$B:$B,$L8) -> 0 | J8: =-SUMIFS('A Schedule Import Data'!CB:CB,'A Schedule Import Data'!$A:$A,$L$2,'A Schedule Import Data'!$B:$B,$L8) -> 0 | K8: =-SUMIFS('A Schedule Import Data'!CC:CC,'A Schedule Import Data'!$A:$A,$L$2,'A Schedule Import Data'!$B:$B,$L8) -> 0 | L8: 1120 REV
A9: Finance and administration | C9: =SUM(C10:C23) -> 90203054 | D9: 109105038 | E9: 157549545 | F9: =SUM(F10:F23) -> 125431822 | G9: 124276235 | H9: 125431822 | I9: 129683369 | J9: 120311250 | K9: 126928370 | L9: 1200 REV
A10: Administrative and Corporate Support | C10: 1091118 | D10: 586377 | E10: 1173223 | F10: =-SUMIFS('A Schedule Import Data'!U:U,'A Schedule Import Data'!$A:$A,$L$2,'A Schedule Import Data'!$B:$B,$L10) -> 5000000 | G10: =-SUMIFS('A Schedule Import Data'!V:V,'A Schedule Import Data'!$A:$A,$L$2,'A Schedule Import Data'!$B:$B,$L10) -> 2000000 | H10: =-SUMIFS('A Schedule Import Data'!Z:Z,'A Schedule Import Data'!$A:$A,$L$2,'A Schedule Import Data'!$B:$B,$L10) -> 5000000 | I10: =-SUMIFS('A Schedule Import Data'!CA:CA,'A Schedule Import Data'!$A:$A,$L$2,'A Schedule Import Data'!$B:$B,$L10) -> 2500000 | J10: =-SUMIFS('A Schedule Import Data'!CB:CB,'A Schedule Import Data'!$A:$A,$L$2,'A Schedule Import Data'!$B:$B,$L10) -> 2635000 | K10: =-SUMIFS('A Schedule Import Data'!CC:CC,'A Schedule Import Data'!$A:$A,$L$2,'A Schedule Import Data'!$B:$B,$L10) -> 2779925 | L10: 1201 REV
A11: Asset Management | F11: =-SUMIFS('A Schedule Import Data'!U:U,'A Schedule Import Data'!$A:$A,$L$2,'A Schedule Import Data'!$B:$B,$L11) -> 0 | G11: =-SUMIFS('A Schedule Import Data'!V:V,'A Schedule Import Data'!$A:$A,$L$2,'A Schedule Import Data'!$B:$B,$L11) -> 0 | H11: =-SUMIFS('A Schedule Import Data'!Z:Z,'A Schedule Import Data'!$A:$A,$L$2,'A Schedule Import Data'!$B:$B,$L11) -> 0 | I11: =-SUMIFS('A Schedule Import Data'!CA:CA,'A Schedule Import Data'!$A:$A,$L$2,'A Schedule Import Data'!$B:$B,$L11) -> 0 | J11: =-SUMIFS('A Schedule Import Data'!CB:CB,'A Schedule Import Data'!$A:$A,$L$2,'A Schedule Import Data'!$B:$B,$L11) -> 0 | K11: =-SUMIFS('A Schedule Import Data'!CC:CC,'A Schedule Import Data'!$A:$A,$L$2,'A Schedule Import Data'!$B:$B,$L11) -> 0 | L11: 1202 REV
A12: Budget and Treasury Office | C12: 89111936 | D12: 108518661 | E12: 156376322 | F12: =-SUMIFS('A Schedule Import Data'!U:U,'A Schedule Import Data'!$A:$A,$L$2,'A Schedule Import Data'!$B:$B,$L12) -> 120181822 | G12: =-SUMIFS('A Schedule Import Data'!V:V,'A Schedule Import Data'!$A:$A,$L$2,'A Schedule Import Data'!$B:$B,$L12) -> 122126235 | H12: =-SUMIFS('A Schedule Import Data'!Z:Z,'A Schedule Import Data'!$A:$A,$L$2,'A Schedule Import Data'!$B:$B,$L12) -> 120181822 | I12: =-SUMIFS('A Schedule Import Data'!CA:CA,'A Schedule Import Data'!$A:$A,$L$2,'A Schedule Import Data'!$B:$B,$L12) -> 127033369 | J12: =-SUMIFS('A Schedule Import Data'!CB:CB,'A Schedule Import Data'!$A:$A,$L$2,'A Schedule Import Data'!$B:$B,$L12) -> 117518150 | K12: =-SUMIFS('A Schedule Import Data'!CC:CC,'A Schedule Import Data'!$A:$A,$L$2,'A Schedule Import Data'!$B:$B,$L12) -> 123981650 | L12: 1203 REV
A13: Finance | F13: =-SUMIFS('A Schedule Import Data'!U:U,'A Schedule Import Data'!$A:$A,$L$2,'A Schedule Import Data'!$B:$B,$L13) -> 0 | G13: =-SUMIFS('A Schedule Import Data'!V:V,'A Schedule Import Data'!$A:$A,$L$2,'A Schedule Import Data'!$B:$B,$L13) -> 0 | H13: =-SUMIFS('A Schedule Import Data'!Z:Z,'A Schedule Import Data'!$A:$A,$L$2,'A Schedule Import Data'!$B:$B,$L13) -> 0 | I13: =-SUMIFS('A Schedule Import Data'!CA:CA,'A Schedule Import Data'!$A:$A,$L$2,'A Schedule Import Data'!$B:$B,$L13) -> 0 | J13: =-SUMIFS('A Schedule Import Data'!CB:CB,'A Schedule Import Data'!$A:$A,$L$2,'A Schedule Import Data'!$B:$B,$L13) -> 0 | K13: =-SUMIFS('A Schedule Import Data'!CC:CC,'A Schedule Import Data'!$A:$A,$L$2,'A Schedule Import Data'!$B:$B,$L13) -> 0 | L13: 1204 REV
A14: Fleet Management | F14: =-SUMIFS('A Schedule Import Data'!U:U,'A Schedule Import Data'!$A:$A,$L$2,'A Schedule Import Data'!$B:$B,$L14) -> 0 | G14: =-SUMIFS('A Schedule Import Data'!V:V,'A Schedule Import Data'!$A:$A,$L$2,'A Schedule Import Data'!$B:$B,$L14) -> 0 | H14: =-SUMIFS('A Schedule Import Data'!Z:Z,'A Schedule Import Data'!$A:$A,$L$2,'A Schedule Import Data'!$B:$B,$L14) -> 0 | I14: =-SUMIFS('A Schedule Import Data'!CA:CA,'A Schedule Import Data'!$A:$A,$L$2,'A Schedule Import Data'!$B:$B,$L14) -> 0 | J14: =-SUMIFS('A Schedule Import Data'!CB:CB,'A Schedule Import Data'!$A:$A,$L$2,'A Schedule Import Data'!$B:$B,$L14) -> 0 | K14: =-SUMIFS('A Schedule Import Data'!CC:CC,'A Schedule Import Data'!$A:$A,$L$2,'A Schedule Import Data'!$B:$B,$L14) -> 0 | L14: 1205 REV
A15: Human Resources | F15: =-SUMIFS('A Schedule Import Data'!U:U,'A Schedule Import Data'!$A:$A,$L$2,'A Schedule Import Data'!$B:$B,$L15) -> 0 | G15: =-SUMIFS('A Schedule Import Data'!V:V,'A Schedule Import Data'!$A:$A,$L$2,'A Schedule Import Data'!$B:$B,$L15) -> 0 | H15: =-SUMIFS('A Schedule Import Data'!Z:Z,'A Schedule Import Data'!$A:$A,$L$2,'A Schedule Import Data'!$B:$B,$L15) -> 0 | I15: =-SUMIFS('A Schedule Import Data'!CA:CA,'A Schedule Import Data'!$A:$A,$L$2,'A Schedule Import Data'!$B:$B,$L15) -> 0 | J15: =-SUMIFS('A Schedule Import Data'!CB:CB,'A Schedule Import Data'!$A:$A,$L$2,'A Schedule Import Data'!$B:$B,$L15) -> 0 | K15: =-SUMIFS('A Schedule Import Data'!CC:CC,'A Schedule Import Data'!$A:$A,$L$2,'A Schedule Import Data'!$B:$B,$L15) -> 0 | L15: 1206 REV
A16: Information Technology | F16: =-SUMIFS('A Schedule Import Data'!U:U,'A Schedule Import Data'!$A:$A,$L$2,'A Schedule Import Data'!$B:$B,$L16) -> 0 | G16: =-SUMIFS('A Schedule Import Data'!V:V,'A Schedule Import Data'!$A:$A,$L$2,'A Schedule Import Data'!$B:$B,$L16) -> 0 | H16: =-SUMIFS('A Schedule Import Data'!Z:Z,'A Schedule Import Data'!$A:$A,$L$2,'A Schedule Import Data'!$B:$B,$L16) -> 0 | I16: =-SUMIFS('A Schedule Import Data'!CA:CA,'A Schedule Import Data'!$A:$A,$L$2,'A Schedule Import Data'!$B:$B,$L16) -> 0 | J16: =-SUMIFS('A Schedule Import Data'!CB:CB,'A Schedule Import Data'!$A:$A,$L$2,'A Schedule Import Data'!$B:$B,$L16) -> 0 | K16: =-SUMIFS('A Schedule Import Data'!CC:CC,'A Schedule Import Data'!$A:$A,$L$2,'A Schedule Import Data'!$B:$B,$L16) -> 0 | L16: 1207 REV
A17: Legal Services | F17: =-SUMIFS('A Schedule Import Data'!U:U,'A Schedule Import Data'!$A:$A,$L$2,'A Schedule Import Data'!$B:$B,$L17) -> 0 | G17: =-SUMIFS('A Schedule Import Data'!V:V,'A Schedule Import Data'!$A:$A,$L$2,'A Schedule Import Data'!$B:$B,$L17) -> 0 | H17: =-SUMIFS('A Schedule Import Data'!Z:Z,'A Schedule Import Data'!$A:$A,$L$2,'A Schedule Import Data'!$B:$B,$L17) -> 0 | I17: =-SUMIFS('A Schedule Import Data'!CA:CA,'A Schedule Import Data'!$A:$A,$L$2,'A Schedule Import Data'!$B:$B,$L17) -> 0 | J17: =-SUMIFS('A Schedule Import Data'!CB:CB,'A Schedule Import Data'!$A:$A,$L$2,'A Schedule Import Data'!$B:$B,$L17) -> 0 | K17: =-SUMIFS('A Schedule Import Data'!CC:CC,'A Schedule Import Data'!$A:$A,$L$2,'A Schedule Import Data'!$B:$B,$L17) -> 0 | L17: 1208 REV
A18: Marketing, Customer Relations, Publicity and Media Co-ordination | F18: =-SUMIFS('A Schedule Import Data'!U:U,'A Schedule Import Data'!$A:$A,$L$2,'A Schedule Import Data'!$B:$B,$L18) -> 0 | G18: =-SUMIFS('A Schedule Import Data'!V:V,'A Schedule Import Data'!$A:$A,$L$2,'A Schedule Import Data'!$B:$B,$L18) -> 0 | H18: =-SUMIFS('A Schedule Import Data'!Z:Z,'A Schedule Import Data'!$A:$A,$L$2,'A Schedule Import Data'!$B:$B,$L18) -> 0 | I18: =-SUMIFS('A Schedule Import Data'!CA:CA,'A Schedule Import Data'!$A:$A,$L$2,'A Schedule Import Data'!$B:$B,$L18) -> 0 | J18: =-SUMIFS('A Schedule Import Data'!CB:CB,'A Schedule Import Data'!$A:$A,$L$2,'A Schedule Import Data'!$B:$B,$L18) -> 0 | K18: =-SUMIFS('A Schedule Import Data'!CC:CC,'A Schedule Import Data'!$A:$A,$L$2,'A Schedule Import Data'!$B:$B,$L18) -> 0 | L18: 1209 REV
A19: Property Services | F19: =-SUMIFS('A Schedule Import Data'!U:U,'A Schedule Import Data'!$A:$A,$L$2,'A Schedule Import Data'!$B:$B,$L19) -> 250000 | G19: =-SUMIFS('A Schedule Import Data'!V:V,'A Schedule Import Data'!$A:$A,$L$2,'A Schedule Import Data'!$B:$B,$L19) -> 150000 | H19: =-SUMIFS('A Schedule Import Data'!Z:Z,'A Schedule Import Data'!$A:$A,$L$2,'A Schedule Import Data'!$B:$B,$L19) -> 250000 | I19: =-SUMIFS('A Schedule Import Data'!CA:CA,'A Schedule Import Data'!$A:$A,$L$2,'A Schedule Import Data'!$B:$B,$L19) -> 150000 | J19: =-SUMIFS('A Schedule Import Data'!CB:CB,'A Schedule Import Data'!$A:$A,$L$2,'A Schedule Import Data'!$B:$B,$L19) -> 158100 | K19: =-SUMIFS('A Schedule Import Data'!CC:CC,'A Schedule Import Data'!$A:$A,$L$2,'A Schedule Import Data'!$B:$B,$L19) -> 166795 | L19: 1210 REV
A20: Risk Management | F20: =-SUMIFS('A Schedule Import Data'!U:U,'A Schedule Import Data'!$A:$A,$L$2,'A Schedule Import Data'!$B:$B,$L20) -> 0 | G20: =-SUMIFS('A Schedule Import Data'!V:V,'A Schedule Import Data'!$A:$A,$L$2,'A Schedule Import Data'!$B:$B,$L20) -> 0 | H20: =-SUMIFS('A Schedule Import Data'!Z:Z,'A Schedule Import Data'!$A:$A,$L$2,'A Schedule Import Data'!$B:$B,$L20) -> 0 | I20: =-SUMIFS('A Schedule Import Data'!CA:CA,'A Schedule Import Data'!$A:$A,$L$2,'A Schedule Import Data'!$B:$B,$L20) -> 0 | J20: =-SUMIFS('A Schedule Import Data'!CB:CB,'A Schedule Import Data'!$A:$A,$L$2,'A Schedule Import Data'!$B:$B,$L20) -> 0 | K20: =-SUMIFS('A Schedule Import Data'!CC:CC,'A Schedule Import Data'!$A:$A,$L$2,'A Schedule Import Data'!$B:$B,$L20) -> 0 | L20: 1211 REV
A21: Security Services | F21: =-SUMIFS('A Schedule Import Data'!U:U,'A Schedule Import Data'!$A:$A,$L$2,'A Schedule Import Data'!$B:$B,$L21) -> 0 | G21: =-SUMIFS('A Schedule Import Data'!V:V,'A Schedule Import Data'!$A:$A,$L$2,'A Schedule Import Data'!$B:$B,$L21) -> 0 | H21: =-SUMIFS('A Schedule Import Data'!Z:Z,'A Schedule Import Data'!$A:$A,$L$2,'A Schedule Import Data'!$B:$B,$L21) -> 0 | I21: =-SUMIFS('A Schedule Import Data'!CA:CA,'A Schedule Import Data'!$A:$A,$L$2,'A Schedule Import Data'!$B:$B,$L21) -> 0 | J21: =-SUMIFS('A Schedule Import Data'!CB:CB,'A Schedule Import Data'!$A:$A,$L$2,'A Schedule Import Data'!$B:$B,$L21) -> 0 | K21: =-SUMIFS('A Schedule Import Data'!CC:CC,'A Schedule Import Data'!$A:$A,$L$2,'A Schedule Import Data'!$B:$B,$L21) -> 0 | L21: 1212 REV
A22: Supply Chain Management | F22: =-SUMIFS('A Schedule Import Data'!U:U,'A Schedule Import Data'!$A:$A,$L$2,'A Schedule Import Data'!$B:$B,$L22) -> 0 | G22: =-SUMIFS('A Schedule Import Data'!V:V,'A Schedule Import Data'!$A:$A,$L$2,'A Schedule Import Data'!$B:$B,$L22) -> 0 | H22: =-SUMIFS('A Schedule Import Data'!Z:Z,'A Schedule Import Data'!$A:$A,$L$2,'A Schedule Import Data'!$B:$B,$L22) -> 0 | I22: =-SUMIFS('A Schedule Import Data'!CA:CA,'A Schedule Import Data'!$A:$A,$L$2,'A Schedule Import Data'!$B:$B,$L22) -> 0 | J22: =-SUMIFS('A Schedule Import Data'!CB:CB,'A Schedule Import Data'!$A:$A,$L$2,'A Schedule Import Data'!$B:$B,$L22) -> 0 | K22: =-SUMIFS('A Schedule Import Data'!CC:CC,'A Schedule Import Data'!$A:$A,$L$2,'A Schedule Import Data'!$B:$B,$L22) -> 0 | L22: 1213 REV
A23: Valuation Service | F23: =-SUMIFS('A Schedule Import Data'!U:U,'A Schedule Import Data'!$A:$A,$L$2,'A Schedule Import Data'!$B:$B,$L23) -> 0 | G23: =-SUMIFS('A Schedule Import Data'!V:V,'A Schedule Import Data'!$A:$A,$L$2,'A Schedule Import Data'!$B:$B,$L23) -> 0 | H23: =-SUMIFS('A Schedule Import Data'!Z:Z,'A Schedule Import Data'!$A:$A,$L$2,'A Schedule Import Data'!$B:$B,$L23) -> 0 | I23: =-SUMIFS('A Schedule Import Data'!CA:CA,'A Schedule Import Data'!$A:$A,$L$2,'A Schedule Import Data'!$B:$B,$L23) -> 0 | J23: =-SUMIFS('A Schedule Import Data'!CB:CB,'A Schedule Import Data'!$A:$A,$L$2,'A Schedule Import Data'!$B:$B,$L23) -> 0 | K23: =-SUMIFS('A Schedule Import Data'!CC:CC,'A Schedule Import Data'!$A:$A,$L$2,'A Schedule Import Data'!$B:$B,$L23) -> 0 | L23: 1214 REV
A24: Internal audit | C24: =SUM(C25:C25) -> 0 | D24: 0 | E24: 0 | F24: =SUM(F25:F25) -> 0 | G24: 0 | H24: 0 | I24: 0 | J24: 0 | K24: 0 | L24: 1300 REV
A25: Governance Function | F25: =-SUMIFS('A Schedule Import Data'!U:U,'A Schedule Import Data'!$A:$A,$L$2,'A Schedule Import Data'!$B:$B,$L25) -> 0 | G25: =-SUMIFS('A Schedule Import Data'!V:V,'A Schedule Import Data'!$A:$A,$L$2,'A Schedule Import Data'!$B:$B,$L25) -> 0 | H25: =-SUMIFS('A Schedule Import Data'!Z:Z,'A Schedule Import Data'!$A:$A,$L$2,'A Schedule Import Data'!$B:$B,$L25) -> 0 | I25: =-SUMIFS('A Schedule Import Data'!CA:CA,'A Schedule Import Data'!$A:$A,$L$2,'A Schedule Import Data'!$B:$B,$L25) -> 0 | J25: =-SUMIFS('A Schedule Import Data'!CB:CB,'A Schedule Import Data'!$A:$A,$L$2,'A Schedule Import Data'!$B:$B,$L25) -> 0 | K25: =-SUMIFS('A Schedule Import Data'!CC:CC,'A Schedule Import Data'!$A:$A,$L$2,'A Schedule Import Data'!$B:$B,$L25) -> 0 | L25: 1301 REV
A26: Community and public safety | C26: =C27+C49+C55+C62+C65 -> 4482198 | D26: =D27+D49+D55+D62+D65 -> 10770867 | E26: 3304893 | F26: =F27+F49+F55+F62+F65 -> 4929500 | G26: 4944000 | H26: 4929500 | I26: 6388892 | J26: 6730179 | K26: 6203560 | L26: 2000 REV
A27: Community and social services | C27: =SUM(C28:C48) -> 722231 | D27: =SUM(D28:D48) -> 6795180 | E27: 0 | F27: =SUM(F28:F48) -> 1054500 | G27: 1669000 | H27: 1054500 | I27: 1710496 | J27: 1799150 | K27: 1001324 | L27: 2100 REV
A28: Aged Care | F28: =-SUMIFS('A Schedule Import Data'!U:U,'A Schedule Import Data'!$A:$A,$L$2,'A Schedule Import Data'!$B:$B,$L28) -> 0 | G28: =-SUMIFS('A Schedule Import Data'!V:V,'A Schedule Import Data'!$A:$A,$L$2,'A Schedule Import Data'!$B:$B,$L28) -> 0 | H28: =-SUMIFS('A Schedule Import Data'!Z:Z,'A Schedule Import Data'!$A:$A,$L$2,'A Schedule Import Data'!$B:$B,$L28) -> 0 | I28: =-SUMIFS('A Schedule Import Data'!CA:CA,'A Schedule Import Data'!$A:$A,$L$2,'A Schedule Import Data'!$B:$B,$L28) -> 0 | J28: =-SUMIFS('A Schedule Import Data'!CB:CB,'A Schedule Import Data'!$A:$A,$L$2,'A Schedule Import Data'!$B:$B,$L28) -> 0 | K28: =-SUMIFS('A Schedule Import Data'!CC:CC,'A Schedule Import Data'!$A:$A,$L$2,'A Schedule Import Data'!$B:$B,$L28) -> 0 | L28: 2101 REV
A29: Agricultural | F29: =-SUMIFS('A Schedule Import Data'!U:U,'A Schedule Import Data'!$A:$A,$L$2,'A Schedule Import Data'!$B:$B,$L29) -> 0 | G29: =-SUMIFS('A Schedule Import Data'!V:V,'A Schedule Import Data'!$A:$A,$L$2,'A Schedule Import Data'!$B:$B,$L29) -> 0 | H29: =-SUMIFS('A Schedule Import Data'!Z:Z,'A Schedule Import Data'!$A:$A,$L$2,'A Schedule Import Data'!$B:$B,$L29) -> 0 | I29: =-SUMIFS('A Schedule Import Data'!CA:CA,'A Schedule Import Data'!$A:$A,$L$2,'A Schedule Import Data'!$B:$B,$L29) -> 0 | J29: =-SUMIFS('A Schedule Import Data'!CB:CB,'A Schedule Import Data'!$A:$A,$L$2,'A Schedule Import Data'!$B:$B,$L29) -> 0 | K29: =-SUMIFS('A Schedule Import Data'!CC:CC,'A Schedule Import Data'!$A:$A,$L$2,'A Schedule Import Data'!$B:$B,$L29) -> 0 | L29: 2102 REV
A30: Animal Care and Diseases | F30: =-SUMIFS('A Schedule Import Data'!U:U,'A Schedule Import Data'!$A:$A,$L$2,'A Schedule Import Data'!$B:$B,$L30) -> 0 | G30: =-SUMIFS('A Schedule Import Data'!V:V,'A Schedule Import Data'!$A:$A,$L$2,'A Schedule Import Data'!$B:$B,$L30) -> 0 | H30: =-SUMIFS('A Schedule Import Data'!Z:Z,'A Schedule Import Data'!$A:$A,$L$2,'A Schedule Import Data'!$B:$B,$L30) -> 0 | I30: =-SUMIFS('A Schedule Import Data'!CA:CA,'A Schedule Import Data'!$A:$A,$L$2,'A Schedule Import Data'!$B:$B,$L30) -> 0 | J30: =-SUMIFS('A Schedule Import Data'!CB:CB,'A Schedule Import Data'!$A:$A,$L$2,'A Schedule Import Data'!$B:$B,$L30) -> 0 | K30: =-SUMIFS('A Schedule Import Data'!CC:CC,'A Schedule Import Data'!$A:$A,$L$2,'A Schedule Import Data'!$B:$B,$L30) -> 0 | L30: 2103 REV
A31: Cemeteries, Funeral Parlours and Crematoriums | F31: =-SUMIFS('A Schedule Import Data'!U:U,'A Schedule Import Data'!$A:$A,$L$2,'A Schedule Import Data'!$B:$B,$L31) -> 0 | G31: =-SUMIFS('A Schedule Import Data'!V:V,'A Schedule Import Data'!$A:$A,$L$2,'A Schedule Import Data'!$B:$B,$L31) -> 0 | H31: =-SUMIFS('A Schedule Import Data'!Z:Z,'A Schedule Import Data'!$A:$A,$L$2,'A Schedule Import Data'!$B:$B,$L31) -> 0 | I31: =-SUMIFS('A Schedule Import Data'!CA:CA,'A Schedule Import Data'!$A:$A,$L$2,'A Schedule Import Data'!$B:$B,$L31) -> 0 | J31: =-SUMIFS('A Schedule Import Data'!CB:CB,'A Schedule Import Data'!$A:$A,$L$2,'A Schedule Import Data'!$B:$B,$L31) -> 0 | K31: =-SUMIFS('A Schedule Import Data'!CC:CC,'A Schedule Import Data'!$A:$A,$L$2,'A Schedule Import Data'!$B:$B,$L31) -> 0 | L31: 2104 REV
A32: Child Care Facilities | F32: =-SUMIFS('A Schedule Import Data'!U:U,'A Schedule Import Data'!$A:$A,$L$2,'A Schedule Import Data'!$B:$B,$L32) -> 0 | G32: =-SUMIFS('A Schedule Import Data'!V:V,'A Schedule Import Data'!$A:$A,$L$2,'A Schedule Import Data'!$B:$B,$L32) -> 0 | H32: =-SUMIFS('A Schedule Import Data'!Z:Z,'A Schedule Import Data'!$A:$A,$L$2,'A Schedule Import Data'!$B:$B,$L32) -> 0 | I32: =-SUMIFS('A Schedule Import Data'!CA:CA,'A Schedule Import Data'!$A:$A,$L$2,'A Schedule Import Data'!$B:$B,$L32) -> 0 | J32: =-SUMIFS('A Schedule Import Data'!CB:CB,'A Schedule Import Data'!$A:$A,$L$2,'A Schedule Import Data'!$B:$B,$L32) -> 0 | K32: =-SUMIFS('A Schedule Import Data'!CC:CC,'A Schedule Import Data'!$A:$A,$L$2,'A Schedule Import Data'!$B:$B,$L32) -> 0 | L32: 2105 REV
A33: Community Halls and Facilities | C33: 662249 | D33: 3608062 | F33: =-SUMIFS('A Schedule Import Data'!U:U,'A Schedule Import Data'!$A:$A,$L$2,'A Schedule Import Data'!$B:$B,$L33) -> 280000 | G33: =-SUMIFS('A Schedule Import Data'!V:V,'A Schedule Import Data'!$A:$A,$L$2,'A Schedule Import Data'!$B:$B,$L33) -> 890000 | H33: =-SUMIFS('A Schedule Import Data'!Z:Z,'A Schedule Import Data'!$A:$A,$L$2,'A Schedule Import Data'!$B:$B,$L33) -> 280000 | I33: =-SUMIFS('A Schedule Import Data'!CA:CA,'A Schedule Import Data'!$A:$A,$L$2,'A Schedule Import Data'!$B:$B,$L33) -> 892080 | J33: =-SUMIFS('A Schedule Import Data'!CB:CB,'A Schedule Import Data'!$A:$A,$L$2,'A Schedule Import Data'!$B:$B,$L33) -> 940252 | K33: =-SUMIFS('A Schedule Import Data'!CC:CC,'A Schedule Import Data'!$A:$A,$L$2,'A Schedule Import Data'!$B:$B,$L33) -> 991966 | L33: 2106 REV
A34: Consumer Protection | F34: =-SUMIFS('A Schedule Import Data'!U:U,'A Schedule Import Data'!$A:$A,$L$2,'A Schedule Import Data'!$B:$B,$L34) -> 0 | G34: =-SUMIFS('A Schedule Import Data'!V:V,'A Schedule Import Data'!$A:$A,$L$2,'A Schedule Import Data'!$B:$B,$L34) -> 0 | H34: =-SUMIFS('A Schedule Import Data'!Z:Z,'A Schedule Import Data'!$A:$A,$L$2,'A Schedule Import Data'!$B:$B,$L34) -> 0 | I34: =-SUMIFS('A Schedule Import Data'!CA:CA,'A Schedule Import Data'!$A:$A,$L$2,'A Schedule Import Data'!$B:$B,$L34) -> 0 | J34: =-SUMIFS('A Schedule Import Data'!CB:CB,'A Schedule Import Data'!$A:$A,$L$2,'A Schedule Import Data'!$B:$B,$L34) -> 0 | K34: =-SUMIFS('A Schedule Import Data'!CC:CC,'A Schedule Import Data'!$A:$A,$L$2,'A Schedule Import Data'!$B:$B,$L34) -> 0 | L34: 2107 REV
A35: Cultural Matters | F35: =-SUMIFS('A Schedule Import Data'!U:U,'A Schedule Import Data'!$A:$A,$L$2,'A Schedule Import Data'!$B:$B,$L35) -> 0 | G35: =-SUMIFS('A Schedule Import Data'!V:V,'A Schedule Import Data'!$A:$A,$L$2,'A Schedule Import Data'!$B:$B,$L35) -> 0 | H35: =-SUMIFS('A Schedule Import Data'!Z:Z,'A Schedule Import Data'!$A:$A,$L$2,'A Schedule Import Data'!$B:$B,$L35) -> 0 | I35: =-SUMIFS('A Schedule Import Data'!CA:CA,'A Schedule Import Data'!$A:$A,$L$2,'A Schedule Import Data'!$B:$B,$L35) -> 0 | J35: =-SUMIFS('A Schedule Import Data'!CB:CB,'A Schedule Import Data'!$A:$A,$L$2,'A Schedule Import Data'!$B:$B,$L35) -> 0 | K35: =-SUMIFS('A Schedule Import Data'!CC:CC,'A Schedule Import Data'!$A:$A,$L$2,'A Schedule Import Data'!$B:$B,$L35) -> 0 | L35: 2108 REV
A36: Disaster Management | F36: =-SUMIFS('A Schedule Import Data'!U:U,'A Schedule Import Data'!$A:$A,$L$2,'A Schedule Import Data'!$B:$B,$L36) -> 0 | G36: =-SUMIFS('A Schedule Import Data'!V:V,'A Schedule Import Data'!$A:$A,$L$2,'A Schedule Import Data'!$B:$B,$L36) -> 0 | H36: =-SUMIFS('A Schedule Import Data'!Z:Z,'A Schedule Import Data'!$A:$A,$L$2,'A Schedule Import Data'!$B:$B,$L36) -> 0 | I36: =-SUMIFS('A Schedule Import Data'!CA:CA,'A Schedule Import Data'!$A:$A,$L$2,'A Schedule Import Data'!$B:$B,$L36) -> 0 | J36: =-SUMIFS('A Schedule Import Data'!CB:CB,'A Schedule Import Data'!$A:$A,$L$2,'A Schedule Import Data'!$B:$B,$L36) -> 0 | K36: =-SUMIFS('A Schedule Import Data'!CC:CC,'A Schedule Import Data'!$A:$A,$L$2,'A Schedule Import Data'!$B:$B,$L36) -> 0 | L36: 2109 REV
A37: Education | F37: =-SUMIFS('A Schedule Import Data'!U:U,'A Schedule Import Data'!$A:$A,$L$2,'A Schedule Import Data'!$B:$B,$L37) -> 0 | G37: =-SUMIFS('A Schedule Import Data'!V:V,'A Schedule Import Data'!$A:$A,$L$2,'A Schedule Import Data'!$B:$B,$L37) -> 0 | H37: =-SUMIFS('A Schedule Import Data'!Z:Z,'A Schedule Import Data'!$A:$A,$L$2,'A Schedule Import Data'!$B:$B,$L37) -> 0 | I37: =-SUMIFS('A Schedule Import Data'!CA:CA,'A Schedule Import Data'!$A:$A,$L$2,'A Schedule Import Data'!$B:$B,$L37) -> 0 | J37: =-SUMIFS('A Schedule Import Data'!CB:CB,'A Schedule Import Data'!$A:$A,$L$2,'A Schedule Import Data'!$B:$B,$L37) -> 0 | K37: =-SUMIFS('A Schedule Import Data'!CC:CC,'A Schedule Import Data'!$A:$A,$L$2,'A Schedule Import Data'!$B:$B,$L37) -> 0 | L37: 2110 REV
A38: Indigenous and Customary Law | F38: =-SUMIFS('A Schedule Import Data'!U:U,'A Schedule Import Data'!$A:$A,$L$2,'A Schedule Import Data'!$B:$B,$L38) -> 0 | G38: =-SUMIFS('A Schedule Import Data'!V:V,'A Schedule Import Data'!$A:$A,$L$2,'A Schedule Import Data'!$B:$B,$L38) -> 0 | H38: =-SUMIFS('A Schedule Import Data'!Z:Z,'A Schedule Import Data'!$A:$A,$L$2,'A Schedule Import Data'!$B:$B,$L38) -> 0 | I38: =-SUMIFS('A Schedule Import Data'!CA:CA,'A Schedule Import Data'!$A:$A,$L$2,'A Schedule Import Data'!$B:$B,$L38) -> 0 | J38: =-SUMIFS('A Schedule Import Data'!CB:CB,'A Schedule Import Data'!$A:$A,$L$2,'A Schedule Import Data'!$B:$B,$L38) -> 0 | K38: =-SUMIFS('A Schedule Import Data'!CC:CC,'A Schedule Import Data'!$A:$A,$L$2,'A Schedule Import Data'!$B:$B,$L38) -> 0 | L38: 2111 REV
A39: Industrial Promotion | F39: =-SUMIFS('A Schedule Import Data'!U:U,'A Schedule Import Data'!$A:$A,$L$2,'A Schedule Import Data'!$B:$B,$L39) -> 0 | G39: =-SUMIFS('A Schedule Import Data'!V:V,'A Schedule Import Data'!$A:$A,$L$2,'A Schedule Import Data'!$B:$B,$L39) -> 0 | H39: =-SUMIFS('A Schedule Import Data'!Z:Z,'A Schedule Import Data'!$A:$A,$L$2,'A Schedule Import Data'!$B:$B,$L39) -> 0 | I39: =-SUMIFS('A Schedule Import Data'!CA:CA,'A Schedule Import Data'!$A:$A,$L$2,'A Schedule Import Data'!$B:$B,$L39) -> 0 | J39: =-SUMIFS('A Schedule Import Data'!CB:CB,'A Schedule Import Data'!$A:$A,$L$2,'A Schedule Import Data'!$B:$B,$L39) -> 0 | K39: =-SUMIFS('A Schedule Import Data'!CC:CC,'A Schedule Import Data'!$A:$A,$L$2,'A Schedule Import Data'!$B:$B,$L39) -> 0 | L39: 2112 REV
A40: Language Policy | F40: =-SUMIFS('A Schedule Import Data'!U:U,'A Schedule Import Data'!$A:$A,$L$2,'A Schedule Import Data'!$B:$B,$L40) -> 0 | G40: =-SUMIFS('A Schedule Import Data'!V:V,'A Schedule Import Data'!$A:$A,$L$2,'A Schedule Import Data'!$B:$B,$L40) -> 0 | H40: =-SUMIFS('A Schedule Import Data'!Z:Z,'A Schedule Import Data'!$A:$A,$L$2,'A Schedule Import Data'!$B:$B,$L40) -> 0 | I40: =-SUMIFS('A Schedule Import Data'!CA:CA,'A Schedule Import Data'!$A:$A,$L$2,'A Schedule Import Data'!$B:$B,$L40) -> 0 | J40: =-SUMIFS('A Schedule Import Data'!CB:CB,'A Schedule Import Data'!$A:$A,$L$2,'A Schedule Import Data'!$B:$B,$L40) -> 0 | K40: =-SUMIFS('A Schedule Import Data'!CC:CC,'A Schedule Import Data'!$A:$A,$L$2,'A Schedule Import Data'!$B:$B,$L40) -> 0 | L40: 2113 REV
A41: Libraries and Archives | C41: 59982 | D41: 3187118 | F41: =-SUMIFS('A Schedule Import Data'!U:U,'A Schedule Import Data'!$A:$A,$L$2,'A Schedule Import Data'!$B:$B,$L41) -> 774500 | G41: =-SUMIFS('A Schedule Import Data'!V:V,'A Schedule Import Data'!$A:$A,$L$2,'A Schedule Import Data'!$B:$B,$L41) -> 779000 | H41: =-SUMIFS('A Schedule Import Data'!Z:Z,'A Schedule Import Data'!$A:$A,$L$2,'A Schedule Import Data'!$B:$B,$L41) -> 774500 | I41: =817966+450 -> 818416 | J41: =-SUMIFS('A Schedule Import Data'!CB:CB,'A Schedule Import Data'!$A:$A,$L$2,'A Schedule Import Data'!$B:$B,$L41) -> 858898 | K41: =-SUMIFS('A Schedule Import Data'!CC:CC,'A Schedule Import Data'!$A:$A,$L$2,'A Schedule Import Data'!$B:$B,$L41) -> 9358 | L41: 2114 REV
A42: Literacy Programmes | F42: =-SUMIFS('A Schedule Import Data'!U:U,'A Schedule Import Data'!$A:$A,$L$2,'A Schedule Import Data'!$B:$B,$L42) -> 0 | G42: =-SUMIFS('A Schedule Import Data'!V:V,'A Schedule Import Data'!$A:$A,$L$2,'A Schedule Import Data'!$B:$B,$L42) -> 0 | H42: =-SUMIFS('A Schedule Import Data'!Z:Z,'A Schedule Import Data'!$A:$A,$L$2,'A Schedule Import Data'!$B:$B,$L42) -> 0 | I42: =-SUMIFS('A Schedule Import Data'!CA:CA,'A Schedule Import Data'!$A:$A,$L$2,'A Schedule Import Data'!$B:$B,$L42) -> 0 | J42: =-SUMIFS('A Schedule Import Data'!CB:CB,'A Schedule Import Data'!$A:$A,$L$2,'A Schedule Import Data'!$B:$B,$L42) -> 0 | K42: =-SUMIFS('A Schedule Import Data'!CC:CC,'A Schedule Import Data'!$A:$A,$L$2,'A Schedule Import Data'!$B:$B,$L42) -> 0 | L42: 2115 REV
A43: Media Services | F43: =-SUMIFS('A Schedule Import Data'!U:U,'A Schedule Import Data'!$A:$A,$L$2,'A Schedule Import Data'!$B:$B,$L43) -> 0 | G43: =-SUMIFS('A Schedule Import Data'!V:V,'A Schedule Import Data'!$A:$A,$L$2,'A Schedule Import Data'!$B:$B,$L43) -> 0 | H43: =-SUMIFS('A Schedule Import Data'!Z:Z,'A Schedule Import Data'!$A:$A,$L$2,'A Schedule Import Data'!$B:$B,$L43) -> 0 | I43: =-SUMIFS('A Schedule Import Data'!CA:CA,'A Schedule Import Data'!$A:$A,$L$2,'A Schedule Import Data'!$B:$B,$L43) -> 0 | J43: =-SUMIFS('A Schedule Import Data'!CB:CB,'A Schedule Import Data'!$A:$A,$L$2,'A Schedule Import Data'!$B:$B,$L43) -> 0 | K43: =-SUMIFS('A Schedule Import Data'!CC:CC,'A Schedule Import Data'!$A:$A,$L$2,'A Schedule Import Data'!$B:$B,$L43) -> 0 | L43: 2116 REV
A44: Museums and Art Galleries | F44: =-SUMIFS('A Schedule Import Data'!U:U,'A Schedule Import Data'!$A:$A,$L$2,'A Schedule Import Data'!$B:$B,$L44) -> 0 | G44: =-SUMIFS('A Schedule Import Data'!V:V,'A Schedule Import Data'!$A:$A,$L$2,'A Schedule Import Data'!$B:$B,$L44) -> 0 | H44: =-SUMIFS('A Schedule Import Data'!Z:Z,'A Schedule Import Data'!$A:$A,$L$2,'A Schedule Import Data'!$B:$B,$L44) -> 0 | I44: =-SUMIFS('A Schedule Import Data'!CA:CA,'A Schedule Import Data'!$A:$A,$L$2,'A Schedule Import Data'!$B:$B,$L44) -> 0 | J44: =-SUMIFS('A Schedule Import Data'!CB:CB,'A Schedule Import Data'!$A:$A,$L$2,'A Schedule Import Data'!$B:$B,$L44) -> 0 | K44: =-SUMIFS('A Schedule Import Data'!CC:CC,'A Schedule Import Data'!$A:$A,$L$2,'A Schedule Import Data'!$B:$B,$L44) -> 0 | L44: 2117 REV
A45: Population Development | F45: =-SUMIFS('A Schedule Import Data'!U:U,'A Schedule Import Data'!$A:$A,$L$2,'A Schedule Import Data'!$B:$B,$L45) -> 0 | G45: =-SUMIFS('A Schedule Import Data'!V:V,'A Schedule Import Data'!$A:$A,$L$2,'A Schedule Import Data'!$B:$B,$L45) -> 0 | H45: =-SUMIFS('A Schedule Import Data'!Z:Z,'A Schedule Import Data'!$A:$A,$L$2,'A Schedule Import Data'!$B:$B,$L45) -> 0 | I45: =-SUMIFS('A Schedule Import Data'!CA:CA,'A Schedule Import Data'!$A:$A,$L$2,'A Schedule Import Data'!$B:$B,$L45) -> 0 | J45: =-SUMIFS('A Schedule Import Data'!CB:CB,'A Schedule Import Data'!$A:$A,$L$2,'A Schedule Import Data'!$B:$B,$L45) -> 0 | K45: =-SUMIFS('A Schedule Import Data'!CC:CC,'A Schedule Import Data'!$A:$A,$L$2,'A Schedule Import Data'!$B:$B,$L45) -> 0 | L45: 2118 REV
A46: Provincial Cultural Matters | F46: =-SUMIFS('A Schedule Import Data'!U:U,'A Schedule Import Data'!$A:$A,$L$2,'A Schedule Import Data'!$B:$B,$L46) -> 0 | G46: =-SUMIFS('A Schedule Import Data'!V:V,'A Schedule Import Data'!$A:$A,$L$2,'A Schedule Import Data'!$B:$B,$L46) -> 0 | H46: =-SUMIFS('A Schedule Import Data'!Z:Z,'A Schedule Import Data'!$A:$A,$L$2,'A Schedule Import Data'!$B:$B,$L46) -> 0 | I46: =-SUMIFS('A Schedule Import Data'!CA:CA,'A Schedule Import Data'!$A:$A,$L$2,'A Schedule Import Data'!$B:$B,$L46) -> 0 | J46: =-SUMIFS('A Schedule Import Data'!CB:CB,'A Schedule Import Data'!$A:$A,$L$2,'A Schedule Import Data'!$B:$B,$L46) -> 0 | K46: =-SUMIFS('A Schedule Import Data'!CC:CC,'A Schedule Import Data'!$A:$A,$L$2,'A Schedule Import Data'!$B:$B,$L46) -> 0 | L46: 2119 REV
A47: Theatres | F47: =-SUMIFS('A Schedule Import Data'!U:U,'A Schedule Import Data'!$A:$A,$L$2,'A Schedule Import Data'!$B:$B,$L47) -> 0 | G47: =-SUMIFS('A Schedule Import Data'!V:V,'A Schedule Import Data'!$A:$A,$L$2,'A Schedule Import Data'!$B:$B,$L47) -> 0 | H47: =-SUMIFS('A Schedule Import Data'!Z:Z,'A Schedule Import Data'!$A:$A,$L$2,'A Schedule Import Data'!$B:$B,$L47) -> 0 | I47: =-SUMIFS('A Schedule Import Data'!CA:CA,'A Schedule Import Data'!$A:$A,$L$2,'A Schedule Import Data'!$B:$B,$L47) -> 0 | J47: =-SUMIFS('A Schedule Import Data'!CB:CB,'A Schedule Import Data'!$A:$A,$L$2,'A Schedule Import Data'!$B:$B,$L47) -> 0 | K47: =-SUMIFS('A Schedule Import Data'!CC:CC,'A Schedule Import Data'!$A:$A,$L$2,'A Schedule Import Data'!$B:$B,$L47) -> 0 | L47: 2120 REV
A48: Zoo's | F48: =-SUMIFS('A Schedule Import Data'!U:U,'A Schedule Import Data'!$A:$A,$L$2,'A Schedule Import Data'!$B:$B,$L48) -> 0 | G48: =-SUMIFS('A Schedule Import Data'!V:V,'A Schedule Import Data'!$A:$A,$L$2,'A Schedule Import Data'!$B:$B,$L48) -> 0 | H48: =-SUMIFS('A Schedule Import Data'!Z:Z,'A Schedule Import Data'!$A:$A,$L$2,'A Schedule Import Data'!$B:$B,$L48) -> 0 | I48: =-SUMIFS('A Schedule Import Data'!CA:CA,'A Schedule Import Data'!$A:$A,$L$2,'A Schedule Import Data'!$B:$B,$L48) -> 0 | J48: =-SUMIFS('A Schedule Import Data'!CB:CB,'A Schedule Import Data'!$A:$A,$L$2,'A Schedule Import Data'!$B:$B,$L48) -> 0 | K48: =-SUMIFS('A Schedule Import Data'!CC:CC,'A Schedule Import Data'!$A:$A,$L$2,'A Schedule Import Data'!$B:$B,$L48) -> 0 | L48: 2121 REV
A49: Sport and recreation | C49: =SUM(C50:C54) -> 0 | D49: =SUM(D50:D54) -> 0 | E49: 0 | F49: =SUM(F50:F54) -> 0 | G49: 0 | H49: 0 | I49: 0 | J49: 0 | K49: 0 | L49: 2200 REV
A50: Beaches and Jetties | F50: =-SUMIFS('A Schedule Import Data'!U:U,'A Schedule Import Data'!$A:$A,$L$2,'A Schedule Import Data'!$B:$B,$L50) -> 0 | G50: =-SUMIFS('A Schedule Import Data'!V:V,'A Schedule Import Data'!$A:$A,$L$2,'A Schedule Import Data'!$B:$B,$L50) -> 0 | H50: =-SUMIFS('A Schedule Import Data'!Z:Z,'A Schedule Import Data'!$A:$A,$L$2,'A Schedule Import Data'!$B:$B,$L50) -> 0 | I50: =-SUMIFS('A Schedule Import Data'!CA:CA,'A Schedule Import Data'!$A:$A,$L$2,'A Schedule Import Data'!$B:$B,$L50) -> 0 | J50: =-SUMIFS('A Schedule Import Data'!CB:CB,'A Schedule Import Data'!$A:$A,$L$2,'A Schedule Import Data'!$B:$B,$L50) -> 0 | K50: =-SUMIFS('A Schedule Import Data'!CC:CC,'A Schedule Import Data'!$A:$A,$L$2,'A Schedule Import Data'!$B:$B,$L50) -> 0 | L50: 2201 REV
A51: Casinos, Racing, Gambling, Wagering | F51: =-SUMIFS('A Schedule Import Data'!U:U,'A Schedule Import Data'!$A:$A,$L$2,'A Schedule Import Data'!$B:$B,$L51) -> 0 | G51: =-SUMIFS('A Schedule Import Data'!V:V,'A Schedule Import Data'!$A:$A,$L$2,'A Schedule Import Data'!$B:$B,$L51) -> 0 | H51: =-SUMIFS('A Schedule Import Data'!Z:Z,'A Schedule Import Data'!$A:$A,$L$2,'A Schedule Import Data'!$B:$B,$L51) -> 0 | I51: =-SUMIFS('A Schedule Import Data'!CA:CA,'A Schedule Import Data'!$A:$A,$L$2,'A Schedule Import Data'!$B:$B,$L51) -> 0 | J51: =-SUMIFS('A Schedule Import Data'!CB:CB,'A Schedule Import Data'!$A:$A,$L$2,'A Schedule Import Data'!$B:$B,$L51) -> 0 | K51: =-SUMIFS('A Schedule Import Data'!CC:CC,'A Schedule Import Data'!$A:$A,$L$2,'A Schedule Import Data'!$B:$B,$L51) -> 0 | L51: 2202 REV
A52: Community Parks (including Nurseries) | F52: =-SUMIFS('A Schedule Import Data'!U:U,'A Schedule Import Data'!$A:$A,$L$2,'A Schedule Import Data'!$B:$B,$L52) -> 0 | G52: =-SUMIFS('A Schedule Import Data'!V:V,'A Schedule Import Data'!$A:$A,$L$2,'A Schedule Import Data'!$B:$B,$L52) -> 0 | H52: =-SUMIFS('A Schedule Import Data'!Z:Z,'A Schedule Import Data'!$A:$A,$L$2,'A Schedule Import Data'!$B:$B,$L52) -> 0 | I52: =-SUMIFS('A Schedule Import Data'!CA:CA,'A Schedule Import Data'!$A:$A,$L$2,'A Schedule Import Data'!$B:$B,$L52) -> 0 | J52: =-SUMIFS('A Schedule Import Data'!CB:CB,'A Schedule Import Data'!$A:$A,$L$2,'A Schedule Import Data'!$B:$B,$L52) -> 0 | K52: =-SUMIFS('A Schedule Import Data'!CC:CC,'A Schedule Import Data'!$A:$A,$L$2,'A Schedule Import Data'!$B:$B,$L52) -> 0 | L52: 2203 REV
A53: Recreational Facilities | F53: =-SUMIFS('A Schedule Import Data'!U:U,'A Schedule Import Data'!$A:$A,$L$2,'A Schedule Import Data'!$B:$B,$L53) -> 0 | G53: =-SUMIFS('A Schedule Import Data'!V:V,'A Schedule Import Data'!$A:$A,$L$2,'A Schedule Import Data'!$B:$B,$L53) -> 0 | H53: =-SUMIFS('A Schedule Import Data'!Z:Z,'A Schedule Import Data'!$A:$A,$L$2,'A Schedule Import Data'!$B:$B,$L53) -> 0 | I53: =-SUMIFS('A Schedule Import Data'!CA:CA,'A Schedule Import Data'!$A:$A,$L$2,'A Schedule Import Data'!$B:$B,$L53) -> 0 | J53: =-SUMIFS('A Schedule Import Data'!CB:CB,'A Schedule Import Data'!$A:$A,$L$2,'A Schedule Import Data'!$B:$B,$L53) -> 0 | K53: =-SUMIFS('A Schedule Import Data'!CC:CC,'A Schedule Import Data'!$A:$A,$L$2,'A Schedule Import Data'!$B:$B,$L53) -> 0 | L53: 2204 REV
A54: Sports Grounds and Stadiums | F54: =-SUMIFS('A Schedule Import Data'!U:U,'A Schedule Import Data'!$A:$A,$L$2,'A Schedule Import Data'!$B:$B,$L54) -> 0 | G54: =-SUMIFS('A Schedule Import Data'!V:V,'A Schedule Import Data'!$A:$A,$L$2,'A Schedule Import Data'!$B:$B,$L54) -> 0 | H54: =-SUMIFS('A Schedule Import Data'!Z:Z,'A Schedule Import Data'!$A:$A,$L$2,'A Schedule Import Data'!$B:$B,$L54) -> 0 | I54: =-SUMIFS('A Schedule Import Data'!CA:CA,'A Schedule Import Data'!$A:$A,$L$2,'A Schedule Import Data'!$B:$B,$L54) -> 0 | J54: =-SUMIFS('A Schedule Import Data'!CB:CB,'A Schedule Import Data'!$A:$A,$L$2,'A Schedule Import Data'!$B:$B,$L54) -> 0 | K54: =-SUMIFS('A Schedule Import Data'!CC:CC,'A Schedule Import Data'!$A:$A,$L$2,'A Schedule Import Data'!$B:$B,$L54) -> 0 | L54: 2205 REV
A55: Public safety | C55: =SUM(C56:C61) -> 3759967 | D55: =SUM(D56:D61) -> 3975687 | E55: 3304893 | F55: =SUM(F56:F61) -> 3875000 | G55: 3275000 | H55: 3875000 | I55: 3826300 | J55: 4032920 | K55: 4254731 | L55: 2300 REV
A56: Civil Defence | C56: 3759967 | D56: 3975687 | E56: 3304893 | F56: =-SUMIFS('A Schedule Import Data'!U:U,'A Schedule Import Data'!$A:$A,$L$2,'A Schedule Import Data'!$B:$B,$L56) -> 3850000 | G56: =-SUMIFS('A Schedule Import Data'!V:V,'A Schedule Import Data'!$A:$A,$L$2,'A Schedule Import Data'!$B:$B,$L56) -> 3250000 | H56: =-SUMIFS('A Schedule Import Data'!Z:Z,'A Schedule Import Data'!$A:$A,$L$2,'A Schedule Import Data'!$B:$B,$L56) -> 3850000 | I56: =-SUMIFS('A Schedule Import Data'!CA:CA,'A Schedule Import Data'!$A:$A,$L$2,'A Schedule Import Data'!$B:$B,$L56) -> 3800000 | J56: =-SUMIFS('A Schedule Import Data'!CB:CB,'A Schedule Import Data'!$A:$A,$L$2,'A Schedule Import Data'!$B:$B,$L56) -> 4005200 | K56: =-SUMIFS('A Schedule Import Data'!CC:CC,'A Schedule Import Data'!$A:$A,$L$2,'A Schedule Import Data'!$B:$B,$L56) -> 4225486 | L56: 2301 REV
A57: Cleansing | F57: =-SUMIFS('A Schedule Import Data'!U:U,'A Schedule Import Data'!$A:$A,$L$2,'A Schedule Import Data'!$B:$B,$L57) -> 0 | G57: =-SUMIFS('A Schedule Import Data'!V:V,'A Schedule Import Data'!$A:$A,$L$2,'A Schedule Import Data'!$B:$B,$L57) -> 0 | H57: =-SUMIFS('A Schedule Import Data'!Z:Z,'A Schedule Import Data'!$A:$A,$L$2,'A Schedule Import Data'!$B:$B,$L57) -> 0 | I57: =-SUMIFS('A Schedule Import Data'!CA:CA,'A Schedule Import Data'!$A:$A,$L$2,'A Schedule Import Data'!$B:$B,$L57) -> 0 | J57: =-SUMIFS('A Schedule Import Data'!CB:CB,'A Schedule Import Data'!$A:$A,$L$2,'A Schedule Import Data'!$B:$B,$L57) -> 0 | K57: =-SUMIFS('A Schedule Import Data'!CC:CC,'A Schedule Import Data'!$A:$A,$L$2,'A Schedule Import Data'!$B:$B,$L57) -> 0 | L57: 2302 REV
A58: Control of Public Nuisances | F58: =-SUMIFS('A Schedule Import Data'!U:U,'A Schedule Import Data'!$A:$A,$L$2,'A Schedule Import Data'!$B:$B,$L58) -> 0 | G58: =-SUMIFS('A Schedule Import Data'!V:V,'A Schedule Import Data'!$A:$A,$L$2,'A Schedule Import Data'!$B:$B,$L58) -> 0 | H58: =-SUMIFS('A Schedule Import Data'!Z:Z,'A Schedule Import Data'!$A:$A,$L$2,'A Schedule Import Data'!$B:$B,$L58) -> 0 | I58: =-SUMIFS('A Schedule Import Data'!CA:CA,'A Schedule Import Data'!$A:$A,$L$2,'A Schedule Import Data'!$B:$B,$L58) -> 0 | J58: =-SUMIFS('A Schedule Import Data'!CB:CB,'A Schedule Import Data'!$A:$A,$L$2,'A Schedule Import Data'!$B:$B,$L58) -> 0 | K58: =-SUMIFS('A Schedule Import Data'!CC:CC,'A Schedule Import Data'!$A:$A,$L$2,'A Schedule Import Data'!$B:$B,$L58) -> 0 | L58: 2303 REV
A59: Fencing and Fences | F59: =-SUMIFS('A Schedule Import Data'!U:U,'A Schedule Import Data'!$A:$A,$L$2,'A Schedule Import Data'!$B:$B,$L59) -> 0 | G59: =-SUMIFS('A Schedule Import Data'!V:V,'A Schedule Import Data'!$A:$A,$L$2,'A Schedule Import Data'!$B:$B,$L59) -> 0 | H59: =-SUMIFS('A Schedule Import Data'!Z:Z,'A Schedule Import Data'!$A:$A,$L$2,'A Schedule Import Data'!$B:$B,$L59) -> 0 | I59: =-SUMIFS('A Schedule Import Data'!CA:CA,'A Schedule Import Data'!$A:$A,$L$2,'A Schedule Import Data'!$B:$B,$L59) -> 0 | J59: =-SUMIFS('A Schedule Import Data'!CB:CB,'A Schedule Import Data'!$A:$A,$L$2,'A Schedule Import Data'!$B:$B,$L59) -> 0 | K59: =-SUMIFS('A Schedule Import Data'!CC:CC,'A Schedule Import Data'!$A:$A,$L$2,'A Schedule Import Data'!$B:$B,$L59) -> 0 | L59: 2304 REV
A60: Fire Fighting and Protection | F60: =-SUMIFS('A Schedule Import Data'!U:U,'A Schedule Import Data'!$A:$A,$L$2,'A Schedule Import Data'!$B:$B,$L60) -> 25000 | G60: =-SUMIFS('A Schedule Import Data'!V:V,'A Schedule Import Data'!$A:$A,$L$2,'A Schedule Import Data'!$B:$B,$L60) -> 25000 | H60: =-SUMIFS('A Schedule Import Data'!Z:Z,'A Schedule Import Data'!$A:$A,$L$2,'A Schedule Import Data'!$B:$B,$L60) -> 25000 | I60: =-SUMIFS('A Schedule Import Data'!CA:CA,'A Schedule Import Data'!$A:$A,$L$2,'A Schedule Import Data'!$B:$B,$L60) -> 26300 | J60: =-SUMIFS('A Schedule Import Data'!CB:CB,'A Schedule Import Data'!$A:$A,$L$2,'A Schedule Import Data'!$B:$B,$L60) -> 27720 | K60: =-SUMIFS('A Schedule Import Data'!CC:CC,'A Schedule Import Data'!$A:$A,$L$2,'A Schedule Import Data'!$B:$B,$L60) -> 29245 | L60: 2305 REV
A61: Licensing and Control of Animals | F61: =-SUMIFS('A Schedule Import Data'!U:U,'A Schedule Import Data'!$A:$A,$L$2,'A Schedule Import Data'!$B:$B,$L61) -> 0 | G61: =-SUMIFS('A Schedule Import Data'!V:V,'A Schedule Import Data'!$A:$A,$L$2,'A Schedule Import Data'!$B:$B,$L61) -> 0 | H61: =-SUMIFS('A Schedule Import Data'!Z:Z,'A Schedule Import Data'!$A:$A,$L$2,'A Schedule Import Data'!$B:$B,$L61) -> 0 | I61: =-SUMIFS('A Schedule Import Data'!CA:CA,'A Schedule Import Data'!$A:$A,$L$2,'A Schedule Import Data'!$B:$B,$L61) -> 0 | J61: =-SUMIFS('A Schedule Import Data'!CB:CB,'A Schedule Import Data'!$A:$A,$L$2,'A Schedule Import Data'!$B:$B,$L61) -> 0 | K61: =-SUMIFS('A Schedule Import Data'!CC:CC,'A Schedule Import Data'!$A:$A,$L$2,'A Schedule Import Data'!$B:$B,$L61) -> 0 | L61: 2306 REV
A62: Housing | C62: =SUM(C63:C64) -> 0 | D62: =SUM(D63:D64) -> 0 | E62: 0 | F62: =SUM(F63:F64) -> 0 | G62: 0 | H62: 0 | I62: 852096 | J62: 898109 | K62: 947505 | L62: 2400 REV
A63: Housing | F63: =-SUMIFS('A Schedule Import Data'!U:U,'A Schedule Import Data'!$A:$A,$L$2,'A Schedule Import Data'!$B:$B,$L63) -> 0 | G63: =-SUMIFS('A Schedule Import Data'!V:V,'A Schedule Import Data'!$A:$A,$L$2,'A Schedule Import Data'!$B:$B,$L63) -> 0 | H63: =-SUMIFS('A Schedule Import Data'!Z:Z,'A Schedule Import Data'!$A:$A,$L$2,'A Schedule Import Data'!$B:$B,$L63) -> 0 | I63: =-SUMIFS('A Schedule Import Data'!CA:CA,'A Schedule Import Data'!$A:$A,$L$2,'A Schedule Import Data'!$B:$B,$L63) -> 852096 | J63: =-SUMIFS('A Schedule Import Data'!CB:CB,'A Schedule Import Data'!$A:$A,$L$2,'A Schedule Import Data'!$B:$B,$L63) -> 898109 | K63: =-SUMIFS('A Schedule Import Data'!CC:CC,'A Schedule Import Data'!$A:$A,$L$2,'A Schedule Import Data'!$B:$B,$L63) -> 947505 | L63: 2401 REV
A64: Informal Settlements | F64: =-SUMIFS('A Schedule Import Data'!U:U,'A Schedule Import Data'!$A:$A,$L$2,'A Schedule Import Data'!$B:$B,$L64) -> 0 | G64: =-SUMIFS('A Schedule Import Data'!V:V,'A Schedule Import Data'!$A:$A,$L$2,'A Schedule Import Data'!$B:$B,$L64) -> 0 | H64: =-SUMIFS('A Schedule Import Data'!Z:Z,'A Schedule Import Data'!$A:$A,$L$2,'A Schedule Import Data'!$B:$B,$L64) -> 0 | I64: =-SUMIFS('A Schedule Import Data'!CA:CA,'A Schedule Import Data'!$A:$A,$L$2,'A Schedule Import Data'!$B:$B,$L64) -> 0 | J64: =-SUMIFS('A Schedule Import Data'!CB:CB,'A Schedule Import Data'!$A:$A,$L$2,'A Schedule Import Data'!$B:$B,$L64) -> 0 | K64: =-SUMIFS('A Schedule Import Data'!CC:CC,'A Schedule Import Data'!$A:$A,$L$2,'A Schedule Import Data'!$B:$B,$L64) -> 0 | L64: 2402 REV
A65: Health | C65: =SUM(C66:C72) -> 0 | D65: =SUM(D66:D72) -> 0 | E65: 0 | F65: =SUM(F66:F72) -> 0 | G65: 0 | H65: 0 | I65: 0 | J65: 0 | K65: 0 | L65: 2500 REV
A66: Ambulance | F66: =-SUMIFS('A Schedule Import Data'!U:U,'A Schedule Import Data'!$A:$A,$L$2,'A Schedule Import Data'!$B:$B,$L66) -> 0 | G66: =-SUMIFS('A Schedule Import Data'!V:V,'A Schedule Import Data'!$A:$A,$L$2,'A Schedule Import Data'!$B:$B,$L66) -> 0 | H66: =-SUMIFS('A Schedule Import Data'!Z:Z,'A Schedule Import Data'!$A:$A,$L$2,'A Schedule Import Data'!$B:$B,$L66) -> 0 | I66: =-SUMIFS('A Schedule Import Data'!CA:CA,'A Schedule Import Data'!$A:$A,$L$2,'A Schedule Import Data'!$B:$B,$L66) -> 0 | J66: =-SUMIFS('A Schedule Import Data'!CB:CB,'A Schedule Import Data'!$A:$A,$L$2,'A Schedule Import Data'!$B:$B,$L66) -> 0 | K66: =-SUMIFS('A Schedule Import Data'!CC:CC,'A Schedule Import Data'!$A:$A,$L$2,'A Schedule Import Data'!$B:$B,$L66) -> 0 | L66: 2501 REV
A67: Health Services | F67: =-SUMIFS('A Schedule Import Data'!U:U,'A Schedule Import Data'!$A:$A,$L$2,'A Schedule Import Data'!$B:$B,$L67) -> 0 | G67: =-SUMIFS('A Schedule Import Data'!V:V,'A Schedule Import Data'!$A:$A,$L$2,'A Schedule Import Data'!$B:$B,$L67) -> 0 | H67: =-SUMIFS('A Schedule Import Data'!Z:Z,'A Schedule Import Data'!$A:$A,$L$2,'A Schedule Import Data'!$B:$B,$L67) -> 0 | I67: =-SUMIFS('A Schedule Import Data'!CA:CA,'A Schedule Import Data'!$A:$A,$L$2,'A Schedule Import Data'!$B:$B,$L67) -> 0 | J67: =-SUMIFS('A Schedule Import Data'!CB:CB,'A Schedule Import Data'!$A:$A,$L$2,'A Schedule Import Data'!$B:$B,$L67) -> 0 | K67: =-SUMIFS('A Schedule Import Data'!CC:CC,'A Schedule Import Data'!$A:$A,$L$2,'A Schedule Import Data'!$B:$B,$L67) -> 0 | L67: 2502 REV
A68: Laboratory Services | F68: =-SUMIFS('A Schedule Import Data'!U:U,'A Schedule Import Data'!$A:$A,$L$2,'A Schedule Import Data'!$B:$B,$L68) -> 0 | G68: =-SUMIFS('A Schedule Import Data'!V:V,'A Schedule Import Data'!$A:$A,$L$2,'A Schedule Import Data'!$B:$B,$L68) -> 0 | H68: =-SUMIFS('A Schedule Import Data'!Z:Z,'A Schedule Import Data'!$A:$A,$L$2,'A Schedule Import Data'!$B:$B,$L68) -> 0 | I68: =-SUMIFS('A Schedule Import Data'!CA:CA,'A Schedule Import Data'!$A:$A,$L$2,'A Schedule Import Data'!$B:$B,$L68) -> 0 | J68: =-SUMIFS('A Schedule Import Data'!CB:CB,'A Schedule Import Data'!$A:$A,$L$2,'A Schedule Import Data'!$B:$B,$L68) -> 0 | K68: =-SUMIFS('A Schedule Import Data'!CC:CC,'A Schedule Import Data'!$A:$A,$L$2,'A Schedule Import Data'!$B:$B,$L68) -> 0 | L68: 2503 REV
A69: Food Control | F69: =-SUMIFS('A Schedule Import Data'!U:U,'A Schedule Import Data'!$A:$A,$L$2,'A Schedule Import Data'!$B:$B,$L69) -> 0 | G69: =-SUMIFS('A Schedule Import Data'!V:V,'A Schedule Import Data'!$A:$A,$L$2,'A Schedule Import Data'!$B:$B,$L69) -> 0 | H69: =-SUMIFS('A Schedule Import Data'!Z:Z,'A Schedule Import Data'!$A:$A,$L$2,'A Schedule Import Data'!$B:$B,$L69) -> 0 | I69: =-SUMIFS('A Schedule Import Data'!CA:CA,'A Schedule Import Data'!$A:$A,$L$2,'A Schedule Import Data'!$B:$B,$L69) -> 0 | J69: =-SUMIFS('A Schedule Import Data'!CB:CB,'A Schedule Import Data'!$A:$A,$L$2,'A Schedule Import Data'!$B:$B,$L69) -> 0 | K69: =-SUMIFS('A Schedule Import Data'!CC:CC,'A Schedule Import Data'!$A:$A,$L$2,'A Schedule Import Data'!$B:$B,$L69) -> 0 | L69: 2504 REV
A70: Health Surveillance and Prevention of Communicable Diseases including immunizations | F70: =-SUMIFS('A Schedule Import Data'!U:U,'A Schedule Import Data'!$A:$A,$L$2,'A Schedule Import Data'!$B:$B,$L70) -> 0 | G70: =-SUMIFS('A Schedule Import Data'!V:V,'A Schedule Import Data'!$A:$A,$L$2,'A Schedule Import Data'!$B:$B,$L70) -> 0 | H70: =-SUMIFS('A Schedule Import Data'!Z:Z,'A Schedule Import Data'!$A:$A,$L$2,'A Schedule Import Data'!$B:$B,$L70) -> 0 | I70: =-SUMIFS('A Schedule Import Data'!CA:CA,'A Schedule Import Data'!$A:$A,$L$2,'A Schedule Import Data'!$B:$B,$L70) -> 0 | J70: =-SUMIFS('A Schedule Import Data'!CB:CB,'A Schedule Import Data'!$A:$A,$L$2,'A Schedule Import Data'!$B:$B,$L70) -> 0 | K70: =-SUMIFS('A Schedule Import Data'!CC:CC,'A Schedule Import Data'!$A:$A,$L$2,'A Schedule Import Data'!$B:$B,$L70) -> 0 | L70: 2505 REV
A71: Vector Control | F71: =-SUMIFS('A Schedule Import Data'!U:U,'A Schedule Import Data'!$A:$A,$L$2,'A Schedule Import Data'!$B:$B,$L71) -> 0 | G71: =-SUMIFS('A Schedule Import Data'!V:V,'A Schedule Import Data'!$A:$A,$L$2,'A Schedule Import Data'!$B:$B,$L71) -> 0 | H71: =-SUMIFS('A Schedule Import Data'!Z:Z,'A Schedule Import Data'!$A:$A,$L$2,'A Schedule Import Data'!$B:$B,$L71) -> 0 | I71: =-SUMIFS('A Schedule Import Data'!CA:CA,'A Schedule Import Data'!$A:$A,$L$2,'A Schedule Import Data'!$B:$B,$L71) -> 0 | J71: =-SUMIFS('A Schedule Import Data'!CB:CB,'A Schedule Import Data'!$A:$A,$L$2,'A Schedule Import Data'!$B:$B,$L71) -> 0 | K71: =-SUMIFS('A Schedule Import Data'!CC:CC,'A Schedule Import Data'!$A:$A,$L$2,'A Schedule Import Data'!$B:$B,$L71) -> 0 | L71: 2506 REV
A72: Chemical Safety | F72: =-SUMIFS('A Schedule Import Data'!U:U,'A Schedule Import Data'!$A:$A,$L$2,'A Schedule Import Data'!$B:$B,$L72) -> 0 | G72: =-SUMIFS('A Schedule Import Data'!V:V,'A Schedule Import Data'!$A:$A,$L$2,'A Schedule Import Data'!$B:$B,$L72) -> 0 | H72: =-SUMIFS('A Schedule Import Data'!Z:Z,'A Schedule Import Data'!$A:$A,$L$2,'A Schedule Import Data'!$B:$B,$L72) -> 0 | I72: =-SUMIFS('A Schedule Import Data'!CA:CA,'A Schedule Import Data'!$A:$A,$L$2,'A Schedule Import Data'!$B:$B,$L72) -> 0 | J72: =-SUMIFS('A Schedule Import Data'!CB:CB,'A Schedule Import Data'!$A:$A,$L$2,'A Schedule Import Data'!$B:$B,$L72) -> 0 | K72: =-SUMIFS('A Schedule Import Data'!CC:CC,'A Schedule Import Data'!$A:$A,$L$2,'A Schedule Import Data'!$B:$B,$L72) -> 0 | L72: 2507 REV
A73: Economic and environmental services | C73: =C74+C85+C92 -> 68977264 | D73: =D74+D85+D92 -> 80689585 | E73: 0 | F73: =F74+F85+F92 -> 49829052 | G73: 49670000 | H73: 49829052 | I73: 28944300 | J73: 52557513 | K73: 32185193 | L73: 3000 REV
A74: Planning and development | C74: =SUM(C75:C84) -> 67768528 | D74: =SUM(D75:D84) -> 17038065 | E74: 0 | F74: =SUM(F75:F84) -> 47969052 | G74: 47910000 | H74: 47969052 | I74: 26554780 | J74: 50038960 | K74: 29528119 | L74: 3100 REV
A75: Billboards | F75: =-SUMIFS('A Schedule Import Data'!U:U,'A Schedule Import Data'!$A:$A,$L$2,'A Schedule Import Data'!$B:$B,$L75) -> 0 | G75: =-SUMIFS('A Schedule Import Data'!V:V,'A Schedule Import Data'!$A:$A,$L$2,'A Schedule Import Data'!$B:$B,$L75) -> 0 | H75: =-SUMIFS('A Schedule Import Data'!Z:Z,'A Schedule Import Data'!$A:$A,$L$2,'A Schedule Import Data'!$B:$B,$L75) -> 0 | I75: =-SUMIFS('A Schedule Import Data'!CA:CA,'A Schedule Import Data'!$A:$A,$L$2,'A Schedule Import Data'!$B:$B,$L75) -> 0 | J75: =-SUMIFS('A Schedule Import Data'!CB:CB,'A Schedule Import Data'!$A:$A,$L$2,'A Schedule Import Data'!$B:$B,$L75) -> 0 | K75: =-SUMIFS('A Schedule Import Data'!CC:CC,'A Schedule Import Data'!$A:$A,$L$2,'A Schedule Import Data'!$B:$B,$L75) -> 0 | L75: 3101 REV
A76: Corporate Wide Strategic Planning (IDPs, LEDs) | F76: =-SUMIFS('A Schedule Import Data'!U:U,'A Schedule Import Data'!$A:$A,$L$2,'A Schedule Import Data'!$B:$B,$L76) -> 0 | G76: =-SUMIFS('A Schedule Import Data'!V:V,'A Schedule Import Data'!$A:$A,$L$2,'A Schedule Import Data'!$B:$B,$L76) -> 0 | H76: =-SUMIFS('A Schedule Import Data'!Z:Z,'A Schedule Import Data'!$A:$A,$L$2,'A Schedule Import Data'!$B:$B,$L76) -> 0 | I76: =-SUMIFS('A Schedule Import Data'!CA:CA,'A Schedule Import Data'!$A:$A,$L$2,'A Schedule Import Data'!$B:$B,$L76) -> 0 | J76: =-SUMIFS('A Schedule Import Data'!CB:CB,'A Schedule Import Data'!$A:$A,$L$2,'A Schedule Import Data'!$B:$B,$L76) -> 0 | K76: =-SUMIFS('A Schedule Import Data'!CC:CC,'A Schedule Import Data'!$A:$A,$L$2,'A Schedule Import Data'!$B:$B,$L76) -> 0 | L76: 3102 REV
A77: Central City Improvement District | F77: =-SUMIFS('A Schedule Import Data'!U:U,'A Schedule Import Data'!$A:$A,$L$2,'A Schedule Import Data'!$B:$B,$L77) -> 0 | G77: =-SUMIFS('A Schedule Import Data'!V:V,'A Schedule Import Data'!$A:$A,$L$2,'A Schedule Import Data'!$B:$B,$L77) -> 0 | H77: =-SUMIFS('A Schedule Import Data'!Z:Z,'A Schedule Import Data'!$A:$A,$L$2,'A Schedule Import Data'!$B:$B,$L77) -> 0 | I77: =-SUMIFS('A Schedule Import Data'!CA:CA,'A Schedule Import Data'!$A:$A,$L$2,'A Schedule Import Data'!$B:$B,$L77) -> 0 | J77: =-SUMIFS('A Schedule Import Data'!CB:CB,'A Schedule Import Data'!$A:$A,$L$2,'A Schedule Import Data'!$B:$B,$L77) -> 0 | K77: =-SUMIFS('A Schedule Import Data'!CC:CC,'A Schedule Import Data'!$A:$A,$L$2,'A Schedule Import Data'!$B:$B,$L77) -> 0 | L77: 3103 REV
A78: Development Facilitation | F78: =-SUMIFS('A Schedule Import Data'!U:U,'A Schedule Import Data'!$A:$A,$L$2,'A Schedule Import Data'!$B:$B,$L78) -> 0 | G78: =-SUMIFS('A Schedule Import Data'!V:V,'A Schedule Import Data'!$A:$A,$L$2,'A Schedule Import Data'!$B:$B,$L78) -> 0 | H78: =-SUMIFS('A Schedule Import Data'!Z:Z,'A Schedule Import Data'!$A:$A,$L$2,'A Schedule Import Data'!$B:$B,$L78) -> 0 | I78: =-SUMIFS('A Schedule Import Data'!CA:CA,'A Schedule Import Data'!$A:$A,$L$2,'A Schedule Import Data'!$B:$B,$L78) -> 0 | J78: =-SUMIFS('A Schedule Import Data'!CB:CB,'A Schedule Import Data'!$A:$A,$L$2,'A Schedule Import Data'!$B:$B,$L78) -> 0 | K78: =-SUMIFS('A Schedule Import Data'!CC:CC,'A Schedule Import Data'!$A:$A,$L$2,'A Schedule Import Data'!$B:$B,$L78) -> 0 | L78: 3104 REV
A79: Economic Development/Planning | C79: 67768528 | D79: 17038065 | F79: =-SUMIFS('A Schedule Import Data'!U:U,'A Schedule Import Data'!$A:$A,$L$2,'A Schedule Import Data'!$B:$B,$L79) -> 47869052 | G79: =-SUMIFS('A Schedule Import Data'!V:V,'A Schedule Import Data'!$A:$A,$L$2,'A Schedule Import Data'!$B:$B,$L79) -> 47810000 | H79: =-SUMIFS('A Schedule Import Data'!Z:Z,'A Schedule Import Data'!$A:$A,$L$2,'A Schedule Import Data'!$B:$B,$L79) -> 47869052 | I79: =47454780-21000000 -> 26454780 | J79: =-SUMIFS('A Schedule Import Data'!CB:CB,'A Schedule Import Data'!$A:$A,$L$2,'A Schedule Import Data'!$B:$B,$L79) -> 49933560 | K79: =-SUMIFS('A Schedule Import Data'!CC:CC,'A Schedule Import Data'!$A:$A,$L$2,'A Schedule Import Data'!$B:$B,$L79) -> 29416922 | L79: 3105 REV
A80: Regional Planning and Development | F80: =-SUMIFS('A Schedule Import Data'!U:U,'A Schedule Import Data'!$A:$A,$L$2,'A Schedule Import Data'!$B:$B,$L80) -> 0 | G80: =-SUMIFS('A Schedule Import Data'!V:V,'A Schedule Import Data'!$A:$A,$L$2,'A Schedule Import Data'!$B:$B,$L80) -> 0 | H80: =-SUMIFS('A Schedule Import Data'!Z:Z,'A Schedule Import Data'!$A:$A,$L$2,'A Schedule Import Data'!$B:$B,$L80) -> 0 | I80: =-SUMIFS('A Schedule Import Data'!CA:CA,'A Schedule Import Data'!$A:$A,$L$2,'A Schedule Import Data'!$B:$B,$L80) -> 0 | J80: =-SUMIFS('A Schedule Import Data'!CB:CB,'A Schedule Import Data'!$A:$A,$L$2,'A Schedule Import Data'!$B:$B,$L80) -> 0 | K80: =-SUMIFS('A Schedule Import Data'!CC:CC,'A Schedule Import Data'!$A:$A,$L$2,'A Schedule Import Data'!$B:$B,$L80) -> 0 | L80: 3106 REV
A81: Town Planning, Building Regulations and Enforcement, and City Engineer | F81: =-SUMIFS('A Schedule Import Data'!U:U,'A Schedule Import Data'!$A:$A,$L$2,'A Schedule Import Data'!$B:$B,$L81) -> 100000 | G81: =-SUMIFS('A Schedule Import Data'!V:V,'A Schedule Import Data'!$A:$A,$L$2,'A Schedule Import Data'!$B:$B,$L81) -> 100000 | H81: =-SUMIFS('A Schedule Import Data'!Z:Z,'A Schedule Import Data'!$A:$A,$L$2,'A Schedule Import Data'!$B:$B,$L81) -> 100000 | I81: =-SUMIFS('A Schedule Import Data'!CA:CA,'A Schedule Import Data'!$A:$A,$L$2,'A Schedule Import Data'!$B:$B,$L81) -> 100000 | J81: =-SUMIFS('A Schedule Import Data'!CB:CB,'A Schedule Import Data'!$A:$A,$L$2,'A Schedule Import Data'!$B:$B,$L81) -> 105400 | K81: =-SUMIFS('A Schedule Import Data'!CC:CC,'A Schedule Import Data'!$A:$A,$L$2,'A Schedule Import Data'!$B:$B,$L81) -> 111197 | L81: 3107 REV
A82: Project Management Unit | F82: =-SUMIFS('A Schedule Import Data'!U:U,'A Schedule Import Data'!$A:$A,$L$2,'A Schedule Import Data'!$B:$B,$L82) -> 0 | G82: =-SUMIFS('A Schedule Import Data'!V:V,'A Schedule Import Data'!$A:$A,$L$2,'A Schedule Import Data'!$B:$B,$L82) -> 0 | H82: =-SUMIFS('A Schedule Import Data'!Z:Z,'A Schedule Import Data'!$A:$A,$L$2,'A Schedule Import Data'!$B:$B,$L82) -> 0 | I82: =-SUMIFS('A Schedule Import Data'!CA:CA,'A Schedule Import Data'!$A:$A,$L$2,'A Schedule Import Data'!$B:$B,$L82) -> 0 | J82: =-SUMIFS('A Schedule Import Data'!CB:CB,'A Schedule Import Data'!$A:$A,$L$2,'A Schedule Import Data'!$B:$B,$L82) -> 0 | K82: =-SUMIFS('A Schedule Import Data'!CC:CC,'A Schedule Import Data'!$A:$A,$L$2,'A Schedule Import Data'!$B:$B,$L82) -> 0 | L82: 3108 REV
A83: Provincial Planning | F83: =-SUMIFS('A Schedule Import Data'!U:U,'A Schedule Import Data'!$A:$A,$L$2,'A Schedule Import Data'!$B:$B,$L83) -> 0 | G83: =-SUMIFS('A Schedule Import Data'!V:V,'A Schedule Import Data'!$A:$A,$L$2,'A Schedule Import Data'!$B:$B,$L83) -> 0 | H83: =-SUMIFS('A Schedule Import Data'!Z:Z,'A Schedule Import Data'!$A:$A,$L$2,'A Schedule Import Data'!$B:$B,$L83) -> 0 | I83: =-SUMIFS('A Schedule Import Data'!CA:CA,'A Schedule Import Data'!$A:$A,$L$2,'A Schedule Import Data'!$B:$B,$L83) -> 0 | J83: =-SUMIFS('A Schedule Import Data'!CB:CB,'A Schedule Import Data'!$A:$A,$L$2,'A Schedule Import Data'!$B:$B,$L83) -> 0 | K83: =-SUMIFS('A Schedule Import Data'!CC:CC,'A Schedule Import Data'!$A:$A,$L$2,'A Schedule Import Data'!$B:$B,$L83) -> 0 | L83: 3109 REV
A84: Support to Local Municipalities | F84: =-SUMIFS('A Schedule Import Data'!U:U,'A Schedule Import Data'!$A:$A,$L$2,'A Schedule Import Data'!$B:$B,$L84) -> 0 | G84: =-SUMIFS('A Schedule Import Data'!V:V,'A Schedule Import Data'!$A:$A,$L$2,'A Schedule Import Data'!$B:$B,$L84) -> 0 | H84: =-SUMIFS('A Schedule Import Data'!Z:Z,'A Schedule Import Data'!$A:$A,$L$2,'A Schedule Import Data'!$B:$B,$L84) -> 0 | I84: =-SUMIFS('A Schedule Import Data'!CA:CA,'A Schedule Import Data'!$A:$A,$L$2,'A Schedule Import Data'!$B:$B,$L84) -> 0 | J84: =-SUMIFS('A Schedule Import Data'!CB:CB,'A Schedule Import Data'!$A:$A,$L$2,'A Schedule Import Data'!$B:$B,$L84) -> 0 | K84: =-SUMIFS('A Schedule Import Data'!CC:CC,'A Schedule Import Data'!$A:$A,$L$2,'A Schedule Import Data'!$B:$B,$L84) -> 0 | L84: 3110 REV
A85: Road transport | C85: =SUM(C86:C91) -> 1208736 | D85: =SUM(D86:D91) -> 63651520 | E85: 0 | F85: =SUM(F86:F91) -> 1860000 | G85: 1760000 | H85: 1860000 | I85: 2389520 | J85: 2518553 | K85: 2657074 | L85: 3200 REV
A86: Police Forces, Traffic and Street Parking Control | F86: =-SUMIFS('A Schedule Import Data'!U:U,'A Schedule Import Data'!$A:$A,$L$2,'A Schedule Import Data'!$B:$B,$L86) -> 60000 | G86: =-SUMIFS('A Schedule Import Data'!V:V,'A Schedule Import Data'!$A:$A,$L$2,'A Schedule Import Data'!$B:$B,$L86) -> 60000 | H86: =-SUMIFS('A Schedule Import Data'!Z:Z,'A Schedule Import Data'!$A:$A,$L$2,'A Schedule Import Data'!$B:$B,$L86) -> 60000 | I86: =-SUMIFS('A Schedule Import Data'!CA:CA,'A Schedule Import Data'!$A:$A,$L$2,'A Schedule Import Data'!$B:$B,$L86) -> 63120 | J86: =-SUMIFS('A Schedule Import Data'!CB:CB,'A Schedule Import Data'!$A:$A,$L$2,'A Schedule Import Data'!$B:$B,$L86) -> 66528 | K86: =-SUMIFS('A Schedule Import Data'!CC:CC,'A Schedule Import Data'!$A:$A,$L$2,'A Schedule Import Data'!$B:$B,$L86) -> 70187 | L86: 3201 REV
A87: Pounds | F87: =-SUMIFS('A Schedule Import Data'!U:U,'A Schedule Import Data'!$A:$A,$L$2,'A Schedule Import Data'!$B:$B,$L87) -> 0 | G87: =-SUMIFS('A Schedule Import Data'!V:V,'A Schedule Import Data'!$A:$A,$L$2,'A Schedule Import Data'!$B:$B,$L87) -> 0 | H87: =-SUMIFS('A Schedule Import Data'!Z:Z,'A Schedule Import Data'!$A:$A,$L$2,'A Schedule Import Data'!$B:$B,$L87) -> 0 | I87: =-SUMIFS('A Schedule Import Data'!CA:CA,'A Schedule Import Data'!$A:$A,$L$2,'A Schedule Import Data'!$B:$B,$L87) -> 0 | J87: =-SUMIFS('A Schedule Import Data'!CB:CB,'A Schedule Import Data'!$A:$A,$L$2,'A Schedule Import Data'!$B:$B,$L87) -> 0 | K87: =-SUMIFS('A Schedule Import Data'!CC:CC,'A Schedule Import Data'!$A:$A,$L$2,'A Schedule Import Data'!$B:$B,$L87) -> 0 | L87: 3202 REV
A88: Public Transport | F88: =-SUMIFS('A Schedule Import Data'!U:U,'A Schedule Import Data'!$A:$A,$L$2,'A Schedule Import Data'!$B:$B,$L88) -> 0 | G88: =-SUMIFS('A Schedule Import Data'!V:V,'A Schedule Import Data'!$A:$A,$L$2,'A Schedule Import Data'!$B:$B,$L88) -> 0 | H88: =-SUMIFS('A Schedule Import Data'!Z:Z,'A Schedule Import Data'!$A:$A,$L$2,'A Schedule Import Data'!$B:$B,$L88) -> 0 | I88: =-SUMIFS('A Schedule Import Data'!CA:CA,'A Schedule Import Data'!$A:$A,$L$2,'A Schedule Import Data'!$B:$B,$L88) -> 0 | J88: =-SUMIFS('A Schedule Import Data'!CB:CB,'A Schedule Import Data'!$A:$A,$L$2,'A Schedule Import Data'!$B:$B,$L88) -> 0 | K88: =-SUMIFS('A Schedule Import Data'!CC:CC,'A Schedule Import Data'!$A:$A,$L$2,'A Schedule Import Data'!$B:$B,$L88) -> 0 | L88: 3203 REV
A89: Road and Traffic Regulation | F89: =-SUMIFS('A Schedule Import Data'!U:U,'A Schedule Import Data'!$A:$A,$L$2,'A Schedule Import Data'!$B:$B,$L89) -> 800000 | G89: =-SUMIFS('A Schedule Import Data'!V:V,'A Schedule Import Data'!$A:$A,$L$2,'A Schedule Import Data'!$B:$B,$L89) -> 700000 | H89: =-SUMIFS('A Schedule Import Data'!Z:Z,'A Schedule Import Data'!$A:$A,$L$2,'A Schedule Import Data'!$B:$B,$L89) -> 800000 | I89: =-SUMIFS('A Schedule Import Data'!CA:CA,'A Schedule Import Data'!$A:$A,$L$2,'A Schedule Import Data'!$B:$B,$L89) -> 736400 | J89: =-SUMIFS('A Schedule Import Data'!CB:CB,'A Schedule Import Data'!$A:$A,$L$2,'A Schedule Import Data'!$B:$B,$L89) -> 776165 | K89: =-SUMIFS('A Schedule Import Data'!CC:CC,'A Schedule Import Data'!$A:$A,$L$2,'A Schedule Import Data'!$B:$B,$L89) -> 818855 | L89: 3204 REV
A90: Roads | C90: 1208736 | D90: 63651520 | F90: =-SUMIFS('A Schedule Import Data'!U:U,'A Schedule Import Data'!$A:$A,$L$2,'A Schedule Import Data'!$B:$B,$L90) -> 1000000 | G90: =-SUMIFS('A Schedule Import Data'!V:V,'A Schedule Import Data'!$A:$A,$L$2,'A Schedule Import Data'!$B:$B,$L90) -> 1000000 | H90: =-SUMIFS('A Schedule Import Data'!Z:Z,'A Schedule Import Data'!$A:$A,$L$2,'A Schedule Import Data'!$B:$B,$L90) -> 1000000 | I90: =-SUMIFS('A Schedule Import Data'!CA:CA,'A Schedule Import Data'!$A:$A,$L$2,'A Schedule Import Data'!$B:$B,$L90) -> 1590000 | J90: =-SUMIFS('A Schedule Import Data'!CB:CB,'A Schedule Import Data'!$A:$A,$L$2,'A Schedule Import Data'!$B:$B,$L90) -> 1675860 | K90: =-SUMIFS('A Schedule Import Data'!CC:CC,'A Schedule Import Data'!$A:$A,$L$2,'A Schedule Import Data'!$B:$B,$L90) -> 1768032 | L90: 3205 REV
A91: Taxi Ranks | F91: =-SUMIFS('A Schedule Import Data'!U:U,'A Schedule Import Data'!$A:$A,$L$2,'A Schedule Import Data'!$B:$B,$L91) -> 0 | G91: =-SUMIFS('A Schedule Import Data'!V:V,'A Schedule Import Data'!$A:$A,$L$2,'A Schedule Import Data'!$B:$B,$L91) -> 0 | H91: =-SUMIFS('A Schedule Import Data'!Z:Z,'A Schedule Import Data'!$A:$A,$L$2,'A Schedule Import Data'!$B:$B,$L91) -> 0 | I91: =-SUMIFS('A Schedule Import Data'!CA:CA,'A Schedule Import Data'!$A:$A,$L$2,'A Schedule Import Data'!$B:$B,$L91) -> 0 | J91: =-SUMIFS('A Schedule Import Data'!CB:CB,'A Schedule Import Data'!$A:$A,$L$2,'A Schedule Import Data'!$B:$B,$L91) -> 0 | K91: =-SUMIFS('A Schedule Import Data'!CC:CC,'A Schedule Import Data'!$A:$A,$L$2,'A Schedule Import Data'!$B:$B,$L91) -> 0 | L91: 3206 REV
A92: Environmental protection | C92: =SUM(C93:C98) -> 0 | D92: =SUM(D93:D98) -> 0 | E92: 0 | F92: =SUM(F93:F98) -> 0 | G92: 0 | H92: 0 | I92: 0 | J92: 0 | K92: 0 | L92: 3300 REV
A93: Biodiversity and Landscape | F93: =-SUMIFS('A Schedule Import Data'!U:U,'A Schedule Import Data'!$A:$A,$L$2,'A Schedule Import Data'!$B:$B,$L93) -> 0 | G93: =-SUMIFS('A Schedule Import Data'!V:V,'A Schedule Import Data'!$A:$A,$L$2,'A Schedule Import Data'!$B:$B,$L93) -> 0 | H93: =-SUMIFS('A Schedule Import Data'!Z:Z,'A Schedule Import Data'!$A:$A,$L$2,'A Schedule Import Data'!$B:$B,$L93) -> 0 | I93: =-SUMIFS('A Schedule Import Data'!CA:CA,'A Schedule Import Data'!$A:$A,$L$2,'A Schedule Import Data'!$B:$B,$L93) -> 0 | J93: =-SUMIFS('A Schedule Import Data'!CB:CB,'A Schedule Import Data'!$A:$A,$L$2,'A Schedule Import Data'!$B:$B,$L93) -> 0 | K93: =-SUMIFS('A Schedule Import Data'!CC:CC,'A Schedule Import Data'!$A:$A,$L$2,'A Schedule Import Data'!$B:$B,$L93) -> 0 | L93: 3301 REV
A94: Coastal Protection | F94: =-SUMIFS('A Schedule Import Data'!U:U,'A Schedule Import Data'!$A:$A,$L$2,'A Schedule Import Data'!$B:$B,$L94) -> 0 | G94: =-SUMIFS('A Schedule Import Data'!V:V,'A Schedule Import Data'!$A:$A,$L$2,'A Schedule Import Data'!$B:$B,$L94) -> 0 | H94: =-SUMIFS('A Schedule Import Data'!Z:Z,'A Schedule Import Data'!$A:$A,$L$2,'A Schedule Import Data'!$B:$B,$L94) -> 0 | I94: =-SUMIFS('A Schedule Import Data'!CA:CA,'A Schedule Import Data'!$A:$A,$L$2,'A Schedule Import Data'!$B:$B,$L94) -> 0 | J94: =-SUMIFS('A Schedule Import Data'!CB:CB,'A Schedule Import Data'!$A:$A,$L$2,'A Schedule Import Data'!$B:$B,$L94) -> 0 | K94: =-SUMIFS('A Schedule Import Data'!CC:CC,'A Schedule Import Data'!$A:$A,$L$2,'A Schedule Import Data'!$B:$B,$L94) -> 0 | L94: 3302 REV
A95: Indigenous Forests | F95: =-SUMIFS('A Schedule Import Data'!U:U,'A Schedule Import Data'!$A:$A,$L$2,'A Schedule Import Data'!$B:$B,$L95) -> 0 | G95: =-SUMIFS('A Schedule Import Data'!V:V,'A Schedule Import Data'!$A:$A,$L$2,'A Schedule Import Data'!$B:$B,$L95) -> 0 | H95: =-SUMIFS('A Schedule Import Data'!Z:Z,'A Schedule Import Data'!$A:$A,$L$2,'A Schedule Import Data'!$B:$B,$L95) -> 0 | I95: =-SUMIFS('A Schedule Import Data'!CA:CA,'A Schedule Import Data'!$A:$A,$L$2,'A Schedule Import Data'!$B:$B,$L95) -> 0 | J95: =-SUMIFS('A Schedule Import Data'!CB:CB,'A Schedule Import Data'!$A:$A,$L$2,'A Schedule Import Data'!$B:$B,$L95) -> 0 | K95: =-SUMIFS('A Schedule Import Data'!CC:CC,'A Schedule Import Data'!$A:$A,$L$2,'A Schedule Import Data'!$B:$B,$L95) -> 0 | L95: 3303 REV
A96: Nature Conservation | F96: =-SUMIFS('A Schedule Import Data'!U:U,'A Schedule Import Data'!$A:$A,$L$2,'A Schedule Import Data'!$B:$B,$L96) -> 0 | G96: =-SUMIFS('A Schedule Import Data'!V:V,'A Schedule Import Data'!$A:$A,$L$2,'A Schedule Import Data'!$B:$B,$L96) -> 0 | H96: =-SUMIFS('A Schedule Import Data'!Z:Z,'A Schedule Import Data'!$A:$A,$L$2,'A Schedule Import Data'!$B:$B,$L96) -> 0 | I96: =-SUMIFS('A Schedule Import Data'!CA:CA,'A Schedule Import Data'!$A:$A,$L$2,'A Schedule Import Data'!$B:$B,$L96) -> 0 | J96: =-SUMIFS('A Schedule Import Data'!CB:CB,'A Schedule Import Data'!$A:$A,$L$2,'A Schedule Import Data'!$B:$B,$L96) -> 0 | K96: =-SUMIFS('A Schedule Import Data'!CC:CC,'A Schedule Import Data'!$A:$A,$L$2,'A Schedule Import Data'!$B:$B,$L96) -> 0 | L96: 3304 REV
A97: Pollution Control | F97: =-SUMIFS('A Schedule Import Data'!U:U,'A Schedule Import Data'!$A:$A,$L$2,'A Schedule Import Data'!$B:$B,$L97) -> 0 | G97: =-SUMIFS('A Schedule Import Data'!V:V,'A Schedule Import Data'!$A:$A,$L$2,'A Schedule Import Data'!$B:$B,$L97) -> 0 | H97: =-SUMIFS('A Schedule Import Data'!Z:Z,'A Schedule Import Data'!$A:$A,$L$2,'A Schedule Import Data'!$B:$B,$L97) -> 0 | I97: =-SUMIFS('A Schedule Import Data'!CA:CA,'A Schedule Import Data'!$A:$A,$L$2,'A Schedule Import Data'!$B:$B,$L97) -> 0 | J97: =-SUMIFS('A Schedule Import Data'!CB:CB,'A Schedule Import Data'!$A:$A,$L$2,'A Schedule Import Data'!$B:$B,$L97) -> 0 | K97: =-SUMIFS('A Schedule Import Data'!CC:CC,'A Schedule Import Data'!$A:$A,$L$2,'A Schedule Import Data'!$B:$B,$L97) -> 0 | L97: 3305 REV
A98: Soil Conservation | F98: =-SUMIFS('A Schedule Import Data'!U:U,'A Schedule Import Data'!$A:$A,$L$2,'A Schedule Import Data'!$B:$B,$L98) -> 0 | G98: =-SUMIFS('A Schedule Import Data'!V:V,'A Schedule Import Data'!$A:$A,$L$2,'A Schedule Import Data'!$B:$B,$L98) -> 0 | H98: =-SUMIFS('A Schedule Import Data'!Z:Z,'A Schedule Import Data'!$A:$A,$L$2,'A Schedule Import Data'!$B:$B,$L98) -> 0 | I98: =-SUMIFS('A Schedule Import Data'!CA:CA,'A Schedule Import Data'!$A:$A,$L$2,'A Schedule Import Data'!$B:$B,$L98) -> 0 | J98: =-SUMIFS('A Schedule Import Data'!CB:CB,'A Schedule Import Data'!$A:$A,$L$2,'A Schedule Import Data'!$B:$B,$L98) -> 0 | K98: =-SUMIFS('A Schedule Import Data'!CC:CC,'A Schedule Import Data'!$A:$A,$L$2,'A Schedule Import Data'!$B:$B,$L98) -> 0 | L98: 3306 REV
A99: Trading services | C99: =C100+C104+C108+C113 -> 1464002 | D99: =D100+D104+D108+D113 -> 1681650 | E99: 0 | F99: =F100+F104+F108+F113 -> 1990711 | G99: 1990711 | H99: 1990711 | I99: 18094228 | J99: 19071316 | K99: =K100+K104+K108+K113 -> 20120238 | L99: 4000 REV
A100: Energy sources | C100: =SUM(C101:C103) -> 0 | D100: =SUM(D101:D103) -> 0 | E100: 0 | F100: =SUM(F101:F103) -> 0 | G100: 0 | H100: 0 | I100: 16000000 | J100: 16864000 | K100: 17791520 | L100: 4100 REV
A101: Electricity | F101: =-SUMIFS('A Schedule Import Data'!U:U,'A Schedule Import Data'!$A:$A,$L$2,'A Schedule Import Data'!$B:$B,$L101) -> 0 | G101: =-SUMIFS('A Schedule Import Data'!V:V,'A Schedule Import Data'!$A:$A,$L$2,'A Schedule Import Data'!$B:$B,$L101) -> 0 | H101: =-SUMIFS('A Schedule Import Data'!Z:Z,'A Schedule Import Data'!$A:$A,$L$2,'A Schedule Import Data'!$B:$B,$L101) -> 0 | I101: =-SUMIFS('A Schedule Import Data'!CA:CA,'A Schedule Import Data'!$A:$A,$L$2,'A Schedule Import Data'!$B:$B,$L101) -> 16000000 | J101: =-SUMIFS('A Schedule Import Data'!CB:CB,'A Schedule Import Data'!$A:$A,$L$2,'A Schedule Import Data'!$B:$B,$L101) -> 16864000 | K101: =-SUMIFS('A Schedule Import Data'!CC:CC,'A Schedule Import Data'!$A:$A,$L$2,'A Schedule Import Data'!$B:$B,$L101) -> 17791520 | L101: 4101 REV
A102: Street Lighting and Signal Systems | F102: =-SUMIFS('A Schedule Import Data'!U:U,'A Schedule Import Data'!$A:$A,$L$2,'A Schedule Import Data'!$B:$B,$L102) -> 0 | G102: =-SUMIFS('A Schedule Import Data'!V:V,'A Schedule Import Data'!$A:$A,$L$2,'A Schedule Import Data'!$B:$B,$L102) -> 0 | H102: =-SUMIFS('A Schedule Import Data'!Z:Z,'A Schedule Import Data'!$A:$A,$L$2,'A Schedule Import Data'!$B:$B,$L102) -> 0 | I102: =-SUMIFS('A Schedule Import Data'!CA:CA,'A Schedule Import Data'!$A:$A,$L$2,'A Schedule Import Data'!$B:$B,$L102) -> 0 | J102: =-SUMIFS('A Schedule Import Data'!CB:CB,'A Schedule Import Data'!$A:$A,$L$2,'A Schedule Import Data'!$B:$B,$L102) -> 0 | K102: =-SUMIFS('A Schedule Import Data'!CC:CC,'A Schedule Import Data'!$A:$A,$L$2,'A Schedule Import Data'!$B:$B,$L102) -> 0 | L102: 4102 REV
A103: Nonelectric Energy | F103: =-SUMIFS('A Schedule Import Data'!U:U,'A Schedule Import Data'!$A:$A,$L$2,'A Schedule Import Data'!$B:$B,$L103) -> 0 | G103: =-SUMIFS('A Schedule Import Data'!V:V,'A Schedule Import Data'!$A:$A,$L$2,'A Schedule Import Data'!$B:$B,$L103) -> 0 | H103: =-SUMIFS('A Schedule Import Data'!Z:Z,'A Schedule Import Data'!$A:$A,$L$2,'A Schedule Import Data'!$B:$B,$L103) -> 0 | I103: =-SUMIFS('A Schedule Import Data'!CA:CA,'A Schedule Import Data'!$A:$A,$L$2,'A Schedule Import Data'!$B:$B,$L103) -> 0 | J103: =-SUMIFS('A Schedule Import Data'!CB:CB,'A Schedule Import Data'!$A:$A,$L$2,'A Schedule Import Data'!$B:$B,$L103) -> 0 | K103: =-SUMIFS('A Schedule Import Data'!CC:CC,'A Schedule Import Data'!$A:$A,$L$2,'A Schedule Import Data'!$B:$B,$L103) -> 0 | L103: 4103 REV
A104: Water management | C104: =SUM(C105:C107) -> 0 | D104: =SUM(D105:D107) -> 0 | E104: 0 | F104: =SUM(F105:F107) -> 0 | G104: 0 | H104: 0 | I104: 0 | J104: 0 | K104: 0 | L104: 4200 REV
A105: Water Treatment | F105: =-SUMIFS('A Schedule Import Data'!U:U,'A Schedule Import Data'!$A:$A,$L$2,'A Schedule Import Data'!$B:$B,$L105) -> 0 | G105: =-SUMIFS('A Schedule Import Data'!V:V,'A Schedule Import Data'!$A:$A,$L$2,'A Schedule Import Data'!$B:$B,$L105) -> 0 | H105: =-SUMIFS('A Schedule Import Data'!Z:Z,'A Schedule Import Data'!$A:$A,$L$2,'A Schedule Import Data'!$B:$B,$L105) -> 0 | I105: =-SUMIFS('A Schedule Import Data'!CA:CA,'A Schedule Import Data'!$A:$A,$L$2,'A Schedule Import Data'!$B:$B,$L105) -> 0 | J105: =-SUMIFS('A Schedule Import Data'!CB:CB,'A Schedule Import Data'!$A:$A,$L$2,'A Schedule Import Data'!$B:$B,$L105) -> 0 | K105: =-SUMIFS('A Schedule Import Data'!CC:CC,'A Schedule Import Data'!$A:$A,$L$2,'A Schedule Import Data'!$B:$B,$L105) -> 0 | L105: 4201 REV
A106: Water Distribution | F106: =-SUMIFS('A Schedule Import Data'!U:U,'A Schedule Import Data'!$A:$A,$L$2,'A Schedule Import Data'!$B:$B,$L106) -> 0 | G106: =-SUMIFS('A Schedule Import Data'!V:V,'A Schedule Import Data'!$A:$A,$L$2,'A Schedule Import Data'!$B:$B,$L106) -> 0 | H106: =-SUMIFS('A Schedule Import Data'!Z:Z,'A Schedule Import Data'!$A:$A,$L$2,'A Schedule Import Data'!$B:$B,$L106) -> 0 | I106: =-SUMIFS('A Schedule Import Data'!CA:CA,'A Schedule Import Data'!$A:$A,$L$2,'A Schedule Import Data'!$B:$B,$L106) -> 0 | J106: =-SUMIFS('A Schedule Import Data'!CB:CB,'A Schedule Import Data'!$A:$A,$L$2,'A Schedule Import Data'!$B:$B,$L106) -> 0 | K106: =-SUMIFS('A Schedule Import Data'!CC:CC,'A Schedule Import Data'!$A:$A,$L$2,'A Schedule Import Data'!$B:$B,$L106) -> 0 | L106: 4202 REV
A107: Water Storage | F107: =-SUMIFS('A Schedule Import Data'!U:U,'A Schedule Import Data'!$A:$A,$L$2,'A Schedule Import Data'!$B:$B,$L107) -> 0 | G107: =-SUMIFS('A Schedule Import Data'!V:V,'A Schedule Import Data'!$A:$A,$L$2,'A Schedule Import Data'!$B:$B,$L107) -> 0 | H107: =-SUMIFS('A Schedule Import Data'!Z:Z,'A Schedule Import Data'!$A:$A,$L$2,'A Schedule Import Data'!$B:$B,$L107) -> 0 | I107: =-SUMIFS('A Schedule Import Data'!CA:CA,'A Schedule Import Data'!$A:$A,$L$2,'A Schedule Import Data'!$B:$B,$L107) -> 0 | J107: =-SUMIFS('A Schedule Import Data'!CB:CB,'A Schedule Import Data'!$A:$A,$L$2,'A Schedule Import Data'!$B:$B,$L107) -> 0 | K107: =-SUMIFS('A Schedule Import Data'!CC:CC,'A Schedule Import Data'!$A:$A,$L$2,'A Schedule Import Data'!$B:$B,$L107) -> 0 | L107: 4203 REV
A108: Waste water management | C108: =SUM(C109:C112) -> 0 | D108: =SUM(D109:D112) -> 0 | E108: 0 | F108: =SUM(F109:F112) -> 0 | G108: 0 | H108: 0 | I108: 0 | J108: 0 | K108: 0 | L108: 4300 REV
A109: Public Toilets | F109: =-SUMIFS('A Schedule Import Data'!U:U,'A Schedule Import Data'!$A:$A,$L$2,'A Schedule Import Data'!$B:$B,$L109) -> 0 | G109: =-SUMIFS('A Schedule Import Data'!V:V,'A Schedule Import Data'!$A:$A,$L$2,'A Schedule Import Data'!$B:$B,$L109) -> 0 | H109: =-SUMIFS('A Schedule Import Data'!Z:Z,'A Schedule Import Data'!$A:$A,$L$2,'A Schedule Import Data'!$B:$B,$L109) -> 0 | I109: =-SUMIFS('A Schedule Import Data'!CA:CA,'A Schedule Import Data'!$A:$A,$L$2,'A Schedule Import Data'!$B:$B,$L109) -> 0 | J109: =-SUMIFS('A Schedule Import Data'!CB:CB,'A Schedule Import Data'!$A:$A,$L$2,'A Schedule Import Data'!$B:$B,$L109) -> 0 | K109: =-SUMIFS('A Schedule Import Data'!CC:CC,'A Schedule Import Data'!$A:$A,$L$2,'A Schedule Import Data'!$B:$B,$L109) -> 0 | L109: 4301 REV
A110: Sewerage | F110: =-SUMIFS('A Schedule Import Data'!U:U,'A Schedule Import Data'!$A:$A,$L$2,'A Schedule Import Data'!$B:$B,$L110) -> 0 | G110: =-SUMIFS('A Schedule Import Data'!V:V,'A Schedule Import Data'!$A:$A,$L$2,'A Schedule Import Data'!$B:$B,$L110) -> 0 | H110: =-SUMIFS('A Schedule Import Data'!Z:Z,'A Schedule Import Data'!$A:$A,$L$2,'A Schedule Import Data'!$B:$B,$L110) -> 0 | I110: =-SUMIFS('A Schedule Import Data'!CA:CA,'A Schedule Import Data'!$A:$A,$L$2,'A Schedule Import Data'!$B:$B,$L110) -> 0 | J110: =-SUMIFS('A Schedule Import Data'!CB:CB,'A Schedule Import Data'!$A:$A,$L$2,'A Schedule Import Data'!$B:$B,$L110) -> 0 | K110: =-SUMIFS('A Schedule Import Data'!CC:CC,'A Schedule Import Data'!$A:$A,$L$2,'A Schedule Import Data'!$B:$B,$L110) -> 0 | L110: 4302 REV
A111: Storm Water Management | F111: =-SUMIFS('A Schedule Import Data'!U:U,'A Schedule Import Data'!$A:$A,$L$2,'A Schedule Import Data'!$B:$B,$L111) -> 0 | G111: =-SUMIFS('A Schedule Import Data'!V:V,'A Schedule Import Data'!$A:$A,$L$2,'A Schedule Import Data'!$B:$B,$L111) -> 0 | H111: =-SUMIFS('A Schedule Import Data'!Z:Z,'A Schedule Import Data'!$A:$A,$L$2,'A Schedule Import Data'!$B:$B,$L111) -> 0 | I111: =-SUMIFS('A Schedule Import Data'!CA:CA,'A Schedule Import Data'!$A:$A,$L$2,'A Schedule Import Data'!$B:$B,$L111) -> 0 | J111: =-SUMIFS('A Schedule Import Data'!CB:CB,'A Schedule Import Data'!$A:$A,$L$2,'A Schedule Import Data'!$B:$B,$L111) -> 0 | K111: =-SUMIFS('A Schedule Import Data'!CC:CC,'A Schedule Import Data'!$A:$A,$L$2,'A Schedule Import Data'!$B:$B,$L111) -> 0 | L111: 4303 REV
A112: Waste Water Treatment | F112: =-SUMIFS('A Schedule Import Data'!U:U,'A Schedule Import Data'!$A:$A,$L$2,'A Schedule Import Data'!$B:$B,$L112) -> 0 | G112: =-SUMIFS('A Schedule Import Data'!V:V,'A Schedule Import Data'!$A:$A,$L$2,'A Schedule Import Data'!$B:$B,$L112) -> 0 | H112: =-SUMIFS('A Schedule Import Data'!Z:Z,'A Schedule Import Data'!$A:$A,$L$2,'A Schedule Import Data'!$B:$B,$L112) -> 0 | I112: =-SUMIFS('A Schedule Import Data'!CA:CA,'A Schedule Import Data'!$A:$A,$L$2,'A Schedule Import Data'!$B:$B,$L112) -> 0 | J112: =-SUMIFS('A Schedule Import Data'!CB:CB,'A Schedule Import Data'!$A:$A,$L$2,'A Schedule Import Data'!$B:$B,$L112) -> 0 | K112: =-SUMIFS('A Schedule Import Data'!CC:CC,'A Schedule Import Data'!$A:$A,$L$2,'A Schedule Import Data'!$B:$B,$L112) -> 0 | L112: 4304 REV
A113: Waste management | C113: =SUM(C114:C117) -> 1464002 | D113: =SUM(D114:D117) -> 1681650 | E113: 0 | F113: =SUM(F114:F117) -> 1990711 | G113: 1990711 | H113: 1990711 | I113: 2094228 | J113: 2207316 | K113: 2328718 | L113: 4400 REV
A114: Recycling | F114: =-SUMIFS('A Schedule Import Data'!U:U,'A Schedule Import Data'!$A:$A,$L$2,'A Schedule Import Data'!$B:$B,$L114) -> 0 | G114: =-SUMIFS('A Schedule Import Data'!V:V,'A Schedule Import Data'!$A:$A,$L$2,'A Schedule Import Data'!$B:$B,$L114) -> 0 | H114: =-SUMIFS('A Schedule Import Data'!Z:Z,'A Schedule Import Data'!$A:$A,$L$2,'A Schedule Import Data'!$B:$B,$L114) -> 0 | I114: =-SUMIFS('A Schedule Import Data'!CA:CA,'A Schedule Import Data'!$A:$A,$L$2,'A Schedule Import Data'!$B:$B,$L114) -> 0 | J114: =-SUMIFS('A Schedule Import Data'!CB:CB,'A Schedule Import Data'!$A:$A,$L$2,'A Schedule Import Data'!$B:$B,$L114) -> 0 | K114: =-SUMIFS('A Schedule Import Data'!CC:CC,'A Schedule Import Data'!$A:$A,$L$2,'A Schedule Import Data'!$B:$B,$L114) -> 0 | L114: 4401 REV
A115: Solid Waste Disposal (Landfill Sites) | F115: =-SUMIFS('A Schedule Import Data'!U:U,'A Schedule Import Data'!$A:$A,$L$2,'A Schedule Import Data'!$B:$B,$L115) -> 0 | G115: =-SUMIFS('A Schedule Import Data'!V:V,'A Schedule Import Data'!$A:$A,$L$2,'A Schedule Import Data'!$B:$B,$L115) -> 0 | H115: =-SUMIFS('A Schedule Import Data'!Z:Z,'A Schedule Import Data'!$A:$A,$L$2,'A Schedule Import Data'!$B:$B,$L115) -> 0 | I115: =-SUMIFS('A Schedule Import Data'!CA:CA,'A Schedule Import Data'!$A:$A,$L$2,'A Schedule Import Data'!$B:$B,$L115) -> 0 | J115: =-SUMIFS('A Schedule Import Data'!CB:CB,'A Schedule Import Data'!$A:$A,$L$2,'A Schedule Import Data'!$B:$B,$L115) -> 0 | K115: =-SUMIFS('A Schedule Import Data'!CC:CC,'A Schedule Import Data'!$A:$A,$L$2,'A Schedule Import Data'!$B:$B,$L115) -> 0 | L115: 4402 REV
A116: Solid Waste Removal | C116: =1463902+100 -> 1464002 | D116: 1681650 | F116: =-SUMIFS('A Schedule Import Data'!U:U,'A Schedule Import Data'!$A:$A,$L$2,'A Schedule Import Data'!$B:$B,$L116) -> 1990711 | G116: =-SUMIFS('A Schedule Import Data'!V:V,'A Schedule Import Data'!$A:$A,$L$2,'A Schedule Import Data'!$B:$B,$L116) -> 1990711 | H116: =-SUMIFS('A Schedule Import Data'!Z:Z,'A Schedule Import Data'!$A:$A,$L$2,'A Schedule Import Data'!$B:$B,$L116) -> 1990711 | I116: =-SUMIFS('A Schedule Import Data'!CA:CA,'A Schedule Import Data'!$A:$A,$L$2,'A Schedule Import Data'!$B:$B,$L116) -> 2094228 | J116: =-SUMIFS('A Schedule Import Data'!CB:CB,'A Schedule Import Data'!$A:$A,$L$2,'A Schedule Import Data'!$B:$B,$L116) -> 2207316 | K116: =-SUMIFS('A Schedule Import Data'!CC:CC,'A Schedule Import Data'!$A:$A,$L$2,'A Schedule Import Data'!$B:$B,$L116) -> 2328718 | L116: 4403 REV
A117: Street Cleaning | F117: =-SUMIFS('A Schedule Import Data'!U:U,'A Schedule Import Data'!$A:$A,$L$2,'A Schedule Import Data'!$B:$B,$L117) -> 0 | G117: =-SUMIFS('A Schedule Import Data'!V:V,'A Schedule Import Data'!$A:$A,$L$2,'A Schedule Import Data'!$B:$B,$L117) -> 0 | H117: =-SUMIFS('A Schedule Import Data'!Z:Z,'A Schedule Import Data'!$A:$A,$L$2,'A Schedule Import Data'!$B:$B,$L117) -> 0 | I117: =-SUMIFS('A Schedule Import Data'!CA:CA,'A Schedule Import Data'!$A:$A,$L$2,'A Schedule Import Data'!$B:$B,$L117) -> 0 | J117: =-SUMIFS('A Schedule Import Data'!CB:CB,'A Schedule Import Data'!$A:$A,$L$2,'A Schedule Import Data'!$B:$B,$L117) -> 0 | K117: =-SUMIFS('A Schedule Import Data'!CC:CC,'A Schedule Import Data'!$A:$A,$L$2,'A Schedule Import Data'!$B:$B,$L117) -> 0 | L117: 4404 REV
A118: Other | C118: =SUM(C119:C124) -> 0 | D118: =SUM(D119:D124) -> 0 | E118: 0 | F118: =SUM(F119:F124) -> 0 | G118: 0 | H118: 0 | I118: 0 | J118: 0 | K118: 0 | L118: 5000 REV
A119: Abattoirs | F119: =-SUMIFS('A Schedule Import Data'!U:U,'A Schedule Import Data'!$A:$A,$L$2,'A Schedule Import Data'!$B:$B,$L119) -> 0 | G119: =-SUMIFS('A Schedule Import Data'!V:V,'A Schedule Import Data'!$A:$A,$L$2,'A Schedule Import Data'!$B:$B,$L119) -> 0 | H119: =-SUMIFS('A Schedule Import Data'!Z:Z,'A Schedule Import Data'!$A:$A,$L$2,'A Schedule Import Data'!$B:$B,$L119) -> 0 | I119: =-SUMIFS('A Schedule Import Data'!CA:CA,'A Schedule Import Data'!$A:$A,$L$2,'A Schedule Import Data'!$B:$B,$L119) -> 0 | J119: =-SUMIFS('A Schedule Import Data'!CB:CB,'A Schedule Import Data'!$A:$A,$L$2,'A Schedule Import Data'!$B:$B,$L119) -> 0 | K119: =-SUMIFS('A Schedule Import Data'!CC:CC,'A Schedule Import Data'!$A:$A,$L$2,'A Schedule Import Data'!$B:$B,$L119) -> 0 | L119: 5001 REV
A120: Air Transport | F120: =-SUMIFS('A Schedule Import Data'!U:U,'A Schedule Import Data'!$A:$A,$L$2,'A Schedule Import Data'!$B:$B,$L120) -> 0 | G120: =-SUMIFS('A Schedule Import Data'!V:V,'A Schedule Import Data'!$A:$A,$L$2,'A Schedule Import Data'!$B:$B,$L120) -> 0 | H120: =-SUMIFS('A Schedule Import Data'!Z:Z,'A Schedule Import Data'!$A:$A,$L$2,'A Schedule Import Data'!$B:$B,$L120) -> 0 | I120: =-SUMIFS('A Schedule Import Data'!CA:CA,'A Schedule Import Data'!$A:$A,$L$2,'A Schedule Import Data'!$B:$B,$L120) -> 0 | J120: =-SUMIFS('A Schedule Import Data'!CB:CB,'A Schedule Import Data'!$A:$A,$L$2,'A Schedule Import Data'!$B:$B,$L120) -> 0 | K120: =-SUMIFS('A Schedule Import Data'!CC:CC,'A Schedule Import Data'!$A:$A,$L$2,'A Schedule Import Data'!$B:$B,$L120) -> 0 | L120: 5002 REV
A121: Forestry | F121: =-SUMIFS('A Schedule Import Data'!U:U,'A Schedule Import Data'!$A:$A,$L$2,'A Schedule Import Data'!$B:$B,$L121) -> 0 | G121: =-SUMIFS('A Schedule Import Data'!V:V,'A Schedule Import Data'!$A:$A,$L$2,'A Schedule Import Data'!$B:$B,$L121) -> 0 | H121: =-SUMIFS('A Schedule Import Data'!Z:Z,'A Schedule Import Data'!$A:$A,$L$2,'A Schedule Import Data'!$B:$B,$L121) -> 0 | I121: =-SUMIFS('A Schedule Import Data'!CA:CA,'A Schedule Import Data'!$A:$A,$L$2,'A Schedule Import Data'!$B:$B,$L121) -> 0 | J121: =-SUMIFS('A Schedule Import Data'!CB:CB,'A Schedule Import Data'!$A:$A,$L$2,'A Schedule Import Data'!$B:$B,$L121) -> 0 | K121: =-SUMIFS('A Schedule Import Data'!CC:CC,'A Schedule Import Data'!$A:$A,$L$2,'A Schedule Import Data'!$B:$B,$L121) -> 0 | L121: 5003 REV
A122: Licensing and Regulation | F122: =-SUMIFS('A Schedule Import Data'!U:U,'A Schedule Import Data'!$A:$A,$L$2,'A Schedule Import Data'!$B:$B,$L122) -> 0 | G122: =-SUMIFS('A Schedule Import Data'!V:V,'A Schedule Import Data'!$A:$A,$L$2,'A Schedule Import Data'!$B:$B,$L122) -> 0 | H122: =-SUMIFS('A Schedule Import Data'!Z:Z,'A Schedule Import Data'!$A:$A,$L$2,'A Schedule Import Data'!$B:$B,$L122) -> 0 | I122: =-SUMIFS('A Schedule Import Data'!CA:CA,'A Schedule Import Data'!$A:$A,$L$2,'A Schedule Import Data'!$B:$B,$L122) -> 0 | J122: =-SUMIFS('A Schedule Import Data'!CB:CB,'A Schedule Import Data'!$A:$A,$L$2,'A Schedule Import Data'!$B:$B,$L122) -> 0 | K122: =-SUMIFS('A Schedule Import Data'!CC:CC,'A Schedule Import Data'!$A:$A,$L$2,'A Schedule Import Data'!$B:$B,$L122) -> 0 | L122: 5004 REV
A123: Markets | F123: =-SUMIFS('A Schedule Import Data'!U:U,'A Schedule Import Data'!$A:$A,$L$2,'A Schedule Import Data'!$B:$B,$L123) -> 0 | G123: =-SUMIFS('A Schedule Import Data'!V:V,'A Schedule Import Data'!$A:$A,$L$2,'A Schedule Import Data'!$B:$B,$L123) -> 0 | H123: =-SUMIFS('A Schedule Import Data'!Z:Z,'A Schedule Import Data'!$A:$A,$L$2,'A Schedule Import Data'!$B:$B,$L123) -> 0 | I123: =-SUMIFS('A Schedule Import Data'!CA:CA,'A Schedule Import Data'!$A:$A,$L$2,'A Schedule Import Data'!$B:$B,$L123) -> 0 | J123: =-SUMIFS('A Schedule Import Data'!CB:CB,'A Schedule Import Data'!$A:$A,$L$2,'A Schedule Import Data'!$B:$B,$L123) -> 0 | K123: =-SUMIFS('A Schedule Import Data'!CC:CC,'A Schedule Import Data'!$A:$A,$L$2,'A Schedule Import Data'!$B:$B,$L123) -> 0 | L123: 5005 REV
A124: Tourism | F124: =-SUMIFS('A Schedule Import Data'!U:U,'A Schedule Import Data'!$A:$A,$L$2,'A Schedule Import Data'!$B:$B,$L124) -> 0 | G124: =-SUMIFS('A Schedule Import Data'!V:V,'A Schedule Import Data'!$A:$A,$L$2,'A Schedule Import Data'!$B:$B,$L124) -> 0 | H124: =-SUMIFS('A Schedule Import Data'!Z:Z,'A Schedule Import Data'!$A:$A,$L$2,'A Schedule Import Data'!$B:$B,$L124) -> 0 | I124: =-SUMIFS('A Schedule Import Data'!CA:CA,'A Schedule Import Data'!$A:$A,$L$2,'A Schedule Import Data'!$B:$B,$L124) -> 0 | J124: =-SUMIFS('A Schedule Import Data'!CB:CB,'A Schedule Import Data'!$A:$A,$L$2,'A Schedule Import Data'!$B:$B,$L124) -> 0 | K124: =-SUMIFS('A Schedule Import Data'!CC:CC,'A Schedule Import Data'!$A:$A,$L$2,'A Schedule Import Data'!$B:$B,$L124) -> 0 | L124: 5006 REV
A125: ="Total "&A4 -> Total Revenue - Functional | B125: 2 | C125: =C5+C26+C73+C99+C118 -> 165126518 | D125: 202247140 | E125: 160854438 | F125: =F5+F26+F73+F99+F118 -> 182181085 | G125: 180880946 | H125: 182181085 | I125: 183110789 | J125: 198670258 | K125: 185437361
A127: Expenditure - Functional
A128: =A5 -> Municipal governance and administration | C128: =C129+C132+C147 -> 60934760 | D128: 80298543 | E128: 121945552 | F128: =F129+F132+F147 -> 85447100 | G128: 85875640 | H128: 85447100 | I128: 88228658 | J128: 72115416 | K128: 76433940 | L128: 1000 EXP
A129: Executive and council | C129: =SUM(C130:C131) -> 12683609 | D129: 13222429 | E129: 0 | F129: =SUM(F130:F131) -> 13032771 | G129: 22910955 | H129: 13032771 | I129: 23501231 | J129: 24770296 | K129: 26132658 | L129: 1100 EXP
A130: Mayor and Council | C130: 12683609 | D130: 13222429 | F130: =SUMIFS('A Schedule Import Data'!U:U,'A Schedule Import Data'!$A:$A,$L$2,'A Schedule Import Data'!$B:$B,$L130) -> 13032771 | G130: =SUMIFS('A Schedule Import Data'!V:V,'A Schedule Import Data'!$A:$A,$L$2,'A Schedule Import Data'!$B:$B,$L130) -> 12119627 | H130: =SUMIFS('A Schedule Import Data'!Z:Z,'A Schedule Import Data'!$A:$A,$L$2,'A Schedule Import Data'!$B:$B,$L130) -> 13032771 | I130: =SUMIFS('A Schedule Import Data'!CA:CA,'A Schedule Import Data'!$A:$A,$L$2,'A Schedule Import Data'!$B:$B,$L130) -> 12283889 | J130: =SUMIFS('A Schedule Import Data'!CB:CB,'A Schedule Import Data'!$A:$A,$L$2,'A Schedule Import Data'!$B:$B,$L130) -> 12947216 | K130: =SUMIFS('A Schedule Import Data'!CC:CC,'A Schedule Import Data'!$A:$A,$L$2,'A Schedule Import Data'!$B:$B,$L130) -> 13659311 | L130: 1110 EXP
A131: Municipal Manager, Town Secretary and Chief Executive | F131: =SUMIFS('A Schedule Import Data'!U:U,'A Schedule Import Data'!$A:$A,$L$2,'A Schedule Import Data'!$B:$B,$L131) -> 0 | G131: =SUMIFS('A Schedule Import Data'!V:V,'A Schedule Import Data'!$A:$A,$L$2,'A Schedule Import Data'!$B:$B,$L131) -> 10791328 | H131: =SUMIFS('A Schedule Import Data'!Z:Z,'A Schedule Import Data'!$A:$A,$L$2,'A Schedule Import Data'!$B:$B,$L131) -> 0 | I131: =SUMIFS('A Schedule Import Data'!CA:CA,'A Schedule Import Data'!$A:$A,$L$2,'A Schedule Import Data'!$B:$B,$L131) -> 11217342 | J131: =SUMIFS('A Schedule Import Data'!CB:CB,'A Schedule Import Data'!$A:$A,$L$2,'A Schedule Import Data'!$B:$B,$L131) -> 11823080 | K131: =SUMIFS('A Schedule Import Data'!CC:CC,'A Schedule Import Data'!$A:$A,$L$2,'A Schedule Import Data'!$B:$B,$L131) -> 12473347 | L131: 1120 EXP
A132: Finance and administration | C132: =SUM(C133:C146) -> 48251151 | D132: =SUM(D133:D146) -> 67076114 | E132: 121945552 | F132: =SUM(F133:F146) -> 61517002 | G132: 62964685 | H132: 61517002 | I132: 64727427 | J132: 47345120 | K132: 50301282 | L132: 1200 EXP
A133: Administrative and Corporate Support | C133: 15190273 | D133: 36604994 | F133: =SUMIFS('A Schedule Import Data'!U:U,'A Schedule Import Data'!$A:$A,$L$2,'A Schedule Import Data'!$B:$B,$L133) -> 23698236 | G133: =SUMIFS('A Schedule Import Data'!V:V,'A Schedule Import Data'!$A:$A,$L$2,'A Schedule Import Data'!$B:$B,$L133) -> 24528536 | H133: =SUMIFS('A Schedule Import Data'!Z:Z,'A Schedule Import Data'!$A:$A,$L$2,'A Schedule Import Data'!$B:$B,$L133) -> 23698236 | I133: =SUMIFS('A Schedule Import Data'!CA:CA,'A Schedule Import Data'!$A:$A,$L$2,'A Schedule Import Data'!$B:$B,$L133) -> 25518152 | J133: =SUMIFS('A Schedule Import Data'!CB:CB,'A Schedule Import Data'!$A:$A,$L$2,'A Schedule Import Data'!$B:$B,$L133) -> 26876086 | K133: =SUMIFS('A Schedule Import Data'!CC:CC,'A Schedule Import Data'!$A:$A,$L$2,'A Schedule Import Data'!$B:$B,$L133) -> 28707005 | L133: 1201 EXP
A134: Asset Management | F134: =SUMIFS('A Schedule Import Data'!U:U,'A Schedule Import Data'!$A:$A,$L$2,'A Schedule Import Data'!$B:$B,$L134) -> 0 | G134: =SUMIFS('A Schedule Import Data'!V:V,'A Schedule Import Data'!$A:$A,$L$2,'A Schedule Import Data'!$B:$B,$L134) -> 0 | H134: =SUMIFS('A Schedule Import Data'!Z:Z,'A Schedule Import Data'!$A:$A,$L$2,'A Schedule Import Data'!$B:$B,$L134) -> 0 | I134: =SUMIFS('A Schedule Import Data'!CA:CA,'A Schedule Import Data'!$A:$A,$L$2,'A Schedule Import Data'!$B:$B,$L134) -> 0 | J134: =SUMIFS('A Schedule Import Data'!CB:CB,'A Schedule Import Data'!$A:$A,$L$2,'A Schedule Import Data'!$B:$B,$L134) -> 0 | K134: =SUMIFS('A Schedule Import Data'!CC:CC,'A Schedule Import Data'!$A:$A,$L$2,'A Schedule Import Data'!$B:$B,$L134) -> 0 | L134: 1202 EXP
A135: Budget and Treasury Office | C135: 33060878 | D135: 30471120 | E135: 121945552 | F135: =SUMIFS('A Schedule Import Data'!U:U,'A Schedule Import Data'!$A:$A,$L$2,'A Schedule Import Data'!$B:$B,$L135) -> 37268766 | G135: =SUMIFS('A Schedule Import Data'!V:V,'A Schedule Import Data'!$A:$A,$L$2,'A Schedule Import Data'!$B:$B,$L135) -> 37886149 | H135: =SUMIFS('A Schedule Import Data'!Z:Z,'A Schedule Import Data'!$A:$A,$L$2,'A Schedule Import Data'!$B:$B,$L135) -> 37268766 | I135: 38630675 | J135: =SUMIFS('A Schedule Import Data'!CB:CB,'A Schedule Import Data'!$A:$A,$L$2,'A Schedule Import Data'!$B:$B,$L135) -> 19859190 | K135: =SUMIFS('A Schedule Import Data'!CC:CC,'A Schedule Import Data'!$A:$A,$L$2,'A Schedule Import Data'!$B:$B,$L135) -> 20950891 | L135: 1203 EXP
A136: Finance | F136: =SUMIFS('A Schedule Import Data'!U:U,'A Schedule Import Data'!$A:$A,$L$2,'A Schedule Import Data'!$B:$B,$L136) -> 0 | G136: =SUMIFS('A Schedule Import Data'!V:V,'A Schedule Import Data'!$A:$A,$L$2,'A Schedule Import Data'!$B:$B,$L136) -> 0 | H136: =SUMIFS('A Schedule Import Data'!Z:Z,'A Schedule Import Data'!$A:$A,$L$2,'A Schedule Import Data'!$B:$B,$L136) -> 0 | I136: =SUMIFS('A Schedule Import Data'!CA:CA,'A Schedule Import Data'!$A:$A,$L$2,'A Schedule Import Data'!$B:$B,$L136) -> 0 | J136: =SUMIFS('A Schedule Import Data'!CB:CB,'A Schedule Import Data'!$A:$A,$L$2,'A Schedule Import Data'!$B:$B,$L136) -> 0 | K136: =SUMIFS('A Schedule Import Data'!CC:CC,'A Schedule Import Data'!$A:$A,$L$2,'A Schedule Import Data'!$B:$B,$L136) -> 0 | L136: 1204 EXP
A137: Fleet Management | F137: =SUMIFS('A Schedule Import Data'!U:U,'A Schedule Import Data'!$A:$A,$L$2,'A Schedule Import Data'!$B:$B,$L137) -> 0 | G137: =SUMIFS('A Schedule Import Data'!V:V,'A Schedule Import Data'!$A:$A,$L$2,'A Schedule Import Data'!$B:$B,$L137) -> 0 | H137: =SUMIFS('A Schedule Import Data'!Z:Z,'A Schedule Import Data'!$A:$A,$L$2,'A Schedule Import Data'!$B:$B,$L137) -> 0 | I137: =SUMIFS('A Schedule Import Data'!CA:CA,'A Schedule Import Data'!$A:$A,$L$2,'A Schedule Import Data'!$B:$B,$L137) -> 0 | J137: =SUMIFS('A Schedule Import Data'!CB:CB,'A Schedule Import Data'!$A:$A,$L$2,'A Schedule Import Data'!$B:$B,$L137) -> 0 | K137: =SUMIFS('A Schedule Import Data'!CC:CC,'A Schedule Import Data'!$A:$A,$L$2,'A Schedule Import Data'!$B:$B,$L137) -> 0 | L137: 1205 EXP
A138: Human Resources | F138: =SUMIFS('A Schedule Import Data'!U:U,'A Schedule Import Data'!$A:$A,$L$2,'A Schedule Import Data'!$B:$B,$L138) -> 0 | G138: =SUMIFS('A Schedule Import Data'!V:V,'A Schedule Import Data'!$A:$A,$L$2,'A Schedule Import Data'!$B:$B,$L138) -> 0 | H138: =SUMIFS('A Schedule Import Data'!Z:Z,'A Schedule Import Data'!$A:$A,$L$2,'A Schedule Import Data'!$B:$B,$L138) -> 0 | I138: =SUMIFS('A Schedule Import Data'!CA:CA,'A Schedule Import Data'!$A:$A,$L$2,'A Schedule Import Data'!$B:$B,$L138) -> 0 | J138: =SUMIFS('A Schedule Import Data'!CB:CB,'A Schedule Import Data'!$A:$A,$L$2,'A Schedule Import Data'!$B:$B,$L138) -> 0 | K138: =SUMIFS('A Schedule Import Data'!CC:CC,'A Schedule Import Data'!$A:$A,$L$2,'A Schedule Import Data'!$B:$B,$L138) -> 0 | L138: 1206 EXP
A139: Information Technology | F139: =SUMIFS('A Schedule Import Data'!U:U,'A Schedule Import Data'!$A:$A,$L$2,'A Schedule Import Data'!$B:$B,$L139) -> 0 | G139: =SUMIFS('A Schedule Import Data'!V:V,'A Schedule Import Data'!$A:$A,$L$2,'A Schedule Import Data'!$B:$B,$L139) -> 0 | H139: =SUMIFS('A Schedule Import Data'!Z:Z,'A Schedule Import Data'!$A:$A,$L$2,'A Schedule Import Data'!$B:$B,$L139) -> 0 | I139: =SUMIFS('A Schedule Import Data'!CA:CA,'A Schedule Import Data'!$A:$A,$L$2,'A Schedule Import Data'!$B:$B,$L139) -> 0 | J139: =SUMIFS('A Schedule Import Data'!CB:CB,'A Schedule Import Data'!$A:$A,$L$2,'A Schedule Import Data'!$B:$B,$L139) -> 0 | K139: =SUMIFS('A Schedule Import Data'!CC:CC,'A Schedule Import Data'!$A:$A,$L$2,'A Schedule Import Data'!$B:$B,$L139) -> 0 | L139: 1207 EXP
A140: Legal Services | F140: =SUMIFS('A Schedule Import Data'!U:U,'A Schedule Import Data'!$A:$A,$L$2,'A Schedule Import Data'!$B:$B,$L140) -> 0 | G140: =SUMIFS('A Schedule Import Data'!V:V,'A Schedule Import Data'!$A:$A,$L$2,'A Schedule Import Data'!$B:$B,$L140) -> 0 | H140: =SUMIFS('A Schedule Import Data'!Z:Z,'A Schedule Import Data'!$A:$A,$L$2,'A Schedule Import Data'!$B:$B,$L140) -> 0 | I140: =SUMIFS('A Schedule Import Data'!CA:CA,'A Schedule Import Data'!$A:$A,$L$2,'A Schedule Import Data'!$B:$B,$L140) -> 0 | J140: =SUMIFS('A Schedule Import Data'!CB:CB,'A Schedule Import Data'!$A:$A,$L$2,'A Schedule Import Data'!$B:$B,$L140) -> 0 | K140: =SUMIFS('A Schedule Import Data'!CC:CC,'A Schedule Import Data'!$A:$A,$L$2,'A Schedule Import Data'!$B:$B,$L140) -> 0 | L140: 1208 EXP
A141: Marketing, Customer Relations, Publicity and Media Co-ordination | F141: =SUMIFS('A Schedule Import Data'!U:U,'A Schedule Import Data'!$A:$A,$L$2,'A Schedule Import Data'!$B:$B,$L141) -> 0 | G141: =SUMIFS('A Schedule Import Data'!V:V,'A Schedule Import Data'!$A:$A,$L$2,'A Schedule Import Data'!$B:$B,$L141) -> 0 | H141: =SUMIFS('A Schedule Import Data'!Z:Z,'A Schedule Import Data'!$A:$A,$L$2,'A Schedule Import Data'!$B:$B,$L141) -> 0 | I141: =SUMIFS('A Schedule Import Data'!CA:CA,'A Schedule Import Data'!$A:$A,$L$2,'A Schedule Import Data'!$B:$B,$L141) -> 0 | J141: =SUMIFS('A Schedule Import Data'!CB:CB,'A Schedule Import Data'!$A:$A,$L$2,'A Schedule Import Data'!$B:$B,$L141) -> 0 | K141: =SUMIFS('A Schedule Import Data'!CC:CC,'A Schedule Import Data'!$A:$A,$L$2,'A Schedule Import Data'!$B:$B,$L141) -> 0 | L141: 1209 EXP
A142: Property Services | F142: =SUMIFS('A Schedule Import Data'!U:U,'A Schedule Import Data'!$A:$A,$L$2,'A Schedule Import Data'!$B:$B,$L142) -> 550000 | G142: =SUMIFS('A Schedule Import Data'!V:V,'A Schedule Import Data'!$A:$A,$L$2,'A Schedule Import Data'!$B:$B,$L142) -> 550000 | H142: =SUMIFS('A Schedule Import Data'!Z:Z,'A Schedule Import Data'!$A:$A,$L$2,'A Schedule Import Data'!$B:$B,$L142) -> 550000 | I142: =SUMIFS('A Schedule Import Data'!CA:CA,'A Schedule Import Data'!$A:$A,$L$2,'A Schedule Import Data'!$B:$B,$L142) -> 578600 | J142: =SUMIFS('A Schedule Import Data'!CB:CB,'A Schedule Import Data'!$A:$A,$L$2,'A Schedule Import Data'!$B:$B,$L142) -> 609844 | K142: =SUMIFS('A Schedule Import Data'!CC:CC,'A Schedule Import Data'!$A:$A,$L$2,'A Schedule Import Data'!$B:$B,$L142) -> 643386 | L142: 1210 EXP
A143: Risk Management | F143: =SUMIFS('A Schedule Import Data'!U:U,'A Schedule Import Data'!$A:$A,$L$2,'A Schedule Import Data'!$B:$B,$L143) -> 0 | G143: =SUMIFS('A Schedule Import Data'!V:V,'A Schedule Import Data'!$A:$A,$L$2,'A Schedule Import Data'!$B:$B,$L143) -> 0 | H143: =SUMIFS('A Schedule Import Data'!Z:Z,'A Schedule Import Data'!$A:$A,$L$2,'A Schedule Import Data'!$B:$B,$L143) -> 0 | I143: =SUMIFS('A Schedule Import Data'!CA:CA,'A Schedule Import Data'!$A:$A,$L$2,'A Schedule Import Data'!$B:$B,$L143) -> 0 | J143: =SUMIFS('A Schedule Import Data'!CB:CB,'A Schedule Import Data'!$A:$A,$L$2,'A Schedule Import Data'!$B:$B,$L143) -> 0 | K143: =SUMIFS('A Schedule Import Data'!CC:CC,'A Schedule Import Data'!$A:$A,$L$2,'A Schedule Import Data'!$B:$B,$L143) -> 0 | L143: 1211 EXP
A144: Security Services | F144: =SUMIFS('A Schedule Import Data'!U:U,'A Schedule Import Data'!$A:$A,$L$2,'A Schedule Import Data'!$B:$B,$L144) -> 0 | G144: =SUMIFS('A Schedule Import Data'!V:V,'A Schedule Import Data'!$A:$A,$L$2,'A Schedule Import Data'!$B:$B,$L144) -> 0 | H144: =SUMIFS('A Schedule Import Data'!Z:Z,'A Schedule Import Data'!$A:$A,$L$2,'A Schedule Import Data'!$B:$B,$L144) -> 0 | I144: =SUMIFS('A Schedule Import Data'!CA:CA,'A Schedule Import Data'!$A:$A,$L$2,'A Schedule Import Data'!$B:$B,$L144) -> 0 | J144: =SUMIFS('A Schedule Import Data'!CB:CB,'A Schedule Import Data'!$A:$A,$L$2,'A Schedule Import Data'!$B:$B,$L144) -> 0 | K144: =SUMIFS('A Schedule Import Data'!CC:CC,'A Schedule Import Data'!$A:$A,$L$2,'A Schedule Import Data'!$B:$B,$L144) -> 0 | L144: 1212 EXP
A145: Supply Chain Management | F145: =SUMIFS('A Schedule Import Data'!U:U,'A Schedule Import Data'!$A:$A,$L$2,'A Schedule Import Data'!$B:$B,$L145) -> 0 | G145: =SUMIFS('A Schedule Import Data'!V:V,'A Schedule Import Data'!$A:$A,$L$2,'A Schedule Import Data'!$B:$B,$L145) -> 0 | H145: =SUMIFS('A Schedule Import Data'!Z:Z,'A Schedule Import Data'!$A:$A,$L$2,'A Schedule Import Data'!$B:$B,$L145) -> 0 | I145: =SUMIFS('A Schedule Import Data'!CA:CA,'A Schedule Import Data'!$A:$A,$L$2,'A Schedule Import Data'!$B:$B,$L145) -> 0 | J145: =SUMIFS('A Schedule Import Data'!CB:CB,'A Schedule Import Data'!$A:$A,$L$2,'A Schedule Import Data'!$B:$B,$L145) -> 0 | K145: =SUMIFS('A Schedule Import Data'!CC:CC,'A Schedule Import Data'!$A:$A,$L$2,'A Schedule Import Data'!$B:$B,$L145) -> 0 | L145: 1213 EXP
A146: Valuation Service | F146: =SUMIFS('A Schedule Import Data'!U:U,'A Schedule Import Data'!$A:$A,$L$2,'A Schedule Import Data'!$B:$B,$L146) -> 0 | G146: =SUMIFS('A Schedule Import Data'!V:V,'A Schedule Import Data'!$A:$A,$L$2,'A Schedule Import Data'!$B:$B,$L146) -> 0 | H146: =SUMIFS('A Schedule Import Data'!Z:Z,'A Schedule Import Data'!$A:$A,$L$2,'A Schedule Import Data'!$B:$B,$L146) -> 0 | I146: =SUMIFS('A Schedule Import Data'!CA:CA,'A Schedule Import Data'!$A:$A,$L$2,'A Schedule Import Data'!$B:$B,$L146) -> 0 | J146: =SUMIFS('A Schedule Import Data'!CB:CB,'A Schedule Import Data'!$A:$A,$L$2,'A Schedule Import Data'!$B:$B,$L146) -> 0 | K146: =SUMIFS('A Schedule Import Data'!CC:CC,'A Schedule Import Data'!$A:$A,$L$2,'A Schedule Import Data'!$B:$B,$L146) -> 0 | L146: 1214 EXP
A147: Internal audit | C147: =SUM(C148:C148) -> 0 | D147: 0 | E147: 0 | F147: =SUM(F148:F148) -> 10897327 | G147: 0 | H147: 10897327 | I147: 0 | J147: 0 | K147: 0 | L147: 1300 EXP
A148: Governance Function | F148: =SUMIFS('A Schedule Import Data'!U:U,'A Schedule Import Data'!$A:$A,$L$2,'A Schedule Import Data'!$B:$B,$L148) -> 10897327 | G148: =SUMIFS('A Schedule Import Data'!V:V,'A Schedule Import Data'!$A:$A,$L$2,'A Schedule Import Data'!$B:$B,$L148) -> 0 | H148: =SUMIFS('A Schedule Import Data'!Z:Z,'A Schedule Import Data'!$A:$A,$L$2,'A Schedule Import Data'!$B:$B,$L148) -> 10897327 | I148: =SUMIFS('A Schedule Import Data'!CA:CA,'A Schedule Import Data'!$A:$A,$L$2,'A Schedule Import Data'!$B:$B,$L148) -> 0 | J148: =SUMIFS('A Schedule Import Data'!CB:CB,'A Schedule Import Data'!$A:$A,$L$2,'A Schedule Import Data'!$B:$B,$L148) -> 0 | K148: =SUMIFS('A Schedule Import Data'!CC:CC,'A Schedule Import Data'!$A:$A,$L$2,'A Schedule Import Data'!$B:$B,$L148) -> 0 | L148: 1301 EXP
A149: Community and public safety | C149: =C150+C172+C178+C185+C188 -> 20352390 | D149: 16159090 | E149: 1364866 | F149: =F150+F172+F178+F185+F188 -> 25673754 | G149: 26381208 | H149: 25673754 | I149: 27644342 | J149: 29959541 | K149: 30734956 | L149: 2000 EXP
A150: Community and social services | C150: =SUM(C151:C171) -> 10073456 | D150: =SUM(D151:D171) -> 8908111 | E150: 0 | F150: =SUM(F151:F171) -> 9718053 | G150: 9079056 | H150: 9718053 | I150: 9289881 | J150: 10614012 | K150: 10326348 | L150: 2100 EXP
A151: Aged Care | C151: 10073456 | D151: 8908111 | F151: =SUMIFS('A Schedule Import Data'!U:U,'A Schedule Import Data'!$A:$A,$L$2,'A Schedule Import Data'!$B:$B,$L151) -> 1300000 | G151: =SUMIFS('A Schedule Import Data'!V:V,'A Schedule Import Data'!$A:$A,$L$2,'A Schedule Import Data'!$B:$B,$L151) -> 1390000 | H151: =SUMIFS('A Schedule Import Data'!Z:Z,'A Schedule Import Data'!$A:$A,$L$2,'A Schedule Import Data'!$B:$B,$L151) -> 1300000 | I151: =SUMIFS('A Schedule Import Data'!CA:CA,'A Schedule Import Data'!$A:$A,$L$2,'A Schedule Import Data'!$B:$B,$L151) -> 1390000 | J151: =SUMIFS('A Schedule Import Data'!CB:CB,'A Schedule Import Data'!$A:$A,$L$2,'A Schedule Import Data'!$B:$B,$L151) -> 1465060 | K151: =SUMIFS('A Schedule Import Data'!CC:CC,'A Schedule Import Data'!$A:$A,$L$2,'A Schedule Import Data'!$B:$B,$L151) -> 1545638 | L151: 2101 EXP
A152: =A29 -> Agricultural | F152: =SUMIFS('A Schedule Import Data'!U:U,'A Schedule Import Data'!$A:$A,$L$2,'A Schedule Import Data'!$B:$B,$L152) -> 0 | G152: =SUMIFS('A Schedule Import Data'!V:V,'A Schedule Import Data'!$A:$A,$L$2,'A Schedule Import Data'!$B:$B,$L152) -> 0 | H152: =SUMIFS('A Schedule Import Data'!Z:Z,'A Schedule Import Data'!$A:$A,$L$2,'A Schedule Import Data'!$B:$B,$L152) -> 0 | I152: =SUMIFS('A Schedule Import Data'!CA:CA,'A Schedule Import Data'!$A:$A,$L$2,'A Schedule Import Data'!$B:$B,$L152) -> 0 | J152: =SUMIFS('A Schedule Import Data'!CB:CB,'A Schedule Import Data'!$A:$A,$L$2,'A Schedule Import Data'!$B:$B,$L152) -> 0 | K152: =SUMIFS('A Schedule Import Data'!CC:CC,'A Schedule Import Data'!$A:$A,$L$2,'A Schedule Import Data'!$B:$B,$L152) -> 0 | L152: 2102 EXP
A153: Animal Care and Diseases | F153: =SUMIFS('A Schedule Import Data'!U:U,'A Schedule Import Data'!$A:$A,$L$2,'A Schedule Import Data'!$B:$B,$L153) -> 0 | G153: =SUMIFS('A Schedule Import Data'!V:V,'A Schedule Import Data'!$A:$A,$L$2,'A Schedule Import Data'!$B:$B,$L153) -> 0 | H153: =SUMIFS('A Schedule Import Data'!Z:Z,'A Schedule Import Data'!$A:$A,$L$2,'A Schedule Import Data'!$B:$B,$L153) -> 0 | I153: =SUMIFS('A Schedule Import Data'!CA:CA,'A Schedule Import Data'!$A:$A,$L$2,'A Schedule Import Data'!$B:$B,$L153) -> 0 | J153: =SUMIFS('A Schedule Import Data'!CB:CB,'A Schedule Import Data'!$A:$A,$L$2,'A Schedule Import Data'!$B:$B,$L153) -> 0 | K153: =SUMIFS('A Schedule Import Data'!CC:CC,'A Schedule Import Data'!$A:$A,$L$2,'A Schedule Import Data'!$B:$B,$L153) -> 0 | L153: 2103 EXP
A154: Cemeteries, Funeral Parlours and Crematoriums | F154: =SUMIFS('A Schedule Import Data'!U:U,'A Schedule Import Data'!$A:$A,$L$2,'A Schedule Import Data'!$B:$B,$L154) -> 0 | G154: =SUMIFS('A Schedule Import Data'!V:V,'A Schedule Import Data'!$A:$A,$L$2,'A Schedule Import Data'!$B:$B,$L154) -> 0 | H154: =SUMIFS('A Schedule Import Data'!Z:Z,'A Schedule Import Data'!$A:$A,$L$2,'A Schedule Import Data'!$B:$B,$L154) -> 0 | I154: =SUMIFS('A Schedule Import Data'!CA:CA,'A Schedule Import Data'!$A:$A,$L$2,'A Schedule Import Data'!$B:$B,$L154) -> 95000 | J154: =SUMIFS('A Schedule Import Data'!CB:CB,'A Schedule Import Data'!$A:$A,$L$2,'A Schedule Import Data'!$B:$B,$L154) -> 100130 | K154: =SUMIFS('A Schedule Import Data'!CC:CC,'A Schedule Import Data'!$A:$A,$L$2,'A Schedule Import Data'!$B:$B,$L154) -> 105130 | L154: 2104 EXP
A155: Child Care Facilities | F155: =SUMIFS('A Schedule Import Data'!U:U,'A Schedule Import Data'!$A:$A,$L$2,'A Schedule Import Data'!$B:$B,$L155) -> 0 | G155: =SUMIFS('A Schedule Import Data'!V:V,'A Schedule Import Data'!$A:$A,$L$2,'A Schedule Import Data'!$B:$B,$L155) -> 0 | H155: =SUMIFS('A Schedule Import Data'!Z:Z,'A Schedule Import Data'!$A:$A,$L$2,'A Schedule Import Data'!$B:$B,$L155) -> 0 | I155: =SUMIFS('A Schedule Import Data'!CA:CA,'A Schedule Import Data'!$A:$A,$L$2,'A Schedule Import Data'!$B:$B,$L155) -> 0 | J155: =SUMIFS('A Schedule Import Data'!CB:CB,'A Schedule Import Data'!$A:$A,$L$2,'A Schedule Import Data'!$B:$B,$L155) -> 0 | K155: =SUMIFS('A Schedule Import Data'!CC:CC,'A Schedule Import Data'!$A:$A,$L$2,'A Schedule Import Data'!$B:$B,$L155) -> 0 | L155: 2105 EXP
A156: Community Halls and Facilities | F156: =SUMIFS('A Schedule Import Data'!U:U,'A Schedule Import Data'!$A:$A,$L$2,'A Schedule Import Data'!$B:$B,$L156) -> 1445621 | G156: =SUMIFS('A Schedule Import Data'!V:V,'A Schedule Import Data'!$A:$A,$L$2,'A Schedule Import Data'!$B:$B,$L156) -> 1431621 | H156: =SUMIFS('A Schedule Import Data'!Z:Z,'A Schedule Import Data'!$A:$A,$L$2,'A Schedule Import Data'!$B:$B,$L156) -> 1445621 | I156: =SUMIFS('A Schedule Import Data'!CA:CA,'A Schedule Import Data'!$A:$A,$L$2,'A Schedule Import Data'!$B:$B,$L156) -> 1510784 | J156: =SUMIFS('A Schedule Import Data'!CB:CB,'A Schedule Import Data'!$A:$A,$L$2,'A Schedule Import Data'!$B:$B,$L156) -> 1592369 | K156: =SUMIFS('A Schedule Import Data'!CC:CC,'A Schedule Import Data'!$A:$A,$L$2,'A Schedule Import Data'!$B:$B,$L156) -> 1679950 | L156: 2106 EXP
A157: Consumer Protection | F157: =SUMIFS('A Schedule Import Data'!U:U,'A Schedule Import Data'!$A:$A,$L$2,'A Schedule Import Data'!$B:$B,$L157) -> 0 | G157: =SUMIFS('A Schedule Import Data'!V:V,'A Schedule Import Data'!$A:$A,$L$2,'A Schedule Import Data'!$B:$B,$L157) -> 0 | H157: =SUMIFS('A Schedule Import Data'!Z:Z,'A Schedule Import Data'!$A:$A,$L$2,'A Schedule Import Data'!$B:$B,$L157) -> 0 | I157: =SUMIFS('A Schedule Import Data'!CA:CA,'A Schedule Import Data'!$A:$A,$L$2,'A Schedule Import Data'!$B:$B,$L157) -> 0 | J157: =SUMIFS('A Schedule Import Data'!CB:CB,'A Schedule Import Data'!$A:$A,$L$2,'A Schedule Import Data'!$B:$B,$L157) -> 0 | K157: =SUMIFS('A Schedule Import Data'!CC:CC,'A Schedule Import Data'!$A:$A,$L$2,'A Schedule Import Data'!$B:$B,$L157) -> 0 | L157: 2107 EXP
A158: Cultural Matters | F158: =SUMIFS('A Schedule Import Data'!U:U,'A Schedule Import Data'!$A:$A,$L$2,'A Schedule Import Data'!$B:$B,$L158) -> 4400482 | G158: =SUMIFS('A Schedule Import Data'!V:V,'A Schedule Import Data'!$A:$A,$L$2,'A Schedule Import Data'!$B:$B,$L158) -> 4460482 | H158: =SUMIFS('A Schedule Import Data'!Z:Z,'A Schedule Import Data'!$A:$A,$L$2,'A Schedule Import Data'!$B:$B,$L158) -> 4400482 | I158: =SUMIFS('A Schedule Import Data'!CA:CA,'A Schedule Import Data'!$A:$A,$L$2,'A Schedule Import Data'!$B:$B,$L158) -> 4452209 | J158: =SUMIFS('A Schedule Import Data'!CB:CB,'A Schedule Import Data'!$A:$A,$L$2,'A Schedule Import Data'!$B:$B,$L158) -> 4664601 | K158: =SUMIFS('A Schedule Import Data'!CC:CC,'A Schedule Import Data'!$A:$A,$L$2,'A Schedule Import Data'!$B:$B,$L158) -> 4947009 | L158: 2108 EXP
A159: Disaster Management | F159: =SUMIFS('A Schedule Import Data'!U:U,'A Schedule Import Data'!$A:$A,$L$2,'A Schedule Import Data'!$B:$B,$L159) -> 262000 | G159: =SUMIFS('A Schedule Import Data'!V:V,'A Schedule Import Data'!$A:$A,$L$2,'A Schedule Import Data'!$B:$B,$L159) -> 262000 | H159: =SUMIFS('A Schedule Import Data'!Z:Z,'A Schedule Import Data'!$A:$A,$L$2,'A Schedule Import Data'!$B:$B,$L159) -> 262000 | I159: =SUMIFS('A Schedule Import Data'!CA:CA,'A Schedule Import Data'!$A:$A,$L$2,'A Schedule Import Data'!$B:$B,$L159) -> 237000 | J159: =SUMIFS('A Schedule Import Data'!CB:CB,'A Schedule Import Data'!$A:$A,$L$2,'A Schedule Import Data'!$B:$B,$L159) -> 249798 | K159: =SUMIFS('A Schedule Import Data'!CC:CC,'A Schedule Import Data'!$A:$A,$L$2,'A Schedule Import Data'!$B:$B,$L159) -> 263536 | L159: 2109 EXP
A160: Education | F160: =SUMIFS('A Schedule Import Data'!U:U,'A Schedule Import Data'!$A:$A,$L$2,'A Schedule Import Data'!$B:$B,$L160) -> 0 | G160: =SUMIFS('A Schedule Import Data'!V:V,'A Schedule Import Data'!$A:$A,$L$2,'A Schedule Import Data'!$B:$B,$L160) -> 0 | H160: =SUMIFS('A Schedule Import Data'!Z:Z,'A Schedule Import Data'!$A:$A,$L$2,'A Schedule Import Data'!$B:$B,$L160) -> 0 | I160: =SUMIFS('A Schedule Import Data'!CA:CA,'A Schedule Import Data'!$A:$A,$L$2,'A Schedule Import Data'!$B:$B,$L160) -> 0 | J160: =SUMIFS('A Schedule Import Data'!CB:CB,'A Schedule Import Data'!$A:$A,$L$2,'A Schedule Import Data'!$B:$B,$L160) -> 0 | K160: =SUMIFS('A Schedule Import Data'!CC:CC,'A Schedule Import Data'!$A:$A,$L$2,'A Schedule Import Data'!$B:$B,$L160) -> 0 | L160: 2110 EXP
A161: Indigenous and Customary Law | F161: =SUMIFS('A Schedule Import Data'!U:U,'A Schedule Import Data'!$A:$A,$L$2,'A Schedule Import Data'!$B:$B,$L161) -> 0 | G161: =SUMIFS('A Schedule Import Data'!V:V,'A Schedule Import Data'!$A:$A,$L$2,'A Schedule Import Data'!$B:$B,$L161) -> 0 | H161: =SUMIFS('A Schedule Import Data'!Z:Z,'A Schedule Import Data'!$A:$A,$L$2,'A Schedule Import Data'!$B:$B,$L161) -> 0 | I161: =SUMIFS('A Schedule Import Data'!CA:CA,'A Schedule Import Data'!$A:$A,$L$2,'A Schedule Import Data'!$B:$B,$L161) -> 0 | J161: =SUMIFS('A Schedule Import Data'!CB:CB,'A Schedule Import Data'!$A:$A,$L$2,'A Schedule Import Data'!$B:$B,$L161) -> 0 | K161: =SUMIFS('A Schedule Import Data'!CC:CC,'A Schedule Import Data'!$A:$A,$L$2,'A Schedule Import Data'!$B:$B,$L161) -> 0 | L161: 2111 EXP
A162: Industrial Promotion | F162: =SUMIFS('A Schedule Import Data'!U:U,'A Schedule Import Data'!$A:$A,$L$2,'A Schedule Import Data'!$B:$B,$L162) -> 0 | G162: =SUMIFS('A Schedule Import Data'!V:V,'A Schedule Import Data'!$A:$A,$L$2,'A Schedule Import Data'!$B:$B,$L162) -> 0 | H162: =SUMIFS('A Schedule Import Data'!Z:Z,'A Schedule Import Data'!$A:$A,$L$2,'A Schedule Import Data'!$B:$B,$L162) -> 0 | I162: =SUMIFS('A Schedule Import Data'!CA:CA,'A Schedule Import Data'!$A:$A,$L$2,'A Schedule Import Data'!$B:$B,$L162) -> 0 | J162: =SUMIFS('A Schedule Import Data'!CB:CB,'A Schedule Import Data'!$A:$A,$L$2,'A Schedule Import Data'!$B:$B,$L162) -> 0 | K162: =SUMIFS('A Schedule Import Data'!CC:CC,'A Schedule Import Data'!$A:$A,$L$2,'A Schedule Import Data'!$B:$B,$L162) -> 0 | L162: 2112 EXP
A163: Language Policy | F163: =SUMIFS('A Schedule Import Data'!U:U,'A Schedule Import Data'!$A:$A,$L$2,'A Schedule Import Data'!$B:$B,$L163) -> 0 | G163: =SUMIFS('A Schedule Import Data'!V:V,'A Schedule Import Data'!$A:$A,$L$2,'A Schedule Import Data'!$B:$B,$L163) -> 0 | H163: =SUMIFS('A Schedule Import Data'!Z:Z,'A Schedule Import Data'!$A:$A,$L$2,'A Schedule Import Data'!$B:$B,$L163) -> 0 | I163: =SUMIFS('A Schedule Import Data'!CA:CA,'A Schedule Import Data'!$A:$A,$L$2,'A Schedule Import Data'!$B:$B,$L163) -> 0 | J163: =SUMIFS('A Schedule Import Data'!CB:CB,'A Schedule Import Data'!$A:$A,$L$2,'A Schedule Import Data'!$B:$B,$L163) -> 0 | K163: =SUMIFS('A Schedule Import Data'!CC:CC,'A Schedule Import Data'!$A:$A,$L$2,'A Schedule Import Data'!$B:$B,$L163) -> 0 | L163: 2113 EXP
A164: Libraries and Archives | F164: =SUMIFS('A Schedule Import Data'!U:U,'A Schedule Import Data'!$A:$A,$L$2,'A Schedule Import Data'!$B:$B,$L164) -> 2309950 | G164: =SUMIFS('A Schedule Import Data'!V:V,'A Schedule Import Data'!$A:$A,$L$2,'A Schedule Import Data'!$B:$B,$L164) -> 1534952 | H164: =SUMIFS('A Schedule Import Data'!Z:Z,'A Schedule Import Data'!$A:$A,$L$2,'A Schedule Import Data'!$B:$B,$L164) -> 2309950 | I164: =2414888-810000 -> 1604888 | J164: =SUMIFS('A Schedule Import Data'!CB:CB,'A Schedule Import Data'!$A:$A,$L$2,'A Schedule Import Data'!$B:$B,$L164) -> 2542054 | K164: =SUMIFS('A Schedule Import Data'!CC:CC,'A Schedule Import Data'!$A:$A,$L$2,'A Schedule Import Data'!$B:$B,$L164) -> 1785085 | L164: 2114 EXP
A165: Literacy Programmes | F165: =SUMIFS('A Schedule Import Data'!U:U,'A Schedule Import Data'!$A:$A,$L$2,'A Schedule Import Data'!$B:$B,$L165) -> 0 | G165: =SUMIFS('A Schedule Import Data'!V:V,'A Schedule Import Data'!$A:$A,$L$2,'A Schedule Import Data'!$B:$B,$L165) -> 0 | H165: =SUMIFS('A Schedule Import Data'!Z:Z,'A Schedule Import Data'!$A:$A,$L$2,'A Schedule Import Data'!$B:$B,$L165) -> 0 | I165: =SUMIFS('A Schedule Import Data'!CA:CA,'A Schedule Import Data'!$A:$A,$L$2,'A Schedule Import Data'!$B:$B,$L165) -> 0 | J165: =SUMIFS('A Schedule Import Data'!CB:CB,'A Schedule Import Data'!$A:$A,$L$2,'A Schedule Import Data'!$B:$B,$L165) -> 0 | K165: =SUMIFS('A Schedule Import Data'!CC:CC,'A Schedule Import Data'!$A:$A,$L$2,'A Schedule Import Data'!$B:$B,$L165) -> 0 | L165: 2115 EXP
A166: Media Services | F166: =SUMIFS('A Schedule Import Data'!U:U,'A Schedule Import Data'!$A:$A,$L$2,'A Schedule Import Data'!$B:$B,$L166) -> 0 | G166: =SUMIFS('A Schedule Import Data'!V:V,'A Schedule Import Data'!$A:$A,$L$2,'A Schedule Import Data'!$B:$B,$L166) -> 0 | H166: =SUMIFS('A Schedule Import Data'!Z:Z,'A Schedule Import Data'!$A:$A,$L$2,'A Schedule Import Data'!$B:$B,$L166) -> 0 | I166: =SUMIFS('A Schedule Import Data'!CA:CA,'A Schedule Import Data'!$A:$A,$L$2,'A Schedule Import Data'!$B:$B,$L166) -> 0 | J166: =SUMIFS('A Schedule Import Data'!CB:CB,'A Schedule Import Data'!$A:$A,$L$2,'A Schedule Import Data'!$B:$B,$L166) -> 0 | K166: =SUMIFS('A Schedule Import Data'!CC:CC,'A Schedule Import Data'!$A:$A,$L$2,'A Schedule Import Data'!$B:$B,$L166) -> 0 | L166: 2116 EXP
A167: Museums and Art Galleries | F167: =SUMIFS('A Schedule Import Data'!U:U,'A Schedule Import Data'!$A:$A,$L$2,'A Schedule Import Data'!$B:$B,$L167) -> 0 | G167: =SUMIFS('A Schedule Import Data'!V:V,'A Schedule Import Data'!$A:$A,$L$2,'A Schedule Import Data'!$B:$B,$L167) -> 0 | H167: =SUMIFS('A Schedule Import Data'!Z:Z,'A Schedule Import Data'!$A:$A,$L$2,'A Schedule Import Data'!$B:$B,$L167) -> 0 | I167: =SUMIFS('A Schedule Import Data'!CA:CA,'A Schedule Import Data'!$A:$A,$L$2,'A Schedule Import Data'!$B:$B,$L167) -> 0 | J167: =SUMIFS('A Schedule Import Data'!CB:CB,'A Schedule Import Data'!$A:$A,$L$2,'A Schedule Import Data'!$B:$B,$L167) -> 0 | K167: =SUMIFS('A Schedule Import Data'!CC:CC,'A Schedule Import Data'!$A:$A,$L$2,'A Schedule Import Data'!$B:$B,$L167) -> 0 | L167: 2117 EXP
A168: Population Development | F168: =SUMIFS('A Schedule Import Data'!U:U,'A Schedule Import Data'!$A:$A,$L$2,'A Schedule Import Data'!$B:$B,$L168) -> 0 | G168: =SUMIFS('A Schedule Import Data'!V:V,'A Schedule Import Data'!$A:$A,$L$2,'A Schedule Import Data'!$B:$B,$L168) -> 1 | H168: =SUMIFS('A Schedule Import Data'!Z:Z,'A Schedule Import Data'!$A:$A,$L$2,'A Schedule Import Data'!$B:$B,$L168) -> 0 | I168: =SUMIFS('A Schedule Import Data'!CA:CA,'A Schedule Import Data'!$A:$A,$L$2,'A Schedule Import Data'!$B:$B,$L168) -> 0 | J168: =SUMIFS('A Schedule Import Data'!CB:CB,'A Schedule Import Data'!$A:$A,$L$2,'A Schedule Import Data'!$B:$B,$L168) -> 0 | K168: =SUMIFS('A Schedule Import Data'!CC:CC,'A Schedule Import Data'!$A:$A,$L$2,'A Schedule Import Data'!$B:$B,$L168) -> 0 | L168: 2118 EXP
A169: Provincial Cultural Matters | F169: =SUMIFS('A Schedule Import Data'!U:U,'A Schedule Import Data'!$A:$A,$L$2,'A Schedule Import Data'!$B:$B,$L169) -> 0 | G169: =SUMIFS('A Schedule Import Data'!V:V,'A Schedule Import Data'!$A:$A,$L$2,'A Schedule Import Data'!$B:$B,$L169) -> 0 | H169: =SUMIFS('A Schedule Import Data'!Z:Z,'A Schedule Import Data'!$A:$A,$L$2,'A Schedule Import Data'!$B:$B,$L169) -> 0 | I169: =SUMIFS('A Schedule Import Data'!CA:CA,'A Schedule Import Data'!$A:$A,$L$2,'A Schedule Import Data'!$B:$B,$L169) -> 0 | J169: =SUMIFS('A Schedule Import Data'!CB:CB,'A Schedule Import Data'!$A:$A,$L$2,'A Schedule Import Data'!$B:$B,$L169) -> 0 | K169: =SUMIFS('A Schedule Import Data'!CC:CC,'A Schedule Import Data'!$A:$A,$L$2,'A Schedule Import Data'!$B:$B,$L169) -> 0 | L169: 2119 EXP
A170: Theatres | F170: =SUMIFS('A Schedule Import Data'!U:U,'A Schedule Import Data'!$A:$A,$L$2,'A Schedule Import Data'!$B:$B,$L170) -> 0 | G170: =SUMIFS('A Schedule Import Data'!V:V,'A Schedule Import Data'!$A:$A,$L$2,'A Schedule Import Data'!$B:$B,$L170) -> 0 | H170: =SUMIFS('A Schedule Import Data'!Z:Z,'A Schedule Import Data'!$A:$A,$L$2,'A Schedule Import Data'!$B:$B,$L170) -> 0 | I170: =SUMIFS('A Schedule Import Data'!CA:CA,'A Schedule Import Data'!$A:$A,$L$2,'A Schedule Import Data'!$B:$B,$L170) -> 0 | J170: =SUMIFS('A Schedule Import Data'!CB:CB,'A Schedule Import Data'!$A:$A,$L$2,'A Schedule Import Data'!$B:$B,$L170) -> 0 | K170: =SUMIFS('A Schedule Import Data'!CC:CC,'A Schedule Import Data'!$A:$A,$L$2,'A Schedule Import Data'!$B:$B,$L170) -> 0 | L170: 2120 EXP
A171: Zoo's | F171: =SUMIFS('A Schedule Import Data'!U:U,'A Schedule Import Data'!$A:$A,$L$2,'A Schedule Import Data'!$B:$B,$L171) -> 0 | G171: =SUMIFS('A Schedule Import Data'!V:V,'A Schedule Import Data'!$A:$A,$L$2,'A Schedule Import Data'!$B:$B,$L171) -> 0 | H171: =SUMIFS('A Schedule Import Data'!Z:Z,'A Schedule Import Data'!$A:$A,$L$2,'A Schedule Import Data'!$B:$B,$L171) -> 0 | I171: =SUMIFS('A Schedule Import Data'!CA:CA,'A Schedule Import Data'!$A:$A,$L$2,'A Schedule Import Data'!$B:$B,$L171) -> 0 | J171: =SUMIFS('A Schedule Import Data'!CB:CB,'A Schedule Import Data'!$A:$A,$L$2,'A Schedule Import Data'!$B:$B,$L171) -> 0 | K171: =SUMIFS('A Schedule Import Data'!CC:CC,'A Schedule Import Data'!$A:$A,$L$2,'A Schedule Import Data'!$B:$B,$L171) -> 0 | L171: 2121 EXP
A172: =A49 -> Sport and recreation | C172: =SUM(C173:C177) -> 552318 | D172: 308434 | E172: 0 | F172: =SUM(F173:F177) -> 722735 | G172: 707735 | H172: 722735 | I172: 692650 | J172: 730051 | K172: 770203 | L172: 2200 EXP
A173: Beaches and Jetties | F173: =SUMIFS('A Schedule Import Data'!U:U,'A Schedule Import Data'!$A:$A,$L$2,'A Schedule Import Data'!$B:$B,$L173) -> 0 | G173: =SUMIFS('A Schedule Import Data'!V:V,'A Schedule Import Data'!$A:$A,$L$2,'A Schedule Import Data'!$B:$B,$L173) -> 0 | H173: =SUMIFS('A Schedule Import Data'!Z:Z,'A Schedule Import Data'!$A:$A,$L$2,'A Schedule Import Data'!$B:$B,$L173) -> 0 | I173: =SUMIFS('A Schedule Import Data'!CA:CA,'A Schedule Import Data'!$A:$A,$L$2,'A Schedule Import Data'!$B:$B,$L173) -> 0 | J173: =SUMIFS('A Schedule Import Data'!CB:CB,'A Schedule Import Data'!$A:$A,$L$2,'A Schedule Import Data'!$B:$B,$L173) -> 0 | K173: =SUMIFS('A Schedule Import Data'!CC:CC,'A Schedule Import Data'!$A:$A,$L$2,'A Schedule Import Data'!$B:$B,$L173) -> 0 | L173: 2201 EXP
A174: Casinos, Racing, Gambling, Wagering | F174: =SUMIFS('A Schedule Import Data'!U:U,'A Schedule Import Data'!$A:$A,$L$2,'A Schedule Import Data'!$B:$B,$L174) -> 0 | G174: =SUMIFS('A Schedule Import Data'!V:V,'A Schedule Import Data'!$A:$A,$L$2,'A Schedule Import Data'!$B:$B,$L174) -> 0 | H174: =SUMIFS('A Schedule Import Data'!Z:Z,'A Schedule Import Data'!$A:$A,$L$2,'A Schedule Import Data'!$B:$B,$L174) -> 0 | I174: =SUMIFS('A Schedule Import Data'!CA:CA,'A Schedule Import Data'!$A:$A,$L$2,'A Schedule Import Data'!$B:$B,$L174) -> 0 | J174: =SUMIFS('A Schedule Import Data'!CB:CB,'A Schedule Import Data'!$A:$A,$L$2,'A Schedule Import Data'!$B:$B,$L174) -> 0 | K174: =SUMIFS('A Schedule Import Data'!CC:CC,'A Schedule Import Data'!$A:$A,$L$2,'A Schedule Import Data'!$B:$B,$L174) -> 0 | L174: 2202 EXP
A175: Community Parks (including Nurseries) | F175: =SUMIFS('A Schedule Import Data'!U:U,'A Schedule Import Data'!$A:$A,$L$2,'A Schedule Import Data'!$B:$B,$L175) -> 0 | G175: =SUMIFS('A Schedule Import Data'!V:V,'A Schedule Import Data'!$A:$A,$L$2,'A Schedule Import Data'!$B:$B,$L175) -> 0 | H175: =SUMIFS('A Schedule Import Data'!Z:Z,'A Schedule Import Data'!$A:$A,$L$2,'A Schedule Import Data'!$B:$B,$L175) -> 0 | I175: =SUMIFS('A Schedule Import Data'!CA:CA,'A Schedule Import Data'!$A:$A,$L$2,'A Schedule Import Data'!$B:$B,$L175) -> 0 | J175: =SUMIFS('A Schedule Import Data'!CB:CB,'A Schedule Import Data'!$A:$A,$L$2,'A Schedule Import Data'!$B:$B,$L175) -> 0 | K175: =SUMIFS('A Schedule Import Data'!CC:CC,'A Schedule Import Data'!$A:$A,$L$2,'A Schedule Import Data'!$B:$B,$L175) -> 0 | L175: 2203 EXP
A176: Recreational Facilities | C176: 552318 | D176: 308434 | F176: =SUMIFS('A Schedule Import Data'!U:U,'A Schedule Import Data'!$A:$A,$L$2,'A Schedule Import Data'!$B:$B,$L176) -> 516535 | G176: =SUMIFS('A Schedule Import Data'!V:V,'A Schedule Import Data'!$A:$A,$L$2,'A Schedule Import Data'!$B:$B,$L176) -> 501535 | H176: =SUMIFS('A Schedule Import Data'!Z:Z,'A Schedule Import Data'!$A:$A,$L$2,'A Schedule Import Data'!$B:$B,$L176) -> 516535 | I176: =SUMIFS('A Schedule Import Data'!CA:CA,'A Schedule Import Data'!$A:$A,$L$2,'A Schedule Import Data'!$B:$B,$L176) -> 527355 | J176: =SUMIFS('A Schedule Import Data'!CB:CB,'A Schedule Import Data'!$A:$A,$L$2,'A Schedule Import Data'!$B:$B,$L176) -> 555830 | K176: =SUMIFS('A Schedule Import Data'!CC:CC,'A Schedule Import Data'!$A:$A,$L$2,'A Schedule Import Data'!$B:$B,$L176) -> 586400 | L176: 2204 EXP
A177: Sports Grounds and Stadiums | F177: =SUMIFS('A Schedule Import Data'!U:U,'A Schedule Import Data'!$A:$A,$L$2,'A Schedule Import Data'!$B:$B,$L177) -> 206200 | G177: =SUMIFS('A Schedule Import Data'!V:V,'A Schedule Import Data'!$A:$A,$L$2,'A Schedule Import Data'!$B:$B,$L177) -> 206200 | H177: =SUMIFS('A Schedule Import Data'!Z:Z,'A Schedule Import Data'!$A:$A,$L$2,'A Schedule Import Data'!$B:$B,$L177) -> 206200 | I177: =SUMIFS('A Schedule Import Data'!CA:CA,'A Schedule Import Data'!$A:$A,$L$2,'A Schedule Import Data'!$B:$B,$L177) -> 165295 | J177: =SUMIFS('A Schedule Import Data'!CB:CB,'A Schedule Import Data'!$A:$A,$L$2,'A Schedule Import Data'!$B:$B,$L177) -> 174221 | K177: =SUMIFS('A Schedule Import Data'!CC:CC,'A Schedule Import Data'!$A:$A,$L$2,'A Schedule Import Data'!$B:$B,$L177) -> 183803 | L177: 2205 EXP
A178: Public safety | C178: =SUM(C179:C184) -> 5522088 | D178: 6355612 | E178: 1364866 | F178: =SUM(F179:F184) -> 13968204 | G178: 14933505 | H178: 13968204 | I178: 15524758 | J178: 16363023 | K178: 17262067 | L178: 2300 EXP
A179: Civil Defence | C179: 5522088 | D179: 6355612 | E179: 1364866 | F179: =SUMIFS('A Schedule Import Data'!U:U,'A Schedule Import Data'!$A:$A,$L$2,'A Schedule Import Data'!$B:$B,$L179) -> 7376466 | G179: =SUMIFS('A Schedule Import Data'!V:V,'A Schedule Import Data'!$A:$A,$L$2,'A Schedule Import Data'!$B:$B,$L179) -> 7452399 | H179: =SUMIFS('A Schedule Import Data'!Z:Z,'A Schedule Import Data'!$A:$A,$L$2,'A Schedule Import Data'!$B:$B,$L179) -> 7376466 | I179: =SUMIFS('A Schedule Import Data'!CA:CA,'A Schedule Import Data'!$A:$A,$L$2,'A Schedule Import Data'!$B:$B,$L179) -> 8042563 | J179: =SUMIFS('A Schedule Import Data'!CB:CB,'A Schedule Import Data'!$A:$A,$L$2,'A Schedule Import Data'!$B:$B,$L179) -> 8476790 | K179: =SUMIFS('A Schedule Import Data'!CC:CC,'A Schedule Import Data'!$A:$A,$L$2,'A Schedule Import Data'!$B:$B,$L179) -> 8942090 | L179: 2301 EXP
A180: Cleansing | F180: =SUMIFS('A Schedule Import Data'!U:U,'A Schedule Import Data'!$A:$A,$L$2,'A Schedule Import Data'!$B:$B,$L180) -> 0 | G180: =SUMIFS('A Schedule Import Data'!V:V,'A Schedule Import Data'!$A:$A,$L$2,'A Schedule Import Data'!$B:$B,$L180) -> 0 | H180: =SUMIFS('A Schedule Import Data'!Z:Z,'A Schedule Import Data'!$A:$A,$L$2,'A Schedule Import Data'!$B:$B,$L180) -> 0 | I180: =SUMIFS('A Schedule Import Data'!CA:CA,'A Schedule Import Data'!$A:$A,$L$2,'A Schedule Import Data'!$B:$B,$L180) -> 0 | J180: =SUMIFS('A Schedule Import Data'!CB:CB,'A Schedule Import Data'!$A:$A,$L$2,'A Schedule Import Data'!$B:$B,$L180) -> 0 | K180: =SUMIFS('A Schedule Import Data'!CC:CC,'A Schedule Import Data'!$A:$A,$L$2,'A Schedule Import Data'!$B:$B,$L180) -> 0 | L180: 2302 EXP
A181: Control of Public Nuisances | F181: =SUMIFS('A Schedule Import Data'!U:U,'A Schedule Import Data'!$A:$A,$L$2,'A Schedule Import Data'!$B:$B,$L181) -> 0 | G181: =SUMIFS('A Schedule Import Data'!V:V,'A Schedule Import Data'!$A:$A,$L$2,'A Schedule Import Data'!$B:$B,$L181) -> 0 | H181: =SUMIFS('A Schedule Import Data'!Z:Z,'A Schedule Import Data'!$A:$A,$L$2,'A Schedule Import Data'!$B:$B,$L181) -> 0 | I181: =SUMIFS('A Schedule Import Data'!CA:CA,'A Schedule Import Data'!$A:$A,$L$2,'A Schedule Import Data'!$B:$B,$L181) -> 0 | J181: =SUMIFS('A Schedule Import Data'!CB:CB,'A Schedule Import Data'!$A:$A,$L$2,'A Schedule Import Data'!$B:$B,$L181) -> 0 | K181: =SUMIFS('A Schedule Import Data'!CC:CC,'A Schedule Import Data'!$A:$A,$L$2,'A Schedule Import Data'!$B:$B,$L181) -> 0 | L181: 2303 EXP
A182: =A59 -> Fencing and Fences | F182: =SUMIFS('A Schedule Import Data'!U:U,'A Schedule Import Data'!$A:$A,$L$2,'A Schedule Import Data'!$B:$B,$L182) -> 0 | G182: =SUMIFS('A Schedule Import Data'!V:V,'A Schedule Import Data'!$A:$A,$L$2,'A Schedule Import Data'!$B:$B,$L182) -> 0 | H182: =SUMIFS('A Schedule Import Data'!Z:Z,'A Schedule Import Data'!$A:$A,$L$2,'A Schedule Import Data'!$B:$B,$L182) -> 0 | I182: =SUMIFS('A Schedule Import Data'!CA:CA,'A Schedule Import Data'!$A:$A,$L$2,'A Schedule Import Data'!$B:$B,$L182) -> 0 | J182: =SUMIFS('A Schedule Import Data'!CB:CB,'A Schedule Import Data'!$A:$A,$L$2,'A Schedule Import Data'!$B:$B,$L182) -> 0 | K182: =SUMIFS('A Schedule Import Data'!CC:CC,'A Schedule Import Data'!$A:$A,$L$2,'A Schedule Import Data'!$B:$B,$L182) -> 0 | L182: 2304 EXP
A183: Fire Fighting and Protection | F183: =SUMIFS('A Schedule Import Data'!U:U,'A Schedule Import Data'!$A:$A,$L$2,'A Schedule Import Data'!$B:$B,$L183) -> 6591738 | G183: =SUMIFS('A Schedule Import Data'!V:V,'A Schedule Import Data'!$A:$A,$L$2,'A Schedule Import Data'!$B:$B,$L183) -> 7481106 | H183: =SUMIFS('A Schedule Import Data'!Z:Z,'A Schedule Import Data'!$A:$A,$L$2,'A Schedule Import Data'!$B:$B,$L183) -> 6591738 | I183: =SUMIFS('A Schedule Import Data'!CA:CA,'A Schedule Import Data'!$A:$A,$L$2,'A Schedule Import Data'!$B:$B,$L183) -> 7482195 | J183: =SUMIFS('A Schedule Import Data'!CB:CB,'A Schedule Import Data'!$A:$A,$L$2,'A Schedule Import Data'!$B:$B,$L183) -> 7886233 | K183: =SUMIFS('A Schedule Import Data'!CC:CC,'A Schedule Import Data'!$A:$A,$L$2,'A Schedule Import Data'!$B:$B,$L183) -> 8319977 | L183: 2305 EXP
A184: Licensing and Control of Animals | F184: =SUMIFS('A Schedule Import Data'!U:U,'A Schedule Import Data'!$A:$A,$L$2,'A Schedule Import Data'!$B:$B,$L184) -> 0 | G184: =SUMIFS('A Schedule Import Data'!V:V,'A Schedule Import Data'!$A:$A,$L$2,'A Schedule Import Data'!$B:$B,$L184) -> 0 | H184: =SUMIFS('A Schedule Import Data'!Z:Z,'A Schedule Import Data'!$A:$A,$L$2,'A Schedule Import Data'!$B:$B,$L184) -> 0 | I184: =SUMIFS('A Schedule Import Data'!CA:CA,'A Schedule Import Data'!$A:$A,$L$2,'A Schedule Import Data'!$B:$B,$L184) -> 0 | J184: =SUMIFS('A Schedule Import Data'!CB:CB,'A Schedule Import Data'!$A:$A,$L$2,'A Schedule Import Data'!$B:$B,$L184) -> 0 | K184: =SUMIFS('A Schedule Import Data'!CC:CC,'A Schedule Import Data'!$A:$A,$L$2,'A Schedule Import Data'!$B:$B,$L184) -> 0 | L184: 2306 EXP
A185: Housing | C185: =SUM(C186:C187) -> 4204528 | D185: 586933 | E185: 0 | F185: =SUM(F186:F187) -> 1264762 | G185: 1660912 | H185: 1264762 | I185: 2137053 | J185: 2252455 | K185: 2376338 | L185: 2400 EXP
A186: Housing | C186: 4204528 | D186: 586933 | F186: =SUMIFS('A Schedule Import Data'!U:U,'A Schedule Import Data'!$A:$A,$L$2,'A Schedule Import Data'!$B:$B,$L186) -> 1264762 | G186: =SUMIFS('A Schedule Import Data'!V:V,'A Schedule Import Data'!$A:$A,$L$2,'A Schedule Import Data'!$B:$B,$L186) -> 1660912 | H186: =SUMIFS('A Schedule Import Data'!Z:Z,'A Schedule Import Data'!$A:$A,$L$2,'A Schedule Import Data'!$B:$B,$L186) -> 1264762 | I186: =SUMIFS('A Schedule Import Data'!CA:CA,'A Schedule Import Data'!$A:$A,$L$2,'A Schedule Import Data'!$B:$B,$L186) -> 2137053 | J186: =SUMIFS('A Schedule Import Data'!CB:CB,'A Schedule Import Data'!$A:$A,$L$2,'A Schedule Import Data'!$B:$B,$L186) -> 2252455 | K186: =SUMIFS('A Schedule Import Data'!CC:CC,'A Schedule Import Data'!$A:$A,$L$2,'A Schedule Import Data'!$B:$B,$L186) -> 2376338 | L186: 2401 EXP
A187: Informal Settlements | F187: =SUMIFS('A Schedule Import Data'!U:U,'A Schedule Import Data'!$A:$A,$L$2,'A Schedule Import Data'!$B:$B,$L187) -> 0 | G187: =SUMIFS('A Schedule Import Data'!V:V,'A Schedule Import Data'!$A:$A,$L$2,'A Schedule Import Data'!$B:$B,$L187) -> 0 | H187: =SUMIFS('A Schedule Import Data'!Z:Z,'A Schedule Import Data'!$A:$A,$L$2,'A Schedule Import Data'!$B:$B,$L187) -> 0 | I187: =SUMIFS('A Schedule Import Data'!CA:CA,'A Schedule Import Data'!$A:$A,$L$2,'A Schedule Import Data'!$B:$B,$L187) -> 0 | J187: =SUMIFS('A Schedule Import Data'!CB:CB,'A Schedule Import Data'!$A:$A,$L$2,'A Schedule Import Data'!$B:$B,$L187) -> 0 | K187: =SUMIFS('A Schedule Import Data'!CC:CC,'A Schedule Import Data'!$A:$A,$L$2,'A Schedule Import Data'!$B:$B,$L187) -> 0 | L187: 2402 EXP
A188: Health | C188: =SUM(C189:C195) -> 0 | D188: =SUM(D189:D195) -> 0 | E188: 0 | F188: =SUM(F189:F195) -> 0 | G188: 0 | H188: 0 | I188: 0 | J188: 0 | K188: 0 | L188: 2500 EXP
A189: Ambulance | F189: =SUMIFS('A Schedule Import Data'!U:U,'A Schedule Import Data'!$A:$A,$L$2,'A Schedule Import Data'!$B:$B,$L189) -> 0 | G189: =SUMIFS('A Schedule Import Data'!V:V,'A Schedule Import Data'!$A:$A,$L$2,'A Schedule Import Data'!$B:$B,$L189) -> 0 | H189: =SUMIFS('A Schedule Import Data'!Z:Z,'A Schedule Import Data'!$A:$A,$L$2,'A Schedule Import Data'!$B:$B,$L189) -> 0 | I189: =SUMIFS('A Schedule Import Data'!CA:CA,'A Schedule Import Data'!$A:$A,$L$2,'A Schedule Import Data'!$B:$B,$L189) -> 0 | J189: =SUMIFS('A Schedule Import Data'!CB:CB,'A Schedule Import Data'!$A:$A,$L$2,'A Schedule Import Data'!$B:$B,$L189) -> 0 | K189: =SUMIFS('A Schedule Import Data'!CC:CC,'A Schedule Import Data'!$A:$A,$L$2,'A Schedule Import Data'!$B:$B,$L189) -> 0 | L189: 2501 EXP
A190: Health Services | F190: =SUMIFS('A Schedule Import Data'!U:U,'A Schedule Import Data'!$A:$A,$L$2,'A Schedule Import Data'!$B:$B,$L190) -> 0 | G190: =SUMIFS('A Schedule Import Data'!V:V,'A Schedule Import Data'!$A:$A,$L$2,'A Schedule Import Data'!$B:$B,$L190) -> 0 | H190: =SUMIFS('A Schedule Import Data'!Z:Z,'A Schedule Import Data'!$A:$A,$L$2,'A Schedule Import Data'!$B:$B,$L190) -> 0 | I190: =SUMIFS('A Schedule Import Data'!CA:CA,'A Schedule Import Data'!$A:$A,$L$2,'A Schedule Import Data'!$B:$B,$L190) -> 0 | J190: =SUMIFS('A Schedule Import Data'!CB:CB,'A Schedule Import Data'!$A:$A,$L$2,'A Schedule Import Data'!$B:$B,$L190) -> 0 | K190: =SUMIFS('A Schedule Import Data'!CC:CC,'A Schedule Import Data'!$A:$A,$L$2,'A Schedule Import Data'!$B:$B,$L190) -> 0 | L190: 2502 EXP
A191: Laboratory Services | F191: =SUMIFS('A Schedule Import Data'!U:U,'A Schedule Import Data'!$A:$A,$L$2,'A Schedule Import Data'!$B:$B,$L191) -> 0 | G191: =SUMIFS('A Schedule Import Data'!V:V,'A Schedule Import Data'!$A:$A,$L$2,'A Schedule Import Data'!$B:$B,$L191) -> 0 | H191: =SUMIFS('A Schedule Import Data'!Z:Z,'A Schedule Import Data'!$A:$A,$L$2,'A Schedule Import Data'!$B:$B,$L191) -> 0 | I191: =SUMIFS('A Schedule Import Data'!CA:CA,'A Schedule Import Data'!$A:$A,$L$2,'A Schedule Import Data'!$B:$B,$L191) -> 0 | J191: =SUMIFS('A Schedule Import Data'!CB:CB,'A Schedule Import Data'!$A:$A,$L$2,'A Schedule Import Data'!$B:$B,$L191) -> 0 | K191: =SUMIFS('A Schedule Import Data'!CC:CC,'A Schedule Import Data'!$A:$A,$L$2,'A Schedule Import Data'!$B:$B,$L191) -> 0 | L191: 2503 EXP
A192: Food Control | F192: =SUMIFS('A Schedule Import Data'!U:U,'A Schedule Import Data'!$A:$A,$L$2,'A Schedule Import Data'!$B:$B,$L192) -> 0 | G192: =SUMIFS('A Schedule Import Data'!V:V,'A Schedule Import Data'!$A:$A,$L$2,'A Schedule Import Data'!$B:$B,$L192) -> 0 | H192: =SUMIFS('A Schedule Import Data'!Z:Z,'A Schedule Import Data'!$A:$A,$L$2,'A Schedule Import Data'!$B:$B,$L192) -> 0 | I192: =SUMIFS('A Schedule Import Data'!CA:CA,'A Schedule Import Data'!$A:$A,$L$2,'A Schedule Import Data'!$B:$B,$L192) -> 0 | J192: =SUMIFS('A Schedule Import Data'!CB:CB,'A Schedule Import Data'!$A:$A,$L$2,'A Schedule Import Data'!$B:$B,$L192) -> 0 | K192: =SUMIFS('A Schedule Import Data'!CC:CC,'A Schedule Import Data'!$A:$A,$L$2,'A Schedule Import Data'!$B:$B,$L192) -> 0 | L192: 2504 EXP
A193: Health Surveillance and Prevention of Communicable Diseases including immunizations | F193: =SUMIFS('A Schedule Import Data'!U:U,'A Schedule Import Data'!$A:$A,$L$2,'A Schedule Import Data'!$B:$B,$L193) -> 0 | G193: =SUMIFS('A Schedule Import Data'!V:V,'A Schedule Import Data'!$A:$A,$L$2,'A Schedule Import Data'!$B:$B,$L193) -> 0 | H193: =SUMIFS('A Schedule Import Data'!Z:Z,'A Schedule Import Data'!$A:$A,$L$2,'A Schedule Import Data'!$B:$B,$L193) -> 0 | I193: =SUMIFS('A Schedule Import Data'!CA:CA,'A Schedule Import Data'!$A:$A,$L$2,'A Schedule Import Data'!$B:$B,$L193) -> 0 | J193: =SUMIFS('A Schedule Import Data'!CB:CB,'A Schedule Import Data'!$A:$A,$L$2,'A Schedule Import Data'!$B:$B,$L193) -> 0 | K193: =SUMIFS('A Schedule Import Data'!CC:CC,'A Schedule Import Data'!$A:$A,$L$2,'A Schedule Import Data'!$B:$B,$L193) -> 0 | L193: 2505 EXP
A194: Vector Control | F194: =SUMIFS('A Schedule Import Data'!U:U,'A Schedule Import Data'!$A:$A,$L$2,'A Schedule Import Data'!$B:$B,$L194) -> 0 | G194: =SUMIFS('A Schedule Import Data'!V:V,'A Schedule Import Data'!$A:$A,$L$2,'A Schedule Import Data'!$B:$B,$L194) -> 0 | H194: =SUMIFS('A Schedule Import Data'!Z:Z,'A Schedule Import Data'!$A:$A,$L$2,'A Schedule Import Data'!$B:$B,$L194) -> 0 | I194: =SUMIFS('A Schedule Import Data'!CA:CA,'A Schedule Import Data'!$A:$A,$L$2,'A Schedule Import Data'!$B:$B,$L194) -> 0 | J194: =SUMIFS('A Schedule Import Data'!CB:CB,'A Schedule Import Data'!$A:$A,$L$2,'A Schedule Import Data'!$B:$B,$L194) -> 0 | K194: =SUMIFS('A Schedule Import Data'!CC:CC,'A Schedule Import Data'!$A:$A,$L$2,'A Schedule Import Data'!$B:$B,$L194) -> 0 | L194: 2506 EXP
A195: Chemical Safety | F195: =SUMIFS('A Schedule Import Data'!U:U,'A Schedule Import Data'!$A:$A,$L$2,'A Schedule Import Data'!$B:$B,$L195) -> 0 | G195: =SUMIFS('A Schedule Import Data'!V:V,'A Schedule Import Data'!$A:$A,$L$2,'A Schedule Import Data'!$B:$B,$L195) -> 0 | H195: =SUMIFS('A Schedule Import Data'!Z:Z,'A Schedule Import Data'!$A:$A,$L$2,'A Schedule Import Data'!$B:$B,$L195) -> 0 | I195: =SUMIFS('A Schedule Import Data'!CA:CA,'A Schedule Import Data'!$A:$A,$L$2,'A Schedule Import Data'!$B:$B,$L195) -> 0 | J195: =SUMIFS('A Schedule Import Data'!CB:CB,'A Schedule Import Data'!$A:$A,$L$2,'A Schedule Import Data'!$B:$B,$L195) -> 0 | K195: =SUMIFS('A Schedule Import Data'!CC:CC,'A Schedule Import Data'!$A:$A,$L$2,'A Schedule Import Data'!$B:$B,$L195) -> 0 | L195: 2507 EXP
A196: Economic and environmental services | C196: =C197+C208+C215 -> 16805385 | D196: 16583974 | E196: 0 | F196: =F197+F208+F215 -> 23835038 | G196: 23411570 | H196: 23835038 | I196: 25959908 | J196: 27361836 | K196: 28866639 | L196: 3000 EXP
A197: Planning and development | C197: =SUM(C198:C207) -> 11404479 | D197: =SUM(D198:D207) -> 6629140 | E197: 0 | F197: =SUM(F198:F207) -> 8214216 | G197: 7917297 | H197: 8214216 | I197: 8125276 | J197: 8564133 | K197: 9035062 | L197: 3100 EXP
A198: Billboards | F198: =SUMIFS('A Schedule Import Data'!U:U,'A Schedule Import Data'!$A:$A,$L$2,'A Schedule Import Data'!$B:$B,$L198) -> 0 | G198: =SUMIFS('A Schedule Import Data'!V:V,'A Schedule Import Data'!$A:$A,$L$2,'A Schedule Import Data'!$B:$B,$L198) -> 0 | H198: =SUMIFS('A Schedule Import Data'!Z:Z,'A Schedule Import Data'!$A:$A,$L$2,'A Schedule Import Data'!$B:$B,$L198) -> 0 | I198: =SUMIFS('A Schedule Import Data'!CA:CA,'A Schedule Import Data'!$A:$A,$L$2,'A Schedule Import Data'!$B:$B,$L198) -> 0 | J198: =SUMIFS('A Schedule Import Data'!CB:CB,'A Schedule Import Data'!$A:$A,$L$2,'A Schedule Import Data'!$B:$B,$L198) -> 0 | K198: =SUMIFS('A Schedule Import Data'!CC:CC,'A Schedule Import Data'!$A:$A,$L$2,'A Schedule Import Data'!$B:$B,$L198) -> 0 | L198: 3101 EXP
A199: Corporate Wide Strategic Planning (IDPs, LEDs) | F199: =SUMIFS('A Schedule Import Data'!U:U,'A Schedule Import Data'!$A:$A,$L$2,'A Schedule Import Data'!$B:$B,$L199) -> 0 | G199: =SUMIFS('A Schedule Import Data'!V:V,'A Schedule Import Data'!$A:$A,$L$2,'A Schedule Import Data'!$B:$B,$L199) -> 0 | H199: =SUMIFS('A Schedule Import Data'!Z:Z,'A Schedule Import Data'!$A:$A,$L$2,'A Schedule Import Data'!$B:$B,$L199) -> 0 | I199: =SUMIFS('A Schedule Import Data'!CA:CA,'A Schedule Import Data'!$A:$A,$L$2,'A Schedule Import Data'!$B:$B,$L199) -> 0 | J199: =SUMIFS('A Schedule Import Data'!CB:CB,'A Schedule Import Data'!$A:$A,$L$2,'A Schedule Import Data'!$B:$B,$L199) -> 0 | K199: =SUMIFS('A Schedule Import Data'!CC:CC,'A Schedule Import Data'!$A:$A,$L$2,'A Schedule Import Data'!$B:$B,$L199) -> 0 | L199: 3102 EXP
A200: Central City Improvement District | F200: =SUMIFS('A Schedule Import Data'!U:U,'A Schedule Import Data'!$A:$A,$L$2,'A Schedule Import Data'!$B:$B,$L200) -> 0 | G200: =SUMIFS('A Schedule Import Data'!V:V,'A Schedule Import Data'!$A:$A,$L$2,'A Schedule Import Data'!$B:$B,$L200) -> 0 | H200: =SUMIFS('A Schedule Import Data'!Z:Z,'A Schedule Import Data'!$A:$A,$L$2,'A Schedule Import Data'!$B:$B,$L200) -> 0 | I200: =SUMIFS('A Schedule Import Data'!CA:CA,'A Schedule Import Data'!$A:$A,$L$2,'A Schedule Import Data'!$B:$B,$L200) -> 0 | J200: =SUMIFS('A Schedule Import Data'!CB:CB,'A Schedule Import Data'!$A:$A,$L$2,'A Schedule Import Data'!$B:$B,$L200) -> 0 | K200: =SUMIFS('A Schedule Import Data'!CC:CC,'A Schedule Import Data'!$A:$A,$L$2,'A Schedule Import Data'!$B:$B,$L200) -> 0 | L200: 3103 EXP
A201: Development Facilitation | F201: =SUMIFS('A Schedule Import Data'!U:U,'A Schedule Import Data'!$A:$A,$L$2,'A Schedule Import Data'!$B:$B,$L201) -> 0 | G201: =SUMIFS('A Schedule Import Data'!V:V,'A Schedule Import Data'!$A:$A,$L$2,'A Schedule Import Data'!$B:$B,$L201) -> 0 | H201: =SUMIFS('A Schedule Import Data'!Z:Z,'A Schedule Import Data'!$A:$A,$L$2,'A Schedule Import Data'!$B:$B,$L201) -> 0 | I201: =SUMIFS('A Schedule Import Data'!CA:CA,'A Schedule Import Data'!$A:$A,$L$2,'A Schedule Import Data'!$B:$B,$L201) -> 0 | J201: =SUMIFS('A Schedule Import Data'!CB:CB,'A Schedule Import Data'!$A:$A,$L$2,'A Schedule Import Data'!$B:$B,$L201) -> 0 | K201: =SUMIFS('A Schedule Import Data'!CC:CC,'A Schedule Import Data'!$A:$A,$L$2,'A Schedule Import Data'!$B:$B,$L201) -> 0 | L201: 3104 EXP
... 55 more rows

Sheet A3-FinPerf V
A1: =muni&" - "&Approve2 -> KZN434 Ubuhlebezwe - Table A3 Budgeted Financial Performance (revenue and expenditure by municipal vote)
A2: =Vdesc -> Vote Description | B2: =head27 -> Ref | C2: =head1b -> 2014/15 | D2: =head1A -> 2015/16 | E2: =Head1 -> 2016/17 | F2: =Head2 -> Current Year 2017/18 | I2: =Head3 -> 2018/19 Medium Term Revenue & Expenditure Framework | L2: =Head4 -> LTFS
A3: R thousand | C3: =Head5 -> Audited Outcome | D3: =Head5 -> Audited Outcome | E3: =Head5 -> Audited Outcome | F3: =Head6 -> Original Budget | G3: =Head7 -> Adjusted Budget | H3: =Head8 -> Full Year Forecast | I3: =Head9 -> Budget Year 2018/19 | J3: =Head10 -> Budget Year +1 2019/20 | K3: =Head11 -> Budget Year +2 2020/21 | L3: =Head12 -> Forecast 2021/22 | M3: =Head13 -> Forecast 2022/23 | N3: =Head14 -> Forecast 2023/24 | O3: =Head15 -> Forecast 2024/25 | P3: =Head16 -> Forecast 2025/26 | Q3: =Head17 -> Forecast 2026/27 | R3: =Head18 -> Forecast 2027/28 | S3: =Head19 -> Forecast 2028/29 | T3: =Head20 -> Forecast 2029/30 | U3: =Head21 -> Forecast 2030/31 | V3: =Head22 -> Forecast 2031/32 | W3: =Head23 -> Forecast 2032/33
A4: Revenue by Vote | B4: 1
A5: =A3A!A5 -> Vote 1 - EXECUTIVE & COUNCIL | C5: =A3A!C5 -> 0 | D5: =A3A!D5 -> 0 | E5: =A3A!E5 -> 0 | F5: =A3A!F5 -> 0 | G5: =A3A!G5 -> 0 | H5: =A3A!H5 -> 0 | I5: =A3A!I5 -> 0 | J5: =A3A!J5 -> 0 | K5: =A3A!K5 -> 0
A6: =A3A!A16 -> Vote 2 - BUDGET & TREASURY | C6: =A3A!C16 -> 89111936 | D6: =A3A!D16 -> 108518661 | E6: =A3A!E16 -> 156376322 | F6: =A3A!F16 -> 120181822 | G6: =A3A!G16 -> 122126235 | H6: =A3A!H16 -> 120181822 | I6: =A3A!I16 -> 127033369 | J6: =A3A!J16 -> 117518150 | K6: =A3A!K16 -> 123981650
A7: =A3A!A27 -> Vote 3 - CORPORATE SERVCES | C7: =A3A!C27 -> 1091118 | D7: =A3A!D27 -> 586377 | E7: =A3A!E27 -> 1173223 | F7: =A3A!F27 -> 5250000 | G7: =A3A!G27 -> 2150000 | H7: =A3A!H27 -> 5250000 | I7: =A3A!I27 -> 2650000 | J7: =A3A!J27 -> 2793100 | K7: =A3A!K27 -> 2946720
A8: =A3A!A38 -> Vote 4 - COMMUNITY & SOCIAL SERVICES | C8: =A3A!C38 -> 2126151 | D8: =A3A!D38 -> 5289712 | E8: =A3A!E38 -> 0 | F8: =A3A!F38 -> 3045211 | G8: =A3A!G38 -> 3659711 | H8: =A3A!H38 -> 3045211 | I8: =A3A!I38 -> 3804724 | J8: =A3A!J38 -> 4006466 | K8: =A3A!K38 -> 3330042
A9: =A3A!A49 -> Vote 5 - SPORT & RECREATION/PARKS | C9: =A3A!C49 -> 59982 | D9: =A3A!D49 -> 3187118 | E9: =A3A!E49 -> 0 | F9: =A3A!F49 -> 0 | G9: =A3A!G49 -> 0 | H9: =A3A!H49 -> 0 | I9: =A3A!I49 -> 0 | J9: =A3A!J49 -> 0 | K9: =A3A!K49 -> 0
A10: =A3A!A60 -> Vote 6 - PUBLIC SAFETY | C10: =A3A!C60 -> 3759967 | D10: =A3A!D60 -> 3975687 | E10: =A3A!E60 -> 3304893 | F10: =A3A!F60 -> 3875000 | G10: =A3A!G60 -> 3275000 | H10: =A3A!H60 -> 3875000 | I10: =A3A!I60 -> 3826300 | J10: =A3A!J60 -> 4032920 | K10: =A3A!K60 -> 4254731
A11: =A3A!A71 -> Vote 7 - HOUSING | C11: =A3A!C71 -> 0 | D11: =A3A!D71 -> 0 | E11: =A3A!E71 -> 0 | F11: =A3A!F71 -> 0 | G11: =A3A!G71 -> 0 | H11: =A3A!H71 -> 0 | I11: =A3A!I71 -> 0 | J11: =A3A!J71 -> 0 | K11: =A3A!K71 -> 0
A12: =A3A!A82 -> Vote 8 - INFRASTRUCTURE, PLANNING & DEVELOPMENT | C12: =A3A!C82 -> 67768528 | D12: =A3A!D82 -> 17038065 | E12: =A3A!E82 -> 0 | F12: =A3A!F82 -> 135000 | G12: =A3A!G82 -> 115000 | H12: =A3A!H82 -> 135000 | I12: =A3A!I82 -> 115780 | J12: =A3A!J82 -> 122032 | K12: =A3A!K82 -> 128744
A13: =A3A!A93 -> Vote 9 - ROADS TRANSPORT | C13: =A3A!C93 -> 1208836 | D13: =A3A!D93 -> 63651520 | E13: =A3A!E93 -> 0 | F13: =A3A!F93 -> 49694052 | G13: =A3A!G93 -> 49555000 | H13: =A3A!H93 -> 49694052 | I13: =A3A!I93 -> 45680616 | J13: =A3A!J93 -> 70197590 | K13: =A3A!K93 -> 50795474
A14: =A3A!A104 -> Vote 10 - [NAME OF VOTE 10] | C14: =A3A!C104 -> 0 | D14: =A3A!D104 -> 0 | E14: =A3A!E104 -> 0 | F14: =A3A!F104 -> 0 | G14: =A3A!G104 -> 0 | H14: =A3A!H104 -> 0 | I14: =A3A!I104 -> 0 | J14: =A3A!J104 -> 0 | K14: =A3A!K104 -> 0
A15: =A3A!A115 -> Vote 11 - [NAME OF VOTE 11] | C15: =A3A!C115 -> 0 | D15: =A3A!D115 -> 0 | E15: =A3A!E115 -> 0 | F15: =A3A!F115 -> 0 | G15: =A3A!G115 -> 0 | H15: =A3A!H115 -> 0 | I15: =A3A!I115 -> 0 | J15: =A3A!J115 -> 0 | K15: =A3A!K115 -> 0 | L15: =A5A!L115 -> 0
A16: =A3A!A126 -> Vote 12 - [NAME OF VOTE 12] | C16: =A3A!C126 -> 0 | D16: =A3A!D126 -> 0 | E16: =A3A!E126 -> 0 | F16: =A3A!F126 -> 0 | G16: =A3A!G126 -> 0 | H16: =A3A!H126 -> 0 | I16: =A3A!I126 -> 0 | J16: =A3A!J126 -> 0 | K16: =A3A!K126 -> 0 | L16: =A5A!L126 -> 0
A17: =A3A!A137 -> Vote 13 - [NAME OF VOTE 13] | C17: =A3A!C137 -> 0 | D17: =A3A!D137 -> 0 | E17: =A3A!E137 -> 0 | F17: =A3A!F137 -> 0 | G17: =A3A!G137 -> 0 | H17: =A3A!H137 -> 0 | I17: =A3A!I137 -> 0 | J17: =A3A!J137 -> 0 | K17: =A3A!K137 -> 0 | L17: =A5A!L137 -> 0
A18: =A3A!A148 -> Vote 14 - [NAME OF VOTE 14] | C18: =A3A!C148 -> 0 | D18: =A3A!D148 -> 0 | E18: =A3A!E148 -> 0 | F18: =A3A!F148 -> 0 | G18: =A3A!G148 -> 0 | H18: =A3A!H148 -> 0 | I18: =A3A!I148 -> 0 | J18: =A3A!J148 -> 0 | K18: =A3A!K148 -> 0 | L18: =A5A!L148 -> 0
A19: =A3A!A159 -> Vote 15 - [NAME OF VOTE 15] | C19: =A3A!C159 -> 0 | D19: =A3A!D159 -> 0 | E19: =A3A!E159 -> 0 | F19: =A3A!F159 -> 0 | G19: =A3A!G159 -> 0 | H19: =A3A!H159 -> 0 | I19: =A3A!I159 -> 0 | J19: =A3A!J159 -> 0 | K19: =A3A!K159 -> 0 | L19: =A5A!L159 -> 0
A20: Total Revenue by Vote | B20: 2 | C20: =SUM(C5:C19) -> 165126518 | D20: =SUM(D5:D19) -> 202247140 | E20: 160854438 | F20: 182181085 | G20: 180880946 | H20: 182181085 | I20: 183110789 | J20: 198670258 | K20: 185437361
A22: Expenditure by Vote to be appropriated | B22: 1
A23: =A3A!A173 -> Vote 1 - EXECUTIVE & COUNCIL | C23: =A3A!C173 -> 12683609 | D23: =A3A!D173 -> 13222429 | E23: =A3A!E173 -> 0 | F23: =A3A!F173 -> 23930098 | G23: =A3A!G173 -> 22910955 | H23: =A3A!H173 -> 23930098 | I23: =A3A!I173 -> 23501231 | J23: =A3A!J173 -> 24770296 | K23: =A3A!K173 -> 26132658
A24: =A3A!A184 -> Vote 2 - BUDGET & TREASURY | C24: =A3A!C184 -> 33060878 | D24: =A3A!D184 -> 30471120 | E24: =A3A!E184 -> 121945552 | F24: =A3A!F184 -> 37268766 | G24: =A3A!G184 -> 37886149 | H24: =A3A!H184 -> 37268766 | I24: =A3A!I184 -> 38630675 | J24: =A3A!J184 -> 40716731.45 | K24: =A3A!K184 -> 42956151.68
A25: =A3A!A195 -> Vote 3 - CORPORATE SERVCES | C25: =A3A!C195 -> 15190273 | D25: =A3A!D195 -> 36604994 | E25: =A3A!E195 -> 0 | F25: =A3A!F195 -> 24248236 | G25: =A3A!G195 -> 25078536 | H25: =A3A!H195 -> 24248236 | I25: =A3A!I195 -> 26096752 | J25: =A3A!J195 -> 27485930 | K25: =A3A!K195 -> 29350391
A26: =A3A!A206 -> Vote 4 - COMMUNITY & SOCIAL SERVICES | C26: =A3A!C206 -> 16114929 | D26: =A3A!D206 -> 13851995 | E26: =A3A!E206 -> 0 | F26: =A3A!F206 -> 19845829 | G26: =A3A!G206 -> 19221832 | H26: =A3A!H206 -> 19845829 | I26: =A3A!I206 -> 21040359 | J26: =A3A!J206 -> 22999016 | K26: =A3A!K206 -> 23392529
A27: =A3A!A217 -> Vote 5 - SPORT & RECREATION/PARKS | C27: =A3A!C217 -> 552318 | D27: =A3A!D217 -> 308434 | E27: =A3A!E217 -> 0 | F27: =A3A!F217 -> 722735 | G27: =A3A!G217 -> 707735 | H27: =A3A!H217 -> 722735 | I27: =A3A!I217 -> 692650 | J27: =A3A!J217 -> 730051 | K27: =A3A!K217 -> 770203
A28: =A3A!A228 -> Vote 6 - PUBLIC SAFETY | C28: =A3A!C228 -> 5522088 | D28: =A3A!D228 -> 6355612 | E28: =A3A!E228 -> 1364866 | F28: =A3A!F228 -> 13968204 | G28: =A3A!G228 -> 14933505 | H28: =A3A!H228 -> 13968204 | I28: =A3A!I228 -> 15524758 | J28: =A3A!J228 -> 16363023 | K28: =A3A!K228 -> 17262067
A29: =A3A!A239 -> Vote 7 - HOUSING | C29: =A3A!C239 -> 4204528 | D29: =A3A!D239 -> 586933 | E29: =A3A!E239 -> 0 | F29: =A3A!F239 -> 1264762 | G29: =A3A!G239 -> 1195912 | H29: =A3A!H239 -> 1264762 | I29: =A3A!I239 -> 1284957 | J29: =A3A!J239 -> 1354346 | K29: =A3A!K239 -> 1428833
A30: =A3A!A250 -> Vote 8 - INFRASTRUCTURE, PLANNING & DEVELOPMENT | C30: =A3A!C250 -> 11404479 | D30: =A3A!D250 -> 6629140 | E30: =A3A!E250 -> 0 | F30: =A3A!F250 -> 7790881 | G30: =A3A!G250 -> 7493962 | H30: =A3A!H250 -> 7790881 | I30: =A3A!I250 -> 7688016 | J30: =A3A!J250 -> 8103261 | K30: =A3A!K250 -> 8548842
A31: =A3A!A261 -> Vote 9 - ROADS TRANSPORT | C31: =A3A!C261 -> 5343955 | D31: =A3A!D261 -> 11062987 | E31: =A3A!E261 -> 2881474 | F31: =A3A!F261 -> 16044157 | G31: =A3A!G261 -> 36382608 | H31: =A3A!H261 -> 16044157 | I31: =A3A!I261 -> 35213988 | J31: =A3A!J261 -> 37115544 | K31: =A3A!K261 -> 39156898
A32: =A3A!A272 -> Vote 10 - [NAME OF VOTE 10] | C32: =A3A!C272 -> 0 | D32: =A3A!D272 -> 0 | E32: =A3A!E272 -> 0 | F32: =A3A!F272 -> 0 | G32: =A3A!G272 -> 0 | H32: =A3A!H272 -> 0 | I32: =A3A!I272 -> 0 | J32: =A3A!J272 -> 0 | K32: =A3A!K272 -> 0
A33: =A3A!A283 -> Vote 11 - [NAME OF VOTE 11] | C33: =A3A!C283 -> 0 | D33: =A3A!D283 -> 0 | E33: =A3A!E283 -> 0 | F33: =A3A!F283 -> 0 | G33: =A3A!G283 -> 0 | H33: =A3A!H283 -> 0 | I33: =A3A!I283 -> 0 | J33: =A3A!J283 -> 0 | K33: =A3A!K283 -> 0 | L33: =A3A!L284 -> 0
A34: =A3A!A294 -> Vote 12 - [NAME OF VOTE 12] | C34: =A3A!C294 -> 0 | D34: =A3A!D294 -> 0 | E34: =A3A!E294 -> 0 | F34: =A3A!F294 -> 0 | G34: =A3A!G294 -> 0 | H34: =A3A!H294 -> 0 | I34: =A3A!I294 -> 0 | J34: =A3A!J294 -> 0 | K34: =A3A!K294 -> 0 | L34: =A3A!L295 -> 0
A35: =A3A!A305 -> Vote 13 - [NAME OF VOTE 13] | C35: =A3A!C305 -> 0 | D35: =A3A!D305 -> 0 | E35: =A3A!E305 -> 0 | F35: =A3A!F305 -> 0 | G35: =A3A!G305 -> 0 | H35: =A3A!H305 -> 0 | I35: =A3A!I305 -> 0 | J35: =A3A!J305 -> 0 | K35: =A3A!K305 -> 0 | L35: =A3A!L306 -> 0
A36: =A3A!A316 -> Vote 14 - [NAME OF VOTE 14] | C36: =A3A!C316 -> 0 | D36: =A3A!D316 -> 0 | E36: =A3A!E316 -> 0 | F36: =A3A!F316 -> 0 | G36: =A3A!G316 -> 0 | H36: =A3A!H316 -> 0 | I36: =A3A!I316 -> 0 | J36: =A3A!J316 -> 0 | K36: =A3A!K316 -> 0 | L36: =A3A!L317 -> 0
A37: =A3A!A327 -> Vote 15 - [NAME OF VOTE 15] | C37: =A3A!C327 -> 0 | D37: =A3A!D327 -> 0 | E37: =A3A!E327 -> 0 | F37: =A3A!F327 -> 0 | G37: =A3A!G327 -> 0 | H37: =A3A!H327 -> 0 | I37: =A3A!I327 -> 0 | J37: =A3A!J327 -> 0 | K37: =A3A!K327 -> 0 | L37: =A3A!L328 -> 0
A38: Total Expenditure by Vote | B38: 2 | C38: =SUM(C23:C37) -> 104077057 | D38: =SUM(D23:D37) -> 119093644 | E38: 126191892 | F38: 145083668 | G38: 165811194 | H38: 145083668 | I38: 169673386 | J38: 179638198.4 | K38: 188998572.7 | L38: =SUM(L23:L29) -> 0 | M38: 0 | N38: 0 | O38: 0 | P38: 0 | Q38: 0 | R38: 0 | S38: 0 | T38: 0 | U38: 0 | V38: 0 | W38: 0
A39: =result -> Surplus/(Deficit) for the year | B39: 2 | C39: =C20-C38 -> 61049461 | D39: 83153496 | E39: 34662546 | F39: 37097417 | G39: 15069752 | H39: 37097417 | I39: 13437403 | J39: 19032059.55 | K39: -3561211.68 | L39: 0 | M39: 0 | N39: 0 | O39: 0 | P39: 0 | Q39: 0 | R39: 0 | S39: 0 | T39: 0 | U39: 0 | V39: 0 | W39: 0
A40: =head27a -> References
A41: 1. Insert 'Vote'; e.g. department, if different to functional classification structure
A42: 2. Must reconcile to Budgeted Financial Performance (revenue and expenditure)
A43: 3. Assign share in 'associate' to relevant Vote
A45: ="check "&A39 -> check Surplus/(Deficit) for the year | C45: =C39-A3A!C340 -> 0 | D45: =D39-A3A!D340 -> 0 | E45: =E39-A3A!E340 -> 0 | F45: =F39-A3A!F340 -> 0 | G45: =G39-A3A!G340 -> 0 | H45: =H39-A3A!H340 -> 0 | I45: =I39-A3A!I340 -> 0 | J45: =J39-A3A!J340 -> 0 | K45: =K39-A3A!K340 -> 0

Sheet A3A
A1: =muni&" - "&Approve2&"A" -> KZN434 Ubuhlebezwe - Table A3 Budgeted Financial Performance (revenue and expenditure by municipal vote)A
A2: =Vdesc -> Vote Description | B2: =head27 -> Ref | C2: =head1b -> 2014/15 | D2: =head1A -> 2015/16 | E2: =Head1 -> 2016/17 | F2: =Head2 -> Current Year 2017/18 | I2: =Head3 -> 2018/19 Medium Term Revenue & Expenditure Framework | L2: =Head4 -> LTFS | X2: A3A
A3: R thousand | C3: =Head5 -> Audited Outcome | D3: =Head5 -> Audited Outcome | E3: =Head5 -> Audited Outcome | F3: =Head6 -> Original Budget | G3: =Head7 -> Adjusted Budget | H3: =Head8 -> Full Year Forecast | I3: =Head9 -> Budget Year 2018/19 | J3: =Head10 -> Budget Year +1 2019/20 | K3: =Head11 -> Budget Year +2 2020/21 | L3: =Head12 -> Forecast 2021/22 | M3: =Head13 -> Forecast 2022/23 | N3: =Head14 -> Forecast 2023/24 | O3: =Head15 -> Forecast 2024/25 | P3: =Head16 -> Forecast 2025/26 | Q3: =Head17 -> Forecast 2026/27 | R3: =Head18 -> Forecast 2027/28 | S3: =Head19 -> Forecast 2028/29 | T3: =Head20 -> Forecast 2029/30 | U3: =Head21 -> Forecast 2030/31 | V3: =Head22 -> Forecast 2031/32 | W3: =Head23 -> Forecast 2032/33
A4: Revenue by Vote | B4: 1
A5: ='Org structure'!A2 -> Vote 1 - EXECUTIVE & COUNCIL | C5: =SUM(C6:C15) -> 0 | D5: =SUM(D6:D15) -> 0 | E5: 0 | F5: 0 | G5: 0 | H5: 0 | I5: 0 | J5: 0 | K5: 0
A6: ='Org structure'!E3 -> 1.1 - Council | F6: =-SUMIFS('A Schedule Import Data'!U:U,'A Schedule Import Data'!$A:$A,$X$2,'A Schedule Import Data'!$B:$B,$X6) -> 0 | G6: =-SUMIFS('A Schedule Import Data'!V:V,'A Schedule Import Data'!$A:$A,$X$2,'A Schedule Import Data'!$B:$B,$X6) -> 0 | H6: =-SUMIFS('A Schedule Import Data'!Z:Z,'A Schedule Import Data'!$A:$A,$X$2,'A Schedule Import Data'!$B:$B,$X6) -> 0 | I6: =-SUMIFS('A Schedule Import Data'!CA:CA,'A Schedule Import Data'!$A:$A,$X$2,'A Schedule Import Data'!$B:$B,$X6) -> 0 | J6: =-SUMIFS('A Schedule Import Data'!CB:CB,'A Schedule Import Data'!$A:$A,$X$2,'A Schedule Import Data'!$B:$B,$X6) -> 0 | K6: =-SUMIFS('A Schedule Import Data'!CC:CC,'A Schedule Import Data'!$A:$A,$X$2,'A Schedule Import Data'!$B:$B,$X6) -> 0 | X6: 1.1 REV
A7: ='Org structure'!E4 -> 1.2 - Municipal Manager | F7: =-SUMIFS('A Schedule Import Data'!U:U,'A Schedule Import Data'!$A:$A,$X$2,'A Schedule Import Data'!$B:$B,$X7) -> 0 | G7: =-SUMIFS('A Schedule Import Data'!V:V,'A Schedule Import Data'!$A:$A,$X$2,'A Schedule Import Data'!$B:$B,$X7) -> 0 | H7: =-SUMIFS('A Schedule Import Data'!Z:Z,'A Schedule Import Data'!$A:$A,$X$2,'A Schedule Import Data'!$B:$B,$X7) -> 0 | I7: =-SUMIFS('A Schedule Import Data'!CA:CA,'A Schedule Import Data'!$A:$A,$X$2,'A Schedule Import Data'!$B:$B,$X7) -> 0 | J7: =-SUMIFS('A Schedule Import Data'!CB:CB,'A Schedule Import Data'!$A:$A,$X$2,'A Schedule Import Data'!$B:$B,$X7) -> 0 | K7: =-SUMIFS('A Schedule Import Data'!CC:CC,'A Schedule Import Data'!$A:$A,$X$2,'A Schedule Import Data'!$B:$B,$X7) -> 0 | X7: 1.2 REV
A8: ='Org structure'!E5 ->  | F8: =-SUMIFS('A Schedule Import Data'!U:U,'A Schedule Import Data'!$A:$A,$X$2,'A Schedule Import Data'!$B:$B,$X8) -> 0 | G8: =-SUMIFS('A Schedule Import Data'!V:V,'A Schedule Import Data'!$A:$A,$X$2,'A Schedule Import Data'!$B:$B,$X8) -> 0 | H8: =-SUMIFS('A Schedule Import Data'!Z:Z,'A Schedule Import Data'!$A:$A,$X$2,'A Schedule Import Data'!$B:$B,$X8) -> 0 | I8: =-SUMIFS('A Schedule Import Data'!CA:CA,'A Schedule Import Data'!$A:$A,$X$2,'A Schedule Import Data'!$B:$B,$X8) -> 0 | J8: =-SUMIFS('A Schedule Import Data'!CB:CB,'A Schedule Import Data'!$A:$A,$X$2,'A Schedule Import Data'!$B:$B,$X8) -> 0 | K8: =-SUMIFS('A Schedule Import Data'!CC:CC,'A Schedule Import Data'!$A:$A,$X$2,'A Schedule Import Data'!$B:$B,$X8) -> 0 | X8: 1.3 REV
A9: ='Org structure'!E6 ->  | F9: =-SUMIFS('A Schedule Import Data'!U:U,'A Schedule Import Data'!$A:$A,$X$2,'A Schedule Import Data'!$B:$B,$X9) -> 0 | G9: =-SUMIFS('A Schedule Import Data'!V:V,'A Schedule Import Data'!$A:$A,$X$2,'A Schedule Import Data'!$B:$B,$X9) -> 0 | H9: =-SUMIFS('A Schedule Import Data'!Z:Z,'A Schedule Import Data'!$A:$A,$X$2,'A Schedule Import Data'!$B:$B,$X9) -> 0 | I9: =-SUMIFS('A Schedule Import Data'!CA:CA,'A Schedule Import Data'!$A:$A,$X$2,'A Schedule Import Data'!$B:$B,$X9) -> 0 | J9: =-SUMIFS('A Schedule Import Data'!CB:CB,'A Schedule Import Data'!$A:$A,$X$2,'A Schedule Import Data'!$B:$B,$X9) -> 0 | K9: =-SUMIFS('A Schedule Import Data'!CC:CC,'A Schedule Import Data'!$A:$A,$X$2,'A Schedule Import Data'!$B:$B,$X9) -> 0 | X9: 1.4 REV
A10: ='Org structure'!E7 ->  | F10: =-SUMIFS('A Schedule Import Data'!U:U,'A Schedule Import Data'!$A:$A,$X$2,'A Schedule Import Data'!$B:$B,$X10) -> 0 | G10: =-SUMIFS('A Schedule Import Data'!V:V,'A Schedule Import Data'!$A:$A,$X$2,'A Schedule Import Data'!$B:$B,$X10) -> 0 | H10: =-SUMIFS('A Schedule Import Data'!Z:Z,'A Schedule Import Data'!$A:$A,$X$2,'A Schedule Import Data'!$B:$B,$X10) -> 0 | I10: =-SUMIFS('A Schedule Import Data'!CA:CA,'A Schedule Import Data'!$A:$A,$X$2,'A Schedule Import Data'!$B:$B,$X10) -> 0 | J10: =-SUMIFS('A Schedule Import Data'!CB:CB,'A Schedule Import Data'!$A:$A,$X$2,'A Schedule Import Data'!$B:$B,$X10) -> 0 | K10: =-SUMIFS('A Schedule Import Data'!CC:CC,'A Schedule Import Data'!$A:$A,$X$2,'A Schedule Import Data'!$B:$B,$X10) -> 0 | X10: 1.5 REV
A11: ='Org structure'!E8 ->  | F11: =-SUMIFS('A Schedule Import Data'!U:U,'A Schedule Import Data'!$A:$A,$X$2,'A Schedule Import Data'!$B:$B,$X11) -> 0 | G11: =-SUMIFS('A Schedule Import Data'!V:V,'A Schedule Import Data'!$A:$A,$X$2,'A Schedule Import Data'!$B:$B,$X11) -> 0 | H11: =-SUMIFS('A Schedule Import Data'!Z:Z,'A Schedule Import Data'!$A:$A,$X$2,'A Schedule Import Data'!$B:$B,$X11) -> 0 | I11: =-SUMIFS('A Schedule Import Data'!CA:CA,'A Schedule Import Data'!$A:$A,$X$2,'A Schedule Import Data'!$B:$B,$X11) -> 0 | J11: =-SUMIFS('A Schedule Import Data'!CB:CB,'A Schedule Import Data'!$A:$A,$X$2,'A Schedule Import Data'!$B:$B,$X11) -> 0 | K11: =-SUMIFS('A Schedule Import Data'!CC:CC,'A Schedule Import Data'!$A:$A,$X$2,'A Schedule Import Data'!$B:$B,$X11) -> 0 | X11: 1.6 REV
A12: ='Org structure'!E9 ->  | F12: =-SUMIFS('A Schedule Import Data'!U:U,'A Schedule Import Data'!$A:$A,$X$2,'A Schedule Import Data'!$B:$B,$X12) -> 0 | G12: =-SUMIFS('A Schedule Import Data'!V:V,'A Schedule Import Data'!$A:$A,$X$2,'A Schedule Import Data'!$B:$B,$X12) -> 0 | H12: =-SUMIFS('A Schedule Import Data'!Z:Z,'A Schedule Import Data'!$A:$A,$X$2,'A Schedule Import Data'!$B:$B,$X12) -> 0 | I12: =-SUMIFS('A Schedule Import Data'!CA:CA,'A Schedule Import Data'!$A:$A,$X$2,'A Schedule Import Data'!$B:$B,$X12) -> 0 | J12: =-SUMIFS('A Schedule Import Data'!CB:CB,'A Schedule Import Data'!$A:$A,$X$2,'A Schedule Import Data'!$B:$B,$X12) -> 0 | K12: =-SUMIFS('A Schedule Import Data'!CC:CC,'A Schedule Import Data'!$A:$A,$X$2,'A Schedule Import Data'!$B:$B,$X12) -> 0 | X12: 1.7 REV
A13: ='Org structure'!E10 ->  | F13: =-SUMIFS('A Schedule Import Data'!U:U,'A Schedule Import Data'!$A:$A,$X$2,'A Schedule Import Data'!$B:$B,$X13) -> 0 | G13: =-SUMIFS('A Schedule Import Data'!V:V,'A Schedule Import Data'!$A:$A,$X$2,'A Schedule Import Data'!$B:$B,$X13) -> 0 | H13: =-SUMIFS('A Schedule Import Data'!Z:Z,'A Schedule Import Data'!$A:$A,$X$2,'A Schedule Import Data'!$B:$B,$X13) -> 0 | I13: =-SUMIFS('A Schedule Import Data'!CA:CA,'A Schedule Import Data'!$A:$A,$X$2,'A Schedule Import Data'!$B:$B,$X13) -> 0 | J13: =-SUMIFS('A Schedule Import Data'!CB:CB,'A Schedule Import Data'!$A:$A,$X$2,'A Schedule Import Data'!$B:$B,$X13) -> 0 | K13: =-SUMIFS('A Schedule Import Data'!CC:CC,'A Schedule Import Data'!$A:$A,$X$2,'A Schedule Import Data'!$B:$B,$X13) -> 0 | X13: 1.8 REV
A14: ='Org structure'!E11 ->  | F14: =-SUMIFS('A Schedule Import Data'!U:U,'A Schedule Import Data'!$A:$A,$X$2,'A Schedule Import Data'!$B:$B,$X14) -> 0 | G14: =-SUMIFS('A Schedule Import Data'!V:V,'A Schedule Import Data'!$A:$A,$X$2,'A Schedule Import Data'!$B:$B,$X14) -> 0 | H14: =-SUMIFS('A Schedule Import Data'!Z:Z,'A Schedule Import Data'!$A:$A,$X$2,'A Schedule Import Data'!$B:$B,$X14) -> 0 | I14: =-SUMIFS('A Schedule Import Data'!CA:CA,'A Schedule Import Data'!$A:$A,$X$2,'A Schedule Import Data'!$B:$B,$X14) -> 0 | J14: =-SUMIFS('A Schedule Import Data'!CB:CB,'A Schedule Import Data'!$A:$A,$X$2,'A Schedule Import Data'!$B:$B,$X14) -> 0 | K14: =-SUMIFS('A Schedule Import Data'!CC:CC,'A Schedule Import Data'!$A:$A,$X$2,'A Schedule Import Data'!$B:$B,$X14) -> 0 | X14: 1.9 REV
A15: ='Org structure'!E12 ->  | F15: =-SUMIFS('A Schedule Import Data'!U:U,'A Schedule Import Data'!$A:$A,$X$2,'A Schedule Import Data'!$B:$B,$X15) -> 0 | G15: =-SUMIFS('A Schedule Import Data'!V:V,'A Schedule Import Data'!$A:$A,$X$2,'A Schedule Import Data'!$B:$B,$X15) -> 0 | H15: =-SUMIFS('A Schedule Import Data'!Z:Z,'A Schedule Import Data'!$A:$A,$X$2,'A Schedule Import Data'!$B:$B,$X15) -> 0 | I15: =-SUMIFS('A Schedule Import Data'!CA:CA,'A Schedule Import Data'!$A:$A,$X$2,'A Schedule Import Data'!$B:$B,$X15) -> 0 | J15: =-SUMIFS('A Schedule Import Data'!CB:CB,'A Schedule Import Data'!$A:$A,$X$2,'A Schedule Import Data'!$B:$B,$X15) -> 0 | K15: =-SUMIFS('A Schedule Import Data'!CC:CC,'A Schedule Import Data'!$A:$A,$X$2,'A Schedule Import Data'!$B:$B,$X15) -> 0 | X15: 1.10 REV
A16: ='Org structure'!A3 -> Vote 2 - BUDGET & TREASURY | C16: =SUM(C17:C26) -> 89111936 | D16: =SUM(D17:D26) -> 108518661 | E16: 156376322 | F16: =SUM(F17:F26) -> 120181822 | G16: 122126235 | H16: 120181822 | I16: 127033369 | J16: 117518150 | K16: 123981650
A17: ='Org structure'!E14 -> 2.1 - Budget & Treasury | C17: 89111936 | D17: 108518661 | E17: 156376322 | F17: =-SUMIFS('A Schedule Import Data'!U:U,'A Schedule Import Data'!$A:$A,$X$2,'A Schedule Import Data'!$B:$B,$X17) -> 120181822 | G17: =-SUMIFS('A Schedule Import Data'!V:V,'A Schedule Import Data'!$A:$A,$X$2,'A Schedule Import Data'!$B:$B,$X17) -> 122126235 | H17: =-SUMIFS('A Schedule Import Data'!Z:Z,'A Schedule Import Data'!$A:$A,$X$2,'A Schedule Import Data'!$B:$B,$X17) -> 120181822 | I17: =-SUMIFS('A Schedule Import Data'!CA:CA,'A Schedule Import Data'!$A:$A,$X$2,'A Schedule Import Data'!$B:$B,$X17) -> 127033369 | J17: =-SUMIFS('A Schedule Import Data'!CB:CB,'A Schedule Import Data'!$A:$A,$X$2,'A Schedule Import Data'!$B:$B,$X17) -> 117518150 | K17: =-SUMIFS('A Schedule Import Data'!CC:CC,'A Schedule Import Data'!$A:$A,$X$2,'A Schedule Import Data'!$B:$B,$X17) -> 123981650 | X17: 2.1 REV
A18: ='Org structure'!E15 ->  | F18: =-SUMIFS('A Schedule Import Data'!U:U,'A Schedule Import Data'!$A:$A,$X$2,'A Schedule Import Data'!$B:$B,$X18) -> 0 | G18: =-SUMIFS('A Schedule Import Data'!V:V,'A Schedule Import Data'!$A:$A,$X$2,'A Schedule Import Data'!$B:$B,$X18) -> 0 | H18: =-SUMIFS('A Schedule Import Data'!Z:Z,'A Schedule Import Data'!$A:$A,$X$2,'A Schedule Import Data'!$B:$B,$X18) -> 0 | I18: =-SUMIFS('A Schedule Import Data'!CA:CA,'A Schedule Import Data'!$A:$A,$X$2,'A Schedule Import Data'!$B:$B,$X18) -> 0 | J18: =-SUMIFS('A Schedule Import Data'!CB:CB,'A Schedule Import Data'!$A:$A,$X$2,'A Schedule Import Data'!$B:$B,$X18) -> 0 | K18: =-SUMIFS('A Schedule Import Data'!CC:CC,'A Schedule Import Data'!$A:$A,$X$2,'A Schedule Import Data'!$B:$B,$X18) -> 0 | X18: 2.2 REV
A19: ='Org structure'!E16 ->  | F19: =-SUMIFS('A Schedule Import Data'!U:U,'A Schedule Import Data'!$A:$A,$X$2,'A Schedule Import Data'!$B:$B,$X19) -> 0 | G19: =-SUMIFS('A Schedule Import Data'!V:V,'A Schedule Import Data'!$A:$A,$X$2,'A Schedule Import Data'!$B:$B,$X19) -> 0 | H19: =-SUMIFS('A Schedule Import Data'!Z:Z,'A Schedule Import Data'!$A:$A,$X$2,'A Schedule Import Data'!$B:$B,$X19) -> 0 | I19: =-SUMIFS('A Schedule Import Data'!CA:CA,'A Schedule Import Data'!$A:$A,$X$2,'A Schedule Import Data'!$B:$B,$X19) -> 0 | J19: =-SUMIFS('A Schedule Import Data'!CB:CB,'A Schedule Import Data'!$A:$A,$X$2,'A Schedule Import Data'!$B:$B,$X19) -> 0 | K19: =-SUMIFS('A Schedule Import Data'!CC:CC,'A Schedule Import Data'!$A:$A,$X$2,'A Schedule Import Data'!$B:$B,$X19) -> 0 | X19: 2.3 REV
A20: ='Org structure'!E17 ->  | F20: =-SUMIFS('A Schedule Import Data'!U:U,'A Schedule Import Data'!$A:$A,$X$2,'A Schedule Import Data'!$B:$B,$X20) -> 0 | G20: =-SUMIFS('A Schedule Import Data'!V:V,'A Schedule Import Data'!$A:$A,$X$2,'A Schedule Import Data'!$B:$B,$X20) -> 0 | H20: =-SUMIFS('A Schedule Import Data'!Z:Z,'A Schedule Import Data'!$A:$A,$X$2,'A Schedule Import Data'!$B:$B,$X20) -> 0 | I20: =-SUMIFS('A Schedule Import Data'!CA:CA,'A Schedule Import Data'!$A:$A,$X$2,'A Schedule Import Data'!$B:$B,$X20) -> 0 | J20: =-SUMIFS('A Schedule Import Data'!CB:CB,'A Schedule Import Data'!$A:$A,$X$2,'A Schedule Import Data'!$B:$B,$X20) -> 0 | K20: =-SUMIFS('A Schedule Import Data'!CC:CC,'A Schedule Import Data'!$A:$A,$X$2,'A Schedule Import Data'!$B:$B,$X20) -> 0 | X20: 2.4 REV
A21: ='Org structure'!E18 ->  | F21: =-SUMIFS('A Schedule Import Data'!U:U,'A Schedule Import Data'!$A:$A,$X$2,'A Schedule Import Data'!$B:$B,$X21) -> 0 | G21: =-SUMIFS('A Schedule Import Data'!V:V,'A Schedule Import Data'!$A:$A,$X$2,'A Schedule Import Data'!$B:$B,$X21) -> 0 | H21: =-SUMIFS('A Schedule Import Data'!Z:Z,'A Schedule Import Data'!$A:$A,$X$2,'A Schedule Import Data'!$B:$B,$X21) -> 0 | I21: =-SUMIFS('A Schedule Import Data'!CA:CA,'A Schedule Import Data'!$A:$A,$X$2,'A Schedule Import Data'!$B:$B,$X21) -> 0 | J21: =-SUMIFS('A Schedule Import Data'!CB:CB,'A Schedule Import Data'!$A:$A,$X$2,'A Schedule Import Data'!$B:$B,$X21) -> 0 | K21: =-SUMIFS('A Schedule Import Data'!CC:CC,'A Schedule Import Data'!$A:$A,$X$2,'A Schedule Import Data'!$B:$B,$X21) -> 0 | X21: 2.5 REV
A22: ='Org structure'!E19 ->  | F22: =-SUMIFS('A Schedule Import Data'!U:U,'A Schedule Import Data'!$A:$A,$X$2,'A Schedule Import Data'!$B:$B,$X22) -> 0 | G22: =-SUMIFS('A Schedule Import Data'!V:V,'A Schedule Import Data'!$A:$A,$X$2,'A Schedule Import Data'!$B:$B,$X22) -> 0 | H22: =-SUMIFS('A Schedule Import Data'!Z:Z,'A Schedule Import Data'!$A:$A,$X$2,'A Schedule Import Data'!$B:$B,$X22) -> 0 | I22: =-SUMIFS('A Schedule Import Data'!CA:CA,'A Schedule Import Data'!$A:$A,$X$2,'A Schedule Import Data'!$B:$B,$X22) -> 0 | J22: =-SUMIFS('A Schedule Import Data'!CB:CB,'A Schedule Import Data'!$A:$A,$X$2,'A Schedule Import Data'!$B:$B,$X22) -> 0 | K22: =-SUMIFS('A Schedule Import Data'!CC:CC,'A Schedule Import Data'!$A:$A,$X$2,'A Schedule Import Data'!$B:$B,$X22) -> 0 | X22: 2.6 REV
A23: ='Org structure'!E20 ->  | F23: =-SUMIFS('A Schedule Import Data'!U:U,'A Schedule Import Data'!$A:$A,$X$2,'A Schedule Import Data'!$B:$B,$X23) -> 0 | G23: =-SUMIFS('A Schedule Import Data'!V:V,'A Schedule Import Data'!$A:$A,$X$2,'A Schedule Import Data'!$B:$B,$X23) -> 0 | H23: =-SUMIFS('A Schedule Import Data'!Z:Z,'A Schedule Import Data'!$A:$A,$X$2,'A Schedule Import Data'!$B:$B,$X23) -> 0 | I23: =-SUMIFS('A Schedule Import Data'!CA:CA,'A Schedule Import Data'!$A:$A,$X$2,'A Schedule Import Data'!$B:$B,$X23) -> 0 | J23: =-SUMIFS('A Schedule Import Data'!CB:CB,'A Schedule Import Data'!$A:$A,$X$2,'A Schedule Import Data'!$B:$B,$X23) -> 0 | K23: =-SUMIFS('A Schedule Import Data'!CC:CC,'A Schedule Import Data'!$A:$A,$X$2,'A Schedule Import Data'!$B:$B,$X23) -> 0 | X23: 2.7 REV
A24: ='Org structure'!E21 ->  | F24: =-SUMIFS('A Schedule Import Data'!U:U,'A Schedule Import Data'!$A:$A,$X$2,'A Schedule Import Data'!$B:$B,$X24) -> 0 | G24: =-SUMIFS('A Schedule Import Data'!V:V,'A Schedule Import Data'!$A:$A,$X$2,'A Schedule Import Data'!$B:$B,$X24) -> 0 | H24: =-SUMIFS('A Schedule Import Data'!Z:Z,'A Schedule Import Data'!$A:$A,$X$2,'A Schedule Import Data'!$B:$B,$X24) -> 0 | I24: =-SUMIFS('A Schedule Import Data'!CA:CA,'A Schedule Import Data'!$A:$A,$X$2,'A Schedule Import Data'!$B:$B,$X24) -> 0 | J24: =-SUMIFS('A Schedule Import Data'!CB:CB,'A Schedule Import Data'!$A:$A,$X$2,'A Schedule Import Data'!$B:$B,$X24) -> 0 | K24: =-SUMIFS('A Schedule Import Data'!CC:CC,'A Schedule Import Data'!$A:$A,$X$2,'A Schedule Import Data'!$B:$B,$X24) -> 0 | X24: 2.8 REV
A25: ='Org structure'!E22 ->  | F25: =-SUMIFS('A Schedule Import Data'!U:U,'A Schedule Import Data'!$A:$A,$X$2,'A Schedule Import Data'!$B:$B,$X25) -> 0 | G25: =-SUMIFS('A Schedule Import Data'!V:V,'A Schedule Import Data'!$A:$A,$X$2,'A Schedule Import Data'!$B:$B,$X25) -> 0 | H25: =-SUMIFS('A Schedule Import Data'!Z:Z,'A Schedule Import Data'!$A:$A,$X$2,'A Schedule Import Data'!$B:$B,$X25) -> 0 | I25: =-SUMIFS('A Schedule Import Data'!CA:CA,'A Schedule Import Data'!$A:$A,$X$2,'A Schedule Import Data'!$B:$B,$X25) -> 0 | J25: =-SUMIFS('A Schedule Import Data'!CB:CB,'A Schedule Import Data'!$A:$A,$X$2,'A Schedule Import Data'!$B:$B,$X25) -> 0 | K25: =-SUMIFS('A Schedule Import Data'!CC:CC,'A Schedule Import Data'!$A:$A,$X$2,'A Schedule Import Data'!$B:$B,$X25) -> 0 | X25: 2.9 REV
A26: ='Org structure'!E23 ->  | F26: =-SUMIFS('A Schedule Import Data'!U:U,'A Schedule Import Data'!$A:$A,$X$2,'A Schedule Import Data'!$B:$B,$X26) -> 0 | G26: =-SUMIFS('A Schedule Import Data'!V:V,'A Schedule Import Data'!$A:$A,$X$2,'A Schedule Import Data'!$B:$B,$X26) -> 0 | H26: =-SUMIFS('A Schedule Import Data'!Z:Z,'A Schedule Import Data'!$A:$A,$X$2,'A Schedule Import Data'!$B:$B,$X26) -> 0 | I26: =-SUMIFS('A Schedule Import Data'!CA:CA,'A Schedule Import Data'!$A:$A,$X$2,'A Schedule Import Data'!$B:$B,$X26) -> 0 | J26: =-SUMIFS('A Schedule Import Data'!CB:CB,'A Schedule Import Data'!$A:$A,$X$2,'A Schedule Import Data'!$B:$B,$X26) -> 0 | K26: =-SUMIFS('A Schedule Import Data'!CC:CC,'A Schedule Import Data'!$A:$A,$X$2,'A Schedule Import Data'!$B:$B,$X26) -> 0 | X26: 2.10 REV
A27: ='Org structure'!A4 -> Vote 3 - CORPORATE SERVCES | C27: =SUM(C28:C37) -> 1091118 | D27: 586377 | E27: 1173223 | F27: =SUM(F28:F37) -> 5250000 | G27: 2150000 | H27: 5250000 | I27: 2650000 | J27: 2793100 | K27: 2946720
A28: ='Org structure'!E25 -> 3.1 - Corporate Services/Other Admin | F28: =-SUMIFS('A Schedule Import Data'!U:U,'A Schedule Import Data'!$A:$A,$X$2,'A Schedule Import Data'!$B:$B,$X28) -> 5000000 | G28: =-SUMIFS('A Schedule Import Data'!V:V,'A Schedule Import Data'!$A:$A,$X$2,'A Schedule Import Data'!$B:$B,$X28) -> 2000000 | H28: =-SUMIFS('A Schedule Import Data'!Z:Z,'A Schedule Import Data'!$A:$A,$X$2,'A Schedule Import Data'!$B:$B,$X28) -> 5000000 | I28: =-SUMIFS('A Schedule Import Data'!CA:CA,'A Schedule Import Data'!$A:$A,$X$2,'A Schedule Import Data'!$B:$B,$X28) -> 2500000 | J28: =-SUMIFS('A Schedule Import Data'!CB:CB,'A Schedule Import Data'!$A:$A,$X$2,'A Schedule Import Data'!$B:$B,$X28) -> 2635000 | K28: =-SUMIFS('A Schedule Import Data'!CC:CC,'A Schedule Import Data'!$A:$A,$X$2,'A Schedule Import Data'!$B:$B,$X28) -> 2779925 | X28: 3.1 REV
A29: ='Org structure'!E26 -> 3.2 - Muncipal Estates/Property Services | C29: 1091118 | D29: 586377 | E29: 1173223 | F29: =-SUMIFS('A Schedule Import Data'!U:U,'A Schedule Import Data'!$A:$A,$X$2,'A Schedule Import Data'!$B:$B,$X29) -> 250000 | G29: =-SUMIFS('A Schedule Import Data'!V:V,'A Schedule Import Data'!$A:$A,$X$2,'A Schedule Import Data'!$B:$B,$X29) -> 150000 | H29: =-SUMIFS('A Schedule Import Data'!Z:Z,'A Schedule Import Data'!$A:$A,$X$2,'A Schedule Import Data'!$B:$B,$X29) -> 250000 | I29: =-SUMIFS('A Schedule Import Data'!CA:CA,'A Schedule Import Data'!$A:$A,$X$2,'A Schedule Import Data'!$B:$B,$X29) -> 150000 | J29: =-SUMIFS('A Schedule Import Data'!CB:CB,'A Schedule Import Data'!$A:$A,$X$2,'A Schedule Import Data'!$B:$B,$X29) -> 158100 | K29: =-SUMIFS('A Schedule Import Data'!CC:CC,'A Schedule Import Data'!$A:$A,$X$2,'A Schedule Import Data'!$B:$B,$X29) -> 166795 | X29: 3.2 REV
A30: ='Org structure'!E27 ->  | F30: =-SUMIFS('A Schedule Import Data'!U:U,'A Schedule Import Data'!$A:$A,$X$2,'A Schedule Import Data'!$B:$B,$X30) -> 0 | G30: =-SUMIFS('A Schedule Import Data'!V:V,'A Schedule Import Data'!$A:$A,$X$2,'A Schedule Import Data'!$B:$B,$X30) -> 0 | H30: =-SUMIFS('A Schedule Import Data'!Z:Z,'A Schedule Import Data'!$A:$A,$X$2,'A Schedule Import Data'!$B:$B,$X30) -> 0 | I30: =-SUMIFS('A Schedule Import Data'!CA:CA,'A Schedule Import Data'!$A:$A,$X$2,'A Schedule Import Data'!$B:$B,$X30) -> 0 | J30: =-SUMIFS('A Schedule Import Data'!CB:CB,'A Schedule Import Data'!$A:$A,$X$2,'A Schedule Import Data'!$B:$B,$X30) -> 0 | K30: =-SUMIFS('A Schedule Import Data'!CC:CC,'A Schedule Import Data'!$A:$A,$X$2,'A Schedule Import Data'!$B:$B,$X30) -> 0 | X30: 3.3 REV
A31: ='Org structure'!E28 ->  | F31: =-SUMIFS('A Schedule Import Data'!U:U,'A Schedule Import Data'!$A:$A,$X$2,'A Schedule Import Data'!$B:$B,$X31) -> 0 | G31: =-SUMIFS('A Schedule Import Data'!V:V,'A Schedule Import Data'!$A:$A,$X$2,'A Schedule Import Data'!$B:$B,$X31) -> 0 | H31: =-SUMIFS('A Schedule Import Data'!Z:Z,'A Schedule Import Data'!$A:$A,$X$2,'A Schedule Import Data'!$B:$B,$X31) -> 0 | I31: =-SUMIFS('A Schedule Import Data'!CA:CA,'A Schedule Import Data'!$A:$A,$X$2,'A Schedule Import Data'!$B:$B,$X31) -> 0 | J31: =-SUMIFS('A Schedule Import Data'!CB:CB,'A Schedule Import Data'!$A:$A,$X$2,'A Schedule Import Data'!$B:$B,$X31) -> 0 | K31: =-SUMIFS('A Schedule Import Data'!CC:CC,'A Schedule Import Data'!$A:$A,$X$2,'A Schedule Import Data'!$B:$B,$X31) -> 0 | X31: 3.4 REV
A32: ='Org structure'!E29 ->  | F32: =-SUMIFS('A Schedule Import Data'!U:U,'A Schedule Import Data'!$A:$A,$X$2,'A Schedule Import Data'!$B:$B,$X32) -> 0 | G32: =-SUMIFS('A Schedule Import Data'!V:V,'A Schedule Import Data'!$A:$A,$X$2,'A Schedule Import Data'!$B:$B,$X32) -> 0 | H32: =-SUMIFS('A Schedule Import Data'!Z:Z,'A Schedule Import Data'!$A:$A,$X$2,'A Schedule Import Data'!$B:$B,$X32) -> 0 | I32: =-SUMIFS('A Schedule Import Data'!CA:CA,'A Schedule Import Data'!$A:$A,$X$2,'A Schedule Import Data'!$B:$B,$X32) -> 0 | J32: =-SUMIFS('A Schedule Import Data'!CB:CB,'A Schedule Import Data'!$A:$A,$X$2,'A Schedule Import Data'!$B:$B,$X32) -> 0 | K32: =-SUMIFS('A Schedule Import Data'!CC:CC,'A Schedule Import Data'!$A:$A,$X$2,'A Schedule Import Data'!$B:$B,$X32) -> 0 | X32: 3.5 REV
A33: ='Org structure'!E30 ->  | F33: =-SUMIFS('A Schedule Import Data'!U:U,'A Schedule Import Data'!$A:$A,$X$2,'A Schedule Import Data'!$B:$B,$X33) -> 0 | G33: =-SUMIFS('A Schedule Import Data'!V:V,'A Schedule Import Data'!$A:$A,$X$2,'A Schedule Import Data'!$B:$B,$X33) -> 0 | H33: =-SUMIFS('A Schedule Import Data'!Z:Z,'A Schedule Import Data'!$A:$A,$X$2,'A Schedule Import Data'!$B:$B,$X33) -> 0 | I33: =-SUMIFS('A Schedule Import Data'!CA:CA,'A Schedule Import Data'!$A:$A,$X$2,'A Schedule Import Data'!$B:$B,$X33) -> 0 | J33: =-SUMIFS('A Schedule Import Data'!CB:CB,'A Schedule Import Data'!$A:$A,$X$2,'A Schedule Import Data'!$B:$B,$X33) -> 0 | K33: =-SUMIFS('A Schedule Import Data'!CC:CC,'A Schedule Import Data'!$A:$A,$X$2,'A Schedule Import Data'!$B:$B,$X33) -> 0 | X33: 3.6 REV
A34: ='Org structure'!E31 ->  | F34: =-SUMIFS('A Schedule Import Data'!U:U,'A Schedule Import Data'!$A:$A,$X$2,'A Schedule Import Data'!$B:$B,$X34) -> 0 | G34: =-SUMIFS('A Schedule Import Data'!V:V,'A Schedule Import Data'!$A:$A,$X$2,'A Schedule Import Data'!$B:$B,$X34) -> 0 | H34: =-SUMIFS('A Schedule Import Data'!Z:Z,'A Schedule Import Data'!$A:$A,$X$2,'A Schedule Import Data'!$B:$B,$X34) -> 0 | I34: =-SUMIFS('A Schedule Import Data'!CA:CA,'A Schedule Import Data'!$A:$A,$X$2,'A Schedule Import Data'!$B:$B,$X34) -> 0 | J34: =-SUMIFS('A Schedule Import Data'!CB:CB,'A Schedule Import Data'!$A:$A,$X$2,'A Schedule Import Data'!$B:$B,$X34) -> 0 | K34: =-SUMIFS('A Schedule Import Data'!CC:CC,'A Schedule Import Data'!$A:$A,$X$2,'A Schedule Import Data'!$B:$B,$X34) -> 0 | X34: 3.7 REV
A35: ='Org structure'!E32 ->  | F35: =-SUMIFS('A Schedule Import Data'!U:U,'A Schedule Import Data'!$A:$A,$X$2,'A Schedule Import Data'!$B:$B,$X35) -> 0 | G35: =-SUMIFS('A Schedule Import Data'!V:V,'A Schedule Import Data'!$A:$A,$X$2,'A Schedule Import Data'!$B:$B,$X35) -> 0 | H35: =-SUMIFS('A Schedule Import Data'!Z:Z,'A Schedule Import Data'!$A:$A,$X$2,'A Schedule Import Data'!$B:$B,$X35) -> 0 | I35: =-SUMIFS('A Schedule Import Data'!CA:CA,'A Schedule Import Data'!$A:$A,$X$2,'A Schedule Import Data'!$B:$B,$X35) -> 0 | J35: =-SUMIFS('A Schedule Import Data'!CB:CB,'A Schedule Import Data'!$A:$A,$X$2,'A Schedule Import Data'!$B:$B,$X35) -> 0 | K35: =-SUMIFS('A Schedule Import Data'!CC:CC,'A Schedule Import Data'!$A:$A,$X$2,'A Schedule Import Data'!$B:$B,$X35) -> 0 | X35: 3.8 REV
A36: ='Org structure'!E33 ->  | F36: =-SUMIFS('A Schedule Import Data'!U:U,'A Schedule Import Data'!$A:$A,$X$2,'A Schedule Import Data'!$B:$B,$X36) -> 0 | G36: =-SUMIFS('A Schedule Import Data'!V:V,'A Schedule Import Data'!$A:$A,$X$2,'A Schedule Import Data'!$B:$B,$X36) -> 0 | H36: =-SUMIFS('A Schedule Import Data'!Z:Z,'A Schedule Import Data'!$A:$A,$X$2,'A Schedule Import Data'!$B:$B,$X36) -> 0 | I36: =-SUMIFS('A Schedule Import Data'!CA:CA,'A Schedule Import Data'!$A:$A,$X$2,'A Schedule Import Data'!$B:$B,$X36) -> 0 | J36: =-SUMIFS('A Schedule Import Data'!CB:CB,'A Schedule Import Data'!$A:$A,$X$2,'A Schedule Import Data'!$B:$B,$X36) -> 0 | K36: =-SUMIFS('A Schedule Import Data'!CC:CC,'A Schedule Import Data'!$A:$A,$X$2,'A Schedule Import Data'!$B:$B,$X36) -> 0 | X36: 3.9 REV
A37: ='Org structure'!E34 ->  | F37: =-SUMIFS('A Schedule Import Data'!U:U,'A Schedule Import Data'!$A:$A,$X$2,'A Schedule Import Data'!$B:$B,$X37) -> 0 | G37: =-SUMIFS('A Schedule Import Data'!V:V,'A Schedule Import Data'!$A:$A,$X$2,'A Schedule Import Data'!$B:$B,$X37) -> 0 | H37: =-SUMIFS('A Schedule Import Data'!Z:Z,'A Schedule Import Data'!$A:$A,$X$2,'A Schedule Import Data'!$B:$B,$X37) -> 0 | I37: =-SUMIFS('A Schedule Import Data'!CA:CA,'A Schedule Import Data'!$A:$A,$X$2,'A Schedule Import Data'!$B:$B,$X37) -> 0 | J37: =-SUMIFS('A Schedule Import Data'!CB:CB,'A Schedule Import Data'!$A:$A,$X$2,'A Schedule Import Data'!$B:$B,$X37) -> 0 | K37: =-SUMIFS('A Schedule Import Data'!CC:CC,'A Schedule Import Data'!$A:$A,$X$2,'A Schedule Import Data'!$B:$B,$X37) -> 0 | X37: 3.10 REV
A38: ='Org structure'!A5 -> Vote 4 - COMMUNITY & SOCIAL SERVICES | C38: =SUM(C39:C48) -> 2126151 | D38: 5289712 | E38: 0 | F38: =SUM(F39:F48) -> 3045211 | G38: 3659711 | H38: 3045211 | I38: 3804724 | J38: 4006466 | K38: 3330042
A39: ='Org structure'!E36 -> 4.1 - Libraries | C39: 662249 | D39: 3608062 | F39: =-SUMIFS('A Schedule Import Data'!U:U,'A Schedule Import Data'!$A:$A,$X$2,'A Schedule Import Data'!$B:$B,$X39) -> 774500 | G39: =-SUMIFS('A Schedule Import Data'!V:V,'A Schedule Import Data'!$A:$A,$X$2,'A Schedule Import Data'!$B:$B,$X39) -> 779000 | H39: =-SUMIFS('A Schedule Import Data'!Z:Z,'A Schedule Import Data'!$A:$A,$X$2,'A Schedule Import Data'!$B:$B,$X39) -> 774500 | I39: =817966+450 -> 818416 | J39: =-SUMIFS('A Schedule Import Data'!CB:CB,'A Schedule Import Data'!$A:$A,$X$2,'A Schedule Import Data'!$B:$B,$X39) -> 858898 | K39: =-SUMIFS('A Schedule Import Data'!CC:CC,'A Schedule Import Data'!$A:$A,$X$2,'A Schedule Import Data'!$B:$B,$X39) -> 9358 | X39: 4.1 REV
A40: ='Org structure'!E37 -> 4.2 - Community Halls & Facilities | F40: =-SUMIFS('A Schedule Import Data'!U:U,'A Schedule Import Data'!$A:$A,$X$2,'A Schedule Import Data'!$B:$B,$X40) -> 0 | G40: =-SUMIFS('A Schedule Import Data'!V:V,'A Schedule Import Data'!$A:$A,$X$2,'A Schedule Import Data'!$B:$B,$X40) -> 0 | H40: =-SUMIFS('A Schedule Import Data'!Z:Z,'A Schedule Import Data'!$A:$A,$X$2,'A Schedule Import Data'!$B:$B,$X40) -> 0 | I40: =-SUMIFS('A Schedule Import Data'!CA:CA,'A Schedule Import Data'!$A:$A,$X$2,'A Schedule Import Data'!$B:$B,$X40) -> 0 | J40: =-SUMIFS('A Schedule Import Data'!CB:CB,'A Schedule Import Data'!$A:$A,$X$2,'A Schedule Import Data'!$B:$B,$X40) -> 0 | K40: =-SUMIFS('A Schedule Import Data'!CC:CC,'A Schedule Import Data'!$A:$A,$X$2,'A Schedule Import Data'!$B:$B,$X40) -> 0 | X40: 4.2 REV
A41: ='Org structure'!E38 -> 4.3 - Cemeteries | F41: =-SUMIFS('A Schedule Import Data'!U:U,'A Schedule Import Data'!$A:$A,$X$2,'A Schedule Import Data'!$B:$B,$X41) -> 30000 | G41: =-SUMIFS('A Schedule Import Data'!V:V,'A Schedule Import Data'!$A:$A,$X$2,'A Schedule Import Data'!$B:$B,$X41) -> 40000 | H41: =-SUMIFS('A Schedule Import Data'!Z:Z,'A Schedule Import Data'!$A:$A,$X$2,'A Schedule Import Data'!$B:$B,$X41) -> 30000 | I41: =-SUMIFS('A Schedule Import Data'!CA:CA,'A Schedule Import Data'!$A:$A,$X$2,'A Schedule Import Data'!$B:$B,$X41) -> 42080 | J41: =-SUMIFS('A Schedule Import Data'!CB:CB,'A Schedule Import Data'!$A:$A,$X$2,'A Schedule Import Data'!$B:$B,$X41) -> 44352 | K41: =-SUMIFS('A Schedule Import Data'!CC:CC,'A Schedule Import Data'!$A:$A,$X$2,'A Schedule Import Data'!$B:$B,$X41) -> 46792 | X41: 4.3 REV
A42: ='Org structure'!E39 -> 4.4 - Child Care | F42: =-SUMIFS('A Schedule Import Data'!U:U,'A Schedule Import Data'!$A:$A,$X$2,'A Schedule Import Data'!$B:$B,$X42) -> 0 | G42: =-SUMIFS('A Schedule Import Data'!V:V,'A Schedule Import Data'!$A:$A,$X$2,'A Schedule Import Data'!$B:$B,$X42) -> 0 | H42: =-SUMIFS('A Schedule Import Data'!Z:Z,'A Schedule Import Data'!$A:$A,$X$2,'A Schedule Import Data'!$B:$B,$X42) -> 0 | I42: =-SUMIFS('A Schedule Import Data'!CA:CA,'A Schedule Import Data'!$A:$A,$X$2,'A Schedule Import Data'!$B:$B,$X42) -> 0 | J42: =-SUMIFS('A Schedule Import Data'!CB:CB,'A Schedule Import Data'!$A:$A,$X$2,'A Schedule Import Data'!$B:$B,$X42) -> 0 | K42: =-SUMIFS('A Schedule Import Data'!CC:CC,'A Schedule Import Data'!$A:$A,$X$2,'A Schedule Import Data'!$B:$B,$X42) -> 0 | X42: 4.4 REV
A43: ='Org structure'!E40 -> 4.5 - Thusong Centre | F43: =-SUMIFS('A Schedule Import Data'!U:U,'A Schedule Import Data'!$A:$A,$X$2,'A Schedule Import Data'!$B:$B,$X43) -> 250000 | G43: =-SUMIFS('A Schedule Import Data'!V:V,'A Schedule Import Data'!$A:$A,$X$2,'A Schedule Import Data'!$B:$B,$X43) -> 850000 | H43: =-SUMIFS('A Schedule Import Data'!Z:Z,'A Schedule Import Data'!$A:$A,$X$2,'A Schedule Import Data'!$B:$B,$X43) -> 250000 | I43: =-SUMIFS('A Schedule Import Data'!CA:CA,'A Schedule Import Data'!$A:$A,$X$2,'A Schedule Import Data'!$B:$B,$X43) -> 850000 | J43: =-SUMIFS('A Schedule Import Data'!CB:CB,'A Schedule Import Data'!$A:$A,$X$2,'A Schedule Import Data'!$B:$B,$X43) -> 895900 | K43: =-SUMIFS('A Schedule Import Data'!CC:CC,'A Schedule Import Data'!$A:$A,$X$2,'A Schedule Import Data'!$B:$B,$X43) -> 945174 | X43: 4.5 REV
A44: ='Org structure'!E41 -> 4.6 - Social Development | F44: =-SUMIFS('A Schedule Import Data'!U:U,'A Schedule Import Data'!$A:$A,$X$2,'A Schedule Import Data'!$B:$B,$X44) -> 0 | G44: =-SUMIFS('A Schedule Import Data'!V:V,'A Schedule Import Data'!$A:$A,$X$2,'A Schedule Import Data'!$B:$B,$X44) -> 0 | H44: =-SUMIFS('A Schedule Import Data'!Z:Z,'A Schedule Import Data'!$A:$A,$X$2,'A Schedule Import Data'!$B:$B,$X44) -> 0 | I44: =-SUMIFS('A Schedule Import Data'!CA:CA,'A Schedule Import Data'!$A:$A,$X$2,'A Schedule Import Data'!$B:$B,$X44) -> 0 | J44: =-SUMIFS('A Schedule Import Data'!CB:CB,'A Schedule Import Data'!$A:$A,$X$2,'A Schedule Import Data'!$B:$B,$X44) -> 0 | K44: =-SUMIFS('A Schedule Import Data'!CC:CC,'A Schedule Import Data'!$A:$A,$X$2,'A Schedule Import Data'!$B:$B,$X44) -> 0 | X44: 4.6 REV
A45: ='Org structure'!E42 -> 4.7 - Solid Waste Removal (Refuse) | C45: 1463902 | D45: 1681650 | F45: =-SUMIFS('A Schedule Import Data'!U:U,'A Schedule Import Data'!$A:$A,$X$2,'A Schedule Import Data'!$B:$B,$X45) -> 1990711 | G45: =-SUMIFS('A Schedule Import Data'!V:V,'A Schedule Import Data'!$A:$A,$X$2,'A Schedule Import Data'!$B:$B,$X45) -> 1990711 | H45: =-SUMIFS('A Schedule Import Data'!Z:Z,'A Schedule Import Data'!$A:$A,$X$2,'A Schedule Import Data'!$B:$B,$X45) -> 1990711 | I45: =-SUMIFS('A Schedule Import Data'!CA:CA,'A Schedule Import Data'!$A:$A,$X$2,'A Schedule Import Data'!$B:$B,$X45) -> 2094228 | J45: =-SUMIFS('A Schedule Import Data'!CB:CB,'A Schedule Import Data'!$A:$A,$X$2,'A Schedule Import Data'!$B:$B,$X45) -> 2207316 | K45: =-SUMIFS('A Schedule Import Data'!CC:CC,'A Schedule Import Data'!$A:$A,$X$2,'A Schedule Import Data'!$B:$B,$X45) -> 2328718 | X45: 4.7 REV
A46: ='Org structure'!E43 ->  | F46: =-SUMIFS('A Schedule Import Data'!U:U,'A Schedule Import Data'!$A:$A,$X$2,'A Schedule Import Data'!$B:$B,$X46) -> 0 | G46: =-SUMIFS('A Schedule Import Data'!V:V,'A Schedule Import Data'!$A:$A,$X$2,'A Schedule Import Data'!$B:$B,$X46) -> 0 | H46: =-SUMIFS('A Schedule Import Data'!Z:Z,'A Schedule Import Data'!$A:$A,$X$2,'A Schedule Import Data'!$B:$B,$X46) -> 0 | I46: =-SUMIFS('A Schedule Import Data'!CA:CA,'A Schedule Import Data'!$A:$A,$X$2,'A Schedule Import Data'!$B:$B,$X46) -> 0 | J46: =-SUMIFS('A Schedule Import Data'!CB:CB,'A Schedule Import Data'!$A:$A,$X$2,'A Schedule Import Data'!$B:$B,$X46) -> 0 | K46: =-SUMIFS('A Schedule Import Data'!CC:CC,'A Schedule Import Data'!$A:$A,$X$2,'A Schedule Import Data'!$B:$B,$X46) -> 0 | X46: 4.8 REV
A47: ='Org structure'!E44 ->  | F47: =-SUMIFS('A Schedule Import Data'!U:U,'A Schedule Import Data'!$A:$A,$X$2,'A Schedule Import Data'!$B:$B,$X47) -> 0 | G47: =-SUMIFS('A Schedule Import Data'!V:V,'A Schedule Import Data'!$A:$A,$X$2,'A Schedule Import Data'!$B:$B,$X47) -> 0 | H47: =-SUMIFS('A Schedule Import Data'!Z:Z,'A Schedule Import Data'!$A:$A,$X$2,'A Schedule Import Data'!$B:$B,$X47) -> 0 | I47: =-SUMIFS('A Schedule Import Data'!CA:CA,'A Schedule Import Data'!$A:$A,$X$2,'A Schedule Import Data'!$B:$B,$X47) -> 0 | J47: =-SUMIFS('A Schedule Import Data'!CB:CB,'A Schedule Import Data'!$A:$A,$X$2,'A Schedule Import Data'!$B:$B,$X47) -> 0 | K47: =-SUMIFS('A Schedule Import Data'!CC:CC,'A Schedule Import Data'!$A:$A,$X$2,'A Schedule Import Data'!$B:$B,$X47) -> 0 | X47: 4.9 REV
A48: ='Org structure'!E45 ->  | F48: =-SUMIFS('A Schedule Import Data'!U:U,'A Schedule Import Data'!$A:$A,$X$2,'A Schedule Import Data'!$B:$B,$X48) -> 0 | G48: =-SUMIFS('A Schedule Import Data'!V:V,'A Schedule Import Data'!$A:$A,$X$2,'A Schedule Import Data'!$B:$B,$X48) -> 0 | H48: =-SUMIFS('A Schedule Import Data'!Z:Z,'A Schedule Import Data'!$A:$A,$X$2,'A Schedule Import Data'!$B:$B,$X48) -> 0 | I48: =-SUMIFS('A Schedule Import Data'!CA:CA,'A Schedule Import Data'!$A:$A,$X$2,'A Schedule Import Data'!$B:$B,$X48) -> 0 | J48: =-SUMIFS('A Schedule Import Data'!CB:CB,'A Schedule Import Data'!$A:$A,$X$2,'A Schedule Import Data'!$B:$B,$X48) -> 0 | K48: =-SUMIFS('A Schedule Import Data'!CC:CC,'A Schedule Import Data'!$A:$A,$X$2,'A Schedule Import Data'!$B:$B,$X48) -> 0 | X48: 4.10 REV
A49: ='Org structure'!A6 -> Vote 5 - SPORT & RECREATION/PARKS | C49: =SUM(C50:C59) -> 59982 | D49: =SUM(D50:D59) -> 3187118 | E49: 0 | F49: =SUM(F50:F59) -> 0 | G49: 0 | H49: 0 | I49: 0 | J49: 0 | K49: 0
A50: ='Org structure'!E47 -> 5.1 - Sport & Recreation | C50: 59982 | D50: 3187118 | F50: =-SUMIFS('A Schedule Import Data'!U:U,'A Schedule Import Data'!$A:$A,$X$2,'A Schedule Import Data'!$B:$B,$X50) -> 0 | G50: =-SUMIFS('A Schedule Import Data'!V:V,'A Schedule Import Data'!$A:$A,$X$2,'A Schedule Import Data'!$B:$B,$X50) -> 0 | H50: =-SUMIFS('A Schedule Import Data'!Z:Z,'A Schedule Import Data'!$A:$A,$X$2,'A Schedule Import Data'!$B:$B,$X50) -> 0 | I50: =-SUMIFS('A Schedule Import Data'!CA:CA,'A Schedule Import Data'!$A:$A,$X$2,'A Schedule Import Data'!$B:$B,$X50) -> 0 | J50: =-SUMIFS('A Schedule Import Data'!CB:CB,'A Schedule Import Data'!$A:$A,$X$2,'A Schedule Import Data'!$B:$B,$X50) -> 0 | K50: =-SUMIFS('A Schedule Import Data'!CC:CC,'A Schedule Import Data'!$A:$A,$X$2,'A Schedule Import Data'!$B:$B,$X50) -> 0 | X50: 5.1 REV
A51: ='Org structure'!E48 -> 5.2 - Parks | F51: =-SUMIFS('A Schedule Import Data'!U:U,'A Schedule Import Data'!$A:$A,$X$2,'A Schedule Import Data'!$B:$B,$X51) -> 0 | G51: =-SUMIFS('A Schedule Import Data'!V:V,'A Schedule Import Data'!$A:$A,$X$2,'A Schedule Import Data'!$B:$B,$X51) -> 0 | H51: =-SUMIFS('A Schedule Import Data'!Z:Z,'A Schedule Import Data'!$A:$A,$X$2,'A Schedule Import Data'!$B:$B,$X51) -> 0 | I51: =-SUMIFS('A Schedule Import Data'!CA:CA,'A Schedule Import Data'!$A:$A,$X$2,'A Schedule Import Data'!$B:$B,$X51) -> 0 | J51: =-SUMIFS('A Schedule Import Data'!CB:CB,'A Schedule Import Data'!$A:$A,$X$2,'A Schedule Import Data'!$B:$B,$X51) -> 0 | K51: =-SUMIFS('A Schedule Import Data'!CC:CC,'A Schedule Import Data'!$A:$A,$X$2,'A Schedule Import Data'!$B:$B,$X51) -> 0 | X51: 5.2 REV
A52: ='Org structure'!E49 ->  | F52: =-SUMIFS('A Schedule Import Data'!U:U,'A Schedule Import Data'!$A:$A,$X$2,'A Schedule Import Data'!$B:$B,$X52) -> 0 | G52: =-SUMIFS('A Schedule Import Data'!V:V,'A Schedule Import Data'!$A:$A,$X$2,'A Schedule Import Data'!$B:$B,$X52) -> 0 | H52: =-SUMIFS('A Schedule Import Data'!Z:Z,'A Schedule Import Data'!$A:$A,$X$2,'A Schedule Import Data'!$B:$B,$X52) -> 0 | I52: =-SUMIFS('A Schedule Import Data'!CA:CA,'A Schedule Import Data'!$A:$A,$X$2,'A Schedule Import Data'!$B:$B,$X52) -> 0 | J52: =-SUMIFS('A Schedule Import Data'!CB:CB,'A Schedule Import Data'!$A:$A,$X$2,'A Schedule Import Data'!$B:$B,$X52) -> 0 | K52: =-SUMIFS('A Schedule Import Data'!CC:CC,'A Schedule Import Data'!$A:$A,$X$2,'A Schedule Import Data'!$B:$B,$X52) -> 0 | X52: 5.3 REV
A53: ='Org structure'!E50 ->  | F53: =-SUMIFS('A Schedule Import Data'!U:U,'A Schedule Import Data'!$A:$A,$X$2,'A Schedule Import Data'!$B:$B,$X53) -> 0 | G53: =-SUMIFS('A Schedule Import Data'!V:V,'A Schedule Import Data'!$A:$A,$X$2,'A Schedule Import Data'!$B:$B,$X53) -> 0 | H53: =-SUMIFS('A Schedule Import Data'!Z:Z,'A Schedule Import Data'!$A:$A,$X$2,'A Schedule Import Data'!$B:$B,$X53) -> 0 | I53: =-SUMIFS('A Schedule Import Data'!CA:CA,'A Schedule Import Data'!$A:$A,$X$2,'A Schedule Import Data'!$B:$B,$X53) -> 0 | J53: =-SUMIFS('A Schedule Import Data'!CB:CB,'A Schedule Import Data'!$A:$A,$X$2,'A Schedule Import Data'!$B:$B,$X53) -> 0 | K53: =-SUMIFS('A Schedule Import Data'!CC:CC,'A Schedule Import Data'!$A:$A,$X$2,'A Schedule Import Data'!$B:$B,$X53) -> 0 | X53: 5.4 REV
A54: ='Org structure'!E51 ->  | F54: =-SUMIFS('A Schedule Import Data'!U:U,'A Schedule Import Data'!$A:$A,$X$2,'A Schedule Import Data'!$B:$B,$X54) -> 0 | G54: =-SUMIFS('A Schedule Import Data'!V:V,'A Schedule Import Data'!$A:$A,$X$2,'A Schedule Import Data'!$B:$B,$X54) -> 0 | H54: =-SUMIFS('A Schedule Import Data'!Z:Z,'A Schedule Import Data'!$A:$A,$X$2,'A Schedule Import Data'!$B:$B,$X54) -> 0 | I54: =-SUMIFS('A Schedule Import Data'!CA:CA,'A Schedule Import Data'!$A:$A,$X$2,'A Schedule Import Data'!$B:$B,$X54) -> 0 | J54: =-SUMIFS('A Schedule Import Data'!CB:CB,'A Schedule Import Data'!$A:$A,$X$2,'A Schedule Import Data'!$B:$B,$X54) -> 0 | K54: =-SUMIFS('A Schedule Import Data'!CC:CC,'A Schedule Import Data'!$A:$A,$X$2,'A Schedule Import Data'!$B:$B,$X54) -> 0 | X54: 5.5 REV
A55: ='Org structure'!E52 ->  | F55: =-SUMIFS('A Schedule Import Data'!U:U,'A Schedule Import Data'!$A:$A,$X$2,'A Schedule Import Data'!$B:$B,$X55) -> 0 | G55: =-SUMIFS('A Schedule Import Data'!V:V,'A Schedule Import Data'!$A:$A,$X$2,'A Schedule Import Data'!$B:$B,$X55) -> 0 | H55: =-SUMIFS('A Schedule Import Data'!Z:Z,'A Schedule Import Data'!$A:$A,$X$2,'A Schedule Import Data'!$B:$B,$X55) -> 0 | I55: =-SUMIFS('A Schedule Import Data'!CA:CA,'A Schedule Import Data'!$A:$A,$X$2,'A Schedule Import Data'!$B:$B,$X55) -> 0 | J55: =-SUMIFS('A Schedule Import Data'!CB:CB,'A Schedule Import Data'!$A:$A,$X$2,'A Schedule Import Data'!$B:$B,$X55) -> 0 | K55: =-SUMIFS('A Schedule Import Data'!CC:CC,'A Schedule Import Data'!$A:$A,$X$2,'A Schedule Import Data'!$B:$B,$X55) -> 0 | X55: 5.6 REV
A56: ='Org structure'!E53 ->  | F56: =-SUMIFS('A Schedule Import Data'!U:U,'A Schedule Import Data'!$A:$A,$X$2,'A Schedule Import Data'!$B:$B,$X56) -> 0 | G56: =-SUMIFS('A Schedule Import Data'!V:V,'A Schedule Import Data'!$A:$A,$X$2,'A Schedule Import Data'!$B:$B,$X56) -> 0 | H56: =-SUMIFS('A Schedule Import Data'!Z:Z,'A Schedule Import Data'!$A:$A,$X$2,'A Schedule Import Data'!$B:$B,$X56) -> 0 | I56: =-SUMIFS('A Schedule Import Data'!CA:CA,'A Schedule Import Data'!$A:$A,$X$2,'A Schedule Import Data'!$B:$B,$X56) -> 0 | J56: =-SUMIFS('A Schedule Import Data'!CB:CB,'A Schedule Import Data'!$A:$A,$X$2,'A Schedule Import Data'!$B:$B,$X56) -> 0 | K56: =-SUMIFS('A Schedule Import Data'!CC:CC,'A Schedule Import Data'!$A:$A,$X$2,'A Schedule Import Data'!$B:$B,$X56) -> 0 | X56: 5.7 REV
A57: ='Org structure'!E54 ->  | F57: =-SUMIFS('A Schedule Import Data'!U:U,'A Schedule Import Data'!$A:$A,$X$2,'A Schedule Import Data'!$B:$B,$X57) -> 0 | G57: =-SUMIFS('A Schedule Import Data'!V:V,'A Schedule Import Data'!$A:$A,$X$2,'A Schedule Import Data'!$B:$B,$X57) -> 0 | H57: =-SUMIFS('A Schedule Import Data'!Z:Z,'A Schedule Import Data'!$A:$A,$X$2,'A Schedule Import Data'!$B:$B,$X57) -> 0 | I57: =-SUMIFS('A Schedule Import Data'!CA:CA,'A Schedule Import Data'!$A:$A,$X$2,'A Schedule Import Data'!$B:$B,$X57) -> 0 | J57: =-SUMIFS('A Schedule Import Data'!CB:CB,'A Schedule Import Data'!$A:$A,$X$2,'A Schedule Import Data'!$B:$B,$X57) -> 0 | K57: =-SUMIFS('A Schedule Import Data'!CC:CC,'A Schedule Import Data'!$A:$A,$X$2,'A Schedule Import Data'!$B:$B,$X57) -> 0 | X57: 5.8 REV
A58: ='Org structure'!E55 ->  | F58: =-SUMIFS('A Schedule Import Data'!U:U,'A Schedule Import Data'!$A:$A,$X$2,'A Schedule Import Data'!$B:$B,$X58) -> 0 | G58: =-SUMIFS('A Schedule Import Data'!V:V,'A Schedule Import Data'!$A:$A,$X$2,'A Schedule Import Data'!$B:$B,$X58) -> 0 | H58: =-SUMIFS('A Schedule Import Data'!Z:Z,'A Schedule Import Data'!$A:$A,$X$2,'A Schedule Import Data'!$B:$B,$X58) -> 0 | I58: =-SUMIFS('A Schedule Import Data'!CA:CA,'A Schedule Import Data'!$A:$A,$X$2,'A Schedule Import Data'!$B:$B,$X58) -> 0 | J58: =-SUMIFS('A Schedule Import Data'!CB:CB,'A Schedule Import Data'!$A:$A,$X$2,'A Schedule Import Data'!$B:$B,$X58) -> 0 | K58: =-SUMIFS('A Schedule Import Data'!CC:CC,'A Schedule Import Data'!$A:$A,$X$2,'A Schedule Import Data'!$B:$B,$X58) -> 0 | X58: 5.9 REV
A59: ='Org structure'!E56 ->  | F59: =-SUMIFS('A Schedule Import Data'!U:U,'A Schedule Import Data'!$A:$A,$X$2,'A Schedule Import Data'!$B:$B,$X59) -> 0 | G59: =-SUMIFS('A Schedule Import Data'!V:V,'A Schedule Import Data'!$A:$A,$X$2,'A Schedule Import Data'!$B:$B,$X59) -> 0 | H59: =-SUMIFS('A Schedule Import Data'!Z:Z,'A Schedule Import Data'!$A:$A,$X$2,'A Schedule Import Data'!$B:$B,$X59) -> 0 | I59: =-SUMIFS('A Schedule Import Data'!CA:CA,'A Schedule Import Data'!$A:$A,$X$2,'A Schedule Import Data'!$B:$B,$X59) -> 0 | J59: =-SUMIFS('A Schedule Import Data'!CB:CB,'A Schedule Import Data'!$A:$A,$X$2,'A Schedule Import Data'!$B:$B,$X59) -> 0 | K59: =-SUMIFS('A Schedule Import Data'!CC:CC,'A Schedule Import Data'!$A:$A,$X$2,'A Schedule Import Data'!$B:$B,$X59) -> 0 | X59: 5.10 REV
A60: ='Org structure'!A7 -> Vote 6 - PUBLIC SAFETY | C60: =SUM(C61:C70) -> 3759967 | D60: =SUM(D61:D70) -> 3975687 | E60: 3304893 | F60: =SUM(F61:F70) -> 3875000 | G60: 3275000 | H60: 3875000 | I60: 3826300 | J60: 4032920 | K60: 4254731
A61: ='Org structure'!E58 -> 6.1 - Law Enforcement/Traffic | C61: 3759967 | D61: 3975687 | E61: 3304893 | F61: =-SUMIFS('A Schedule Import Data'!U:U,'A Schedule Import Data'!$A:$A,$X$2,'A Schedule Import Data'!$B:$B,$X61) -> 3850000 | G61: =-SUMIFS('A Schedule Import Data'!V:V,'A Schedule Import Data'!$A:$A,$X$2,'A Schedule Import Data'!$B:$B,$X61) -> 3250000 | H61: =-SUMIFS('A Schedule Import Data'!Z:Z,'A Schedule Import Data'!$A:$A,$X$2,'A Schedule Import Data'!$B:$B,$X61) -> 3850000 | I61: =-SUMIFS('A Schedule Import Data'!CA:CA,'A Schedule Import Data'!$A:$A,$X$2,'A Schedule Import Data'!$B:$B,$X61) -> 3800000 | J61: =-SUMIFS('A Schedule Import Data'!CB:CB,'A Schedule Import Data'!$A:$A,$X$2,'A Schedule Import Data'!$B:$B,$X61) -> 4005200 | K61: =-SUMIFS('A Schedule Import Data'!CC:CC,'A Schedule Import Data'!$A:$A,$X$2,'A Schedule Import Data'!$B:$B,$X61) -> 4225486 | X61: 6.1 REV
A62: ='Org structure'!E59 -> 6.2 - Disaster Management - Fire | F62: =-SUMIFS('A Schedule Import Data'!U:U,'A Schedule Import Data'!$A:$A,$X$2,'A Schedule Import Data'!$B:$B,$X62) -> 25000 | G62: =-SUMIFS('A Schedule Import Data'!V:V,'A Schedule Import Data'!$A:$A,$X$2,'A Schedule Import Data'!$B:$B,$X62) -> 25000 | H62: =-SUMIFS('A Schedule Import Data'!Z:Z,'A Schedule Import Data'!$A:$A,$X$2,'A Schedule Import Data'!$B:$B,$X62) -> 25000 | I62: =-SUMIFS('A Schedule Import Data'!CA:CA,'A Schedule Import Data'!$A:$A,$X$2,'A Schedule Import Data'!$B:$B,$X62) -> 26300 | J62: =-SUMIFS('A Schedule Import Data'!CB:CB,'A Schedule Import Data'!$A:$A,$X$2,'A Schedule Import Data'!$B:$B,$X62) -> 27720 | K62: =-SUMIFS('A Schedule Import Data'!CC:CC,'A Schedule Import Data'!$A:$A,$X$2,'A Schedule Import Data'!$B:$B,$X62) -> 29245 | X62: 6.2 REV
A63: ='Org structure'!E60 ->  | F63: =-SUMIFS('A Schedule Import Data'!U:U,'A Schedule Import Data'!$A:$A,$X$2,'A Schedule Import Data'!$B:$B,$X63) -> 0 | G63: =-SUMIFS('A Schedule Import Data'!V:V,'A Schedule Import Data'!$A:$A,$X$2,'A Schedule Import Data'!$B:$B,$X63) -> 0 | H63: =-SUMIFS('A Schedule Import Data'!Z:Z,'A Schedule Import Data'!$A:$A,$X$2,'A Schedule Import Data'!$B:$B,$X63) -> 0 | I63: =-SUMIFS('A Schedule Import Data'!CA:CA,'A Schedule Import Data'!$A:$A,$X$2,'A Schedule Import Data'!$B:$B,$X63) -> 0 | J63: =-SUMIFS('A Schedule Import Data'!CB:CB,'A Schedule Import Data'!$A:$A,$X$2,'A Schedule Import Data'!$B:$B,$X63) -> 0 | K63: =-SUMIFS('A Schedule Import Data'!CC:CC,'A Schedule Import Data'!$A:$A,$X$2,'A Schedule Import Data'!$B:$B,$X63) -> 0 | X63: 6.3 REV
A64: ='Org structure'!E61 ->  | F64: =-SUMIFS('A Schedule Import Data'!U:U,'A Schedule Import Data'!$A:$A,$X$2,'A Schedule Import Data'!$B:$B,$X64) -> 0 | G64: =-SUMIFS('A Schedule Import Data'!V:V,'A Schedule Import Data'!$A:$A,$X$2,'A Schedule Import Data'!$B:$B,$X64) -> 0 | H64: =-SUMIFS('A Schedule Import Data'!Z:Z,'A Schedule Import Data'!$A:$A,$X$2,'A Schedule Import Data'!$B:$B,$X64) -> 0 | I64: =-SUMIFS('A Schedule Import Data'!CA:CA,'A Schedule Import Data'!$A:$A,$X$2,'A Schedule Import Data'!$B:$B,$X64) -> 0 | J64: =-SUMIFS('A Schedule Import Data'!CB:CB,'A Schedule Import Data'!$A:$A,$X$2,'A Schedule Import Data'!$B:$B,$X64) -> 0 | K64: =-SUMIFS('A Schedule Import Data'!CC:CC,'A Schedule Import Data'!$A:$A,$X$2,'A Schedule Import Data'!$B:$B,$X64) -> 0 | X64: 6.4 REV
A65: ='Org structure'!E62 ->  | F65: =-SUMIFS('A Schedule Import Data'!U:U,'A Schedule Import Data'!$A:$A,$X$2,'A Schedule Import Data'!$B:$B,$X65) -> 0 | G65: =-SUMIFS('A Schedule Import Data'!V:V,'A Schedule Import Data'!$A:$A,$X$2,'A Schedule Import Data'!$B:$B,$X65) -> 0 | H65: =-SUMIFS('A Schedule Import Data'!Z:Z,'A Schedule Import Data'!$A:$A,$X$2,'A Schedule Import Data'!$B:$B,$X65) -> 0 | I65: =-SUMIFS('A Schedule Import Data'!CA:CA,'A Schedule Import Data'!$A:$A,$X$2,'A Schedule Import Data'!$B:$B,$X65) -> 0 | J65: =-SUMIFS('A Schedule Import Data'!CB:CB,'A Schedule Import Data'!$A:$A,$X$2,'A Schedule Import Data'!$B:$B,$X65) -> 0 | K65: =-SUMIFS('A Schedule Import Data'!CC:CC,'A Schedule Import Data'!$A:$A,$X$2,'A Schedule Import Data'!$B:$B,$X65) -> 0 | X65: 6.5 REV
A66: ='Org structure'!E63 ->  | F66: =-SUMIFS('A Schedule Import Data'!U:U,'A Schedule Import Data'!$A:$A,$X$2,'A Schedule Import Data'!$B:$B,$X66) -> 0 | G66: =-SUMIFS('A Schedule Import Data'!V:V,'A Schedule Import Data'!$A:$A,$X$2,'A Schedule Import Data'!$B:$B,$X66) -> 0 | H66: =-SUMIFS('A Schedule Import Data'!Z:Z,'A Schedule Import Data'!$A:$A,$X$2,'A Schedule Import Data'!$B:$B,$X66) -> 0 | I66: =-SUMIFS('A Schedule Import Data'!CA:CA,'A Schedule Import Data'!$A:$A,$X$2,'A Schedule Import Data'!$B:$B,$X66) -> 0 | J66: =-SUMIFS('A Schedule Import Data'!CB:CB,'A Schedule Import Data'!$A:$A,$X$2,'A Schedule Import Data'!$B:$B,$X66) -> 0 | K66: =-SUMIFS('A Schedule Import Data'!CC:CC,'A Schedule Import Data'!$A:$A,$X$2,'A Schedule Import Data'!$B:$B,$X66) -> 0 | X66: 6.6 REV
A67: ='Org structure'!E64 ->  | F67: =-SUMIFS('A Schedule Import Data'!U:U,'A Schedule Import Data'!$A:$A,$X$2,'A Schedule Import Data'!$B:$B,$X67) -> 0 | G67: =-SUMIFS('A Schedule Import Data'!V:V,'A Schedule Import Data'!$A:$A,$X$2,'A Schedule Import Data'!$B:$B,$X67) -> 0 | H67: =-SUMIFS('A Schedule Import Data'!Z:Z,'A Schedule Import Data'!$A:$A,$X$2,'A Schedule Import Data'!$B:$B,$X67) -> 0 | I67: =-SUMIFS('A Schedule Import Data'!CA:CA,'A Schedule Import Data'!$A:$A,$X$2,'A Schedule Import Data'!$B:$B,$X67) -> 0 | J67: =-SUMIFS('A Schedule Import Data'!CB:CB,'A Schedule Import Data'!$A:$A,$X$2,'A Schedule Import Data'!$B:$B,$X67) -> 0 | K67: =-SUMIFS('A Schedule Import Data'!CC:CC,'A Schedule Import Data'!$A:$A,$X$2,'A Schedule Import Data'!$B:$B,$X67) -> 0 | X67: 6.7 REV
A68: ='Org structure'!E65 ->  | F68: =-SUMIFS('A Schedule Import Data'!U:U,'A Schedule Import Data'!$A:$A,$X$2,'A Schedule Import Data'!$B:$B,$X68) -> 0 | G68: =-SUMIFS('A Schedule Import Data'!V:V,'A Schedule Import Data'!$A:$A,$X$2,'A Schedule Import Data'!$B:$B,$X68) -> 0 | H68: =-SUMIFS('A Schedule Import Data'!Z:Z,'A Schedule Import Data'!$A:$A,$X$2,'A Schedule Import Data'!$B:$B,$X68) -> 0 | I68: =-SUMIFS('A Schedule Import Data'!CA:CA,'A Schedule Import Data'!$A:$A,$X$2,'A Schedule Import Data'!$B:$B,$X68) -> 0 | J68: =-SUMIFS('A Schedule Import Data'!CB:CB,'A Schedule Import Data'!$A:$A,$X$2,'A Schedule Import Data'!$B:$B,$X68) -> 0 | K68: =-SUMIFS('A Schedule Import Data'!CC:CC,'A Schedule Import Data'!$A:$A,$X$2,'A Schedule Import Data'!$B:$B,$X68) -> 0 | X68: 6.8 REV
A69: ='Org structure'!E66 ->  | F69: =-SUMIFS('A Schedule Import Data'!U:U,'A Schedule Import Data'!$A:$A,$X$2,'A Schedule Import Data'!$B:$B,$X69) -> 0 | G69: =-SUMIFS('A Schedule Import Data'!V:V,'A Schedule Import Data'!$A:$A,$X$2,'A Schedule Import Data'!$B:$B,$X69) -> 0 | H69: =-SUMIFS('A Schedule Import Data'!Z:Z,'A Schedule Import Data'!$A:$A,$X$2,'A Schedule Import Data'!$B:$B,$X69) -> 0 | I69: =-SUMIFS('A Schedule Import Data'!CA:CA,'A Schedule Import Data'!$A:$A,$X$2,'A Schedule Import Data'!$B:$B,$X69) -> 0 | J69: =-SUMIFS('A Schedule Import Data'!CB:CB,'A Schedule Import Data'!$A:$A,$X$2,'A Schedule Import Data'!$B:$B,$X69) -> 0 | K69: =-SUMIFS('A Schedule Import Data'!CC:CC,'A Schedule Import Data'!$A:$A,$X$2,'A Schedule Import Data'!$B:$B,$X69) -> 0 | X69: 6.9 REV
A70: ='Org structure'!E67 ->  | F70: =-SUMIFS('A Schedule Import Data'!U:U,'A Schedule Import Data'!$A:$A,$X$2,'A Schedule Import Data'!$B:$B,$X70) -> 0 | G70: =-SUMIFS('A Schedule Import Data'!V:V,'A Schedule Import Data'!$A:$A,$X$2,'A Schedule Import Data'!$B:$B,$X70) -> 0 | H70: =-SUMIFS('A Schedule Import Data'!Z:Z,'A Schedule Import Data'!$A:$A,$X$2,'A Schedule Import Data'!$B:$B,$X70) -> 0 | I70: =-SUMIFS('A Schedule Import Data'!CA:CA,'A Schedule Import Data'!$A:$A,$X$2,'A Schedule Import Data'!$B:$B,$X70) -> 0 | J70: =-SUMIFS('A Schedule Import Data'!CB:CB,'A Schedule Import Data'!$A:$A,$X$2,'A Schedule Import Data'!$B:$B,$X70) -> 0 | K70: =-SUMIFS('A Schedule Import Data'!CC:CC,'A Schedule Import Data'!$A:$A,$X$2,'A Schedule Import Data'!$B:$B,$X70) -> 0 | X70: 6.10 REV
A71: ='Org structure'!A8 -> Vote 7 - HOUSING | C71: =SUM(C72:C81) -> 0 | D71: 0 | E71: 0 | F71: =SUM(F72:F81) -> 0 | G71: 0 | H71: 0 | I71: 0 | J71: 0 | K71: 0
A72: ='Org structure'!E69 -> 7.1 - Housing | F72: =-SUMIFS('A Schedule Import Data'!U:U,'A Schedule Import Data'!$A:$A,$X$2,'A Schedule Import Data'!$B:$B,$X72) -> 0 | G72: =-SUMIFS('A Schedule Import Data'!V:V,'A Schedule Import Data'!$A:$A,$X$2,'A Schedule Import Data'!$B:$B,$X72) -> 0 | H72: =-SUMIFS('A Schedule Import Data'!Z:Z,'A Schedule Import Data'!$A:$A,$X$2,'A Schedule Import Data'!$B:$B,$X72) -> 0 | I72: =-SUMIFS('A Schedule Import Data'!CA:CA,'A Schedule Import Data'!$A:$A,$X$2,'A Schedule Import Data'!$B:$B,$X72) -> 0 | J72: =-SUMIFS('A Schedule Import Data'!CB:CB,'A Schedule Import Data'!$A:$A,$X$2,'A Schedule Import Data'!$B:$B,$X72) -> 0 | K72: =-SUMIFS('A Schedule Import Data'!CC:CC,'A Schedule Import Data'!$A:$A,$X$2,'A Schedule Import Data'!$B:$B,$X72) -> 0 | X72: 7.1 REV
A73: ='Org structure'!E70 ->  | F73: =-SUMIFS('A Schedule Import Data'!U:U,'A Schedule Import Data'!$A:$A,$X$2,'A Schedule Import Data'!$B:$B,$X73) -> 0 | G73: =-SUMIFS('A Schedule Import Data'!V:V,'A Schedule Import Data'!$A:$A,$X$2,'A Schedule Import Data'!$B:$B,$X73) -> 0 | H73: =-SUMIFS('A Schedule Import Data'!Z:Z,'A Schedule Import Data'!$A:$A,$X$2,'A Schedule Import Data'!$B:$B,$X73) -> 0 | I73: =-SUMIFS('A Schedule Import Data'!CA:CA,'A Schedule Import Data'!$A:$A,$X$2,'A Schedule Import Data'!$B:$B,$X73) -> 0 | J73: =-SUMIFS('A Schedule Import Data'!CB:CB,'A Schedule Import Data'!$A:$A,$X$2,'A Schedule Import Data'!$B:$B,$X73) -> 0 | K73: =-SUMIFS('A Schedule Import Data'!CC:CC,'A Schedule Import Data'!$A:$A,$X$2,'A Schedule Import Data'!$B:$B,$X73) -> 0 | X73: 7.2 REV
